Workbook

Sheet INDEX
B2: The Scottish Health Survey (SHeS)
B3: Health board results 2013-2016
B5: Summary by NHS Board
B6: Self-assessed general health | I6: CHART
B7: WEMWBS mean scores | I7: CHART
B8: General Health Questionnaire (GHQ-12) scores | I8: CHART
B9: Long-term illness | I9: CHART
B10: Alcohol consumption- weekly drinking guidelines | I10: CHART
B11: Alcohol consumption- mean weekly units | I11: CHART
B12: Smoking behaviour | I12: CHART
B13: Overweight | I13: CHART
B14: Obesity | I14: CHART
B15: Fruit and vegetable consumption- by category | I15: CHART
B16: Fruit and vegetable consumption- mean daily portions | I16: CHART
B17: Physical activity | I17: CHART
B18: Cardiovascular (CVD) conditions | I18: CHART
B20: More information about these topics can be found in the latest Scottish Health Survey report:
B21: http://www.gov.scot/Topics/Statistics/Browse/Health/scottish-health-survey

Sheet Summary By NHS Board
B2: Choose an NHS Board to update charts and compare against overall Scotland figures
I7: Self-assessed general health | X7: WEMWBS mean scores
I8: All adults, 2013-2016 combined | X8: All adults, 2013-2016 combined
K9: Scotland | M9: =$A$128 -> Ayrshire & Arran | Z9: Scotland | AB9: =$A$128 -> Ayrshire & Arran
I10: ='SAH chart'!B36 -> Very good/good | K10: ='SAH chart'!R36 -> 73.78 | M10: =D130 -> 69.69 | X10: =F130 -> Mean | Z10: =G130 -> 49.94 | AB10: =H130 -> 49.19
I11: ='SAH chart'!B37 -> Lower CI | K11: ='SAH chart'!R37 -> 72.9 | M11: =D131 -> 66.84 | X11: =F131 -> Lower CI | Z11: =G131 -> 49.76 | AB11: =H131 -> 48.72
I12: ='SAH chart'!B38 -> Upper CI | K12: ='SAH chart'!R38 -> 74.66 | M12: =D132 -> 72.55 | X12: =F132 -> Upper CI | Z12: =G132 -> 50.12 | AB12: =H132 -> 49.67
I13: ='SAH chart'!B39 -> Fair | K13: ='SAH chart'!R39 -> 17.97 | M13: 20.14
I14: ='SAH chart'!B40 -> Lower CI | K14: ='SAH chart'!R40 -> 17.28 | M14: 17.69
I15: ='SAH chart'!B41 -> Upper CI | K15: ='SAH chart'!R41 -> 18.65 | M15: 22.6
I16: ='SAH chart'!B42 -> Bad/very bad | K16: ='SAH chart'!R42 -> 8.25 | M16: 10.17
I17: ='SAH chart'!B43 -> Lower CI | K17: ='SAH chart'!R43 -> 7.75 | M17: 8.84
I18: ='SAH chart'!B44 -> Upper CI | K18: ='SAH chart'!R44 -> 8.76 | M18: 11.5
I22: GHQ-12 scores | X22: Long-term illness
I23: All adults, 2013-2016 combined | X23: All adults, 2013-2016 combined
K24: Scotland | M24: =$A$128 -> Ayrshire & Arran | AA24: Scotland | AC24: =$A$128 -> Ayrshire & Arran
I25: =J130 -> Score 0 | K25: =K130 -> 60.64 | M25: =L130 -> 60.95 | X25: =B147 -> Limiting long-term illness | AA25: =C147 -> 31.77 | AC25: =D147 -> 44.41
I26: =J131 -> Lower CI | K26: =K131 -> 59.63 | M26: =L131 -> 58.46 | X26: Lower CI | AA26: =C148 -> 30.82 | AC26: =D148 -> 41.11
I27: Upper CI | K27: =K132 -> 61.64 | M27: =L132 -> 63.44 | X27: Upper CI | AA27: =C149 -> 32.72 | AC27: =D149 -> 47.71
I28: Score 1-3 | K28: =K133 -> 23.86 | M28: =L133 -> 22.62 | X28: Non-limiting long-term illness | AA28: 14.03 | AC28: 9.92
I29: Lower CI | K29: 23 | M29: 20.82 | X29: Lower CI | AA29: 13.37 | AC29: 8.57
I30: Upper CI | K30: 24.71 | M30: 24.43 | X30: Upper CI | AA30: 14.68 | AC30: 11.27
I31: Score 4+ | K31: 15.51 | M31: 16.43 | X31: No long-term illness | AA31: 54.2 | AC31: 45.67
I32: Lower CI | K32: 14.81 | M32: 14.46 | X32: Lower CI | AA32: 53.19 | AC32: 42.71
I33: Upper CI | K33: 16.2 | M33: 18.39 | X33: Upper CI | AA33: 55.21 | AC33: 48.63
I38: Adherence to weekly drinking advice | X38: Weekly mean alcohol units
I39: All adults, 2013-2016 combined | X39: All adults, 2013-2016 combined
K40: Scotland | M40: =$A$128 -> Ayrshire & Arran | Z40: Scotland | AB40: =$A$128 -> Ayrshire & Arran
I41: =F147 -> Non drinker | K41: =G147 -> 16.11 | M41: =H147 -> 16.14 | X41: =J147 -> Weekly mean units | Z41: =K147 -> 12.57 | AB41: =L147 -> 13.58
I42: =F148 -> Lower CI | K42: =G148 -> 15.35 | M42: =H148 -> 14.12 | X42: =J148 -> Lower CI | Z42: =K148 -> 12.2 | AB42: =L148 -> 12.45
I43: =F149 -> Upper CI | K43: =G149 -> 16.86 | M43: =H149 -> 18.17 | X43: Upper CI | Z43: 12.94 | AB43: 14.71
I44: Moderate | K44: 58.56 | M44: 57.96
I45: Lower CI | K45: 57.62 | M45: 55.61
I46: Upper CI | K46: 59.51 | M46: 60.32
I47: Hazardous/harmful | K47: 25.33 | M47: 25.89
I48: Lower CI | K48: 24.47 | M48: 23.78
I49: Upper CI | K49: 26.19 | M49: 28.01
I55: Smoking behaviour | X55: Prevalence of overweight (including obesity)
I56: All adults, 2013-2016 combined | X56: All adults, 2013-2016 combined
L57: Scotland | N57: =$A$128 -> Ayrshire & Arran | AA57: Scotland | AC57: =$A$128 -> Ayrshire & Arran
I58: =B163 -> Never smoked, or ex-occasional | L58: =C163 -> 54.55 | N58: =D163 -> 52.98 | X58: =F163 -> Overweight (including obese) | AA58: =G163 -> 64.87 | AC58: =H163 -> 70.01
I59: =B164 -> Lower CI | L59: =C164 -> 53.5 | N59: =D164 -> 50.42 | X59: =F164 -> Lower CI | AA59: =G164 -> 63.8 | AC59: =H164 -> 67.85
I60: Upper CI | L60: =C165 -> 55.59 | N60: =D165 -> 55.54 | X60: Upper CI | AA60: =G165 -> 65.93 | AC60: =H165 -> 72.17
I61: Ex-regular smoker, or occasional | L61: 24.21 | N61: 25.57
I62: Lower CI | L62: 23.43 | N62: 23.56
I63: Upper CI | L63: 24.98 | N63: 27.58
I64: Regular smoker | L64: 21.25 | N64: 21.45
I65: Lower CI | L65: 20.4 | N65: 19.46
I66: Upper CI | L66: 22.1 | N66: 23.44
I71: Prevalence of obesity | X71: Daily fruit and vegetable consumption
I72: All adults, 2013-2016 combined | X72: All adults, 2013-2016 combined
K73: Scotland | M73: =$A$128 -> Ayrshire & Arran | Z73: Scotland | AB73: =$A$128 -> Ayrshire & Arran
I74: =F172 -> Obese | K74: =G172 -> 28.32 | M74: =H172 -> 33.53 | X74: =J163 -> None | Z74: =K163 -> 10.52 | AB74: =L163 -> 12.92
I75: =F173 -> Lower CI | K75: =G173 -> 27.43 | M75: =H173 -> 31.26 | X75: =J164 -> Lower CI | Z75: =K164 -> 9.86 | AB75: =L164 -> 11.23
I76: Upper CI | K76: 29.2 | M76: 35.81 | X76: Upper CI | Z76: =K165 -> 11.19 | AB76: =L165 -> 14.62
X77: Less than 5 portions | Z77: 68.73 | AB77: 71.91
X78: Lower CI | Z78: 67.84 | AB78: 69.59
X79: Upper CI | Z79: 69.63 | AB79: 74.24
X80: 5 portions or more | Z80: 20.74 | AB80: 15.16
X81: Lower CI | Z81: 19.92 | AB81: 13.21
X82: Upper CI | Z82: 21.57 | AB82: 17.12
I87: Mean daily portions of fruit and vegetables | X87: Physical activity
I88: All adults, 2013-2016 combined | X88: All adults, 2013-2016 combined
K89: Scotland | M89: =$A$128 -> Ayrshire & Arran | Z89: Scotland | AB89: =$A$128 -> Ayrshire & Arran
I90: =B180 -> Mean | K90: =C180 -> 3.14 | M90: =D180 -> 2.73 | X90: =F180 -> Meets guidelines | Z90: =G180 -> 63.5 | AB90: =H180 -> 59.87
I91: =B181 -> Lower CI | K91: =C181 -> 3.09 | M91: =D181 -> 2.59 | X91: =F181 -> Lower CI | Z91: =G181 -> 62.51 | AB91: =H181 -> 57.29
I92: =B182 -> Upper CI | K92: =C182 -> 3.2 | M92: =D182 -> 2.88 | X92: Upper CI | Z92: =G182 -> 64.5 | AB92: =H182 -> 62.44
X93: Some activity | Z93: 11.13 | AB93: 10.73
X94: Lower CI | Z94: 10.56 | AB94: 9.1
X95: Upper CI | Z95: 11.7 | AB95: 12.35
X96: Low activity | Z96: 4.33 | AB96: 3.82
X97: Lower CI | Z97: 3.99 | AB97: 2.96
X98: Upper CI | Z98: 4.68 | AB98: 4.68
X99: Very low activity | Z99: 21.03 | AB99: 25.59
X100: Lower CI | Z100: 20.23 | AB100: 23.42
X101: Upper CI | Z101: 21.84 | AB101: 27.76
I104: Prevalence of cardiovascular (CVD) conditions
I105: All adults, 2013-2016 combined
L106: Scotland | N106: =$A$128 -> Ayrshire & Arran
I107: =J180 -> Has a cardiovascular condition | L107: =K180 -> 15.55 | N107: =L180 -> 19.48
I108: =J181 -> Lower CI | L108: =K181 -> 14.91 | N108: =L181 -> 17.75
I109: Upper CI | L109: 16.18 | N109: 21.21
A128: Ayrshire & Arran | C128: Scotland | D128: =A128 -> Ayrshire & Arran | G128: Scotland | H128: =A128 -> Ayrshire & Arran | K128: Scotland | L128: =A128 -> Ayrshire & Arran
A129: Ayrshire & Arran | B129: SAH | F129: WEMWBS | J129: GHQ-12
A130: Borders | B130: Very good/good | C130: ='SAH chart'!R36 -> 73.78 | D130: =INDEX('SAH chart'!$C$34:$P$48, 3, MATCH('Summary By NHS Board'!$A$128,'SAH chart'!$C$34:$P$34, 0)) -> 69.69 | F130: Mean | G130: ='WEMWBS chart '!R36 -> 49.94 | H130: =INDEX('WEMWBS chart '!$C$34:$P$40, 3, MATCH('Summary By NHS Board'!$H$128, 'WEMWBS chart '!$C$34:$P$34, 0)) -> 49.19 | J130: Score 0 | K130: ='GHQ-12 chart'!R36 -> 60.64 | L130: =INDEX('GHQ-12 chart'!$C$34:$P$48, 3, MATCH('Summary By NHS Board'!$L$128, 'GHQ-12 chart'!$C$34:$P$34, 0)) -> 60.95
A131: Dumfries & Galloway | B131: Lower CI | C131: ='SAH chart'!R37 -> 72.9 | D131: =INDEX('SAH chart'!$C$34:$P$48, 4, MATCH('Summary By NHS Board'!$A$128,'SAH chart'!$C$34:$P$34, 0)) -> 66.84 | F131: Lower CI | G131: ='WEMWBS chart '!R37 -> 49.76 | H131: =INDEX('WEMWBS chart '!$C$34:$P$40, 4, MATCH('Summary By NHS Board'!$H$128, 'WEMWBS chart '!$C$34:$P$34, 0)) -> 48.72 | J131: Lower CI | K131: ='GHQ-12 chart'!R37 -> 59.63 | L131: =INDEX('GHQ-12 chart'!$C$34:$P$48, 4, MATCH('Summary By NHS Board'!$L$128, 'GHQ-12 chart'!$C$34:$P$34, 0)) -> 58.46
A132: Fife | B132: Upper CI | C132: ='SAH chart'!R38 -> 74.66 | D132: =INDEX('SAH chart'!$C$34:$P$48, 5, MATCH('Summary By NHS Board'!$A$128,'SAH chart'!$C$34:$P$34, 0)) -> 72.55 | F132: Upper CI | G132: ='WEMWBS chart '!R38 -> 50.12 | H132: =INDEX('WEMWBS chart '!$C$34:$P$40, 5, MATCH('Summary By NHS Board'!$H$128, 'WEMWBS chart '!$C$34:$P$34, 0)) -> 49.67 | J132: Upper CI | K132: ='GHQ-12 chart'!R38 -> 61.64 | L132: =INDEX('GHQ-12 chart'!$C$34:$P$48, 5, MATCH('Summary By NHS Board'!$L$128, 'GHQ-12 chart'!$C$34:$P$34, 0)) -> 63.44
A133: Forth Valley | B133: Fair | C133: ='SAH chart'!R39 -> 17.97 | D133: =INDEX('SAH chart'!$C$34:$P$48, 6, MATCH('Summary By NHS Board'!$A$128,'SAH chart'!$C$34:$P$34, 0)) -> 20.14 | J133: Score 1-3 | K133: ='GHQ-12 chart'!R39 -> 23.86 | L133: =INDEX('GHQ-12 chart'!$C$34:$P$48, 6, MATCH('Summary By NHS Board'!$L$128, 'GHQ-12 chart'!$C$34:$P$34, 0)) -> 22.62
A134: Grampian | B134: Lower CI | C134: ='SAH chart'!R40 -> 17.28 | D134: =INDEX('SAH chart'!$C$34:$P$48, 7, MATCH('Summary By NHS Board'!$A$128,'SAH chart'!$C$34:$P$34, 0)) -> 17.69 | F134: CLS | G134: =G130-G131 -> 0.18 | H134: =INDEX('WEMWBS chart '!$C$34:$P$40, 7, MATCH('Summary By NHS Board'!$H$128, 'WEMWBS chart '!$C$34:$P$34, 0)) -> 0.47 | J134: Lower CI | K134: ='GHQ-12 chart'!R40 -> 23 | L134: =INDEX('GHQ-12 chart'!$C$34:$P$48, 7, MATCH('Summary By NHS Board'!$L$128, 'GHQ-12 chart'!$C$34:$P$34, 0)) -> 20.82
A135: Greater Glasgow & Clyde | B135: Upper CI | C135: ='SAH chart'!R41 -> 18.65 | D135: =INDEX('SAH chart'!$C$34:$P$48, 8, MATCH('Summary By NHS Board'!$A$128,'SAH chart'!$C$34:$P$34, 0)) -> 22.6 | J135: Upper CI | K135: ='GHQ-12 chart'!R41 -> 24.71 | L135: =INDEX('GHQ-12 chart'!$C$34:$P$48, 8, MATCH('Summary By NHS Board'!$L$128, 'GHQ-12 chart'!$C$34:$P$34, 0)) -> 24.43
A136: Highland | B136: Bad/very bad | C136: ='SAH chart'!R42 -> 8.25 | D136: =INDEX('SAH chart'!$C$34:$P$48, 9, MATCH('Summary By NHS Board'!$A$128,'SAH chart'!$C$34:$P$34, 0)) -> 10.17 | J136: Score 4+ | K136: ='GHQ-12 chart'!R42 -> 15.51 | L136: =INDEX('GHQ-12 chart'!$C$34:$P$48, 9, MATCH('Summary By NHS Board'!$L$128, 'GHQ-12 chart'!$C$34:$P$34, 0)) -> 16.43
A137: Lanarkshire | B137: Lower CI | C137: ='SAH chart'!R43 -> 7.75 | D137: =INDEX('SAH chart'!$C$34:$P$48, 10, MATCH('Summary By NHS Board'!$A$128,'SAH chart'!$C$34:$P$34, 0)) -> 8.84 | J137: Lower CI | K137: ='GHQ-12 chart'!R43 -> 14.81 | L137: =INDEX('GHQ-12 chart'!$C$34:$P$48, 10, MATCH('Summary By NHS Board'!$L$128, 'GHQ-12 chart'!$C$34:$P$34, 0)) -> 14.46
A138: Lothian | B138: Upper CI | C138: ='SAH chart'!R44 -> 8.76 | D138: =INDEX('SAH chart'!$C$34:$P$48, 11, MATCH('Summary By NHS Board'!$A$128,'SAH chart'!$C$34:$P$34, 0)) -> 11.5 | J138: Upper CI | K138: ='GHQ-12 chart'!R44 -> 16.2 | L138: =INDEX('GHQ-12 chart'!$C$34:$P$48, 11, MATCH('Summary By NHS Board'!$L$128, 'GHQ-12 chart'!$C$34:$P$34, 0)) -> 18.39
A139: Orkney | D139: =INDEX('SAH chart'!$C$34:$P$48, 12, MATCH('Summary By NHS Board'!$A$128,'SAH chart'!$C$34:$P$34, 0)) -> 0
A140: Shetland | B140: Very good | C140: ='SAH chart'!R46 -> 0.88 | D140: =INDEX('SAH chart'!$C$34:$P$48, 13, MATCH('Summary By NHS Board'!$A$128,'SAH chart'!$C$34:$P$34, 0)) -> 2.85 | J140: Score 0 | K140: =K130-K131 -> 1.01 | L140: =INDEX('GHQ-12 chart'!$C$34:$P$48, 13, MATCH('Summary By NHS Board'!$L$128, 'GHQ-12 chart'!$C$34:$P$34, 0)) -> 2.49
A141: Tayside | B141: Fair | C141: ='SAH chart'!R47 -> 0.69 | D141: =INDEX('SAH chart'!$C$34:$P$48, 14, MATCH('Summary By NHS Board'!$A$128,'SAH chart'!$C$34:$P$34, 0)) -> 2.45 | J141: Score 1-3 | K141: =K133-K134 -> 0.86 | L141: =INDEX('GHQ-12 chart'!$C$34:$P$48, 14, MATCH('Summary By NHS Board'!$L$128, 'GHQ-12 chart'!$C$34:$P$34, 0)) -> 1.8
A142: Western Isles | B142: Bad/ very bad | C142: ='SAH chart'!R48 -> 0.5 | D142: =INDEX('SAH chart'!$C$34:$P$48, 15, MATCH('Summary By NHS Board'!$A$128,'SAH chart'!$C$34:$P$34, 0)) -> 1.33 | J142: Score 4+ | K142: =K136-K137 -> 0.7 | L142: =INDEX('GHQ-12 chart'!$C$34:$P$48, 15, MATCH('Summary By NHS Board'!$L$128, 'GHQ-12 chart'!$C$34:$P$34, 0)) -> 1.97
C144: Scotland | D144: =A128 -> Ayrshire & Arran | G144: Scotland | H144: =A128 -> Ayrshire & Arran | K144: Scotland | L144: =A128 -> Ayrshire & Arran
B145: Longterm illness | F145: Alcohol guidelines | J145: Mean units
B146: All Adults
B147: Limiting long-term illness | C147: ='Long-term illness chart'!R36 -> 31.77 | D147: =INDEX( 'Long-term illness chart'!$C$34:$P$48, 3, MATCH('Summary By NHS Board'!$D$144, 'Long-term illness chart'!$C$34:$P$34, 0 )) -> 44.41 | F147: Non drinker | G147: ='Alcohol guidelines chart'!R34 -> 16.11 | H147: =INDEX('Alcohol guidelines chart'!$C$32:$P$46, 3, MATCH('Summary By NHS Board'!$H$144, 'Alcohol guidelines chart'!$C$32:$P$32, 0)) -> 16.14 | J147: Weekly mean units | K147: ='Mean units chart'!R36 -> 12.57 | L147: =INDEX('Mean units chart'!$C$34:$P$40,3,MATCH('Summary By NHS Board'!$L$144,'Mean units chart'!$C$34:$P$34,0)) -> 13.58
B148: Lower CI | C148: ='Long-term illness chart'!R37 -> 30.82 | D148: =INDEX( 'Long-term illness chart'!$C$34:$P$48, 4, MATCH('Summary By NHS Board'!$D$144, 'Long-term illness chart'!$C$34:$P$34, 0 )) -> 41.11 | F148: Lower CI | G148: ='Alcohol guidelines chart'!R35 -> 15.35 | H148: =INDEX('Alcohol guidelines chart'!$C$32:$P$46, 4, MATCH('Summary By NHS Board'!$H$144, 'Alcohol guidelines chart'!$C$32:$P$32, 0)) -> 14.12 | J148: Lower CI | K148: ='Mean units chart'!R37 -> 12.2 | L148: =INDEX('Mean units chart'!$C$34:$P$40,4,MATCH('Summary By NHS Board'!$L$144,'Mean units chart'!$C$34:$P$34,0)) -> 12.45
B149: Upper CI | C149: ='Long-term illness chart'!R38 -> 32.72 | D149: =INDEX( 'Long-term illness chart'!$C$34:$P$48, 5, MATCH('Summary By NHS Board'!$D$144, 'Long-term illness chart'!$C$34:$P$34, 0 )) -> 47.71 | F149: Upper CI | G149: ='Alcohol guidelines chart'!R36 -> 16.86 | H149: =INDEX('Alcohol guidelines chart'!$C$32:$P$46, 5, MATCH('Summary By NHS Board'!$H$144, 'Alcohol guidelines chart'!$C$32:$P$32, 0)) -> 18.17 | J149: Upper CI | K149: ='Mean units chart'!R38 -> 12.94 | L149: =INDEX('Mean units chart'!$C$34:$P$40,5,MATCH('Summary By NHS Board'!$L$144,'Mean units chart'!$C$34:$P$34,0)) -> 14.71
B150: Non-limiting long-term illness | C150: ='Long-term illness chart'!R39 -> 14.03 | D150: =INDEX( 'Long-term illness chart'!$C$34:$P$48, 6, MATCH('Summary By NHS Board'!$D$144, 'Long-term illness chart'!$C$34:$P$34, 0 )) -> 9.92 | F150: Moderate | G150: ='Alcohol guidelines chart'!R37 -> 58.56 | H150: =INDEX('Alcohol guidelines chart'!$C$32:$P$46, 6, MATCH('Summary By NHS Board'!$H$144, 'Alcohol guidelines chart'!$C$32:$P$32, 0)) -> 57.96
B151: Lower CI | C151: ='Long-term illness chart'!R40 -> 13.37 | D151: =INDEX( 'Long-term illness chart'!$C$34:$P$48, 7, MATCH('Summary By NHS Board'!$D$144, 'Long-term illness chart'!$C$34:$P$34, 0 )) -> 8.57 | F151: Lower CI | G151: ='Alcohol guidelines chart'!R38 -> 57.62 | H151: =INDEX('Alcohol guidelines chart'!$C$32:$P$46, 7, MATCH('Summary By NHS Board'!$H$144, 'Alcohol guidelines chart'!$C$32:$P$32, 0)) -> 55.61 | J151: CLs | K151: =K147-K148 -> 0.37 | L151: =INDEX('Mean units chart'!$C$34:$P$40,7,MATCH('Summary By NHS Board'!$L$144,'Mean units chart'!$C$34:$P$34,0)) -> 1.13
B152: Upper CI | C152: ='Long-term illness chart'!R41 -> 14.68 | D152: =INDEX( 'Long-term illness chart'!$C$34:$P$48, 8, MATCH('Summary By NHS Board'!$D$144, 'Long-term illness chart'!$C$34:$P$34, 0 )) -> 11.27 | F152: Upper CI | G152: ='Alcohol guidelines chart'!R39 -> 59.51 | H152: =INDEX('Alcohol guidelines chart'!$C$32:$P$46, 8, MATCH('Summary By NHS Board'!$H$144, 'Alcohol guidelines chart'!$C$32:$P$32, 0)) -> 60.32
B153: No long-term illness | C153: ='Long-term illness chart'!R42 -> 54.2 | D153: =INDEX( 'Long-term illness chart'!$C$34:$P$48, 9, MATCH('Summary By NHS Board'!$D$144, 'Long-term illness chart'!$C$34:$P$34, 0 )) -> 45.67 | F153: Hazardous/harmful | G153: ='Alcohol guidelines chart'!R40 -> 25.33 | H153: =INDEX('Alcohol guidelines chart'!$C$32:$P$46, 9, MATCH('Summary By NHS Board'!$H$144, 'Alcohol guidelines chart'!$C$32:$P$32, 0)) -> 25.89
B154: Lower CI | C154: ='Long-term illness chart'!R43 -> 53.19 | D154: =INDEX( 'Long-term illness chart'!$C$34:$P$48, 10, MATCH('Summary By NHS Board'!$D$144, 'Long-term illness chart'!$C$34:$P$34, 0 )) -> 42.71 | F154: Lower CI | G154: ='Alcohol guidelines chart'!R41 -> 24.47 | H154: =INDEX('Alcohol guidelines chart'!$C$32:$P$46, 10, MATCH('Summary By NHS Board'!$H$144, 'Alcohol guidelines chart'!$C$32:$P$32, 0)) -> 23.78
B155: Upper CI | C155: ='Long-term illness chart'!R44 -> 55.21 | D155: =INDEX( 'Long-term illness chart'!$C$34:$P$48, 11, MATCH('Summary By NHS Board'!$D$144, 'Long-term illness chart'!$C$34:$P$34, 0 )) -> 48.63 | F155: Upper CI | G155: ='Alcohol guidelines chart'!R42 -> 26.19 | H155: =INDEX('Alcohol guidelines chart'!$C$32:$P$46, 11, MATCH('Summary By NHS Board'!$H$144, 'Alcohol guidelines chart'!$C$32:$P$32, 0)) -> 28.01
B157: Limiting long-term illness | C157: =C147-C148 -> 0.95 | D157: =INDEX( 'Long-term illness chart'!$C$34:$P$48, 13, MATCH('Summary By NHS Board'!$D$144, 'Long-term illness chart'!$C$34:$P$34, 0 )) -> 3.3 | F157: Non drinker | G157: =G147-G148 -> 0.76 | H157: =INDEX('Alcohol guidelines chart'!$C$32:$P$46, 13, MATCH('Summary By NHS Board'!$H$144, 'Alcohol guidelines chart'!$C$32:$P$32, 0)) -> 2.02
B158: Non-limiting long-term illness | C158: =C150-C151 -> 0.66 | D158: =INDEX( 'Long-term illness chart'!$C$34:$P$48, 14, MATCH('Summary By NHS Board'!$D$144, 'Long-term illness chart'!$C$34:$P$34, 0 )) -> 1.35 | F158: Moderate | G158: =G150-G151 -> 0.94 | H158: =INDEX('Alcohol guidelines chart'!$C$32:$P$46, 14, MATCH('Summary By NHS Board'!$H$144, 'Alcohol guidelines chart'!$C$32:$P$32, 0)) -> 2.35
B159: No long-term illness | C159: =C153-C154 -> 1.01 | D159: =INDEX( 'Long-term illness chart'!$C$34:$P$48, 15, MATCH('Summary By NHS Board'!$D$144, 'Long-term illness chart'!$C$34:$P$34, 0 )) -> 2.96 | F159: Hazardous/harmful | G159: =G153-G154 -> 0.86 | H159: =INDEX('Alcohol guidelines chart'!$C$32:$P$46, 15, MATCH('Summary By NHS Board'!$H$144, 'Alcohol guidelines chart'!$C$32:$P$32, 0)) -> 2.11
C161: Scotland | D161: =A128 -> Ayrshire & Arran | G161: Scotland | H161: =A128 -> Ayrshire & Arran | K161: Scotland | L161: =A128 -> Ayrshire & Arran
B162: Smoking | F162: Overweight | J162: Fruit & Veg
B163: Never smoked, or ex-occasional | C163: ='Smoking chart'!R36 -> 54.55 | D163: =INDEX( 'Smoking chart'!$C$34:$P$48, 3, MATCH('Summary By NHS Board'!$D$161, 'Smoking chart'!$C$34:$P$34, 0)) -> 52.98 | F163: Overweight (including obese) | G163: ='Overweight chart'!R36 -> 64.87 | H163: =INDEX('Overweight chart'!$C$34:$P$40, 3, MATCH('Summary By NHS Board'!$H$161, 'Overweight chart'!$C$34:$P$34, 0)) -> 70.01 | J163: None | K163: ='Fruit and veg chart'!R36 -> 10.52 | L163: =INDEX('Fruit and veg chart'!$C$34:$P$48, 3, MATCH('Summary By NHS Board'!$L$161, 'Fruit and veg chart'!$C$34:$P$34, 0)) -> 12.92
B164: Lower CI | C164: ='Smoking chart'!R37 -> 53.5 | D164: =INDEX( 'Smoking chart'!$C$34:$P$48, 4, MATCH('Summary By NHS Board'!$D$161, 'Smoking chart'!$C$34:$P$34, 0)) -> 50.42 | F164: Lower CI | G164: ='Overweight chart'!R37 -> 63.8 | H164: =INDEX('Overweight chart'!$C$34:$P$40, 4, MATCH('Summary By NHS Board'!$H$161, 'Overweight chart'!$C$34:$P$34, 0)) -> 67.85 | J164: Lower CI | K164: ='Fruit and veg chart'!R37 -> 9.86 | L164: =INDEX('Fruit and veg chart'!$C$34:$P$48, 4, MATCH('Summary By NHS Board'!$L$161, 'Fruit and veg chart'!$C$34:$P$34, 0)) -> 11.23
B165: Upper CI | C165: ='Smoking chart'!R38 -> 55.59 | D165: =INDEX( 'Smoking chart'!$C$34:$P$48, 5, MATCH('Summary By NHS Board'!$D$161, 'Smoking chart'!$C$34:$P$34, 0)) -> 55.54 | F165: Upper CI | G165: ='Overweight chart'!R38 -> 65.93 | H165: =INDEX('Overweight chart'!$C$34:$P$40, 5, MATCH('Summary By NHS Board'!$H$161, 'Overweight chart'!$C$34:$P$34, 0)) -> 72.17 | J165: Upper CI | K165: ='Fruit and veg chart'!R38 -> 11.19 | L165: =INDEX('Fruit and veg chart'!$C$34:$P$48, 5, MATCH('Summary By NHS Board'!$L$161, 'Fruit and veg chart'!$C$34:$P$34, 0)) -> 14.62
B166: Ex-regular smoker, or occasional | C166: ='Smoking chart'!R39 -> 24.21 | D166: =INDEX( 'Smoking chart'!$C$34:$P$48, 6, MATCH('Summary By NHS Board'!$D$161, 'Smoking chart'!$C$34:$P$34, 0)) -> 25.57 | J166: Less than 5 portions | K166: ='Fruit and veg chart'!R39 -> 68.73 | L166: =INDEX('Fruit and veg chart'!$C$34:$P$48, 6, MATCH('Summary By NHS Board'!$L$161, 'Fruit and veg chart'!$C$34:$P$34, 0)) -> 71.91
B167: Lower CI | C167: ='Smoking chart'!R40 -> 23.43 | D167: =INDEX( 'Smoking chart'!$C$34:$P$48, 7, MATCH('Summary By NHS Board'!$D$161, 'Smoking chart'!$C$34:$P$34, 0)) -> 23.56 | F167: CLs | G167: ='Overweight chart'!R40 -> 1.07 | H167: =INDEX('Overweight chart'!$C$34:$P$40, 7, MATCH('Summary By NHS Board'!$H$161, 'Overweight chart'!$C$34:$P$34, 0)) -> 2.16 | J167: Lower CI | K167: ='Fruit and veg chart'!R40 -> 67.84 | L167: =INDEX('Fruit and veg chart'!$C$34:$P$48, 7, MATCH('Summary By NHS Board'!$L$161, 'Fruit and veg chart'!$C$34:$P$34, 0)) -> 69.59
B168: Upper CI | C168: ='Smoking chart'!R41 -> 24.98 | D168: =INDEX( 'Smoking chart'!$C$34:$P$48, 8, MATCH('Summary By NHS Board'!$D$161, 'Smoking chart'!$C$34:$P$34, 0)) -> 27.58 | J168: Upper CI | K168: ='Fruit and veg chart'!R41 -> 69.63 | L168: =INDEX('Fruit and veg chart'!$C$34:$P$48, 8, MATCH('Summary By NHS Board'!$L$161, 'Fruit and veg chart'!$C$34:$P$34, 0)) -> 74.24
B169: Regular smoker | C169: ='Smoking chart'!R42 -> 21.25 | D169: =INDEX( 'Smoking chart'!$C$34:$P$48, 9, MATCH('Summary By NHS Board'!$D$161, 'Smoking chart'!$C$34:$P$34, 0)) -> 21.45 | J169: 5 portions or more | K169: ='Fruit and veg chart'!R42 -> 20.74 | L169: =INDEX('Fruit and veg chart'!$C$34:$P$48, 9, MATCH('Summary By NHS Board'!$L$161, 'Fruit and veg chart'!$C$34:$P$34, 0)) -> 15.16
B170: Lower CI | C170: ='Smoking chart'!R43 -> 20.4 | D170: =INDEX( 'Smoking chart'!$C$34:$P$48, 10, MATCH('Summary By NHS Board'!$D$161, 'Smoking chart'!$C$34:$P$34, 0)) -> 19.46 | G170: Scotland | H170: =A128 -> Ayrshire & Arran | J170: Lower CI | K170: ='Fruit and veg chart'!R43 -> 19.92 | L170: =INDEX('Fruit and veg chart'!$C$34:$P$48, 10, MATCH('Summary By NHS Board'!$L$161, 'Fruit and veg chart'!$C$34:$P$34, 0)) -> 13.21
B171: Upper CI | C171: ='Smoking chart'!R44 -> 22.1 | D171: =INDEX( 'Smoking chart'!$C$34:$P$48, 11, MATCH('Summary By NHS Board'!$D$161, 'Smoking chart'!$C$34:$P$34, 0)) -> 23.44 | F171: Obesity | J171: Upper CI | K171: ='Fruit and veg chart'!R44 -> 21.57 | L171: =INDEX('Fruit and veg chart'!$C$34:$P$48, 11, MATCH('Summary By NHS Board'!$L$161, 'Fruit and veg chart'!$C$34:$P$34, 0)) -> 17.12
F172: Obese | G172: ='Obesity chart'!R36 -> 28.32 | H172: =INDEX('Obesity chart'!$C$34:$P$40, 3, MATCH('Summary By NHS Board'!$H$170, 'Obesity chart'!$C$34:$P$34, 0)) -> 33.53
B173: Never smoked, or ex-occasional | C173: ='Smoking chart'!R46 -> 1.05 | D173: =INDEX( 'Smoking chart'!$C$34:$P$48, 13, MATCH('Summary By NHS Board'!$D$161, 'Smoking chart'!$C$34:$P$34, 0)) -> 2.56 | F173: Lower CI | G173: ='Obesity chart'!R37 -> 27.43 | H173: =INDEX('Obesity chart'!$C$34:$P$40, 4, MATCH('Summary By NHS Board'!$H$170, 'Obesity chart'!$C$34:$P$34, 0)) -> 31.26 | J173: None | K173: ='Fruit and veg chart'!R46 -> 0.66 | L173: =INDEX('Fruit and veg chart'!$C$34:$P$48, 13, MATCH('Summary By NHS Board'!$L$161, 'Fruit and veg chart'!$C$34:$P$34, 0)) -> 1.69
B174: Ex-regular smoker, or occasional | C174: ='Smoking chart'!R47 -> 0.78 | D174: =INDEX( 'Smoking chart'!$C$34:$P$48, 14, MATCH('Summary By NHS Board'!$D$161, 'Smoking chart'!$C$34:$P$34, 0)) -> 2.01 | F174: Upper CI | G174: ='Obesity chart'!R38 -> 29.2 | H174: =INDEX('Obesity chart'!$C$34:$P$40, 5, MATCH('Summary By NHS Board'!$H$170, 'Obesity chart'!$C$34:$P$34, 0)) -> 35.81 | J174: Less than 5 portions | K174: ='Fruit and veg chart'!R47 -> 0.89 | L174: =INDEX('Fruit and veg chart'!$C$34:$P$48, 14, MATCH('Summary By NHS Board'!$L$161, 'Fruit and veg chart'!$C$34:$P$34, 0)) -> 2.32
B175: Regular smoker | C175: ='Smoking chart'!R48 -> 0.85 | D175: =INDEX( 'Smoking chart'!$C$34:$P$48, 15, MATCH('Summary By NHS Board'!$D$161, 'Smoking chart'!$C$34:$P$34, 0)) -> 1.99 | J175: 5 portions or more | K175: ='Fruit and veg chart'!R48 -> 0.82 | L175: =INDEX('Fruit and veg chart'!$C$34:$P$48, 15, MATCH('Summary By NHS Board'!$L$161, 'Fruit and veg chart'!$C$34:$P$34, 0)) -> 1.95
F176: CLs | G176: ='Obesity chart'!R40 -> 0.89 | H176: =INDEX('Obesity chart'!$C$34:$P$40, 7, MATCH('Summary By NHS Board'!$H$170, 'Obesity chart'!$C$34:$P$34, 0)) -> 2.27
C178: Scotland | D178: =A128 -> Ayrshire & Arran | G178: Scotland | H178: =A128 -> Ayrshire & Arran | K178: Scotland | L178: =A128 -> Ayrshire & Arran
B179: Mean Fruit & Veg | F179: Phys Act | J179: CVD
B180: Mean | C180: ='Mean fruit and veg chart'!R36 -> 3.14 | D180: =INDEX( 'Mean fruit and veg chart'!$C$34:$P$40, 3, MATCH('Summary By NHS Board'!$D$178, 'Mean fruit and veg chart'!$C$34:$P$34, 0 )) -> 2.73 | F180: Meets guidelines | G180: ='Physical activity chart'!R36 -> 63.5 | H180: =INDEX('Physical activity chart'!$C$34:$P$52, 3, MATCH('Summary By NHS Board'!$H$178, 'Physical activity chart'!$C$34:$P$34, 0)) -> 59.87 | J180: Has a cardiovascular condition | K180: ='CVD chart'!R36 -> 15.55 | L180: =INDEX('CVD chart'!$C$34:$P$40, 3, MATCH('Summary By NHS Board'!$L$178, 'CVD chart'!$C$34:$P$34, 0)) -> 19.48
B181: Lower CI | C181: ='Mean fruit and veg chart'!R37 -> 3.09 | D181: =INDEX( 'Mean fruit and veg chart'!$C$34:$P$40, 4, MATCH('Summary By NHS Board'!$D$178, 'Mean fruit and veg chart'!$C$34:$P$34, 0 )) -> 2.59 | F181: Lower CI | G181: ='Physical activity chart'!R37 -> 62.51 | H181: =INDEX('Physical activity chart'!$C$34:$P$52, 4, MATCH('Summary By NHS Board'!$H$178, 'Physical activity chart'!$C$34:$P$34, 0)) -> 57.29 | J181: Lower CI | K181: ='CVD chart'!R37 -> 14.91 | L181: =INDEX('CVD chart'!$C$34:$P$40, 4, MATCH('Summary By NHS Board'!$L$178, 'CVD chart'!$C$34:$P$34, 0)) -> 17.75
B182: Upper CI | C182: ='Mean fruit and veg chart'!R38 -> 3.2 | D182: =INDEX( 'Mean fruit and veg chart'!$C$34:$P$40, 5, MATCH('Summary By NHS Board'!$D$178, 'Mean fruit and veg chart'!$C$34:$P$34, 0 )) -> 2.88 | F182: Upper CI | G182: ='Physical activity chart'!R38 -> 64.5 | H182: =INDEX('Physical activity chart'!$C$34:$P$52, 5, MATCH('Summary By NHS Board'!$H$178, 'Physical activity chart'!$C$34:$P$34, 0)) -> 62.44 | J182: Upper CI | K182: ='CVD chart'!R38 -> 16.18 | L182: =INDEX('CVD chart'!$C$34:$P$40, 5, MATCH('Summary By NHS Board'!$L$178, 'CVD chart'!$C$34:$P$34, 0)) -> 21.21
F183: Some activity | G183: ='Physical activity chart'!R39 -> 11.13 | H183: =INDEX('Physical activity chart'!$C$34:$P$52, 6, MATCH('Summary By NHS Board'!$H$178, 'Physical activity chart'!$C$34:$P$34, 0)) -> 10.73
B184: CLs | C184: ='Mean fruit and veg chart'!R40 -> 0.05 | D184: =INDEX( 'Mean fruit and veg chart'!$C$34:$P$40, 7, MATCH('Summary By NHS Board'!$D$178, 'Mean fruit and veg chart'!$C$34:$P$34, 0 )) -> 0.14 | F184: Lower CI | G184: ='Physical activity chart'!R40 -> 10.56 | H184: =INDEX('Physical activity chart'!$C$34:$P$52, 7, MATCH('Summary By NHS Board'!$H$178, 'Physical activity chart'!$C$34:$P$34, 0)) -> 9.1 | J184: CLs | K184: ='CVD chart'!R40 -> 0.64 | L184: =INDEX('CVD chart'!$C$34:$P$40, 7, MATCH('Summary By NHS Board'!$L$178, 'CVD chart'!$C$34:$P$34, 0)) -> 1.73
F185: Upper CI | G185: ='Physical activity chart'!R41 -> 11.7 | H185: =INDEX('Physical activity chart'!$C$34:$P$52, 8, MATCH('Summary By NHS Board'!$H$178, 'Physical activity chart'!$C$34:$P$34, 0)) -> 12.35
F186: Low activity | G186: ='Physical activity chart'!R42 -> 4.33 | H186: =INDEX('Physical activity chart'!$C$34:$P$52, 9, MATCH('Summary By NHS Board'!$H$178, 'Physical activity chart'!$C$34:$P$34, 0)) -> 3.82
F187: Lower CI | G187: ='Physical activity chart'!R43 -> 3.99 | H187: =INDEX('Physical activity chart'!$C$34:$P$52, 10, MATCH('Summary By NHS Board'!$H$178, 'Physical activity chart'!$C$34:$P$34, 0)) -> 2.96
F188: Upper CI | G188: ='Physical activity chart'!R44 -> 4.68 | H188: =INDEX('Physical activity chart'!$C$34:$P$52, 11, MATCH('Summary By NHS Board'!$H$178, 'Physical activity chart'!$C$34:$P$34, 0)) -> 4.68
F189: Very low activity | G189: ='Physical activity chart'!R45 -> 21.03 | H189: =INDEX('Physical activity chart'!$C$34:$P$52, 12, MATCH('Summary By NHS Board'!$H$178, 'Physical activity chart'!$C$34:$P$34, 0)) -> 25.59
F190: Lower CI | G190: ='Physical activity chart'!R46 -> 20.23 | H190: =INDEX('Physical activity chart'!$C$34:$P$52, 13, MATCH('Summary By NHS Board'!$H$178, 'Physical activity chart'!$C$34:$P$34, 0)) -> 23.42
F191: Upper CI | G191: ='Physical activity chart'!R47 -> 21.84 | H191: =INDEX('Physical activity chart'!$C$34:$P$52, 14, MATCH('Summary By NHS Board'!$H$178, 'Physical activity chart'!$C$34:$P$34, 0)) -> 27.76
F193: Meets guidelines | G193: ='Physical activity chart'!R49 -> 0.99 | H193: =INDEX('Physical activity chart'!$C$34:$P$52, 16, MATCH('Summary By NHS Board'!$H$178, 'Physical activity chart'!$C$34:$P$34, 0)) -> 2.58
F194: Some activity | G194: ='Physical activity chart'!R50 -> 0.57 | H194: =INDEX('Physical activity chart'!$C$34:$P$52, 17, MATCH('Summary By NHS Board'!$H$178, 'Physical activity chart'!$C$34:$P$34, 0)) -> 1.63
F195: Low activity | G195: ='Physical activity chart'!R51 -> 0.34 | H195: =INDEX('Physical activity chart'!$C$34:$P$52, 18, MATCH('Summary By NHS Board'!$H$178, 'Physical activity chart'!$C$34:$P$34, 0)) -> 0.86
F196: Very low activity | G196: ='Physical activity chart'!R52 -> 0.8 | H196: =INDEX('Physical activity chart'!$C$34:$P$52, 19, MATCH('Summary By NHS Board'!$H$178, 'Physical activity chart'!$C$34:$P$34, 0)) -> 2.17

Sheet Self-assessed general health
A1: Self-assessed general health, by NHS Board and sex | N1: INDEX
A4: Aged 16 and over | P4: 2013/2014/2015/2016 combined
A5: Self-assessed general health | B5: NHS Board
B6: Ayrshire & Arran | C6: Borders | D6: Dumfries & Galloway | E6: Fife | F6: Forth Valley | G6: Grampian | H6: Greater Glasgow & Clyde | I6: Highland | J6: Lanarkshire | K6: Lothian | L6: Orkney | M6: Shetland | N6: Tayside | O6: Western Isles | P6: Scotland
B7: % | C7: % | D7: % | E7: % | F7: % | G7: % | H7: % | I7: % | J7: % | K7: % | L7: % | M7: % | N7: % | O7: % | P7: %
A8: Men
A9: Very good/good | B9: ='SAH data'!D2 -> 70.92 | C9: ='SAH data'!E2 -> 80.13 | D9: ='SAH data'!F2 -> 65.999 | E9: ='SAH data'!G2 -> 72.6 | F9: ='SAH data'!H2 -> 77.21 | G9: ='SAH data'!I2 -> 78.41 | H9: ='SAH data'!J2 -> 70.7 | I9: ='SAH data'!K2 -> 75.79 | J9: ='SAH data'!L2 -> 71.81 | K9: ='SAH data'!M2 -> 78.49 | L9: ='SAH data'!N2 -> 83.034 | M9: ='SAH data'!O2 -> 75.089 | N9: ='SAH data'!P2 -> 72.74 | O9: ='SAH data'!Q2 -> 71.558 | P9: ='SAH data'!R2 -> 74.08
A10: Lower CI | B10: ='SAH data'!D3 -> 67.38 | C10: ='SAH data'!E3 -> 73.586 | D10: ='SAH data'!F3 -> 59.429 | E10: ='SAH data'!G3 -> 69.44 | F10: ='SAH data'!H3 -> 71.66 | G10: ='SAH data'!I3 -> 75.62 | H10: ='SAH data'!J3 -> 67.67 | I10: ='SAH data'!K3 -> 71.04 | J10: ='SAH data'!L3 -> 68.1 | K10: ='SAH data'!M3 -> 75.49 | L10: ='SAH data'!N3 -> 79.429 | M10: ='SAH data'!O3 -> 69.557 | N10: ='SAH data'!P3 -> 67.93 | O10: ='SAH data'!Q3 -> 65.674 | P10: ='SAH data'!R3 -> 72.88
A11: Upper CI | B11: ='SAH data'!D4 -> 74.46 | C11: ='SAH data'!E4 -> 86.673 | D11: ='SAH data'!F4 -> 72.569 | E11: ='SAH data'!G4 -> 75.76 | F11: ='SAH data'!H4 -> 82.77 | G11: ='SAH data'!I4 -> 81.19 | H11: ='SAH data'!J4 -> 73.73 | I11: ='SAH data'!K4 -> 80.54 | J11: ='SAH data'!L4 -> 75.52 | K11: ='SAH data'!M4 -> 81.5 | L11: ='SAH data'!N4 -> 86.639 | M11: ='SAH data'!O4 -> 80.621 | N11: ='SAH data'!P4 -> 77.54 | O11: ='SAH data'!Q4 -> 77.442 | P11: ='SAH data'!R4 -> 75.29
A12: Fair | B12: ='SAH data'!D5 -> 20.52 | C12: ='SAH data'!E5 -> 13.135 | D12: ='SAH data'!F5 -> 27.274 | E12: ='SAH data'!G5 -> 18.51 | F12: ='SAH data'!H5 -> 16.2 | G12: ='SAH data'!I5 -> 15.1 | H12: ='SAH data'!J5 -> 19.65 | I12: ='SAH data'!K5 -> 16.6 | J12: ='SAH data'!L5 -> 17.99 | K12: ='SAH data'!M5 -> 16.07 | L12: ='SAH data'!N5 -> 13.661 | M12: ='SAH data'!O5 -> 17.65 | N12: ='SAH data'!P5 -> 18.43 | O12: ='SAH data'!Q5 -> 23.289 | P12: ='SAH data'!R5 -> 17.93
A13: Lower CI | B13: ='SAH data'!D6 -> 17.41 | C13: ='SAH data'!E6 -> 8.399 | D13: ='SAH data'!F6 -> 21.172 | E13: ='SAH data'!G6 -> 15.99 | F13: ='SAH data'!H6 -> 11.93 | G13: ='SAH data'!I6 -> 13.01 | H13: ='SAH data'!J6 -> 17.12 | I13: ='SAH data'!K6 -> 12.41 | J13: ='SAH data'!L6 -> 15.18 | K13: ='SAH data'!M6 -> 13.48 | L13: ='SAH data'!N6 -> 9.684 | M13: ='SAH data'!O6 -> 12.594 | N13: ='SAH data'!P6 -> 14.11 | O13: ='SAH data'!Q6 -> 17.288 | P13: ='SAH data'!R6 -> 16.93
A14: Upper CI | B14: ='SAH data'!D7 -> 23.63 | C14: ='SAH data'!E7 -> 17.87 | D14: ='SAH data'!F7 -> 33.375 | E14: ='SAH data'!G7 -> 21.03 | F14: ='SAH data'!H7 -> 20.47 | G14: ='SAH data'!I7 -> 17.18 | H14: ='SAH data'!J7 -> 22.18 | I14: ='SAH data'!K7 -> 20.8 | J14: ='SAH data'!L7 -> 20.79 | K14: ='SAH data'!M7 -> 18.66 | L14: ='SAH data'!N7 -> 17.638 | M14: ='SAH data'!O7 -> 22.707 | N14: ='SAH data'!P7 -> 22.75 | O14: ='SAH data'!Q7 -> 29.29 | P14: ='SAH data'!R7 -> 18.94
A15: Bad/very bad | B15: ='SAH data'!D8 -> 8.56 | C15: ='SAH data'!E8 -> 6.736 | D15: ='SAH data'!F8 -> 6.727 | E15: ='SAH data'!G8 -> 8.89 | F15: ='SAH data'!H8 -> 6.59 | G15: ='SAH data'!I8 -> 6.5 | H15: ='SAH data'!J8 -> 9.65 | I15: ='SAH data'!K8 -> 7.61 | J15: ='SAH data'!L8 -> 10.2 | K15: ='SAH data'!M8 -> 5.44 | L15: ='SAH data'!N8 -> 3.305 | M15: ='SAH data'!O8 -> 7.261 | N15: ='SAH data'!P8 -> 8.83 | O15: ='SAH data'!Q8 -> 5.153 | P15: ='SAH data'!R8 -> 7.98
A16: Lower CI | B16: ='SAH data'!D9 -> 6.76 | C16: ='SAH data'!E9 -> 2.739 | D16: ='SAH data'!F9 -> 3.263 | E16: ='SAH data'!G9 -> 7.05 | F16: ='SAH data'!H9 -> 3.67 | G16: ='SAH data'!I9 -> 4.92 | H16: ='SAH data'!J9 -> 7.99 | I16: ='SAH data'!K9 -> 4.71 | J16: ='SAH data'!L9 -> 7.52 | K16: ='SAH data'!M9 -> 3.92 | L16: ='SAH data'!N9 -> 1.247 | M16: ='SAH data'!O9 -> 3.509 | N16: ='SAH data'!P9 -> 5.96 | O16: ='SAH data'!Q9 -> 2.898 | P16: ='SAH data'!R9 -> 7.29
A17: Upper CI | B17: ='SAH data'!D10 -> 10.37 | C17: ='SAH data'!E10 -> 10.732 | D17: ='SAH data'!F10 -> 10.191 | E17: ='SAH data'!G10 -> 10.74 | F17: ='SAH data'!H10 -> 9.51 | G17: ='SAH data'!I10 -> 8.08 | H17: ='SAH data'!J10 -> 11.3 | I17: ='SAH data'!K10 -> 10.5 | J17: ='SAH data'!L10 -> 12.88 | K17: ='SAH data'!M10 -> 6.95 | L17: ='SAH data'!N10 -> 5.364 | M17: ='SAH data'!O10 -> 11.012 | N17: ='SAH data'!P10 -> 11.7 | O17: ='SAH data'!Q10 -> 7.407 | P17: ='SAH data'!R10 -> 8.67
A19: Women
A20: Very good/good | B20: ='SAH data'!D11 -> 68.65 | C20: ='SAH data'!E11 -> 76.298 | D20: ='SAH data'!F11 -> 71.942 | E20: ='SAH data'!G11 -> 70.59 | F20: ='SAH data'!H11 -> 72.26 | G20: ='SAH data'!I11 -> 77.81 | H20: ='SAH data'!J11 -> 69.53 | I20: ='SAH data'!K11 -> 76.45 | J20: ='SAH data'!L11 -> 72.86 | K20: ='SAH data'!M11 -> 78.85 | L20: ='SAH data'!N11 -> 82.483 | M20: ='SAH data'!O11 -> 76.598 | N20: ='SAH data'!P11 -> 73.37 | O20: ='SAH data'!Q11 -> 73.831 | P20: ='SAH data'!R11 -> 73.49
A21: Lower CI | B21: ='SAH data'!D12 -> 65.42 | C21: ='SAH data'!E12 -> 71.107 | D21: ='SAH data'!F12 -> 66.757 | E21: ='SAH data'!G12 -> 67.81 | F21: ='SAH data'!H12 -> 67.65 | G21: ='SAH data'!I12 -> 75.49 | H21: ='SAH data'!J12 -> 67.03 | I21: ='SAH data'!K12 -> 71.79 | J21: ='SAH data'!L12 -> 69.61 | K21: ='SAH data'!M12 -> 76.36 | L21: ='SAH data'!N12 -> 77.179 | M21: ='SAH data'!O12 -> 70.945 | N21: ='SAH data'!P12 -> 69.19 | O21: ='SAH data'!Q12 -> 70.032 | P21: ='SAH data'!R12 -> 72.46
A22: Upper CI | B22: ='SAH data'!D13 -> 71.88 | C22: ='SAH data'!E13 -> 81.488 | D22: ='SAH data'!F13 -> 77.127 | E22: ='SAH data'!G13 -> 73.38 | F22: ='SAH data'!H13 -> 76.87 | G22: ='SAH data'!I13 -> 80.13 | H22: ='SAH data'!J13 -> 72.03 | I22: ='SAH data'!K13 -> 81.11 | J22: ='SAH data'!L13 -> 76.11 | K22: ='SAH data'!M13 -> 81.33 | L22: ='SAH data'!N13 -> 87.787 | M22: ='SAH data'!O13 -> 82.251 | N22: ='SAH data'!P13 -> 77.55 | O22: ='SAH data'!Q13 -> 77.63 | P22: ='SAH data'!R13 -> 74.53
A23: Fair | B23: ='SAH data'!D14 -> 19.82 | C23: ='SAH data'!E14 -> 17.944 | D23: ='SAH data'!F14 -> 18.19 | E23: ='SAH data'!G14 -> 20.49 | F23: ='SAH data'!H14 -> 16.68 | G23: ='SAH data'!I14 -> 16.87 | H23: ='SAH data'!J14 -> 19.31 | I23: ='SAH data'!K14 -> 16.28 | J23: ='SAH data'!L14 -> 18.62 | K23: ='SAH data'!M14 -> 15.39 | L23: ='SAH data'!N14 -> 12.616 | M23: ='SAH data'!O14 -> 16.419 | N23: ='SAH data'!P14 -> 18.8 | O23: ='SAH data'!Q14 -> 19.481 | P23: ='SAH data'!R14 -> 18
A24: Lower CI | B24: ='SAH data'!D15 -> 17.13 | C24: ='SAH data'!E15 -> 13.027 | D24: ='SAH data'!F15 -> 13.667 | E24: ='SAH data'!G15 -> 18.04 | F24: ='SAH data'!H15 -> 12.92 | G24: ='SAH data'!I15 -> 14.69 | H24: ='SAH data'!J15 -> 17.39 | I24: ='SAH data'!K15 -> 12.11 | J24: ='SAH data'!L15 -> 15.98 | K24: ='SAH data'!M15 -> 13.17 | L24: ='SAH data'!N15 -> 8.941 | M24: ='SAH data'!O15 -> 11.203 | N24: ='SAH data'!P15 -> 15.46 | O24: ='SAH data'!Q15 -> 15.564 | P24: ='SAH data'!R15 -> 17.15
A25: Upper CI | B25: ='SAH data'!D16 -> 22.5 | C25: ='SAH data'!E16 -> 22.862 | D25: ='SAH data'!F16 -> 22.713 | E25: ='SAH data'!G16 -> 22.95 | F25: ='SAH data'!H16 -> 20.45 | G25: ='SAH data'!I16 -> 19.06 | H25: ='SAH data'!J16 -> 21.22 | I25: ='SAH data'!K16 -> 20.46 | J25: ='SAH data'!L16 -> 21.25 | K25: ='SAH data'!M16 -> 17.6 | L25: ='SAH data'!N16 -> 16.291 | M25: ='SAH data'!O16 -> 21.635 | N25: ='SAH data'!P16 -> 22.14 | O25: ='SAH data'!Q16 -> 23.397 | P25: ='SAH data'!R16 -> 18.85
A26: Bad/very bad | B26: ='SAH data'!D17 -> 11.53 | C26: ='SAH data'!E17 -> 5.758 | D26: ='SAH data'!F17 -> 9.868 | E26: ='SAH data'!G17 -> 8.91 | F26: ='SAH data'!H17 -> 11.05 | G26: ='SAH data'!I17 -> 5.32 | H26: ='SAH data'!J17 -> 11.16 | I26: ='SAH data'!K17 -> 7.27 | J26: ='SAH data'!L17 -> 8.52 | K26: ='SAH data'!M17 -> 5.77 | L26: ='SAH data'!N17 -> 4.901 | M26: ='SAH data'!O17 -> 6.983 | N26: ='SAH data'!P17 -> 7.83 | O26: ='SAH data'!Q17 -> 6.689 | P26: ='SAH data'!R17 -> 8.5
A27: Lower CI | B27: ='SAH data'!D18 -> 9.67 | C27: ='SAH data'!E18 -> 2.173 | D27: ='SAH data'!F18 -> 5.484 | E27: ='SAH data'!G18 -> 7.32 | F27: ='SAH data'!H18 -> 8.21 | G27: ='SAH data'!I18 -> 4.18 | H27: ='SAH data'!J18 -> 9.48 | I27: ='SAH data'!K18 -> 4.93 | J27: ='SAH data'!L18 -> 6.61 | K27: ='SAH data'!M18 -> 4.3 | L27: ='SAH data'!N18 -> 2.099 | M27: ='SAH data'!O18 -> 4.009 | N27: ='SAH data'!P18 -> 5.33 | O27: ='SAH data'!Q18 -> 4.513 | P27: ='SAH data'!R18 -> 7.87
A28: Upper CI | B28: ='SAH data'!D19 -> 13.39 | C28: ='SAH data'!E19 -> 9.343 | D28: ='SAH data'!F19 -> 14.251 | E28: ='SAH data'!G19 -> 10.51 | F28: ='SAH data'!H19 -> 13.89 | G28: ='SAH data'!I19 -> 6.45 | H28: ='SAH data'!J19 -> 12.85 | I28: ='SAH data'!K19 -> 9.6 | J28: ='SAH data'!L19 -> 10.43 | K28: ='SAH data'!M19 -> 7.23 | L28: ='SAH data'!N19 -> 7.703 | M28: ='SAH data'!O19 -> 9.958 | N28: ='SAH data'!P19 -> 10.33 | O28: ='SAH data'!Q19 -> 8.864 | P28: ='SAH data'!R19 -> 9.14
A30: All Adults
A31: Very good/good | B31: ='SAH data'!D20 -> 69.69 | C31: ='SAH data'!E20 -> 78.033 | D31: ='SAH data'!F20 -> 69.045 | E31: ='SAH data'!G20 -> 71.56 | F31: ='SAH data'!H20 -> 74.6 | G31: ='SAH data'!I20 -> 78.09 | H31: ='SAH data'!J20 -> 70.09 | I31: ='SAH data'!K20 -> 76.13 | J31: ='SAH data'!L20 -> 72.36 | K31: ='SAH data'!M20 -> 78.67 | L31: ='SAH data'!N20 -> 82.757 | M31: ='SAH data'!O20 -> 75.82 | N31: ='SAH data'!P20 -> 73.07 | O31: ='SAH data'!Q20 -> 72.695 | P31: ='SAH data'!R20 -> 73.78
A32: Lower CI | B32: ='SAH data'!D21 -> 66.84 | C32: ='SAH data'!E21 -> 73.68 | D32: ='SAH data'!F21 -> 64.822 | E32: ='SAH data'!G21 -> 69.29 | F32: ='SAH data'!H21 -> 70.96 | G32: ='SAH data'!I21 -> 76.01 | H32: ='SAH data'!J21 -> 67.82 | I32: ='SAH data'!K21 -> 72.32 | J32: ='SAH data'!L21 -> 69.92 | K32: ='SAH data'!M21 -> 76.47 | L32: ='SAH data'!N21 -> 79.182 | M32: ='SAH data'!O21 -> 71.655 | N32: ='SAH data'!P21 -> 69.43 | O32: ='SAH data'!Q21 -> 68.811 | P32: ='SAH data'!R21 -> 72.9
A33: Upper CI | B33: ='SAH data'!D22 -> 72.55 | C33: ='SAH data'!E22 -> 82.385 | D33: ='SAH data'!F22 -> 73.267 | E33: ='SAH data'!G22 -> 73.84 | F33: ='SAH data'!H22 -> 78.25 | G33: ='SAH data'!I22 -> 80.17 | H33: ='SAH data'!J22 -> 72.36 | I33: ='SAH data'!K22 -> 79.95 | J33: ='SAH data'!L22 -> 74.8 | K33: ='SAH data'!M22 -> 80.87 | L33: ='SAH data'!N22 -> 86.333 | M33: ='SAH data'!O22 -> 79.985 | N33: ='SAH data'!P22 -> 76.72 | O33: ='SAH data'!Q22 -> 76.58 | P33: ='SAH data'!R22 -> 74.66
A34: Fair | B34: ='SAH data'!D23 -> 20.14 | C34: ='SAH data'!E23 -> 15.767 | D34: ='SAH data'!F23 -> 22.619 | E34: ='SAH data'!G23 -> 19.54 | F34: ='SAH data'!H23 -> 16.46 | G34: ='SAH data'!I23 -> 16.03 | H34: ='SAH data'!J23 -> 19.47 | I34: ='SAH data'!K23 -> 16.44 | J34: ='SAH data'!L23 -> 18.32 | K34: ='SAH data'!M23 -> 15.73 | L34: ='SAH data'!N23 -> 13.137 | M34: ='SAH data'!O23 -> 17.054 | N34: ='SAH data'!P23 -> 18.63 | O34: ='SAH data'!Q23 -> 21.383 | P34: ='SAH data'!R23 -> 17.97
A35: Lower CI | B35: ='SAH data'!D24 -> 17.69 | C35: ='SAH data'!E24 -> 12.1 | D35: ='SAH data'!F24 -> 19.153 | E35: ='SAH data'!G24 -> 17.81 | F35: ='SAH data'!H24 -> 13.78 | G35: ='SAH data'!I24 -> 14.39 | H35: ='SAH data'!J24 -> 17.77 | I35: ='SAH data'!K24 -> 13.2 | J35: ='SAH data'!L24 -> 16.37 | K35: ='SAH data'!M24 -> 13.89 | L35: ='SAH data'!N24 -> 10.061 | M35: ='SAH data'!O24 -> 13.159 | N35: ='SAH data'!P24 -> 15.86 | O35: ='SAH data'!Q24 -> 17.288 | P35: ='SAH data'!R24 -> 17.28
A36: Upper CI | B36: ='SAH data'!D25 -> 22.6 | C36: ='SAH data'!E25 -> 19.434 | D36: ='SAH data'!F25 -> 26.086 | E36: ='SAH data'!G25 -> 21.27 | F36: ='SAH data'!H25 -> 19.14 | G36: ='SAH data'!I25 -> 17.67 | H36: ='SAH data'!J25 -> 21.17 | I36: ='SAH data'!K25 -> 19.67 | J36: ='SAH data'!L25 -> 20.27 | K36: ='SAH data'!M25 -> 17.58 | L36: ='SAH data'!N25 -> 16.213 | M36: ='SAH data'!O25 -> 20.949 | N36: ='SAH data'!P25 -> 21.4 | O36: ='SAH data'!Q25 -> 25.479 | P36: ='SAH data'!R25 -> 18.65
A37: Bad/very bad | B37: ='SAH data'!D26 -> 10.17 | C37: ='SAH data'!E26 -> 6.2 | D37: ='SAH data'!F26 -> 8.336 | E37: ='SAH data'!G26 -> 8.9 | F37: ='SAH data'!H26 -> 8.94 | G37: ='SAH data'!I26 -> 5.88 | H37: ='SAH data'!J26 -> 10.44 | I37: ='SAH data'!K26 -> 7.43 | J37: ='SAH data'!L26 -> 9.32 | K37: ='SAH data'!M26 -> 5.6 | L37: ='SAH data'!N26 -> 4.106 | M37: ='SAH data'!O26 -> 7.126 | N37: ='SAH data'!P26 -> 8.3 | O37: ='SAH data'!Q26 -> 5.921 | P37: ='SAH data'!R26 -> 8.25
A38: Lower CI | B38: ='SAH data'!D27 -> 8.84 | C38: ='SAH data'!E27 -> 3.08 | D38: ='SAH data'!F27 -> 5.609 | E38: ='SAH data'!G27 -> 7.54 | F38: ='SAH data'!H27 -> 6.74 | G38: ='SAH data'!I27 -> 4.83 | H38: ='SAH data'!J27 -> 9.09 | I38: ='SAH data'!K27 -> 5.42 | J38: ='SAH data'!L27 -> 7.6 | K38: ='SAH data'!M27 -> 4.48 | L38: ='SAH data'!N27 -> 2.31 | M38: ='SAH data'!O27 -> 4.489 | N38: ='SAH data'!P27 -> 6.29 | O38: ='SAH data'!Q27 -> 4.254 | P38: ='SAH data'!R27 -> 7.75
A39: Upper CI | B39: ='SAH data'!D28 -> 11.5 | C39: ='SAH data'!E28 -> 9.321 | D39: ='SAH data'!F28 -> 11.064 | E39: ='SAH data'!G28 -> 10.27 | F39: ='SAH data'!H28 -> 11.14 | G39: ='SAH data'!I28 -> 6.93 | H39: ='SAH data'!J28 -> 11.79 | I39: ='SAH data'!K28 -> 9.44 | J39: ='SAH data'!L28 -> 11.04 | K39: ='SAH data'!M28 -> 6.72 | L39: ='SAH data'!N28 -> 5.901 | M39: ='SAH data'!O28 -> 9.763 | N39: ='SAH data'!P28 -> 10.31 | O39: ='SAH data'!Q28 -> 7.588 | P39: ='SAH data'!R28 -> 8.76
A42: Bases (weighted):
A43: Men | B43: ='SAH data'!D29 -> 606.12 | C43: ='SAH data'!E29 -> 183.856 | D43: ='SAH data'!F29 -> 262.106 | E43: ='SAH data'!G29 -> 619.88 | F43: ='SAH data'!H29 -> 497.09 | G43: ='SAH data'!I29 -> 978.48 | H43: ='SAH data'!J29 -> 1880.15 | I43: ='SAH data'!K29 -> 541.45 | J43: ='SAH data'!L29 -> 1147.4 | K43: ='SAH data'!M29 -> 1534.61 | L43: ='SAH data'!N29 -> 38.805 | M43: ='SAH data'!O29 -> 41.939 | N43: ='SAH data'!P29 -> 681.92 | O43: ='SAH data'!Q29 -> 48.446 | P43: ='SAH data'!R29 -> 9062.26
A44: Women | B44: ='SAH data'!D30 -> 710.35 | C44: ='SAH data'!E30 -> 222.276 | D44: ='SAH data'!F30 -> 275.466 | E44: ='SAH data'!G30 -> 662.81 | F44: ='SAH data'!H30 -> 553.76 | G44: ='SAH data'!I30 -> 1079.33 | H44: ='SAH data'!J30 -> 2051.62 | I44: ='SAH data'!K30 -> 586.85 | J44: ='SAH data'!L30 -> 1265.13 | K44: ='SAH data'!M30 -> 1496.34 | L44: ='SAH data'!N30 -> 39.048 | M44: ='SAH data'!O30 -> 39.383 | N44: ='SAH data'!P30 -> 771.2 | O44: ='SAH data'!Q30 -> 48.518 | P44: ='SAH data'!R30 -> 9802.07
A45: All Adults | B45: ='SAH data'!D31 -> 1316.47 | C45: ='SAH data'!E31 -> 406.133 | D45: ='SAH data'!F31 -> 537.572 | E45: ='SAH data'!G31 -> 1282.69 | F45: ='SAH data'!H31 -> 1050.85 | G45: ='SAH data'!I31 -> 2057.81 | H45: ='SAH data'!J31 -> 3931.77 | I45: ='SAH data'!K31 -> 1128.31 | J45: ='SAH data'!L31 -> 2412.53 | K45: ='SAH data'!M31 -> 3030.94 | L45: ='SAH data'!N31 -> 77.853 | M45: ='SAH data'!O31 -> 81.322 | N45: ='SAH data'!P31 -> 1453.11 | O45: ='SAH data'!Q31 -> 96.964 | P45: ='SAH data'!R31 -> 18864.34
A46: Bases (unweighted)
A47: Men | B47: ='SAH data'!D32 -> 948 | C47: ='SAH data'!E32 -> 199 | D47: ='SAH data'!F32 -> 221 | E47: ='SAH data'!G32 -> 902 | F47: ='SAH data'!H32 -> 307 | G47: ='SAH data'!I32 -> 1134 | H47: ='SAH data'!J32 -> 1341 | I47: ='SAH data'!K32 -> 355 | J47: ='SAH data'!L32 -> 660 | K47: ='SAH data'!M32 -> 937 | L47: ='SAH data'!N32 -> 234 | M47: ='SAH data'!O32 -> 247 | N47: ='SAH data'!P32 -> 472 | O47: ='SAH data'!Q32 -> 387 | P47: ='SAH data'!R32 -> 8344
A48: Women | B48: ='SAH data'!D33 -> 1208 | C48: ='SAH data'!E33 -> 278 | D48: ='SAH data'!F33 -> 258 | E48: ='SAH data'!G33 -> 1141 | F48: ='SAH data'!H33 -> 412 | G48: ='SAH data'!I33 -> 1429 | H48: ='SAH data'!J33 -> 1748 | I48: ='SAH data'!K33 -> 463 | J48: ='SAH data'!L33 -> 879 | K48: ='SAH data'!M33 -> 1105 | L48: ='SAH data'!N33 -> 271 | M48: ='SAH data'!O33 -> 277 | N48: ='SAH data'!P33 -> 590 | O48: ='SAH data'!Q33 -> 461 | P48: ='SAH data'!R33 -> 10520
A49: All Adults | B49: ='SAH data'!D34 -> 2156 | C49: ='SAH data'!E34 -> 477 | D49: ='SAH data'!F34 -> 479 | E49: ='SAH data'!G34 -> 2043 | F49: ='SAH data'!H34 -> 719 | G49: ='SAH data'!I34 -> 2563 | H49: ='SAH data'!J34 -> 3089 | I49: ='SAH data'!K34 -> 818 | J49: ='SAH data'!L34 -> 1539 | K49: ='SAH data'!M34 -> 2042 | L49: ='SAH data'!N34 -> 505 | M49: ='SAH data'!O34 -> 524 | N49: ='SAH data'!P34 -> 1062 | O49: ='SAH data'!Q34 -> 848 | P49: ='SAH data'!R34 -> 18864

Sheet SAH data (hidden)
A1: F_sex | B1: F_genhelf2 | C1: _NAME_ | D1: Ayrshire & Arran | E1: Borders | F1: Dumfries & Galloway | G1: Fife | H1: Forth Valley | I1: Grampian | J1: Greater Glasgow | K1: Highland | L1: Lanarkshire | M1: Lothian | N1: Orkney | O1: Shetland | P1: Tayside | Q1: Western Isles | R1: Scotland
A2: Male | B2: Very good/good | C2: RowPercent | D2: 70.92 | E2: 80.13 | F2: 65.999 | G2: 72.6 | H2: 77.21 | I2: 78.41 | J2: 70.7 | K2: 75.79 | L2: 71.81 | M2: 78.49 | N2: 83.034 | O2: 75.089 | P2: 72.74 | Q2: 71.558 | R2: 74.08
A3: Male | B3: Very good/good | C3: RowLowerCL | D3: 67.38 | E3: 73.586 | F3: 59.429 | G3: 69.44 | H3: 71.66 | I3: 75.62 | J3: 67.67 | K3: 71.04 | L3: 68.1 | M3: 75.49 | N3: 79.429 | O3: 69.557 | P3: 67.93 | Q3: 65.674 | R3: 72.88
A4: Male | B4: Very good/good | C4: RowUpperCL | D4: 74.46 | E4: 86.673 | F4: 72.569 | G4: 75.76 | H4: 82.77 | I4: 81.19 | J4: 73.73 | K4: 80.54 | L4: 75.52 | M4: 81.5 | N4: 86.639 | O4: 80.621 | P4: 77.54 | Q4: 77.442 | R4: 75.29
A5: Male | B5: Fair | C5: RowPercent | D5: 20.52 | E5: 13.135 | F5: 27.274 | G5: 18.51 | H5: 16.2 | I5: 15.1 | J5: 19.65 | K5: 16.6 | L5: 17.99 | M5: 16.07 | N5: 13.661 | O5: 17.65 | P5: 18.43 | Q5: 23.289 | R5: 17.93
A6: Male | B6: Fair | C6: RowLowerCL | D6: 17.41 | E6: 8.399 | F6: 21.172 | G6: 15.99 | H6: 11.93 | I6: 13.01 | J6: 17.12 | K6: 12.41 | L6: 15.18 | M6: 13.48 | N6: 9.684 | O6: 12.594 | P6: 14.11 | Q6: 17.288 | R6: 16.93
A7: Male | B7: Fair | C7: RowUpperCL | D7: 23.63 | E7: 17.87 | F7: 33.375 | G7: 21.03 | H7: 20.47 | I7: 17.18 | J7: 22.18 | K7: 20.8 | L7: 20.79 | M7: 18.66 | N7: 17.638 | O7: 22.707 | P7: 22.75 | Q7: 29.29 | R7: 18.94
A8: Male | B8: Bad/very bad | C8: RowPercent | D8: 8.56 | E8: 6.736 | F8: 6.727 | G8: 8.89 | H8: 6.59 | I8: 6.5 | J8: 9.65 | K8: 7.61 | L8: 10.2 | M8: 5.44 | N8: 3.305 | O8: 7.261 | P8: 8.83 | Q8: 5.153 | R8: 7.98
A9: Male | B9: Bad/very bad | C9: RowLowerCL | D9: 6.76 | E9: 2.739 | F9: 3.263 | G9: 7.05 | H9: 3.67 | I9: 4.92 | J9: 7.99 | K9: 4.71 | L9: 7.52 | M9: 3.92 | N9: 1.247 | O9: 3.509 | P9: 5.96 | Q9: 2.898 | R9: 7.29
A10: Male | B10: Bad/very bad | C10: RowUpperCL | D10: 10.37 | E10: 10.732 | F10: 10.191 | G10: 10.74 | H10: 9.51 | I10: 8.08 | J10: 11.3 | K10: 10.5 | L10: 12.88 | M10: 6.95 | N10: 5.364 | O10: 11.012 | P10: 11.7 | Q10: 7.407 | R10: 8.67
A11: Female | B11: Very good/good | C11: RowPercent | D11: 68.65 | E11: 76.298 | F11: 71.942 | G11: 70.59 | H11: 72.26 | I11: 77.81 | J11: 69.53 | K11: 76.45 | L11: 72.86 | M11: 78.85 | N11: 82.483 | O11: 76.598 | P11: 73.37 | Q11: 73.831 | R11: 73.49
A12: Female | B12: Very good/good | C12: RowLowerCL | D12: 65.42 | E12: 71.107 | F12: 66.757 | G12: 67.81 | H12: 67.65 | I12: 75.49 | J12: 67.03 | K12: 71.79 | L12: 69.61 | M12: 76.36 | N12: 77.179 | O12: 70.945 | P12: 69.19 | Q12: 70.032 | R12: 72.46
A13: Female | B13: Very good/good | C13: RowUpperCL | D13: 71.88 | E13: 81.488 | F13: 77.127 | G13: 73.38 | H13: 76.87 | I13: 80.13 | J13: 72.03 | K13: 81.11 | L13: 76.11 | M13: 81.33 | N13: 87.787 | O13: 82.251 | P13: 77.55 | Q13: 77.63 | R13: 74.53
A14: Female | B14: Fair | C14: RowPercent | D14: 19.82 | E14: 17.944 | F14: 18.19 | G14: 20.49 | H14: 16.68 | I14: 16.87 | J14: 19.31 | K14: 16.28 | L14: 18.62 | M14: 15.39 | N14: 12.616 | O14: 16.419 | P14: 18.8 | Q14: 19.481 | R14: 18
A15: Female | B15: Fair | C15: RowLowerCL | D15: 17.13 | E15: 13.027 | F15: 13.667 | G15: 18.04 | H15: 12.92 | I15: 14.69 | J15: 17.39 | K15: 12.11 | L15: 15.98 | M15: 13.17 | N15: 8.941 | O15: 11.203 | P15: 15.46 | Q15: 15.564 | R15: 17.15
A16: Female | B16: Fair | C16: RowUpperCL | D16: 22.5 | E16: 22.862 | F16: 22.713 | G16: 22.95 | H16: 20.45 | I16: 19.06 | J16: 21.22 | K16: 20.46 | L16: 21.25 | M16: 17.6 | N16: 16.291 | O16: 21.635 | P16: 22.14 | Q16: 23.397 | R16: 18.85
A17: Female | B17: Bad/very bad | C17: RowPercent | D17: 11.53 | E17: 5.758 | F17: 9.868 | G17: 8.91 | H17: 11.05 | I17: 5.32 | J17: 11.16 | K17: 7.27 | L17: 8.52 | M17: 5.77 | N17: 4.901 | O17: 6.983 | P17: 7.83 | Q17: 6.689 | R17: 8.5
A18: Female | B18: Bad/very bad | C18: RowLowerCL | D18: 9.67 | E18: 2.173 | F18: 5.484 | G18: 7.32 | H18: 8.21 | I18: 4.18 | J18: 9.48 | K18: 4.93 | L18: 6.61 | M18: 4.3 | N18: 2.099 | O18: 4.009 | P18: 5.33 | Q18: 4.513 | R18: 7.87
A19: Female | B19: Bad/very bad | C19: RowUpperCL | D19: 13.39 | E19: 9.343 | F19: 14.251 | G19: 10.51 | H19: 13.89 | I19: 6.45 | J19: 12.85 | K19: 9.6 | L19: 10.43 | M19: 7.23 | N19: 7.703 | O19: 9.958 | P19: 10.33 | Q19: 8.864 | R19: 9.14
A20: Total | B20: Very good/good | C20: RowPercent | D20: 69.69 | E20: 78.033 | F20: 69.045 | G20: 71.56 | H20: 74.6 | I20: 78.09 | J20: 70.09 | K20: 76.13 | L20: 72.36 | M20: 78.67 | N20: 82.757 | O20: 75.82 | P20: 73.07 | Q20: 72.695 | R20: 73.78
A21: Total | B21: Very good/good | C21: RowLowerCL | D21: 66.84 | E21: 73.68 | F21: 64.822 | G21: 69.29 | H21: 70.96 | I21: 76.01 | J21: 67.82 | K21: 72.32 | L21: 69.92 | M21: 76.47 | N21: 79.182 | O21: 71.655 | P21: 69.43 | Q21: 68.811 | R21: 72.9
A22: Total | B22: Very good/good | C22: RowUpperCL | D22: 72.55 | E22: 82.385 | F22: 73.267 | G22: 73.84 | H22: 78.25 | I22: 80.17 | J22: 72.36 | K22: 79.95 | L22: 74.8 | M22: 80.87 | N22: 86.333 | O22: 79.985 | P22: 76.72 | Q22: 76.58 | R22: 74.66
A23: Total | B23: Fair | C23: RowPercent | D23: 20.14 | E23: 15.767 | F23: 22.619 | G23: 19.54 | H23: 16.46 | I23: 16.03 | J23: 19.47 | K23: 16.44 | L23: 18.32 | M23: 15.73 | N23: 13.137 | O23: 17.054 | P23: 18.63 | Q23: 21.383 | R23: 17.97
A24: Total | B24: Fair | C24: RowLowerCL | D24: 17.69 | E24: 12.1 | F24: 19.153 | G24: 17.81 | H24: 13.78 | I24: 14.39 | J24: 17.77 | K24: 13.2 | L24: 16.37 | M24: 13.89 | N24: 10.061 | O24: 13.159 | P24: 15.86 | Q24: 17.288 | R24: 17.28
A25: Total | B25: Fair | C25: RowUpperCL | D25: 22.6 | E25: 19.434 | F25: 26.086 | G25: 21.27 | H25: 19.14 | I25: 17.67 | J25: 21.17 | K25: 19.67 | L25: 20.27 | M25: 17.58 | N25: 16.213 | O25: 20.949 | P25: 21.4 | Q25: 25.479 | R25: 18.65
A26: Total | B26: Bad/very bad | C26: RowPercent | D26: 10.17 | E26: 6.2 | F26: 8.336 | G26: 8.9 | H26: 8.94 | I26: 5.88 | J26: 10.44 | K26: 7.43 | L26: 9.32 | M26: 5.6 | N26: 4.106 | O26: 7.126 | P26: 8.3 | Q26: 5.921 | R26: 8.25
A27: Total | B27: Bad/very bad | C27: RowLowerCL | D27: 8.84 | E27: 3.08 | F27: 5.609 | G27: 7.54 | H27: 6.74 | I27: 4.83 | J27: 9.09 | K27: 5.42 | L27: 7.6 | M27: 4.48 | N27: 2.31 | O27: 4.489 | P27: 6.29 | Q27: 4.254 | R27: 7.75
A28: Total | B28: Bad/very bad | C28: RowUpperCL | D28: 11.5 | E28: 9.321 | F28: 11.064 | G28: 10.27 | H28: 11.14 | I28: 6.93 | J28: 11.79 | K28: 9.44 | L28: 11.04 | M28: 6.72 | N28: 5.901 | O28: 9.763 | P28: 10.31 | Q28: 7.588 | R28: 8.76
A29: Male | B29: . | C29: WgtFreq | D29: 606.12 | E29: 183.856 | F29: 262.106 | G29: 619.88 | H29: 497.09 | I29: 978.48 | J29: 1880.15 | K29: 541.45 | L29: 1147.4 | M29: 1534.61 | N29: 38.805 | O29: 41.939 | P29: 681.92 | Q29: 48.446 | R29: 9062.26
A30: Female | B30: . | C30: WgtFreq | D30: 710.35 | E30: 222.276 | F30: 275.466 | G30: 662.81 | H30: 553.76 | I30: 1079.33 | J30: 2051.62 | K30: 586.85 | L30: 1265.13 | M30: 1496.34 | N30: 39.048 | O30: 39.383 | P30: 771.2 | Q30: 48.518 | R30: 9802.07
A31: Total | B31: . | C31: WgtFreq | D31: 1316.47 | E31: 406.133 | F31: 537.572 | G31: 1282.69 | H31: 1050.85 | I31: 2057.81 | J31: 3931.77 | K31: 1128.31 | L31: 2412.53 | M31: 3030.94 | N31: 77.853 | O31: 81.322 | P31: 1453.11 | Q31: 96.964 | R31: 18864.34
A32: Male | B32: . | C32: Frequency | D32: 948 | E32: 199 | F32: 221 | G32: 902 | H32: 307 | I32: 1134 | J32: 1341 | K32: 355 | L32: 660 | M32: 937 | N32: 234 | O32: 247 | P32: 472 | Q32: 387 | R32: 8344
A33: Female | B33: . | C33: Frequency | D33: 1208 | E33: 278 | F33: 258 | G33: 1141 | H33: 412 | I33: 1429 | J33: 1748 | K33: 463 | L33: 879 | M33: 1105 | N33: 271 | O33: 277 | P33: 590 | Q33: 461 | R33: 10520
A34: Total | B34: . | C34: Frequency | D34: 2156 | E34: 477 | F34: 479 | G34: 2043 | H34: 719 | I34: 2563 | J34: 3089 | K34: 818 | L34: 1539 | M34: 2042 | N34: 505 | O34: 524 | P34: 1062 | Q34: 848 | R34: 18864

Sheet SAH chart
R1: INDEX
C31: Source: Scottish Health Survey
C34: Ayrshire & Arran | D34: Borders | E34: Dumfries & Galloway | F34: Fife | G34: Forth Valley | H34: Grampian | I34: Greater Glasgow & Clyde | J34: Highland | K34: Lanarkshire | L34: Lothian | M34: Orkney | N34: Shetland | O34: Tayside | P34: Western Isles | R34: Scotland
B35: All Adults
B36: Very good/good | C36: ='Self-assessed general health'!B31 -> 69.69 | D36: ='Self-assessed general health'!C31 -> 78.033 | E36: ='Self-assessed general health'!D31 -> 69.045 | F36: ='Self-assessed general health'!E31 -> 71.56 | G36: ='Self-assessed general health'!F31 -> 74.6 | H36: ='Self-assessed general health'!G31 -> 78.09 | I36: ='Self-assessed general health'!H31 -> 70.09 | J36: ='Self-assessed general health'!I31 -> 76.13 | K36: ='Self-assessed general health'!J31 -> 72.36 | L36: ='Self-assessed general health'!K31 -> 78.67 | M36: ='Self-assessed general health'!L31 -> 82.757 | N36: ='Self-assessed general health'!M31 -> 75.82 | O36: ='Self-assessed general health'!N31 -> 73.07 | P36: ='Self-assessed general health'!O31 -> 72.695 | R36: ='Self-assessed general health'!P31 -> 73.78
B37: Lower CI | C37: ='Self-assessed general health'!B32 -> 66.84 | D37: ='Self-assessed general health'!C32 -> 73.68 | E37: ='Self-assessed general health'!D32 -> 64.822 | F37: ='Self-assessed general health'!E32 -> 69.29 | G37: ='Self-assessed general health'!F32 -> 70.96 | H37: ='Self-assessed general health'!G32 -> 76.01 | I37: ='Self-assessed general health'!H32 -> 67.82 | J37: ='Self-assessed general health'!I32 -> 72.32 | K37: ='Self-assessed general health'!J32 -> 69.92 | L37: ='Self-assessed general health'!K32 -> 76.47 | M37: ='Self-assessed general health'!L32 -> 79.182 | N37: ='Self-assessed general health'!M32 -> 71.655 | O37: ='Self-assessed general health'!N32 -> 69.43 | P37: ='Self-assessed general health'!O32 -> 68.811 | R37: ='Self-assessed general health'!P32 -> 72.9
B38: Upper CI | C38: ='Self-assessed general health'!B33 -> 72.55 | D38: ='Self-assessed general health'!C33 -> 82.385 | E38: ='Self-assessed general health'!D33 -> 73.267 | F38: ='Self-assessed general health'!E33 -> 73.84 | G38: ='Self-assessed general health'!F33 -> 78.25 | H38: ='Self-assessed general health'!G33 -> 80.17 | I38: ='Self-assessed general health'!H33 -> 72.36 | J38: ='Self-assessed general health'!I33 -> 79.95 | K38: ='Self-assessed general health'!J33 -> 74.8 | L38: ='Self-assessed general health'!K33 -> 80.87 | M38: ='Self-assessed general health'!L33 -> 86.333 | N38: ='Self-assessed general health'!M33 -> 79.985 | O38: ='Self-assessed general health'!N33 -> 76.72 | P38: ='Self-assessed general health'!O33 -> 76.58 | R38: ='Self-assessed general health'!P33 -> 74.66
B39: Fair | C39: ='Self-assessed general health'!B34 -> 20.14 | D39: ='Self-assessed general health'!C34 -> 15.767 | E39: ='Self-assessed general health'!D34 -> 22.619 | F39: ='Self-assessed general health'!E34 -> 19.54 | G39: ='Self-assessed general health'!F34 -> 16.46 | H39: ='Self-assessed general health'!G34 -> 16.03 | I39: ='Self-assessed general health'!H34 -> 19.47 | J39: ='Self-assessed general health'!I34 -> 16.44 | K39: ='Self-assessed general health'!J34 -> 18.32 | L39: ='Self-assessed general health'!K34 -> 15.73 | M39: ='Self-assessed general health'!L34 -> 13.137 | N39: ='Self-assessed general health'!M34 -> 17.054 | O39: ='Self-assessed general health'!N34 -> 18.63 | P39: ='Self-assessed general health'!O34 -> 21.383 | R39: ='Self-assessed general health'!P34 -> 17.97
B40: Lower CI | C40: ='Self-assessed general health'!B35 -> 17.69 | D40: ='Self-assessed general health'!C35 -> 12.1 | E40: ='Self-assessed general health'!D35 -> 19.153 | F40: ='Self-assessed general health'!E35 -> 17.81 | G40: ='Self-assessed general health'!F35 -> 13.78 | H40: ='Self-assessed general health'!G35 -> 14.39 | I40: ='Self-assessed general health'!H35 -> 17.77 | J40: ='Self-assessed general health'!I35 -> 13.2 | K40: ='Self-assessed general health'!J35 -> 16.37 | L40: ='Self-assessed general health'!K35 -> 13.89 | M40: ='Self-assessed general health'!L35 -> 10.061 | N40: ='Self-assessed general health'!M35 -> 13.159 | O40: ='Self-assessed general health'!N35 -> 15.86 | P40: ='Self-assessed general health'!O35 -> 17.288 | R40: ='Self-assessed general health'!P35 -> 17.28
B41: Upper CI | C41: ='Self-assessed general health'!B36 -> 22.6 | D41: ='Self-assessed general health'!C36 -> 19.434 | E41: ='Self-assessed general health'!D36 -> 26.086 | F41: ='Self-assessed general health'!E36 -> 21.27 | G41: ='Self-assessed general health'!F36 -> 19.14 | H41: ='Self-assessed general health'!G36 -> 17.67 | I41: ='Self-assessed general health'!H36 -> 21.17 | J41: ='Self-assessed general health'!I36 -> 19.67 | K41: ='Self-assessed general health'!J36 -> 20.27 | L41: ='Self-assessed general health'!K36 -> 17.58 | M41: ='Self-assessed general health'!L36 -> 16.213 | N41: ='Self-assessed general health'!M36 -> 20.949 | O41: ='Self-assessed general health'!N36 -> 21.4 | P41: ='Self-assessed general health'!O36 -> 25.479 | R41: ='Self-assessed general health'!P36 -> 18.65
B42: Bad/very bad | C42: ='Self-assessed general health'!B37 -> 10.17 | D42: ='Self-assessed general health'!C37 -> 6.2 | E42: ='Self-assessed general health'!D37 -> 8.336 | F42: ='Self-assessed general health'!E37 -> 8.9 | G42: ='Self-assessed general health'!F37 -> 8.94 | H42: ='Self-assessed general health'!G37 -> 5.88 | I42: ='Self-assessed general health'!H37 -> 10.44 | J42: ='Self-assessed general health'!I37 -> 7.43 | K42: ='Self-assessed general health'!J37 -> 9.32 | L42: ='Self-assessed general health'!K37 -> 5.6 | M42: ='Self-assessed general health'!L37 -> 4.106 | N42: ='Self-assessed general health'!M37 -> 7.126 | O42: ='Self-assessed general health'!N37 -> 8.3 | P42: ='Self-assessed general health'!O37 -> 5.921 | R42: ='Self-assessed general health'!P37 -> 8.25
B43: Lower CI | C43: ='Self-assessed general health'!B38 -> 8.84 | D43: ='Self-assessed general health'!C38 -> 3.08 | E43: ='Self-assessed general health'!D38 -> 5.609 | F43: ='Self-assessed general health'!E38 -> 7.54 | G43: ='Self-assessed general health'!F38 -> 6.74 | H43: ='Self-assessed general health'!G38 -> 4.83 | I43: ='Self-assessed general health'!H38 -> 9.09 | J43: ='Self-assessed general health'!I38 -> 5.42 | K43: ='Self-assessed general health'!J38 -> 7.6 | L43: ='Self-assessed general health'!K38 -> 4.48 | M43: ='Self-assessed general health'!L38 -> 2.31 | N43: ='Self-assessed general health'!M38 -> 4.489 | O43: ='Self-assessed general health'!N38 -> 6.29 | P43: ='Self-assessed general health'!O38 -> 4.254 | R43: ='Self-assessed general health'!P38 -> 7.75
B44: Upper CI | C44: ='Self-assessed general health'!B39 -> 11.5 | D44: ='Self-assessed general health'!C39 -> 9.321 | E44: ='Self-assessed general health'!D39 -> 11.064 | F44: ='Self-assessed general health'!E39 -> 10.27 | G44: ='Self-assessed general health'!F39 -> 11.14 | H44: ='Self-assessed general health'!G39 -> 6.93 | I44: ='Self-assessed general health'!H39 -> 11.79 | J44: ='Self-assessed general health'!I39 -> 9.44 | K44: ='Self-assessed general health'!J39 -> 11.04 | L44: ='Self-assessed general health'!K39 -> 6.72 | M44: ='Self-assessed general health'!L39 -> 5.901 | N44: ='Self-assessed general health'!M39 -> 9.763 | O44: ='Self-assessed general health'!N39 -> 10.31 | P44: ='Self-assessed general health'!O39 -> 7.588 | R44: ='Self-assessed general health'!P39 -> 8.76
A46: CLs | B46: Very good | C46: =C36-C37 -> 2.85 | D46: 4.353 | E46: 4.223 | F46: 2.27 | G46: 3.64 | H46: 2.08 | I46: 2.27 | J46: 3.81 | K46: 2.44 | L46: 2.2 | M46: 3.575 | N46: 4.165 | O46: 3.64 | P46: 3.884 | R46: =R36-R37 -> 0.88
B47: Fair | C47: =C39-C40 -> 2.45 | D47: 3.667 | E47: 3.466 | F47: 1.73 | G47: 2.68 | H47: 1.64 | I47: 1.7 | J47: 3.24 | K47: 1.95 | L47: 1.84 | M47: 3.076 | N47: 3.895 | O47: 2.77 | P47: 4.095 | R47: =R39-R40 -> 0.69
B48: Bad/ very bad | C48: =C42-C43 -> 1.33 | D48: 3.12 | E48: 2.727 | F48: 1.36 | G48: 2.2 | H48: 1.05 | I48: 1.35 | J48: 2.01 | K48: 1.72 | L48: 1.12 | M48: 1.796 | N48: 2.637 | O48: 2.01 | P48: 1.667 | R48: =R42-R43 -> 0.5

Sheet WEMWBS
A1: WEMWBS mean scores, by NHS Board and sex | N1: INDEX
A4: Aged 16 and over | P4: 2013/2014/2015/2016 combined
A5: WEMWBS score | B5: NHS Board
B6: Ayrshire & Arran | C6: Borders | D6: Dumfries & Galloway | E6: Fife | F6: Forth Valley | G6: Grampian | H6: Greater Glasgow & Clyde | I6: Highland | J6: Lanarkshire | K6: Lothian | L6: Orkney | M6: Shetland | N6: Tayside | O6: Western Isles | P6: Scotland
A7: Men
A8: Mean | B8: ='wemwbs data'!C2 -> 49.53 | C8: ='wemwbs data'!D2 -> 49.793 | D8: ='wemwbs data'!E2 -> 49.588 | E8: ='wemwbs data'!F2 -> 50.18 | F8: ='wemwbs data'!G2 -> 50.614 | G8: ='wemwbs data'!H2 -> 50.87 | H8: ='wemwbs data'!I2 -> 49.48 | I8: ='wemwbs data'!J2 -> 50.9 | J8: ='wemwbs data'!K2 -> 50.12 | K8: ='wemwbs data'!L2 -> 50.25 | L8: ='wemwbs data'!M2 -> 50.216 | M8: ='wemwbs data'!N2 -> 50.765 | N8: ='wemwbs data'!O2 -> 49.2 | O8: ='wemwbs data'!P2 -> 51.275 | P8: ='wemwbs data'!Q2 -> 50.05
A9: Lower CI | B9: ='wemwbs data'!C3 -> 48.9 | C9: ='wemwbs data'!D3 -> 48.53 | D9: ='wemwbs data'!E3 -> 48.144 | E9: ='wemwbs data'!F3 -> 49.44 | F9: ='wemwbs data'!G3 -> 49.771 | G9: ='wemwbs data'!H3 -> 50.33 | H9: ='wemwbs data'!I3 -> 48.93 | I9: ='wemwbs data'!J3 -> 50.03 | J9: ='wemwbs data'!K3 -> 49.33 | K9: ='wemwbs data'!L3 -> 49.52 | L9: ='wemwbs data'!M3 -> 49.104 | M9: ='wemwbs data'!N3 -> 49.605 | N9: ='wemwbs data'!O3 -> 48.31 | O9: ='wemwbs data'!P3 -> 50.279 | P9: ='wemwbs data'!Q3 -> 49.82
A10: Upper CI | B10: ='wemwbs data'!C4 -> 50.16 | C10: ='wemwbs data'!D4 -> 51.055 | D10: ='wemwbs data'!E4 -> 51.032 | E10: ='wemwbs data'!F4 -> 50.92 | F10: ='wemwbs data'!G4 -> 51.457 | G10: ='wemwbs data'!H4 -> 51.41 | H10: ='wemwbs data'!I4 -> 50.03 | I10: ='wemwbs data'!J4 -> 51.78 | J10: ='wemwbs data'!K4 -> 50.92 | K10: ='wemwbs data'!L4 -> 50.98 | L10: ='wemwbs data'!M4 -> 51.329 | M10: ='wemwbs data'!N4 -> 51.926 | N10: ='wemwbs data'!O4 -> 50.09 | O10: ='wemwbs data'!P4 -> 52.271 | P10: ='wemwbs data'!Q4 -> 50.28
A12: Women
A13: Mean | B13: ='wemwbs data'!C5 -> 48.91 | C13: ='wemwbs data'!D5 -> 50.992 | D13: ='wemwbs data'!E5 -> 48.259 | E13: ='wemwbs data'!F5 -> 49.57 | F13: ='wemwbs data'!G5 -> 50.029 | G13: ='wemwbs data'!H5 -> 50.5 | H13: ='wemwbs data'!I5 -> 49.18 | I13: ='wemwbs data'!J5 -> 51.31 | J13: ='wemwbs data'!K5 -> 49.9 | K13: ='wemwbs data'!L5 -> 50.5 | L13: ='wemwbs data'!M5 -> 50.773 | M13: ='wemwbs data'!N5 -> 51.182 | N13: ='wemwbs data'!O5 -> 49.24 | O13: ='wemwbs data'!P5 -> 51.057 | P13: ='wemwbs data'!Q5 -> 49.85
A14: Lower CI | B14: ='wemwbs data'!C6 -> 48.32 | C14: ='wemwbs data'!D6 -> 49.741 | D14: ='wemwbs data'!E6 -> 46.743 | E14: ='wemwbs data'!F6 -> 49.05 | F14: ='wemwbs data'!G6 -> 49.073 | G14: ='wemwbs data'!H6 -> 49.89 | H14: ='wemwbs data'!I6 -> 48.65 | I14: ='wemwbs data'!J6 -> 50.51 | J14: ='wemwbs data'!K6 -> 49.21 | K14: ='wemwbs data'!L6 -> 49.93 | L14: ='wemwbs data'!M6 -> 49.558 | M14: ='wemwbs data'!N6 -> 49.834 | N14: ='wemwbs data'!O6 -> 48.37 | O14: ='wemwbs data'!P6 -> 50.056 | P14: ='wemwbs data'!Q6 -> 49.62
A15: Upper CI | B15: ='wemwbs data'!C7 -> 49.5 | C15: ='wemwbs data'!D7 -> 52.243 | D15: ='wemwbs data'!E7 -> 49.775 | E15: ='wemwbs data'!F7 -> 50.09 | F15: ='wemwbs data'!G7 -> 50.984 | G15: ='wemwbs data'!H7 -> 51.12 | H15: ='wemwbs data'!I7 -> 49.7 | I15: ='wemwbs data'!J7 -> 52.12 | J15: ='wemwbs data'!K7 -> 50.59 | K15: ='wemwbs data'!L7 -> 51.08 | L15: ='wemwbs data'!M7 -> 51.988 | M15: ='wemwbs data'!N7 -> 52.531 | N15: ='wemwbs data'!O7 -> 50.11 | O15: ='wemwbs data'!P7 -> 52.057 | P15: ='wemwbs data'!Q7 -> 50.07
A17: All adults
A18: Mean | B18: ='wemwbs data'!C8 -> 49.19 | C18: ='wemwbs data'!D8 -> 50.447 | D18: ='wemwbs data'!E8 -> 48.893 | E18: ='wemwbs data'!F8 -> 49.86 | F18: ='wemwbs data'!G8 -> 50.301 | G18: ='wemwbs data'!H8 -> 50.68 | H18: ='wemwbs data'!I8 -> 49.32 | I18: ='wemwbs data'!J8 -> 51.12 | J18: ='wemwbs data'!K8 -> 50.01 | K18: ='wemwbs data'!L8 -> 50.38 | L18: ='wemwbs data'!M8 -> 50.497 | M18: ='wemwbs data'!N8 -> 50.971 | N18: ='wemwbs data'!O8 -> 49.22 | O18: ='wemwbs data'!P8 -> 51.165 | P18: ='wemwbs data'!Q8 -> 49.94
A19: Lower CI | B19: ='wemwbs data'!C9 -> 48.72 | C19: ='wemwbs data'!D9 -> 49.525 | D19: ='wemwbs data'!E9 -> 47.66 | E19: ='wemwbs data'!F9 -> 49.4 | F19: ='wemwbs data'!G9 -> 49.682 | G19: ='wemwbs data'!H9 -> 50.2 | H19: ='wemwbs data'!I9 -> 48.9 | I19: ='wemwbs data'!J9 -> 50.45 | J19: ='wemwbs data'!K9 -> 49.44 | K19: ='wemwbs data'!L9 -> 49.9 | L19: ='wemwbs data'!M9 -> 49.587 | M19: ='wemwbs data'!N9 -> 49.935 | N19: ='wemwbs data'!O9 -> 48.52 | O19: ='wemwbs data'!P9 -> 50.359 | P19: ='wemwbs data'!Q9 -> 49.76
A20: Upper CI | B20: ='wemwbs data'!C10 -> 49.67 | C20: ='wemwbs data'!D10 -> 51.369 | D20: ='wemwbs data'!E10 -> 50.127 | E20: ='wemwbs data'!F10 -> 50.33 | F20: ='wemwbs data'!G10 -> 50.92 | G20: ='wemwbs data'!H10 -> 51.16 | H20: ='wemwbs data'!I10 -> 49.74 | I20: ='wemwbs data'!J10 -> 51.78 | J20: ='wemwbs data'!K10 -> 50.57 | K20: ='wemwbs data'!L10 -> 50.85 | L20: ='wemwbs data'!M10 -> 51.408 | M20: ='wemwbs data'!N10 -> 52.007 | N20: ='wemwbs data'!O10 -> 49.92 | O20: ='wemwbs data'!P10 -> 51.971 | P20: ='wemwbs data'!Q10 -> 50.12
A22: Bases (weighted):
A23: Men | B23: ='wemwbs data'!C11 -> 564.49 | C23: ='wemwbs data'!D11 -> 164.18 | D23: ='wemwbs data'!E11 -> 220.908 | E23: ='wemwbs data'!F11 -> 558.79 | F23: ='wemwbs data'!G11 -> 438.626 | G23: ='wemwbs data'!H11 -> 890.22 | H23: ='wemwbs data'!I11 -> 1648.05 | I23: ='wemwbs data'!J11 -> 486.53 | J23: ='wemwbs data'!K11 -> 1005.49 | K23: ='wemwbs data'!L11 -> 1358.73 | L23: ='wemwbs data'!M11 -> 37.117 | M23: ='wemwbs data'!N11 -> 37.027 | N23: ='wemwbs data'!O11 -> 636.5 | O23: ='wemwbs data'!P11 -> 40.122 | P23: ='wemwbs data'!Q11 -> 8086.76
A24: Women | B24: ='wemwbs data'!C12 -> 678.97 | C24: ='wemwbs data'!D12 -> 197.129 | D24: ='wemwbs data'!E12 -> 242.183 | E24: ='wemwbs data'!F12 -> 603.93 | F24: ='wemwbs data'!G12 -> 503.965 | G24: ='wemwbs data'!H12 -> 994.95 | H24: ='wemwbs data'!I12 -> 1797.52 | I24: ='wemwbs data'!J12 -> 525.94 | J24: ='wemwbs data'!K12 -> 1122.15 | K24: ='wemwbs data'!L12 -> 1381.68 | L24: ='wemwbs data'!M12 -> 37.81 | M24: ='wemwbs data'!N12 -> 36.037 | N24: ='wemwbs data'!O12 -> 731.66 | O24: ='wemwbs data'!P12 -> 40.694 | P24: ='wemwbs data'!Q12 -> 8894.62
A25: All Adults | B25: ='wemwbs data'!C13 -> 1243.46 | C25: ='wemwbs data'!D13 -> 361.309 | D25: ='wemwbs data'!E13 -> 463.09 | E25: ='wemwbs data'!F13 -> 1162.72 | F25: ='wemwbs data'!G13 -> 942.59 | G25: ='wemwbs data'!H13 -> 1885.17 | H25: ='wemwbs data'!I13 -> 3445.57 | I25: ='wemwbs data'!J13 -> 1012.47 | J25: ='wemwbs data'!K13 -> 2127.64 | K25: ='wemwbs data'!L13 -> 2740.4 | L25: ='wemwbs data'!M13 -> 74.927 | M25: ='wemwbs data'!N13 -> 73.064 | N25: ='wemwbs data'!O13 -> 1368.15 | O25: ='wemwbs data'!P13 -> 80.816 | P25: ='wemwbs data'!Q13 -> 16981.38
A26: Bases (unweighted)
A27: Men | B27: ='wemwbs data'!C14 -> 881 | C27: ='wemwbs data'!D14 -> 178 | D27: ='wemwbs data'!E14 -> 186 | E27: ='wemwbs data'!F14 -> 810 | F27: ='wemwbs data'!G14 -> 273 | G27: ='wemwbs data'!H14 -> 1030 | H27: ='wemwbs data'!I14 -> 1170 | I27: ='wemwbs data'!J14 -> 316 | J27: ='wemwbs data'!K14 -> 575 | K27: ='wemwbs data'!L14 -> 831 | L27: ='wemwbs data'!M14 -> 224 | M27: ='wemwbs data'!N14 -> 216 | N27: ='wemwbs data'!O14 -> 442 | O27: ='wemwbs data'!P14 -> 326 | P27: ='wemwbs data'!Q14 -> 7458
A28: Women | B28: ='wemwbs data'!C15 -> 1151 | C28: ='wemwbs data'!D15 -> 246 | D28: ='wemwbs data'!E15 -> 225 | E28: ='wemwbs data'!F15 -> 1042 | F28: ='wemwbs data'!G15 -> 376 | G28: ='wemwbs data'!H15 -> 1313 | H28: ='wemwbs data'!I15 -> 1527 | I28: ='wemwbs data'!J15 -> 414 | J28: ='wemwbs data'!K15 -> 780 | K28: ='wemwbs data'!L15 -> 1024 | L28: ='wemwbs data'!M15 -> 262 | M28: ='wemwbs data'!N15 -> 250 | N28: ='wemwbs data'!O15 -> 563 | O28: ='wemwbs data'!P15 -> 401 | P28: ='wemwbs data'!Q15 -> 9574
A29: All Adults | B29: ='wemwbs data'!C16 -> 2032 | C29: ='wemwbs data'!D16 -> 424 | D29: ='wemwbs data'!E16 -> 411 | E29: ='wemwbs data'!F16 -> 1852 | F29: ='wemwbs data'!G16 -> 649 | G29: ='wemwbs data'!H16 -> 2343 | H29: ='wemwbs data'!I16 -> 2697 | I29: ='wemwbs data'!J16 -> 730 | J29: ='wemwbs data'!K16 -> 1355 | K29: ='wemwbs data'!L16 -> 1855 | L29: ='wemwbs data'!M16 -> 486 | M29: ='wemwbs data'!N16 -> 466 | N29: ='wemwbs data'!O16 -> 1005 | O29: ='wemwbs data'!P16 -> 727 | P29: ='wemwbs data'!Q16 -> 17032

Sheet wemwbs data (hidden)
A1: F_sex | B1: _NAME_ | C1: Ayrshire & Arran | D1: Borders | E1: Dumfries & Galloway | F1: Fife | G1: Forth Valley | H1: Grampian | I1: Greater Glasgow | J1: Highland | K1: Lanarkshire | L1: Lothian | M1: Orkney | N1: Shetland | O1: Tayside | P1: Western Isles | Q1: Scotland
A2: Male | B2: Mean | C2: 49.53 | D2: 49.793 | E2: 49.588 | F2: 50.18 | G2: 50.614 | H2: 50.87 | I2: 49.48 | J2: 50.9 | K2: 50.12 | L2: 50.25 | M2: 50.216 | N2: 50.765 | O2: 49.2 | P2: 51.275 | Q2: 50.05
A3: Male | B3: LowerCLMean | C3: 48.9 | D3: 48.53 | E3: 48.144 | F3: 49.44 | G3: 49.771 | H3: 50.33 | I3: 48.93 | J3: 50.03 | K3: 49.33 | L3: 49.52 | M3: 49.104 | N3: 49.605 | O3: 48.31 | P3: 50.279 | Q3: 49.82
A4: Male | B4: UpperCLMean | C4: 50.16 | D4: 51.055 | E4: 51.032 | F4: 50.92 | G4: 51.457 | H4: 51.41 | I4: 50.03 | J4: 51.78 | K4: 50.92 | L4: 50.98 | M4: 51.329 | N4: 51.926 | O4: 50.09 | P4: 52.271 | Q4: 50.28
A5: Female | B5: Mean | C5: 48.91 | D5: 50.992 | E5: 48.259 | F5: 49.57 | G5: 50.029 | H5: 50.5 | I5: 49.18 | J5: 51.31 | K5: 49.9 | L5: 50.5 | M5: 50.773 | N5: 51.182 | O5: 49.24 | P5: 51.057 | Q5: 49.85
A6: Female | B6: LowerCLMean | C6: 48.32 | D6: 49.741 | E6: 46.743 | F6: 49.05 | G6: 49.073 | H6: 49.89 | I6: 48.65 | J6: 50.51 | K6: 49.21 | L6: 49.93 | M6: 49.558 | N6: 49.834 | O6: 48.37 | P6: 50.056 | Q6: 49.62
A7: Female | B7: UpperCLMean | C7: 49.5 | D7: 52.243 | E7: 49.775 | F7: 50.09 | G7: 50.984 | H7: 51.12 | I7: 49.7 | J7: 52.12 | K7: 50.59 | L7: 51.08 | M7: 51.988 | N7: 52.531 | O7: 50.11 | P7: 52.057 | Q7: 50.07
A8: Total | B8: Mean | C8: 49.19 | D8: 50.447 | E8: 48.893 | F8: 49.86 | G8: 50.301 | H8: 50.68 | I8: 49.32 | J8: 51.12 | K8: 50.01 | L8: 50.38 | M8: 50.497 | N8: 50.971 | O8: 49.22 | P8: 51.165 | Q8: 49.94
A9: Total | B9: LowerCLMean | C9: 48.72 | D9: 49.525 | E9: 47.66 | F9: 49.4 | G9: 49.682 | H9: 50.2 | I9: 48.9 | J9: 50.45 | K9: 49.44 | L9: 49.9 | M9: 49.587 | N9: 49.935 | O9: 48.52 | P9: 50.359 | Q9: 49.76
A10: Total | B10: UpperCLMean | C10: 49.67 | D10: 51.369 | E10: 50.127 | F10: 50.33 | G10: 50.92 | H10: 51.16 | I10: 49.74 | J10: 51.78 | K10: 50.57 | L10: 50.85 | M10: 51.408 | N10: 52.007 | O10: 49.92 | P10: 51.971 | Q10: 50.12
A11: Male | B11: SumWgt | C11: 564.49 | D11: 164.18 | E11: 220.908 | F11: 558.79 | G11: 438.626 | H11: 890.22 | I11: 1648.05 | J11: 486.53 | K11: 1005.49 | L11: 1358.73 | M11: 37.117 | N11: 37.027 | O11: 636.5 | P11: 40.122 | Q11: 8086.76
A12: Female | B12: SumWgt | C12: 678.97 | D12: 197.129 | E12: 242.183 | F12: 603.93 | G12: 503.965 | H12: 994.95 | I12: 1797.52 | J12: 525.94 | K12: 1122.15 | L12: 1381.68 | M12: 37.81 | N12: 36.037 | O12: 731.66 | P12: 40.694 | Q12: 8894.62
A13: Total | B13: SumWgt | C13: 1243.46 | D13: 361.309 | E13: 463.09 | F13: 1162.72 | G13: 942.59 | H13: 1885.17 | I13: 3445.57 | J13: 1012.47 | K13: 2127.64 | L13: 2740.4 | M13: 74.927 | N13: 73.064 | O13: 1368.15 | P13: 80.816 | Q13: 16981.38
A14: Male | B14: N | C14: 881 | D14: 178 | E14: 186 | F14: 810 | G14: 273 | H14: 1030 | I14: 1170 | J14: 316 | K14: 575 | L14: 831 | M14: 224 | N14: 216 | O14: 442 | P14: 326 | Q14: 7458
A15: Female | B15: N | C15: 1151 | D15: 246 | E15: 225 | F15: 1042 | G15: 376 | H15: 1313 | I15: 1527 | J15: 414 | K15: 780 | L15: 1024 | M15: 262 | N15: 250 | O15: 563 | P15: 401 | Q15: 9574
A16: Total | B16: N | C16: 2032 | D16: 424 | E16: 411 | F16: 1852 | G16: 649 | H16: 2343 | I16: 2697 | J16: 730 | K16: 1355 | L16: 1855 | M16: 486 | N16: 466 | O16: 1005 | P16: 727 | Q16: 17032

Sheet WEMWBS chart
R1: INDEX
C31: Source: Scottish Health Survey
C34: Ayrshire & Arran | D34: Borders | E34: Dumfries & Galloway | F34: Fife | G34: Forth Valley | H34: Grampian | I34: Greater Glasgow & Clyde | J34: Highland | K34: Lanarkshire | L34: Lothian | M34: Orkney | N34: Shetland | O34: Tayside | P34: Western Isles | R34: Scotland
B35: All Adults
B36: Mean | C36: =WEMWBS!B18 -> 49.19 | D36: =WEMWBS!C18 -> 50.447 | E36: =WEMWBS!D18 -> 48.893 | F36: =WEMWBS!E18 -> 49.86 | G36: =WEMWBS!F18 -> 50.301 | H36: =WEMWBS!G18 -> 50.68 | I36: =WEMWBS!H18 -> 49.32 | J36: =WEMWBS!I18 -> 51.12 | K36: =WEMWBS!J18 -> 50.01 | L36: =WEMWBS!K18 -> 50.38 | M36: =WEMWBS!L18 -> 50.497 | N36: =WEMWBS!M18 -> 50.971 | O36: =WEMWBS!N18 -> 49.22 | P36: =WEMWBS!O18 -> 51.165 | R36: =WEMWBS!P18 -> 49.94
B37: Lower CI | C37: =WEMWBS!B19 -> 48.72 | D37: =WEMWBS!C19 -> 49.525 | E37: =WEMWBS!D19 -> 47.66 | F37: =WEMWBS!E19 -> 49.4 | G37: =WEMWBS!F19 -> 49.682 | H37: =WEMWBS!G19 -> 50.2 | I37: =WEMWBS!H19 -> 48.9 | J37: =WEMWBS!I19 -> 50.45 | K37: =WEMWBS!J19 -> 49.44 | L37: =WEMWBS!K19 -> 49.9 | M37: =WEMWBS!L19 -> 49.587 | N37: =WEMWBS!M19 -> 49.935 | O37: =WEMWBS!N19 -> 48.52 | P37: =WEMWBS!O19 -> 50.359 | R37: =WEMWBS!P19 -> 49.76
B38: Upper CI | C38: =WEMWBS!B20 -> 49.67 | D38: =WEMWBS!C20 -> 51.369 | E38: =WEMWBS!D20 -> 50.127 | F38: =WEMWBS!E20 -> 50.33 | G38: =WEMWBS!F20 -> 50.92 | H38: =WEMWBS!G20 -> 51.16 | I38: =WEMWBS!H20 -> 49.74 | J38: =WEMWBS!I20 -> 51.78 | K38: =WEMWBS!J20 -> 50.57 | L38: =WEMWBS!K20 -> 50.85 | M38: =WEMWBS!L20 -> 51.408 | N38: =WEMWBS!M20 -> 52.007 | O38: =WEMWBS!N20 -> 49.92 | P38: =WEMWBS!O20 -> 51.971 | R38: =WEMWBS!P20 -> 50.12
A40: CLs | C40: =C36-C37 -> 0.47 | D40: 0.922 | E40: 1.233 | F40: 0.46 | G40: 0.619 | H40: 0.48 | I40: 0.42 | J40: 0.67 | K40: 0.57 | L40: 0.48 | M40: 0.91 | N40: 1.036 | O40: 0.7 | P40: 0.806 | R40: =R36-R37 -> 0.18

Sheet GHQ-12 scores
A1: General Health Questionnaire (GHQ-12) scores, by NHS Board and sex | M1: INDEX
A4: Aged 16 and over | P4: 2013/2014/2015/2016 combined
A5: GHQ-12 scores | B5: NHS Board
B6: Ayrshire & Arran | C6: Borders | D6: Dumfries & Galloway | E6: Fife | F6: Forth Valley | G6: Grampian | H6: Greater Glasgow & Clyde | I6: Highland | J6: Lanarkshire | K6: Lothian | L6: Orkney | M6: Shetland | N6: Tayside | O6: Western Isles | P6: Scotland
B7: % | C7: % | D7: % | E7: % | F7: % | G7: % | H7: % | I7: % | J7: % | K7: % | L7: % | M7: % | N7: % | O7: % | P7: %
A8: Men
A9: Score 0 | B9: ='GHQ data'!D2 -> 66.08 | C9: ='GHQ data'!E2 -> 62.019 | D9: ='GHQ data'!F2 -> 63.39 | E9: ='GHQ data'!G2 -> 67.15 | F9: ='GHQ data'!H2 -> 62.527 | G9: ='GHQ data'!I2 -> 68.74 | H9: ='GHQ data'!J2 -> 61.72 | I9: ='GHQ data'!K2 -> 69.55 | J9: ='GHQ data'!L2 -> 64.59 | K9: ='GHQ data'!M2 -> 63.88 | L9: ='GHQ data'!N2 -> 64.913 | M9: ='GHQ data'!O2 -> 72.328 | N9: ='GHQ data'!P2 -> 61.33 | O9: ='GHQ data'!Q2 -> 68.577 | P9: ='GHQ data'!R2 -> 64.52
A10: Lower CI | B10: ='GHQ data'!D3 -> 62.77 | C10: ='GHQ data'!E3 -> 54.026 | D10: ='GHQ data'!F3 -> 55.493 | E10: ='GHQ data'!G3 -> 63.16 | F10: ='GHQ data'!H3 -> 56.718 | G10: ='GHQ data'!I3 -> 65.73 | H10: ='GHQ data'!J3 -> 58.26 | I10: ='GHQ data'!K3 -> 63.44 | J10: ='GHQ data'!L3 -> 60.19 | K10: ='GHQ data'!M3 -> 60.2 | L10: ='GHQ data'!N3 -> 58.784 | M10: ='GHQ data'!O3 -> 65.555 | N10: ='GHQ data'!P3 -> 56.6 | O10: ='GHQ data'!Q3 -> 62.668 | P10: ='GHQ data'!R3 -> 63.17
A11: Upper CI | B11: ='GHQ data'!D4 -> 69.4 | C11: ='GHQ data'!E4 -> 70.012 | D11: ='GHQ data'!F4 -> 71.288 | E11: ='GHQ data'!G4 -> 71.15 | F11: ='GHQ data'!H4 -> 68.336 | G11: ='GHQ data'!I4 -> 71.76 | H11: ='GHQ data'!J4 -> 65.18 | I11: ='GHQ data'!K4 -> 75.66 | J11: ='GHQ data'!L4 -> 68.99 | K11: ='GHQ data'!M4 -> 67.56 | L11: ='GHQ data'!N4 -> 71.043 | M11: ='GHQ data'!O4 -> 79.101 | N11: ='GHQ data'!P4 -> 66.05 | O11: ='GHQ data'!Q4 -> 74.485 | P11: ='GHQ data'!R4 -> 65.87
A12: Score 1-3 | B12: ='GHQ data'!D5 -> 19.26 | C12: ='GHQ data'!E5 -> 20.073 | D12: ='GHQ data'!F5 -> 21.786 | E12: ='GHQ data'!G5 -> 19.56 | F12: ='GHQ data'!H5 -> 27.559 | G12: ='GHQ data'!I5 -> 22.25 | H12: ='GHQ data'!J5 -> 22.92 | I12: ='GHQ data'!K5 -> 18.63 | J12: ='GHQ data'!L5 -> 19.7 | K12: ='GHQ data'!M5 -> 22.28 | L12: ='GHQ data'!N5 -> 24.461 | M12: ='GHQ data'!O5 -> 19.964 | N12: ='GHQ data'!P5 -> 24.46 | O12: ='GHQ data'!Q5 -> 19.093 | P12: ='GHQ data'!R5 -> 21.85
A13: Lower CI | B13: ='GHQ data'!D6 -> 16.74 | C13: ='GHQ data'!E6 -> 12.868 | D13: ='GHQ data'!F6 -> 14.93 | E13: ='GHQ data'!G6 -> 16.52 | F13: ='GHQ data'!H6 -> 22.006 | G13: ='GHQ data'!I6 -> 19.68 | H13: ='GHQ data'!J6 -> 20.01 | I13: ='GHQ data'!K6 -> 13.73 | J13: ='GHQ data'!L6 -> 16.03 | K13: ='GHQ data'!M6 -> 19.16 | L13: ='GHQ data'!N6 -> 18.593 | M13: ='GHQ data'!O6 -> 14.49 | N13: ='GHQ data'!P6 -> 20.27 | O13: ='GHQ data'!Q6 -> 14.282 | P13: ='GHQ data'!R6 -> 20.66
A14: Upper CI | B14: ='GHQ data'!D7 -> 21.78 | C14: ='GHQ data'!E7 -> 27.278 | D14: ='GHQ data'!F7 -> 28.643 | E14: ='GHQ data'!G7 -> 22.6 | F14: ='GHQ data'!H7 -> 33.112 | G14: ='GHQ data'!I7 -> 24.82 | H14: ='GHQ data'!J7 -> 25.83 | I14: ='GHQ data'!K7 -> 23.53 | J14: ='GHQ data'!L7 -> 23.37 | K14: ='GHQ data'!M7 -> 25.39 | L14: ='GHQ data'!N7 -> 30.328 | M14: ='GHQ data'!O7 -> 25.437 | N14: ='GHQ data'!P7 -> 28.64 | O14: ='GHQ data'!Q7 -> 23.904 | P14: ='GHQ data'!R7 -> 23.04
A15: Score 4+ | B15: ='GHQ data'!D8 -> 14.66 | C15: ='GHQ data'!E8 -> 17.908 | D15: ='GHQ data'!F8 -> 14.823 | E15: ='GHQ data'!G8 -> 13.29 | F15: ='GHQ data'!H8 -> 9.914 | G15: ='GHQ data'!I8 -> 9.01 | H15: ='GHQ data'!J8 -> 15.36 | I15: ='GHQ data'!K8 -> 11.82 | J15: ='GHQ data'!L8 -> 15.71 | K15: ='GHQ data'!M8 -> 13.84 | L15: ='GHQ data'!N8 -> 10.626 | M15: ='GHQ data'!O8 -> 7.708 | N15: ='GHQ data'!P8 -> 14.22 | O15: ='GHQ data'!Q8 -> 12.33 | P15: ='GHQ data'!R8 -> 13.63
A16: Lower CI | B16: ='GHQ data'!D9 -> 11.74 | C16: ='GHQ data'!E9 -> 10.183 | D16: ='GHQ data'!F9 -> 8.599 | E16: ='GHQ data'!G9 -> 10.71 | F16: ='GHQ data'!H9 -> 6.221 | G16: ='GHQ data'!I9 -> 7.3 | H16: ='GHQ data'!J9 -> 13.02 | I16: ='GHQ data'!K9 -> 7.97 | J16: ='GHQ data'!L9 -> 12.39 | K16: ='GHQ data'!M9 -> 11.16 | L16: ='GHQ data'!N9 -> 7.176 | M16: ='GHQ data'!O9 -> 4.712 | N16: ='GHQ data'!P9 -> 10.93 | O16: ='GHQ data'!Q9 -> 7.346 | P16: ='GHQ data'!R9 -> 12.68
A17: Upper CI | B17: ='GHQ data'!D10 -> 17.57 | C17: ='GHQ data'!E10 -> 25.632 | D17: ='GHQ data'!F10 -> 21.048 | E17: ='GHQ data'!G10 -> 15.87 | F17: ='GHQ data'!H10 -> 13.606 | G17: ='GHQ data'!I10 -> 10.72 | H17: ='GHQ data'!J10 -> 17.7 | I17: ='GHQ data'!K10 -> 15.67 | J17: ='GHQ data'!L10 -> 19.02 | K17: ='GHQ data'!M10 -> 16.53 | L17: ='GHQ data'!N10 -> 14.076 | M17: ='GHQ data'!O10 -> 10.704 | N17: ='GHQ data'!P10 -> 17.5 | O17: ='GHQ data'!Q10 -> 17.314 | P17: ='GHQ data'!R10 -> 14.57
A19: Women
A20: Score 0 | B20: ='GHQ data'!D11 -> 56.6 | C20: ='GHQ data'!E11 -> 59.814 | D20: ='GHQ data'!F11 -> 59.637 | E20: ='GHQ data'!G11 -> 57.62 | F20: ='GHQ data'!H11 -> 58.246 | G20: ='GHQ data'!I11 -> 58.08 | H20: ='GHQ data'!J11 -> 52.79 | I20: ='GHQ data'!K11 -> 61.72 | J20: ='GHQ data'!L11 -> 59.69 | K20: ='GHQ data'!M11 -> 56.68 | L20: ='GHQ data'!N11 -> 62.841 | M20: ='GHQ data'!O11 -> 59.818 | N20: ='GHQ data'!P11 -> 56.56 | O20: ='GHQ data'!Q11 -> 67.274 | P20: ='GHQ data'!R11 -> 57.1
A21: Lower CI | B21: ='GHQ data'!D12 -> 53.59 | C21: ='GHQ data'!E12 -> 53.122 | D21: ='GHQ data'!F12 -> 53.504 | E21: ='GHQ data'!G12 -> 54.13 | F21: ='GHQ data'!H12 -> 53.156 | G21: ='GHQ data'!I12 -> 55.09 | H21: ='GHQ data'!J12 -> 50.03 | I21: ='GHQ data'!K12 -> 56.48 | J21: ='GHQ data'!L12 -> 56.08 | K21: ='GHQ data'!M12 -> 53.27 | L21: ='GHQ data'!N12 -> 55.797 | M21: ='GHQ data'!O12 -> 53.228 | N21: ='GHQ data'!P12 -> 52.35 | O21: ='GHQ data'!Q12 -> 62.252 | P21: ='GHQ data'!R12 -> 55.93
A22: Upper CI | B22: ='GHQ data'!D13 -> 59.62 | C22: ='GHQ data'!E13 -> 66.507 | D22: ='GHQ data'!F13 -> 65.77 | E22: ='GHQ data'!G13 -> 61.12 | F22: ='GHQ data'!H13 -> 63.335 | G22: ='GHQ data'!I13 -> 61.06 | H22: ='GHQ data'!J13 -> 55.54 | I22: ='GHQ data'!K13 -> 66.96 | J22: ='GHQ data'!L13 -> 63.31 | K22: ='GHQ data'!M13 -> 60.09 | L22: ='GHQ data'!N13 -> 69.885 | M22: ='GHQ data'!O13 -> 66.407 | N22: ='GHQ data'!P13 -> 60.78 | O22: ='GHQ data'!Q13 -> 72.296 | P22: ='GHQ data'!R13 -> 58.27
A23: Score 1-3 | B23: ='GHQ data'!D14 -> 25.47 | C23: ='GHQ data'!E14 -> 22.34 | D23: ='GHQ data'!F14 -> 24.738 | E23: ='GHQ data'!G14 -> 26.05 | F23: ='GHQ data'!H14 -> 25.28 | G23: ='GHQ data'!I14 -> 27.1 | H23: ='GHQ data'!J14 -> 26.44 | I23: ='GHQ data'!K14 -> 19.5 | J23: ='GHQ data'!L14 -> 24.31 | K23: ='GHQ data'!M14 -> 27.87 | L23: ='GHQ data'!N14 -> 24.692 | M23: ='GHQ data'!O14 -> 23.213 | N23: ='GHQ data'!P14 -> 26.27 | O23: ='GHQ data'!Q14 -> 19.316 | P23: ='GHQ data'!R14 -> 25.68
A24: Lower CI | B24: ='GHQ data'!D15 -> 22.94 | C24: ='GHQ data'!E15 -> 16.658 | D24: ='GHQ data'!F15 -> 19.907 | E24: ='GHQ data'!G15 -> 23.29 | F24: ='GHQ data'!H15 -> 20.665 | G24: ='GHQ data'!I15 -> 24.69 | H24: ='GHQ data'!J15 -> 24.22 | I24: ='GHQ data'!K15 -> 14.83 | J24: ='GHQ data'!L15 -> 20.89 | K24: ='GHQ data'!M15 -> 24.73 | L24: ='GHQ data'!N15 -> 18.9 | M24: ='GHQ data'!O15 -> 18.498 | N24: ='GHQ data'!P15 -> 22.54 | O24: ='GHQ data'!Q15 -> 15.163 | P24: ='GHQ data'!R15 -> 24.64
A25: Upper CI | B25: ='GHQ data'!D16 -> 28 | C25: ='GHQ data'!E16 -> 28.021 | D25: ='GHQ data'!F16 -> 29.568 | E25: ='GHQ data'!G16 -> 28.8 | F25: ='GHQ data'!H16 -> 29.895 | G25: ='GHQ data'!I16 -> 29.5 | H25: ='GHQ data'!J16 -> 28.67 | I25: ='GHQ data'!K16 -> 24.17 | J25: ='GHQ data'!L16 -> 27.73 | K25: ='GHQ data'!M16 -> 31 | L25: ='GHQ data'!N16 -> 30.483 | M25: ='GHQ data'!O16 -> 27.927 | N25: ='GHQ data'!P16 -> 30 | O25: ='GHQ data'!Q16 -> 23.47 | P25: ='GHQ data'!R16 -> 26.73
A26: Score 4+ | B26: ='GHQ data'!D17 -> 17.93 | C26: ='GHQ data'!E17 -> 17.846 | D26: ='GHQ data'!F17 -> 15.626 | E26: ='GHQ data'!G17 -> 16.33 | F26: ='GHQ data'!H17 -> 16.474 | G26: ='GHQ data'!I17 -> 14.82 | H26: ='GHQ data'!J17 -> 20.77 | I26: ='GHQ data'!K17 -> 18.78 | J26: ='GHQ data'!L17 -> 16 | K26: ='GHQ data'!M17 -> 15.45 | L26: ='GHQ data'!N17 -> 12.467 | M26: ='GHQ data'!O17 -> 16.97 | N26: ='GHQ data'!P17 -> 17.17 | O26: ='GHQ data'!Q17 -> 13.41 | P26: ='GHQ data'!R17 -> 17.22
A27: Lower CI | B27: ='GHQ data'!D18 -> 15.79 | C27: ='GHQ data'!E18 -> 13.817 | D27: ='GHQ data'!F18 -> 9.624 | E27: ='GHQ data'!G18 -> 14.09 | F27: ='GHQ data'!H18 -> 12.433 | G27: ='GHQ data'!I18 -> 12.54 | H27: ='GHQ data'!J18 -> 18.59 | I27: ='GHQ data'!K18 -> 15.09 | J27: ='GHQ data'!L18 -> 13.08 | K27: ='GHQ data'!M18 -> 12.88 | L27: ='GHQ data'!N18 -> 7.471 | M27: ='GHQ data'!O18 -> 11.57 | N27: ='GHQ data'!P18 -> 13.73 | O27: ='GHQ data'!Q18 -> 10.145 | P27: ='GHQ data'!R18 -> 16.31
A28: Upper CI | B28: ='GHQ data'!D19 -> 20.07 | C28: ='GHQ data'!E19 -> 21.876 | D28: ='GHQ data'!F19 -> 21.627 | E28: ='GHQ data'!G19 -> 18.57 | F28: ='GHQ data'!H19 -> 20.515 | G28: ='GHQ data'!I19 -> 17.11 | H28: ='GHQ data'!J19 -> 22.94 | I28: ='GHQ data'!K19 -> 22.47 | J28: ='GHQ data'!L19 -> 18.92 | K28: ='GHQ data'!M19 -> 18.03 | L28: ='GHQ data'!N19 -> 17.464 | M28: ='GHQ data'!O19 -> 22.369 | N28: ='GHQ data'!P19 -> 20.6 | O28: ='GHQ data'!Q19 -> 16.674 | P28: ='GHQ data'!R19 -> 18.12
A30: All Adults
A31: Score 0 | B31: ='GHQ data'!D20 -> 60.95 | C31: ='GHQ data'!E20 -> 60.795 | D31: ='GHQ data'!F20 -> 61.423 | E31: ='GHQ data'!G20 -> 62.19 | F31: ='GHQ data'!H20 -> 60.221 | G31: ='GHQ data'!I20 -> 63.12 | H31: ='GHQ data'!J20 -> 57.05 | I31: ='GHQ data'!K20 -> 65.47 | J31: ='GHQ data'!L20 -> 62.01 | K31: ='GHQ data'!M20 -> 60.27 | L31: ='GHQ data'!N20 -> 63.873 | M31: ='GHQ data'!O20 -> 66.099 | N31: ='GHQ data'!P20 -> 58.79 | O31: ='GHQ data'!Q20 -> 67.919 | P31: ='GHQ data'!R20 -> 60.64
A32: Lower CI | B32: ='GHQ data'!D21 -> 58.46 | C32: ='GHQ data'!E21 -> 55.872 | D32: ='GHQ data'!F21 -> 56.249 | E32: ='GHQ data'!G21 -> 59.33 | F32: ='GHQ data'!H21 -> 56.081 | G32: ='GHQ data'!I21 -> 60.75 | H32: ='GHQ data'!J21 -> 54.56 | I32: ='GHQ data'!K21 -> 61 | J32: ='GHQ data'!L21 -> 58.9 | K32: ='GHQ data'!M21 -> 57.43 | L32: ='GHQ data'!N21 -> 59.806 | M32: ='GHQ data'!O21 -> 60.552 | N32: ='GHQ data'!P21 -> 55.33 | O32: ='GHQ data'!Q21 -> 64.044 | P32: ='GHQ data'!R21 -> 59.63
A33: Upper CI | B33: ='GHQ data'!D22 -> 63.44 | C33: ='GHQ data'!E22 -> 65.719 | D33: ='GHQ data'!F22 -> 66.597 | E33: ='GHQ data'!G22 -> 65.05 | F33: ='GHQ data'!H22 -> 64.36 | G33: ='GHQ data'!I22 -> 65.49 | H33: ='GHQ data'!J22 -> 59.54 | I33: ='GHQ data'!K22 -> 69.94 | J33: ='GHQ data'!L22 -> 65.12 | K33: ='GHQ data'!M22 -> 63.11 | L33: ='GHQ data'!N22 -> 67.941 | M33: ='GHQ data'!O22 -> 71.646 | N33: ='GHQ data'!P22 -> 62.25 | O33: ='GHQ data'!Q22 -> 71.794 | P33: ='GHQ data'!R22 -> 61.64
A34: Score 1-3 | B34: ='GHQ data'!D23 -> 22.62 | C34: ='GHQ data'!E23 -> 21.332 | D34: ='GHQ data'!F23 -> 23.333 | E34: ='GHQ data'!G23 -> 22.94 | F34: ='GHQ data'!H23 -> 26.332 | G34: ='GHQ data'!I23 -> 24.8 | H34: ='GHQ data'!J23 -> 24.76 | I34: ='GHQ data'!K23 -> 19.08 | J34: ='GHQ data'!L23 -> 22.13 | K34: ='GHQ data'!M23 -> 25.08 | L34: ='GHQ data'!N23 -> 24.577 | M34: ='GHQ data'!O23 -> 21.581 | N34: ='GHQ data'!P23 -> 25.42 | O34: ='GHQ data'!Q23 -> 19.206 | P34: ='GHQ data'!R23 -> 23.86
A35: Lower CI | B35: ='GHQ data'!D24 -> 20.82 | C35: ='GHQ data'!E24 -> 16.83 | D35: ='GHQ data'!F24 -> 19.266 | E35: ='GHQ data'!G24 -> 20.82 | F35: ='GHQ data'!H24 -> 22.478 | G35: ='GHQ data'!I24 -> 23.01 | H35: ='GHQ data'!J24 -> 22.73 | I35: ='GHQ data'!K24 -> 15.77 | J35: ='GHQ data'!L24 -> 19.34 | K35: ='GHQ data'!M24 -> 22.66 | L35: ='GHQ data'!N24 -> 20.473 | M35: ='GHQ data'!O24 -> 17.793 | N35: ='GHQ data'!P24 -> 22.65 | O35: ='GHQ data'!Q24 -> 16.273 | P35: ='GHQ data'!R24 -> 23
A36: Upper CI | B36: ='GHQ data'!D25 -> 24.43 | C36: ='GHQ data'!E25 -> 25.834 | D36: ='GHQ data'!F25 -> 27.4 | E36: ='GHQ data'!G25 -> 25.05 | F36: ='GHQ data'!H25 -> 30.185 | G36: ='GHQ data'!I25 -> 26.59 | H36: ='GHQ data'!J25 -> 26.79 | I36: ='GHQ data'!K25 -> 22.4 | J36: ='GHQ data'!L25 -> 24.92 | K36: ='GHQ data'!M25 -> 27.49 | L36: ='GHQ data'!N25 -> 28.68 | M36: ='GHQ data'!O25 -> 25.37 | N36: ='GHQ data'!P25 -> 28.2 | O36: ='GHQ data'!Q25 -> 22.138 | P36: ='GHQ data'!R25 -> 24.71
A37: Score 4+ | B37: ='GHQ data'!D26 -> 16.43 | C37: ='GHQ data'!E26 -> 17.873 | D37: ='GHQ data'!F26 -> 15.244 | E37: ='GHQ data'!G26 -> 14.87 | F37: ='GHQ data'!H26 -> 13.448 | G37: ='GHQ data'!I26 -> 12.07 | H37: ='GHQ data'!J26 -> 18.19 | I37: ='GHQ data'!K26 -> 15.45 | J37: ='GHQ data'!L26 -> 15.86 | K37: ='GHQ data'!M26 -> 14.65 | L37: ='GHQ data'!N26 -> 11.55 | M37: ='GHQ data'!O26 -> 12.319 | N37: ='GHQ data'!P26 -> 15.79 | O37: ='GHQ data'!Q26 -> 12.875 | P37: ='GHQ data'!R26 -> 15.51
A38: Lower CI | B38: ='GHQ data'!D27 -> 14.46 | C38: ='GHQ data'!E27 -> 13.478 | D38: ='GHQ data'!F27 -> 10.585 | E38: ='GHQ data'!G27 -> 13.1 | F38: ='GHQ data'!H27 -> 10.679 | G38: ='GHQ data'!I27 -> 10.58 | H38: ='GHQ data'!J27 -> 16.49 | I38: ='GHQ data'!K27 -> 12.45 | J38: ='GHQ data'!L27 -> 13.53 | K38: ='GHQ data'!M27 -> 12.69 | L38: ='GHQ data'!N27 -> 8.203 | M38: ='GHQ data'!O27 -> 8.683 | N38: ='GHQ data'!P27 -> 13.18 | O38: ='GHQ data'!Q27 -> 9.95 | P38: ='GHQ data'!R27 -> 14.81
A39: Upper CI | B39: ='GHQ data'!D28 -> 18.39 | C39: ='GHQ data'!E28 -> 22.269 | D39: ='GHQ data'!F28 -> 19.903 | E39: ='GHQ data'!G28 -> 16.64 | F39: ='GHQ data'!H28 -> 16.216 | G39: ='GHQ data'!I28 -> 13.56 | H39: ='GHQ data'!J28 -> 19.89 | I39: ='GHQ data'!K28 -> 18.44 | J39: ='GHQ data'!L28 -> 18.19 | K39: ='GHQ data'!M28 -> 16.61 | L39: ='GHQ data'!N28 -> 14.897 | M39: ='GHQ data'!O28 -> 15.956 | N39: ='GHQ data'!P28 -> 18.4 | O39: ='GHQ data'!Q28 -> 15.801 | P39: ='GHQ data'!R28 -> 16.2
A42: Bases (weighted):
A43: Men | B43: ='GHQ data'!D29 -> 571.78 | C43: ='GHQ data'!E29 -> 160.018 | D43: ='GHQ data'!F29 -> 223.747 | E43: ='GHQ data'!G29 -> 557.65 | F43: ='GHQ data'!H29 -> 440.389 | G43: ='GHQ data'!I29 -> 892.35 | H43: ='GHQ data'!J29 -> 1655.3 | I43: ='GHQ data'!K29 -> 486.27 | J43: ='GHQ data'!L29 -> 1013.3 | K43: ='GHQ data'!M29 -> 1378.63 | L43: ='GHQ data'!N29 -> 37.117 | M43: ='GHQ data'!O29 -> 36.654 | N43: ='GHQ data'!P29 -> 643.71 | O43: ='GHQ data'!Q29 -> 40.497 | P43: ='GHQ data'!R29 -> 8137.42
A44: Women | B44: ='GHQ data'!D30 -> 675.88 | C44: ='GHQ data'!E30 -> 199.713 | D44: ='GHQ data'!F30 -> 246.477 | E44: ='GHQ data'!G30 -> 605.39 | F44: ='GHQ data'!H30 -> 514.325 | G44: ='GHQ data'!I30 -> 994.61 | H44: ='GHQ data'!J30 -> 1814.53 | I44: ='GHQ data'!K30 -> 528.86 | J44: ='GHQ data'!L30 -> 1130.27 | K44: ='GHQ data'!M30 -> 1382.97 | L44: ='GHQ data'!N30 -> 37.401 | M44: ='GHQ data'!O30 -> 36.349 | N44: ='GHQ data'!P30 -> 732.75 | O44: ='GHQ data'!Q30 -> 41.297 | P44: ='GHQ data'!R30 -> 8940.83
A45: All Adults | B45: ='GHQ data'!D31 -> 1247.66 | C45: ='GHQ data'!E31 -> 359.732 | D45: ='GHQ data'!F31 -> 470.223 | E45: ='GHQ data'!G31 -> 1163.04 | F45: ='GHQ data'!H31 -> 954.714 | G45: ='GHQ data'!I31 -> 1886.96 | H45: ='GHQ data'!J31 -> 3469.83 | I45: ='GHQ data'!K31 -> 1015.14 | J45: ='GHQ data'!L31 -> 2143.57 | K45: ='GHQ data'!M31 -> 2761.6 | L45: ='GHQ data'!N31 -> 74.518 | M45: ='GHQ data'!O31 -> 73.003 | N45: ='GHQ data'!P31 -> 1376.47 | O45: ='GHQ data'!Q31 -> 81.794 | P45: ='GHQ data'!R31 -> 17078.25
A46: Bases (unweighted)
A47: Men | B47: ='GHQ data'!D32 -> 891 | C47: ='GHQ data'!E32 -> 175 | D47: ='GHQ data'!F32 -> 188 | E47: ='GHQ data'!G32 -> 808 | F47: ='GHQ data'!H32 -> 274 | G47: ='GHQ data'!I32 -> 1034 | H47: ='GHQ data'!J32 -> 1175 | I47: ='GHQ data'!K32 -> 316 | J47: ='GHQ data'!L32 -> 583 | K47: ='GHQ data'!M32 -> 845 | L47: ='GHQ data'!N32 -> 224 | M47: ='GHQ data'!O32 -> 214 | N47: ='GHQ data'!P32 -> 447 | O47: ='GHQ data'!Q32 -> 331 | P47: ='GHQ data'!R32 -> 7505
A48: Women | B48: ='GHQ data'!D33 -> 1148 | C48: ='GHQ data'!E33 -> 249 | D48: ='GHQ data'!F33 -> 230 | E48: ='GHQ data'!G33 -> 1045 | F48: ='GHQ data'!H33 -> 383 | G48: ='GHQ data'!I33 -> 1315 | H48: ='GHQ data'!J33 -> 1544 | I48: ='GHQ data'!K33 -> 418 | J48: ='GHQ data'!L33 -> 791 | K48: ='GHQ data'!M33 -> 1024 | L48: ='GHQ data'!N33 -> 260 | M48: ='GHQ data'!O33 -> 251 | N48: ='GHQ data'!P33 -> 564 | O48: ='GHQ data'!Q33 -> 407 | P48: ='GHQ data'!R33 -> 9629
A49: All Adults | B49: ='GHQ data'!D34 -> 2039 | C49: ='GHQ data'!E34 -> 424 | D49: ='GHQ data'!F34 -> 418 | E49: ='GHQ data'!G34 -> 1853 | F49: ='GHQ data'!H34 -> 657 | G49: ='GHQ data'!I34 -> 2349 | H49: ='GHQ data'!J34 -> 2719 | I49: ='GHQ data'!K34 -> 734 | J49: ='GHQ data'!L34 -> 1374 | K49: ='GHQ data'!M34 -> 1869 | L49: ='GHQ data'!N34 -> 484 | M49: ='GHQ data'!O34 -> 465 | N49: ='GHQ data'!P34 -> 1011 | O49: ='GHQ data'!Q34 -> 738 | P49: ='GHQ data'!R34 -> 17134

Sheet GHQ data (hidden)
A1: F_sex | B1: F_ghqg2 | C1: _NAME_ | D1: Ayrshire & Arran | E1: Borders | F1: Dumfries & Galloway | G1: Fife | H1: Forth Valley | I1: Grampian | J1: Greater Glasgow | K1: Highland | L1: Lanarkshire | M1: Lothian | N1: Orkney | O1: Shetland | P1: Tayside | Q1: Western Isles | R1: Scotland
A2: Male | B2: Score 0 | C2: RowPercent | D2: 66.08 | E2: 62.019 | F2: 63.39 | G2: 67.15 | H2: 62.527 | I2: 68.74 | J2: 61.72 | K2: 69.55 | L2: 64.59 | M2: 63.88 | N2: 64.913 | O2: 72.328 | P2: 61.33 | Q2: 68.577 | R2: 64.52
A3: Male | B3: Score 0 | C3: RowLowerCL | D3: 62.77 | E3: 54.026 | F3: 55.493 | G3: 63.16 | H3: 56.718 | I3: 65.73 | J3: 58.26 | K3: 63.44 | L3: 60.19 | M3: 60.2 | N3: 58.784 | O3: 65.555 | P3: 56.6 | Q3: 62.668 | R3: 63.17
A4: Male | B4: Score 0 | C4: RowUpperCL | D4: 69.4 | E4: 70.012 | F4: 71.288 | G4: 71.15 | H4: 68.336 | I4: 71.76 | J4: 65.18 | K4: 75.66 | L4: 68.99 | M4: 67.56 | N4: 71.043 | O4: 79.101 | P4: 66.05 | Q4: 74.485 | R4: 65.87
A5: Male | B5: Score 1-3 | C5: RowPercent | D5: 19.26 | E5: 20.073 | F5: 21.786 | G5: 19.56 | H5: 27.559 | I5: 22.25 | J5: 22.92 | K5: 18.63 | L5: 19.7 | M5: 22.28 | N5: 24.461 | O5: 19.964 | P5: 24.46 | Q5: 19.093 | R5: 21.85
A6: Male | B6: Score 1-3 | C6: RowLowerCL | D6: 16.74 | E6: 12.868 | F6: 14.93 | G6: 16.52 | H6: 22.006 | I6: 19.68 | J6: 20.01 | K6: 13.73 | L6: 16.03 | M6: 19.16 | N6: 18.593 | O6: 14.49 | P6: 20.27 | Q6: 14.282 | R6: 20.66
A7: Male | B7: Score 1-3 | C7: RowUpperCL | D7: 21.78 | E7: 27.278 | F7: 28.643 | G7: 22.6 | H7: 33.112 | I7: 24.82 | J7: 25.83 | K7: 23.53 | L7: 23.37 | M7: 25.39 | N7: 30.328 | O7: 25.437 | P7: 28.64 | Q7: 23.904 | R7: 23.04
A8: Male | B8: Score 4+ | C8: RowPercent | D8: 14.66 | E8: 17.908 | F8: 14.823 | G8: 13.29 | H8: 9.914 | I8: 9.01 | J8: 15.36 | K8: 11.82 | L8: 15.71 | M8: 13.84 | N8: 10.626 | O8: 7.708 | P8: 14.22 | Q8: 12.33 | R8: 13.63
A9: Male | B9: Score 4+ | C9: RowLowerCL | D9: 11.74 | E9: 10.183 | F9: 8.599 | G9: 10.71 | H9: 6.221 | I9: 7.3 | J9: 13.02 | K9: 7.97 | L9: 12.39 | M9: 11.16 | N9: 7.176 | O9: 4.712 | P9: 10.93 | Q9: 7.346 | R9: 12.68
A10: Male | B10: Score 4+ | C10: RowUpperCL | D10: 17.57 | E10: 25.632 | F10: 21.048 | G10: 15.87 | H10: 13.606 | I10: 10.72 | J10: 17.7 | K10: 15.67 | L10: 19.02 | M10: 16.53 | N10: 14.076 | O10: 10.704 | P10: 17.5 | Q10: 17.314 | R10: 14.57
A11: Female | B11: Score 0 | C11: RowPercent | D11: 56.6 | E11: 59.814 | F11: 59.637 | G11: 57.62 | H11: 58.246 | I11: 58.08 | J11: 52.79 | K11: 61.72 | L11: 59.69 | M11: 56.68 | N11: 62.841 | O11: 59.818 | P11: 56.56 | Q11: 67.274 | R11: 57.1
A12: Female | B12: Score 0 | C12: RowLowerCL | D12: 53.59 | E12: 53.122 | F12: 53.504 | G12: 54.13 | H12: 53.156 | I12: 55.09 | J12: 50.03 | K12: 56.48 | L12: 56.08 | M12: 53.27 | N12: 55.797 | O12: 53.228 | P12: 52.35 | Q12: 62.252 | R12: 55.93
A13: Female | B13: Score 0 | C13: RowUpperCL | D13: 59.62 | E13: 66.507 | F13: 65.77 | G13: 61.12 | H13: 63.335 | I13: 61.06 | J13: 55.54 | K13: 66.96 | L13: 63.31 | M13: 60.09 | N13: 69.885 | O13: 66.407 | P13: 60.78 | Q13: 72.296 | R13: 58.27
A14: Female | B14: Score 1-3 | C14: RowPercent | D14: 25.47 | E14: 22.34 | F14: 24.738 | G14: 26.05 | H14: 25.28 | I14: 27.1 | J14: 26.44 | K14: 19.5 | L14: 24.31 | M14: 27.87 | N14: 24.692 | O14: 23.213 | P14: 26.27 | Q14: 19.316 | R14: 25.68
A15: Female | B15: Score 1-3 | C15: RowLowerCL | D15: 22.94 | E15: 16.658 | F15: 19.907 | G15: 23.29 | H15: 20.665 | I15: 24.69 | J15: 24.22 | K15: 14.83 | L15: 20.89 | M15: 24.73 | N15: 18.9 | O15: 18.498 | P15: 22.54 | Q15: 15.163 | R15: 24.64
A16: Female | B16: Score 1-3 | C16: RowUpperCL | D16: 28 | E16: 28.021 | F16: 29.568 | G16: 28.8 | H16: 29.895 | I16: 29.5 | J16: 28.67 | K16: 24.17 | L16: 27.73 | M16: 31 | N16: 30.483 | O16: 27.927 | P16: 30 | Q16: 23.47 | R16: 26.73
A17: Female | B17: Score 4+ | C17: RowPercent | D17: 17.93 | E17: 17.846 | F17: 15.626 | G17: 16.33 | H17: 16.474 | I17: 14.82 | J17: 20.77 | K17: 18.78 | L17: 16 | M17: 15.45 | N17: 12.467 | O17: 16.97 | P17: 17.17 | Q17: 13.41 | R17: 17.22
A18: Female | B18: Score 4+ | C18: RowLowerCL | D18: 15.79 | E18: 13.817 | F18: 9.624 | G18: 14.09 | H18: 12.433 | I18: 12.54 | J18: 18.59 | K18: 15.09 | L18: 13.08 | M18: 12.88 | N18: 7.471 | O18: 11.57 | P18: 13.73 | Q18: 10.145 | R18: 16.31
A19: Female | B19: Score 4+ | C19: RowUpperCL | D19: 20.07 | E19: 21.876 | F19: 21.627 | G19: 18.57 | H19: 20.515 | I19: 17.11 | J19: 22.94 | K19: 22.47 | L19: 18.92 | M19: 18.03 | N19: 17.464 | O19: 22.369 | P19: 20.6 | Q19: 16.674 | R19: 18.12
A20: Total | B20: Score 0 | C20: RowPercent | D20: 60.95 | E20: 60.795 | F20: 61.423 | G20: 62.19 | H20: 60.221 | I20: 63.12 | J20: 57.05 | K20: 65.47 | L20: 62.01 | M20: 60.27 | N20: 63.873 | O20: 66.099 | P20: 58.79 | Q20: 67.919 | R20: 60.64
A21: Total | B21: Score 0 | C21: RowLowerCL | D21: 58.46 | E21: 55.872 | F21: 56.249 | G21: 59.33 | H21: 56.081 | I21: 60.75 | J21: 54.56 | K21: 61 | L21: 58.9 | M21: 57.43 | N21: 59.806 | O21: 60.552 | P21: 55.33 | Q21: 64.044 | R21: 59.63
A22: Total | B22: Score 0 | C22: RowUpperCL | D22: 63.44 | E22: 65.719 | F22: 66.597 | G22: 65.05 | H22: 64.36 | I22: 65.49 | J22: 59.54 | K22: 69.94 | L22: 65.12 | M22: 63.11 | N22: 67.941 | O22: 71.646 | P22: 62.25 | Q22: 71.794 | R22: 61.64
A23: Total | B23: Score 1-3 | C23: RowPercent | D23: 22.62 | E23: 21.332 | F23: 23.333 | G23: 22.94 | H23: 26.332 | I23: 24.8 | J23: 24.76 | K23: 19.08 | L23: 22.13 | M23: 25.08 | N23: 24.577 | O23: 21.581 | P23: 25.42 | Q23: 19.206 | R23: 23.86
A24: Total | B24: Score 1-3 | C24: RowLowerCL | D24: 20.82 | E24: 16.83 | F24: 19.266 | G24: 20.82 | H24: 22.478 | I24: 23.01 | J24: 22.73 | K24: 15.77 | L24: 19.34 | M24: 22.66 | N24: 20.473 | O24: 17.793 | P24: 22.65 | Q24: 16.273 | R24: 23
A25: Total | B25: Score 1-3 | C25: RowUpperCL | D25: 24.43 | E25: 25.834 | F25: 27.4 | G25: 25.05 | H25: 30.185 | I25: 26.59 | J25: 26.79 | K25: 22.4 | L25: 24.92 | M25: 27.49 | N25: 28.68 | O25: 25.37 | P25: 28.2 | Q25: 22.138 | R25: 24.71
A26: Total | B26: Score 4+ | C26: RowPercent | D26: 16.43 | E26: 17.873 | F26: 15.244 | G26: 14.87 | H26: 13.448 | I26: 12.07 | J26: 18.19 | K26: 15.45 | L26: 15.86 | M26: 14.65 | N26: 11.55 | O26: 12.319 | P26: 15.79 | Q26: 12.875 | R26: 15.51
A27: Total | B27: Score 4+ | C27: RowLowerCL | D27: 14.46 | E27: 13.478 | F27: 10.585 | G27: 13.1 | H27: 10.679 | I27: 10.58 | J27: 16.49 | K27: 12.45 | L27: 13.53 | M27: 12.69 | N27: 8.203 | O27: 8.683 | P27: 13.18 | Q27: 9.95 | R27: 14.81
A28: Total | B28: Score 4+ | C28: RowUpperCL | D28: 18.39 | E28: 22.269 | F28: 19.903 | G28: 16.64 | H28: 16.216 | I28: 13.56 | J28: 19.89 | K28: 18.44 | L28: 18.19 | M28: 16.61 | N28: 14.897 | O28: 15.956 | P28: 18.4 | Q28: 15.801 | R28: 16.2
A29: Male | B29: . | C29: WgtFreq | D29: 571.78 | E29: 160.018 | F29: 223.747 | G29: 557.65 | H29: 440.389 | I29: 892.35 | J29: 1655.3 | K29: 486.27 | L29: 1013.3 | M29: 1378.63 | N29: 37.117 | O29: 36.654 | P29: 643.71 | Q29: 40.497 | R29: 8137.42
A30: Female | B30: . | C30: WgtFreq | D30: 675.88 | E30: 199.713 | F30: 246.477 | G30: 605.39 | H30: 514.325 | I30: 994.61 | J30: 1814.53 | K30: 528.86 | L30: 1130.27 | M30: 1382.97 | N30: 37.401 | O30: 36.349 | P30: 732.75 | Q30: 41.297 | R30: 8940.83
A31: Total | B31: . | C31: WgtFreq | D31: 1247.66 | E31: 359.732 | F31: 470.223 | G31: 1163.04 | H31: 954.714 | I31: 1886.96 | J31: 3469.83 | K31: 1015.14 | L31: 2143.57 | M31: 2761.6 | N31: 74.518 | O31: 73.003 | P31: 1376.47 | Q31: 81.794 | R31: 17078.25
A32: Male | B32: . | C32: Frequency | D32: 891 | E32: 175 | F32: 188 | G32: 808 | H32: 274 | I32: 1034 | J32: 1175 | K32: 316 | L32: 583 | M32: 845 | N32: 224 | O32: 214 | P32: 447 | Q32: 331 | R32: 7505
A33: Female | B33: . | C33: Frequency | D33: 1148 | E33: 249 | F33: 230 | G33: 1045 | H33: 383 | I33: 1315 | J33: 1544 | K33: 418 | L33: 791 | M33: 1024 | N33: 260 | O33: 251 | P33: 564 | Q33: 407 | R33: 9629
A34: Total | B34: . | C34: Frequency | D34: 2039 | E34: 424 | F34: 418 | G34: 1853 | H34: 657 | I34: 2349 | J34: 2719 | K34: 734 | L34: 1374 | M34: 1869 | N34: 484 | O34: 465 | P34: 1011 | Q34: 738 | R34: 17134

Sheet GHQ-12 chart
R1: INDEX
C31: Source: Scottish Health Survey
C34: Ayrshire & Arran | D34: Borders | E34: Dumfries & Galloway | F34: Fife | G34: Forth Valley | H34: Grampian | I34: Greater Glasgow & Clyde | J34: Highland | K34: Lanarkshire | L34: Lothian | M34: Orkney | N34: Shetland | O34: Tayside | P34: Western Isles | R34: Scotland
B35: All Adults
B36: Score 0 | C36: ='GHQ-12 scores'!B31 -> 60.95 | D36: ='GHQ-12 scores'!C31 -> 60.795 | E36: ='GHQ-12 scores'!D31 -> 61.423 | F36: ='GHQ-12 scores'!E31 -> 62.19 | G36: ='GHQ-12 scores'!F31 -> 60.221 | H36: ='GHQ-12 scores'!G31 -> 63.12 | I36: ='GHQ-12 scores'!H31 -> 57.05 | J36: ='GHQ-12 scores'!I31 -> 65.47 | K36: ='GHQ-12 scores'!J31 -> 62.01 | L36: ='GHQ-12 scores'!K31 -> 60.27 | M36: ='GHQ-12 scores'!L31 -> 63.873 | N36: ='GHQ-12 scores'!M31 -> 66.099 | O36: ='GHQ-12 scores'!N31 -> 58.79 | P36: ='GHQ-12 scores'!O31 -> 67.919 | R36: ='GHQ-12 scores'!P31 -> 60.64
B37: Lower CI | C37: ='GHQ-12 scores'!B32 -> 58.46 | D37: ='GHQ-12 scores'!C32 -> 55.872 | E37: ='GHQ-12 scores'!D32 -> 56.249 | F37: ='GHQ-12 scores'!E32 -> 59.33 | G37: ='GHQ-12 scores'!F32 -> 56.081 | H37: ='GHQ-12 scores'!G32 -> 60.75 | I37: ='GHQ-12 scores'!H32 -> 54.56 | J37: ='GHQ-12 scores'!I32 -> 61 | K37: ='GHQ-12 scores'!J32 -> 58.9 | L37: ='GHQ-12 scores'!K32 -> 57.43 | M37: ='GHQ-12 scores'!L32 -> 59.806 | N37: ='GHQ-12 scores'!M32 -> 60.552 | O37: ='GHQ-12 scores'!N32 -> 55.33 | P37: ='GHQ-12 scores'!O32 -> 64.044 | R37: ='GHQ-12 scores'!P32 -> 59.63
B38: Upper CI | C38: ='GHQ-12 scores'!B33 -> 63.44 | D38: ='GHQ-12 scores'!C33 -> 65.719 | E38: ='GHQ-12 scores'!D33 -> 66.597 | F38: ='GHQ-12 scores'!E33 -> 65.05 | G38: ='GHQ-12 scores'!F33 -> 64.36 | H38: ='GHQ-12 scores'!G33 -> 65.49 | I38: ='GHQ-12 scores'!H33 -> 59.54 | J38: ='GHQ-12 scores'!I33 -> 69.94 | K38: ='GHQ-12 scores'!J33 -> 65.12 | L38: ='GHQ-12 scores'!K33 -> 63.11 | M38: ='GHQ-12 scores'!L33 -> 67.941 | N38: ='GHQ-12 scores'!M33 -> 71.646 | O38: ='GHQ-12 scores'!N33 -> 62.25 | P38: ='GHQ-12 scores'!O33 -> 71.794 | R38: ='GHQ-12 scores'!P33 -> 61.64
B39: Score 1-3 | C39: ='GHQ-12 scores'!B34 -> 22.62 | D39: ='GHQ-12 scores'!C34 -> 21.332 | E39: ='GHQ-12 scores'!D34 -> 23.333 | F39: ='GHQ-12 scores'!E34 -> 22.94 | G39: ='GHQ-12 scores'!F34 -> 26.332 | H39: ='GHQ-12 scores'!G34 -> 24.8 | I39: ='GHQ-12 scores'!H34 -> 24.76 | J39: ='GHQ-12 scores'!I34 -> 19.08 | K39: ='GHQ-12 scores'!J34 -> 22.13 | L39: ='GHQ-12 scores'!K34 -> 25.08 | M39: ='GHQ-12 scores'!L34 -> 24.577 | N39: ='GHQ-12 scores'!M34 -> 21.581 | O39: ='GHQ-12 scores'!N34 -> 25.42 | P39: ='GHQ-12 scores'!O34 -> 19.206 | R39: ='GHQ-12 scores'!P34 -> 23.86
B40: Lower CI | C40: ='GHQ-12 scores'!B35 -> 20.82 | D40: ='GHQ-12 scores'!C35 -> 16.83 | E40: ='GHQ-12 scores'!D35 -> 19.266 | F40: ='GHQ-12 scores'!E35 -> 20.82 | G40: ='GHQ-12 scores'!F35 -> 22.478 | H40: ='GHQ-12 scores'!G35 -> 23.01 | I40: ='GHQ-12 scores'!H35 -> 22.73 | J40: ='GHQ-12 scores'!I35 -> 15.77 | K40: ='GHQ-12 scores'!J35 -> 19.34 | L40: ='GHQ-12 scores'!K35 -> 22.66 | M40: ='GHQ-12 scores'!L35 -> 20.473 | N40: ='GHQ-12 scores'!M35 -> 17.793 | O40: ='GHQ-12 scores'!N35 -> 22.65 | P40: ='GHQ-12 scores'!O35 -> 16.273 | R40: ='GHQ-12 scores'!P35 -> 23
B41: Upper CI | C41: ='GHQ-12 scores'!B36 -> 24.43 | D41: ='GHQ-12 scores'!C36 -> 25.834 | E41: ='GHQ-12 scores'!D36 -> 27.4 | F41: ='GHQ-12 scores'!E36 -> 25.05 | G41: ='GHQ-12 scores'!F36 -> 30.185 | H41: ='GHQ-12 scores'!G36 -> 26.59 | I41: ='GHQ-12 scores'!H36 -> 26.79 | J41: ='GHQ-12 scores'!I36 -> 22.4 | K41: ='GHQ-12 scores'!J36 -> 24.92 | L41: ='GHQ-12 scores'!K36 -> 27.49 | M41: ='GHQ-12 scores'!L36 -> 28.68 | N41: ='GHQ-12 scores'!M36 -> 25.37 | O41: ='GHQ-12 scores'!N36 -> 28.2 | P41: ='GHQ-12 scores'!O36 -> 22.138 | R41: ='GHQ-12 scores'!P36 -> 24.71
B42: Score 4+ | C42: ='GHQ-12 scores'!B37 -> 16.43 | D42: ='GHQ-12 scores'!C37 -> 17.873 | E42: ='GHQ-12 scores'!D37 -> 15.244 | F42: ='GHQ-12 scores'!E37 -> 14.87 | G42: ='GHQ-12 scores'!F37 -> 13.448 | H42: ='GHQ-12 scores'!G37 -> 12.07 | I42: ='GHQ-12 scores'!H37 -> 18.19 | J42: ='GHQ-12 scores'!I37 -> 15.45 | K42: ='GHQ-12 scores'!J37 -> 15.86 | L42: ='GHQ-12 scores'!K37 -> 14.65 | M42: ='GHQ-12 scores'!L37 -> 11.55 | N42: ='GHQ-12 scores'!M37 -> 12.319 | O42: ='GHQ-12 scores'!N37 -> 15.79 | P42: ='GHQ-12 scores'!O37 -> 12.875 | R42: ='GHQ-12 scores'!P37 -> 15.51
B43: Lower CI | C43: ='GHQ-12 scores'!B38 -> 14.46 | D43: ='GHQ-12 scores'!C38 -> 13.478 | E43: ='GHQ-12 scores'!D38 -> 10.585 | F43: ='GHQ-12 scores'!E38 -> 13.1 | G43: ='GHQ-12 scores'!F38 -> 10.679 | H43: ='GHQ-12 scores'!G38 -> 10.58 | I43: ='GHQ-12 scores'!H38 -> 16.49 | J43: ='GHQ-12 scores'!I38 -> 12.45 | K43: ='GHQ-12 scores'!J38 -> 13.53 | L43: ='GHQ-12 scores'!K38 -> 12.69 | M43: ='GHQ-12 scores'!L38 -> 8.203 | N43: ='GHQ-12 scores'!M38 -> 8.683 | O43: ='GHQ-12 scores'!N38 -> 13.18 | P43: ='GHQ-12 scores'!O38 -> 9.95 | R43: ='GHQ-12 scores'!P38 -> 14.81
B44: Upper CI | C44: ='GHQ-12 scores'!B39 -> 18.39 | D44: ='GHQ-12 scores'!C39 -> 22.269 | E44: ='GHQ-12 scores'!D39 -> 19.903 | F44: ='GHQ-12 scores'!E39 -> 16.64 | G44: ='GHQ-12 scores'!F39 -> 16.216 | H44: ='GHQ-12 scores'!G39 -> 13.56 | I44: ='GHQ-12 scores'!H39 -> 19.89 | J44: ='GHQ-12 scores'!I39 -> 18.44 | K44: ='GHQ-12 scores'!J39 -> 18.19 | L44: ='GHQ-12 scores'!K39 -> 16.61 | M44: ='GHQ-12 scores'!L39 -> 14.897 | N44: ='GHQ-12 scores'!M39 -> 15.956 | O44: ='GHQ-12 scores'!N39 -> 18.4 | P44: ='GHQ-12 scores'!O39 -> 15.801 | R44: ='GHQ-12 scores'!P39 -> 16.2
A46: CLs | B46: Score 0 | C46: =C36-C37 -> 2.49 | D46: =D36-D37 -> 4.923 | E46: 5.174 | F46: 2.86 | G46: 4.14 | H46: 2.37 | I46: 2.49 | J46: 4.47 | K46: 3.11 | L46: 2.84 | M46: 4.067 | N46: 5.547 | O46: 3.46 | P46: =P36-P37 -> 3.875 | R46: =R36-R37 -> 1.01
B47: Score 1-3 | C47: =C39-C40 -> 1.8 | D47: =D39-D40 -> 4.502 | E47: 4.067 | F47: 2.12 | G47: 3.854 | H47: 1.79 | I47: 2.03 | J47: 3.31 | K47: 2.79 | L47: 2.42 | M47: 4.104 | N47: 3.788 | O47: 2.77 | P47: =P39-P40 -> 2.933 | R47: =R39-R40 -> 0.86
B48: Score 4+ | C48: =C42-C43 -> 1.97 | D48: =D42-D43 -> 4.395 | E48: 4.659 | F48: 1.77 | G48: 2.769 | H48: 1.49 | I48: 1.7 | J48: 3 | K48: 2.33 | L48: 1.96 | M48: 3.347 | N48: 3.636 | O48: 2.61 | P48: =P42-P43 -> 2.925 | R48: =R42-R43 -> 0.7

Sheet Long-term illness
A1: Prevalence of long-term illness, by NHS Board and sex | N1: INDEX
A4: Aged 16 and over | P4: 2013/2014/2015/2016 combined
A5: Prevalence of limiting long-term conditions | B5: NHS Board
B6: Ayrshire & Arran | C6: Borders | D6: Dumfries & Galloway | E6: Fife | F6: Forth Valley | G6: Grampian | H6: Greater Glasgow & Clyde | I6: Highland | J6: Lanarkshire | K6: Lothian | L6: Orkney | M6: Shetland | N6: Tayside | O6: Western Isles | P6: Scotland
B7: % | C7: % | D7: % | E7: % | F7: % | G7: % | H7: % | I7: % | J7: % | K7: % | L7: % | M7: % | N7: % | O7: % | P7: %
A8: Men
A9: Limiting long-term illness | B9: ='limit data'!D2 -> 41.77 | C9: ='limit data'!E2 -> 31.408 | D9: ='limit data'!F2 -> 33.272 | E9: ='limit data'!G2 -> 28.84 | F9: ='limit data'!H2 -> 30.84 | G9: ='limit data'!I2 -> 24.52 | H9: ='limit data'!J2 -> 30.05 | I9: ='limit data'!K2 -> 30.43 | J9: ='limit data'!L2 -> 31.62 | K9: ='limit data'!M2 -> 25.97 | L9: ='limit data'!N2 -> 30.501 | M9: ='limit data'!O2 -> 25.444 | N9: ='limit data'!P2 -> 29.66 | O9: ='limit data'!Q2 -> 36.605 | P9: ='limit data'!R2 -> 29.83
A10: Lower CI | B10: ='limit data'!D3 -> 37.52 | C10: ='limit data'!E3 -> 22.84 | D10: ='limit data'!F3 -> 26.12 | E10: ='limit data'!G3 -> 25.22 | F10: ='limit data'!H3 -> 25.77 | G10: ='limit data'!I3 -> 22.01 | H10: ='limit data'!J3 -> 27.11 | I10: ='limit data'!K3 -> 25.69 | J10: ='limit data'!L3 -> 27.62 | K10: ='limit data'!M3 -> 22.99 | L10: ='limit data'!N3 -> 25.8 | M10: ='limit data'!O3 -> 20.306 | N10: ='limit data'!P3 -> 24.64 | O10: ='limit data'!Q3 -> 30.491 | P10: ='limit data'!R3 -> 28.61
A11: Upper CI | B11: ='limit data'!D4 -> 46.02 | C11: ='limit data'!E4 -> 39.976 | D11: ='limit data'!F4 -> 40.424 | E11: ='limit data'!G4 -> 32.46 | F11: ='limit data'!H4 -> 35.91 | G11: ='limit data'!I4 -> 27.02 | H11: ='limit data'!J4 -> 32.99 | I11: ='limit data'!K4 -> 35.17 | J11: ='limit data'!L4 -> 35.61 | K11: ='limit data'!M4 -> 28.95 | L11: ='limit data'!N4 -> 35.201 | M11: ='limit data'!O4 -> 30.583 | N11: ='limit data'!P4 -> 34.67 | O11: ='limit data'!Q4 -> 42.719 | P11: ='limit data'!R4 -> 31.06
A12: Non-limiting long-term illness | B12: ='limit data'!D5 -> 9.94 | C12: ='limit data'!E5 -> 15.442 | D12: ='limit data'!F5 -> 8.737 | E12: ='limit data'!G5 -> 15.72 | F12: ='limit data'!H5 -> 12.51 | G12: ='limit data'!I5 -> 14.41 | H12: ='limit data'!J5 -> 13.38 | I12: ='limit data'!K5 -> 12.47 | J12: ='limit data'!L5 -> 13.96 | K12: ='limit data'!M5 -> 18.47 | L12: ='limit data'!N5 -> 19.115 | M12: ='limit data'!O5 -> 17.187 | N12: ='limit data'!P5 -> 12.09 | O12: ='limit data'!Q5 -> 11.56 | P12: ='limit data'!R5 -> 14.1
A13: Lower CI | B13: ='limit data'!D6 -> 7.97 | C13: ='limit data'!E6 -> 10.774 | D13: ='limit data'!F6 -> 4.797 | E13: ='limit data'!G6 -> 12.68 | F13: ='limit data'!H6 -> 8.74 | G13: ='limit data'!I6 -> 12.01 | H13: ='limit data'!J6 -> 11.48 | I13: ='limit data'!K6 -> 9.36 | J13: ='limit data'!L6 -> 10.52 | K13: ='limit data'!M6 -> 15.55 | L13: ='limit data'!N6 -> 14.288 | M13: ='limit data'!O6 -> 11.267 | N13: ='limit data'!P6 -> 8.78 | O13: ='limit data'!Q6 -> 8.18 | P13: ='limit data'!R6 -> 13.12
A14: Upper CI | B14: ='limit data'!D7 -> 11.92 | C14: ='limit data'!E7 -> 20.11 | D14: ='limit data'!F7 -> 12.677 | E14: ='limit data'!G7 -> 18.76 | F14: ='limit data'!H7 -> 16.29 | G14: ='limit data'!I7 -> 16.81 | H14: ='limit data'!J7 -> 15.28 | I14: ='limit data'!K7 -> 15.58 | J14: ='limit data'!L7 -> 17.39 | K14: ='limit data'!M7 -> 21.39 | L14: ='limit data'!N7 -> 23.942 | M14: ='limit data'!O7 -> 23.108 | N14: ='limit data'!P7 -> 15.4 | O14: ='limit data'!Q7 -> 14.941 | P14: ='limit data'!R7 -> 15.08
A15: No long-term illness | B15: ='limit data'!D8 -> 48.29 | C15: ='limit data'!E8 -> 53.15 | D15: ='limit data'!F8 -> 57.991 | E15: ='limit data'!G8 -> 55.43 | F15: ='limit data'!H8 -> 56.65 | G15: ='limit data'!I8 -> 61.08 | H15: ='limit data'!J8 -> 56.57 | I15: ='limit data'!K8 -> 57.1 | J15: ='limit data'!L8 -> 54.43 | K15: ='limit data'!M8 -> 55.57 | L15: ='limit data'!N8 -> 50.385 | M15: ='limit data'!O8 -> 57.368 | N15: ='limit data'!P8 -> 58.25 | O15: ='limit data'!Q8 -> 51.834 | P15: ='limit data'!R8 -> 56.07
A16: Lower CI | B16: ='limit data'!D9 -> 44.31 | C16: ='limit data'!E9 -> 45.049 | D16: ='limit data'!F9 -> 49.882 | E16: ='limit data'!G9 -> 51.36 | F16: ='limit data'!H9 -> 49.83 | G16: ='limit data'!I9 -> 57.89 | H16: ='limit data'!J9 -> 53.52 | I16: ='limit data'!K9 -> 51.92 | J16: ='limit data'!L9 -> 49.87 | K16: ='limit data'!M9 -> 51.42 | L16: ='limit data'!N9 -> 44.059 | M16: ='limit data'!O9 -> 49.421 | N16: ='limit data'!P9 -> 52.73 | O16: ='limit data'!Q9 -> 45.529 | P16: ='limit data'!R9 -> 54.68
A17: Upper CI | B17: ='limit data'!D10 -> 52.27 | C17: ='limit data'!E10 -> 61.252 | D17: ='limit data'!F10 -> 66.1 | E17: ='limit data'!G10 -> 59.51 | F17: ='limit data'!H10 -> 63.46 | G17: ='limit data'!I10 -> 64.26 | H17: ='limit data'!J10 -> 59.62 | I17: ='limit data'!K10 -> 62.28 | J17: ='limit data'!L10 -> 58.99 | K17: ='limit data'!M10 -> 59.71 | L17: ='limit data'!N10 -> 56.71 | M17: ='limit data'!O10 -> 65.315 | N17: ='limit data'!P10 -> 63.78 | O17: ='limit data'!Q10 -> 58.14 | P17: ='limit data'!R10 -> 57.46
A19: Women
A20: Limiting long-term illness | B20: ='limit data'!D11 -> 46.67 | C20: ='limit data'!E11 -> 30.738 | D20: ='limit data'!F11 -> 33.277 | E20: ='limit data'!G11 -> 34.18 | F20: ='limit data'!H11 -> 37.13 | G20: ='limit data'!I11 -> 28.41 | H20: ='limit data'!J11 -> 35.07 | I20: ='limit data'!K11 -> 34.06 | J20: ='limit data'!L11 -> 33.52 | K20: ='limit data'!M11 -> 28.78 | L20: ='limit data'!N11 -> 35.419 | M20: ='limit data'!O11 -> 33.658 | N20: ='limit data'!P11 -> 31.32 | O20: ='limit data'!Q11 -> 36.072 | P20: ='limit data'!R11 -> 33.57
A21: Lower CI | B21: ='limit data'!D12 -> 43.17 | C21: ='limit data'!E12 -> 23.703 | D21: ='limit data'!F12 -> 26.334 | E21: ='limit data'!G12 -> 31.15 | F21: ='limit data'!H12 -> 32.19 | G21: ='limit data'!I12 -> 25.87 | H21: ='limit data'!J12 -> 32.53 | I21: ='limit data'!K12 -> 29.53 | J21: ='limit data'!L12 -> 29.89 | K21: ='limit data'!M12 -> 25.71 | L21: ='limit data'!N12 -> 29.757 | M21: ='limit data'!O12 -> 26.752 | N21: ='limit data'!P12 -> 26.94 | O21: ='limit data'!Q12 -> 30.986 | P21: ='limit data'!R12 -> 32.42
A22: Upper CI | B22: ='limit data'!D13 -> 50.17 | C22: ='limit data'!E13 -> 37.773 | D22: ='limit data'!F13 -> 40.22 | E22: ='limit data'!G13 -> 37.21 | F22: ='limit data'!H13 -> 42.06 | G22: ='limit data'!I13 -> 30.96 | H22: ='limit data'!J13 -> 37.61 | I22: ='limit data'!K13 -> 38.6 | J22: ='limit data'!L13 -> 37.16 | K22: ='limit data'!M13 -> 31.86 | L22: ='limit data'!N13 -> 41.081 | M22: ='limit data'!O13 -> 40.563 | N22: ='limit data'!P13 -> 35.69 | O22: ='limit data'!Q13 -> 41.158 | P22: ='limit data'!R13 -> 34.72
A23: Non-limiting long-term illness | B23: ='limit data'!D14 -> 9.9 | C23: ='limit data'!E14 -> 23.637 | D23: ='limit data'!F14 -> 9.049 | E23: ='limit data'!G14 -> 14.12 | F23: ='limit data'!H14 -> 14.12 | G23: ='limit data'!I14 -> 14.32 | H23: ='limit data'!J14 -> 11.99 | I23: ='limit data'!K14 -> 16.51 | J23: ='limit data'!L14 -> 14.35 | K23: ='limit data'!M14 -> 15.62 | L23: ='limit data'!N14 -> 21.801 | M23: ='limit data'!O14 -> 17.025 | N23: ='limit data'!P14 -> 14.92 | O23: ='limit data'!Q14 -> 11.74 | P23: ='limit data'!R14 -> 13.96
A24: Lower CI | B24: ='limit data'!D15 -> 8.14 | C24: ='limit data'!E15 -> 17.269 | D24: ='limit data'!F15 -> 4.826 | E24: ='limit data'!G15 -> 12.24 | F24: ='limit data'!H15 -> 10.48 | G24: ='limit data'!I15 -> 12.35 | H24: ='limit data'!J15 -> 10.48 | I24: ='limit data'!K15 -> 13.19 | J24: ='limit data'!L15 -> 11.77 | K24: ='limit data'!M15 -> 13.54 | L24: ='limit data'!N15 -> 17.252 | M24: ='limit data'!O15 -> 12.019 | N24: ='limit data'!P15 -> 12.15 | O24: ='limit data'!Q15 -> 8.135 | P24: ='limit data'!R15 -> 13.17
A25: Upper CI | B25: ='limit data'!D16 -> 11.66 | C25: ='limit data'!E16 -> 30.006 | D25: ='limit data'!F16 -> 13.272 | E25: ='limit data'!G16 -> 16.01 | F25: ='limit data'!H16 -> 17.77 | G25: ='limit data'!I16 -> 16.3 | H25: ='limit data'!J16 -> 13.49 | I25: ='limit data'!K16 -> 19.83 | J25: ='limit data'!L16 -> 16.93 | K25: ='limit data'!M16 -> 17.7 | L25: ='limit data'!N16 -> 26.349 | M25: ='limit data'!O16 -> 22.031 | N25: ='limit data'!P16 -> 17.7 | O25: ='limit data'!Q16 -> 15.344 | P25: ='limit data'!R16 -> 14.74
A26: No long-term illness | B26: ='limit data'!D17 -> 43.43 | C26: ='limit data'!E17 -> 45.625 | D26: ='limit data'!F17 -> 57.674 | E26: ='limit data'!G17 -> 51.7 | F26: ='limit data'!H17 -> 48.75 | G26: ='limit data'!I17 -> 57.26 | H26: ='limit data'!J17 -> 52.94 | I26: ='limit data'!K17 -> 49.43 | J26: ='limit data'!L17 -> 52.13 | K26: ='limit data'!M17 -> 55.6 | L26: ='limit data'!N17 -> 42.781 | M26: ='limit data'!O17 -> 49.317 | N26: ='limit data'!P17 -> 53.76 | O26: ='limit data'!Q17 -> 52.188 | P26: ='limit data'!R17 -> 52.47
A27: Lower CI | B27: ='limit data'!D18 -> 40.14 | C27: ='limit data'!E18 -> 40.365 | D27: ='limit data'!F18 -> 50.318 | E27: ='limit data'!G18 -> 48.49 | F27: ='limit data'!H18 -> 43.06 | G27: ='limit data'!I18 -> 54.46 | H27: ='limit data'!J18 -> 50.41 | I27: ='limit data'!K18 -> 43.85 | J27: ='limit data'!L18 -> 48.38 | K27: ='limit data'!M18 -> 52.15 | L27: ='limit data'!N18 -> 34.781 | M27: ='limit data'!O18 -> 42.905 | N27: ='limit data'!P18 -> 49.04 | O27: ='limit data'!Q18 -> 46.818 | P27: ='limit data'!R18 -> 51.29
A28: Upper CI | B28: ='limit data'!D19 -> 46.72 | C28: ='limit data'!E19 -> 50.885 | D28: ='limit data'!F19 -> 65.03 | E28: ='limit data'!G19 -> 54.91 | F28: ='limit data'!H19 -> 54.44 | G28: ='limit data'!I19 -> 60.06 | H28: ='limit data'!J19 -> 55.47 | I28: ='limit data'!K19 -> 55 | J28: ='limit data'!L19 -> 55.87 | K28: ='limit data'!M19 -> 59.05 | L28: ='limit data'!N19 -> 50.78 | M28: ='limit data'!O19 -> 55.729 | N28: ='limit data'!P19 -> 58.48 | O28: ='limit data'!Q19 -> 57.559 | P28: ='limit data'!R19 -> 53.65
A30: All Adults
A31: Limiting long-term illness | B31: ='limit data'!D20 -> 44.41 | C31: ='limit data'!E20 -> 31.042 | D31: ='limit data'!F20 -> 33.275 | E31: ='limit data'!G20 -> 31.6 | F31: ='limit data'!H20 -> 34.15 | G31: ='limit data'!I20 -> 26.56 | H31: ='limit data'!J20 -> 32.67 | I31: ='limit data'!K20 -> 32.32 | J31: ='limit data'!L20 -> 32.62 | K31: ='limit data'!M20 -> 27.35 | L31: ='limit data'!N20 -> 32.967 | M31: ='limit data'!O20 -> 29.422 | N31: ='limit data'!P20 -> 30.54 | O31: ='limit data'!Q20 -> 36.338 | P31: ='limit data'!R20 -> 31.77
A32: Lower CI | B32: ='limit data'!D21 -> 41.11 | C32: ='limit data'!E21 -> 24.732 | D32: ='limit data'!F21 -> 27.486 | E32: ='limit data'!G21 -> 28.91 | F32: ='limit data'!H21 -> 30.18 | G32: ='limit data'!I21 -> 24.6 | H32: ='limit data'!J21 -> 30.42 | I32: ='limit data'!K21 -> 28.59 | J32: ='limit data'!L21 -> 29.81 | K32: ='limit data'!M21 -> 25.05 | L32: ='limit data'!N21 -> 28.746 | M32: ='limit data'!O21 -> 25.158 | N32: ='limit data'!P21 -> 26.58 | O32: ='limit data'!Q21 -> 31.957 | P32: ='limit data'!R21 -> 30.82
A33: Upper CI | B33: ='limit data'!D22 -> 47.71 | C33: ='limit data'!E22 -> 37.351 | D33: ='limit data'!F22 -> 39.063 | E33: ='limit data'!G22 -> 34.28 | F33: ='limit data'!H22 -> 38.12 | G33: ='limit data'!I22 -> 28.52 | H33: ='limit data'!J22 -> 34.92 | I33: ='limit data'!K22 -> 36.05 | J33: ='limit data'!L22 -> 35.42 | K33: ='limit data'!M22 -> 29.66 | L33: ='limit data'!N22 -> 37.189 | M33: ='limit data'!O22 -> 33.686 | N33: ='limit data'!P22 -> 34.5 | O33: ='limit data'!Q22 -> 40.72 | P33: ='limit data'!R22 -> 32.72
A34: Non-limiting long-term illness | B34: ='limit data'!D23 -> 9.92 | C34: ='limit data'!E23 -> 19.92 | D34: ='limit data'!F23 -> 8.897 | E34: ='limit data'!G23 -> 14.9 | F34: ='limit data'!H23 -> 13.36 | G34: ='limit data'!I23 -> 14.36 | H34: ='limit data'!J23 -> 12.65 | I34: ='limit data'!K23 -> 14.57 | J34: ='limit data'!L23 -> 14.16 | K34: ='limit data'!M23 -> 17.06 | L34: ='limit data'!N23 -> 20.462 | M34: ='limit data'!O23 -> 17.109 | N34: ='limit data'!P23 -> 13.59 | O34: ='limit data'!Q23 -> 11.65 | P34: ='limit data'!R23 -> 14.03
A35: Lower CI | B35: ='limit data'!D24 -> 8.57 | C35: ='limit data'!E24 -> 15.395 | D35: ='limit data'!F24 -> 5.751 | E35: ='limit data'!G24 -> 12.99 | F35: ='limit data'!H24 -> 10.66 | G35: ='limit data'!I24 -> 12.84 | H35: ='limit data'!J24 -> 11.36 | I35: ='limit data'!K24 -> 12.11 | J35: ='limit data'!L24 -> 11.97 | K35: ='limit data'!M24 -> 15.15 | L35: ='limit data'!N24 -> 16.816 | M35: ='limit data'!O24 -> 13.097 | N35: ='limit data'!P24 -> 11.37 | O35: ='limit data'!Q24 -> 8.986 | P35: ='limit data'!R24 -> 13.37
A36: Upper CI | B36: ='limit data'!D25 -> 11.27 | C36: ='limit data'!E25 -> 24.445 | D36: ='limit data'!F25 -> 12.043 | E36: ='limit data'!G25 -> 16.81 | F36: ='limit data'!H25 -> 16.06 | G36: ='limit data'!I25 -> 15.89 | H36: ='limit data'!J25 -> 13.95 | I36: ='limit data'!K25 -> 17.04 | J36: ='limit data'!L25 -> 16.36 | K36: ='limit data'!M25 -> 18.97 | L36: ='limit data'!N25 -> 24.108 | M36: ='limit data'!O25 -> 21.12 | N36: ='limit data'!P25 -> 15.82 | O36: ='limit data'!Q25 -> 14.314 | P36: ='limit data'!R25 -> 14.68
A37: No long-term illness | B37: ='limit data'!D26 -> 45.67 | C37: ='limit data'!E26 -> 49.038 | D37: ='limit data'!F26 -> 57.829 | E37: ='limit data'!G26 -> 53.5 | F37: ='limit data'!H26 -> 52.49 | G37: ='limit data'!I26 -> 59.07 | H37: ='limit data'!J26 -> 54.68 | I37: ='limit data'!K26 -> 53.11 | J37: ='limit data'!L26 -> 53.22 | K37: ='limit data'!M26 -> 55.58 | L37: ='limit data'!N26 -> 46.571 | M37: ='limit data'!O26 -> 53.469 | N37: ='limit data'!P26 -> 55.87 | O37: ='limit data'!Q26 -> 52.011 | P37: ='limit data'!R26 -> 54.2
A38: Lower CI | B38: ='limit data'!D27 -> 42.71 | C38: ='limit data'!E27 -> 43.9 | D38: ='limit data'!F27 -> 50.892 | E38: ='limit data'!G27 -> 50.53 | F38: ='limit data'!H27 -> 47.62 | G38: ='limit data'!I27 -> 56.71 | H38: ='limit data'!J27 -> 52.52 | I38: ='limit data'!K27 -> 48.6 | J38: ='limit data'!L27 -> 50.01 | K38: ='limit data'!M27 -> 52.62 | L38: ='limit data'!N27 -> 40.135 | M38: ='limit data'!O27 -> 47.332 | N38: ='limit data'!P27 -> 51.73 | O38: ='limit data'!Q27 -> 47.429 | P38: ='limit data'!R27 -> 53.19
A39: Upper CI | B39: ='limit data'!D28 -> 48.63 | C39: ='limit data'!E28 -> 54.177 | D39: ='limit data'!F28 -> 64.765 | E39: ='limit data'!G28 -> 56.48 | F39: ='limit data'!H28 -> 57.35 | G39: ='limit data'!I28 -> 61.44 | H39: ='limit data'!J28 -> 56.83 | I39: ='limit data'!K28 -> 57.62 | J39: ='limit data'!L28 -> 56.44 | K39: ='limit data'!M28 -> 58.54 | L39: ='limit data'!N28 -> 53.007 | M39: ='limit data'!O28 -> 59.607 | N39: ='limit data'!P28 -> 60.01 | O39: ='limit data'!Q28 -> 56.594 | P39: ='limit data'!R28 -> 55.21
A42: Bases (weighted):
A43: Men | B43: ='limit data'!D29 -> 606.12 | C43: ='limit data'!E29 -> 183.856 | D43: ='limit data'!F29 -> 262.106 | E43: ='limit data'!G29 -> 620.29 | F43: ='limit data'!H29 -> 497.09 | G43: ='limit data'!I29 -> 978.48 | H43: ='limit data'!J29 -> 1880.15 | I43: ='limit data'!K29 -> 541.45 | J43: ='limit data'!L29 -> 1146.23 | K43: ='limit data'!M29 -> 1535.71 | L43: ='limit data'!N29 -> 38.805 | M43: ='limit data'!O29 -> 41.939 | N43: ='limit data'!P29 -> 681.92 | O43: ='limit data'!Q29 -> 48.446 | P43: ='limit data'!R29 -> 9062.6
A44: Women | B44: ='limit data'!D30 -> 709.46 | C44: ='limit data'!E30 -> 221.497 | D44: ='limit data'!F30 -> 275.466 | E44: ='limit data'!G30 -> 663.33 | F44: ='limit data'!H30 -> 553.76 | G44: ='limit data'!I30 -> 1079.33 | H44: ='limit data'!J30 -> 2050.58 | I44: ='limit data'!K30 -> 586.85 | J44: ='limit data'!L30 -> 1261.38 | K44: ='limit data'!M30 -> 1495.36 | L44: ='limit data'!N30 -> 39.048 | M44: ='limit data'!O30 -> 39.383 | N44: ='limit data'!P30 -> 771.2 | O44: ='limit data'!Q30 -> 48.518 | P44: ='limit data'!R30 -> 9795.16
A45: All Adults | B45: ='limit data'!D31 -> 1315.58 | C45: ='limit data'!E31 -> 405.353 | D45: ='limit data'!F31 -> 537.572 | E45: ='limit data'!G31 -> 1283.62 | F45: ='limit data'!H31 -> 1050.85 | G45: ='limit data'!I31 -> 2057.81 | H45: ='limit data'!J31 -> 3930.73 | I45: ='limit data'!K31 -> 1128.31 | J45: ='limit data'!L31 -> 2407.61 | K45: ='limit data'!M31 -> 3031.07 | L45: ='limit data'!N31 -> 77.853 | M45: ='limit data'!O31 -> 81.322 | N45: ='limit data'!P31 -> 1453.11 | O45: ='limit data'!Q31 -> 96.964 | P45: ='limit data'!R31 -> 18857.76
A46: Bases (unweighted)
A47: Men | B47: ='limit data'!D32 -> 948 | C47: ='limit data'!E32 -> 199 | D47: ='limit data'!F32 -> 221 | E47: ='limit data'!G32 -> 903 | F47: ='limit data'!H32 -> 307 | G47: ='limit data'!I32 -> 1134 | H47: ='limit data'!J32 -> 1341 | I47: ='limit data'!K32 -> 355 | J47: ='limit data'!L32 -> 659 | K47: ='limit data'!M32 -> 938 | L47: ='limit data'!N32 -> 234 | M47: ='limit data'!O32 -> 247 | N47: ='limit data'!P32 -> 472 | O47: ='limit data'!Q32 -> 387 | P47: ='limit data'!R32 -> 8345
A48: Women | B48: ='limit data'!D33 -> 1207 | C48: ='limit data'!E33 -> 277 | D48: ='limit data'!F33 -> 258 | E48: ='limit data'!G33 -> 1142 | F48: ='limit data'!H33 -> 412 | G48: ='limit data'!I33 -> 1429 | H48: ='limit data'!J33 -> 1747 | I48: ='limit data'!K33 -> 463 | J48: ='limit data'!L33 -> 876 | K48: ='limit data'!M33 -> 1104 | L48: ='limit data'!N33 -> 271 | M48: ='limit data'!O33 -> 277 | N48: ='limit data'!P33 -> 590 | O48: ='limit data'!Q33 -> 461 | P48: ='limit data'!R33 -> 10514
A49: All Adults | B49: ='limit data'!D34 -> 2155 | C49: ='limit data'!E34 -> 476 | D49: ='limit data'!F34 -> 479 | E49: ='limit data'!G34 -> 2045 | F49: ='limit data'!H34 -> 719 | G49: ='limit data'!I34 -> 2563 | H49: ='limit data'!J34 -> 3088 | I49: ='limit data'!K34 -> 818 | J49: ='limit data'!L34 -> 1535 | K49: ='limit data'!M34 -> 2042 | L49: ='limit data'!N34 -> 505 | M49: ='limit data'!O34 -> 524 | N49: ='limit data'!P34 -> 1062 | O49: ='limit data'!Q34 -> 848 | P49: ='limit data'!R34 -> 18859

Sheet limit data (hidden)
A1: F_sex | B1: F_limitill | C1: _NAME_ | D1: Ayrshire & Arran | E1: Borders | F1: Dumfries & Galloway | G1: Fife | H1: Forth Valley | I1: Grampian | J1: Greater Glasgow | K1: Highland | L1: Lanarkshire | M1: Lothian | N1: Orkney | O1: Shetland | P1: Tayside | Q1: Western Isles | R1: Scotland
A2: Male | B2: Limiting LI | C2: RowPercent | D2: 41.77 | E2: 31.408 | F2: 33.272 | G2: 28.84 | H2: 30.84 | I2: 24.52 | J2: 30.05 | K2: 30.43 | L2: 31.62 | M2: 25.97 | N2: 30.501 | O2: 25.444 | P2: 29.66 | Q2: 36.605 | R2: 29.83
A3: Male | B3: Limiting LI | C3: RowLowerCL | D3: 37.52 | E3: 22.84 | F3: 26.12 | G3: 25.22 | H3: 25.77 | I3: 22.01 | J3: 27.11 | K3: 25.69 | L3: 27.62 | M3: 22.99 | N3: 25.8 | O3: 20.306 | P3: 24.64 | Q3: 30.491 | R3: 28.61
A4: Male | B4: Limiting LI | C4: RowUpperCL | D4: 46.02 | E4: 39.976 | F4: 40.424 | G4: 32.46 | H4: 35.91 | I4: 27.02 | J4: 32.99 | K4: 35.17 | L4: 35.61 | M4: 28.95 | N4: 35.201 | O4: 30.583 | P4: 34.67 | Q4: 42.719 | R4: 31.06
A5: Male | B5: Non limiting LI | C5: RowPercent | D5: 9.94 | E5: 15.442 | F5: 8.737 | G5: 15.72 | H5: 12.51 | I5: 14.41 | J5: 13.38 | K5: 12.47 | L5: 13.96 | M5: 18.47 | N5: 19.115 | O5: 17.187 | P5: 12.09 | Q5: 11.56 | R5: 14.1
A6: Male | B6: Non limiting LI | C6: RowLowerCL | D6: 7.97 | E6: 10.774 | F6: 4.797 | G6: 12.68 | H6: 8.74 | I6: 12.01 | J6: 11.48 | K6: 9.36 | L6: 10.52 | M6: 15.55 | N6: 14.288 | O6: 11.267 | P6: 8.78 | Q6: 8.18 | R6: 13.12
A7: Male | B7: Non limiting LI | C7: RowUpperCL | D7: 11.92 | E7: 20.11 | F7: 12.677 | G7: 18.76 | H7: 16.29 | I7: 16.81 | J7: 15.28 | K7: 15.58 | L7: 17.39 | M7: 21.39 | N7: 23.942 | O7: 23.108 | P7: 15.4 | Q7: 14.941 | R7: 15.08
A8: Male | B8: No LI | C8: RowPercent | D8: 48.29 | E8: 53.15 | F8: 57.991 | G8: 55.43 | H8: 56.65 | I8: 61.08 | J8: 56.57 | K8: 57.1 | L8: 54.43 | M8: 55.57 | N8: 50.385 | O8: 57.368 | P8: 58.25 | Q8: 51.834 | R8: 56.07
A9: Male | B9: No LI | C9: RowLowerCL | D9: 44.31 | E9: 45.049 | F9: 49.882 | G9: 51.36 | H9: 49.83 | I9: 57.89 | J9: 53.52 | K9: 51.92 | L9: 49.87 | M9: 51.42 | N9: 44.059 | O9: 49.421 | P9: 52.73 | Q9: 45.529 | R9: 54.68
A10: Male | B10: No LI | C10: RowUpperCL | D10: 52.27 | E10: 61.252 | F10: 66.1 | G10: 59.51 | H10: 63.46 | I10: 64.26 | J10: 59.62 | K10: 62.28 | L10: 58.99 | M10: 59.71 | N10: 56.71 | O10: 65.315 | P10: 63.78 | Q10: 58.14 | R10: 57.46
A11: Female | B11: Limiting LI | C11: RowPercent | D11: 46.67 | E11: 30.738 | F11: 33.277 | G11: 34.18 | H11: 37.13 | I11: 28.41 | J11: 35.07 | K11: 34.06 | L11: 33.52 | M11: 28.78 | N11: 35.419 | O11: 33.658 | P11: 31.32 | Q11: 36.072 | R11: 33.57
A12: Female | B12: Limiting LI | C12: RowLowerCL | D12: 43.17 | E12: 23.703 | F12: 26.334 | G12: 31.15 | H12: 32.19 | I12: 25.87 | J12: 32.53 | K12: 29.53 | L12: 29.89 | M12: 25.71 | N12: 29.757 | O12: 26.752 | P12: 26.94 | Q12: 30.986 | R12: 32.42
A13: Female | B13: Limiting LI | C13: RowUpperCL | D13: 50.17 | E13: 37.773 | F13: 40.22 | G13: 37.21 | H13: 42.06 | I13: 30.96 | J13: 37.61 | K13: 38.6 | L13: 37.16 | M13: 31.86 | N13: 41.081 | O13: 40.563 | P13: 35.69 | Q13: 41.158 | R13: 34.72
A14: Female | B14: Non limiting LI | C14: RowPercent | D14: 9.9 | E14: 23.637 | F14: 9.049 | G14: 14.12 | H14: 14.12 | I14: 14.32 | J14: 11.99 | K14: 16.51 | L14: 14.35 | M14: 15.62 | N14: 21.801 | O14: 17.025 | P14: 14.92 | Q14: 11.74 | R14: 13.96
A15: Female | B15: Non limiting LI | C15: RowLowerCL | D15: 8.14 | E15: 17.269 | F15: 4.826 | G15: 12.24 | H15: 10.48 | I15: 12.35 | J15: 10.48 | K15: 13.19 | L15: 11.77 | M15: 13.54 | N15: 17.252 | O15: 12.019 | P15: 12.15 | Q15: 8.135 | R15: 13.17
A16: Female | B16: Non limiting LI | C16: RowUpperCL | D16: 11.66 | E16: 30.006 | F16: 13.272 | G16: 16.01 | H16: 17.77 | I16: 16.3 | J16: 13.49 | K16: 19.83 | L16: 16.93 | M16: 17.7 | N16: 26.349 | O16: 22.031 | P16: 17.7 | Q16: 15.344 | R16: 14.74
A17: Female | B17: No LI | C17: RowPercent | D17: 43.43 | E17: 45.625 | F17: 57.674 | G17: 51.7 | H17: 48.75 | I17: 57.26 | J17: 52.94 | K17: 49.43 | L17: 52.13 | M17: 55.6 | N17: 42.781 | O17: 49.317 | P17: 53.76 | Q17: 52.188 | R17: 52.47
A18: Female | B18: No LI | C18: RowLowerCL | D18: 40.14 | E18: 40.365 | F18: 50.318 | G18: 48.49 | H18: 43.06 | I18: 54.46 | J18: 50.41 | K18: 43.85 | L18: 48.38 | M18: 52.15 | N18: 34.781 | O18: 42.905 | P18: 49.04 | Q18: 46.818 | R18: 51.29
A19: Female | B19: No LI | C19: RowUpperCL | D19: 46.72 | E19: 50.885 | F19: 65.03 | G19: 54.91 | H19: 54.44 | I19: 60.06 | J19: 55.47 | K19: 55 | L19: 55.87 | M19: 59.05 | N19: 50.78 | O19: 55.729 | P19: 58.48 | Q19: 57.559 | R19: 53.65
A20: Total | B20: Limiting LI | C20: RowPercent | D20: 44.41 | E20: 31.042 | F20: 33.275 | G20: 31.6 | H20: 34.15 | I20: 26.56 | J20: 32.67 | K20: 32.32 | L20: 32.62 | M20: 27.35 | N20: 32.967 | O20: 29.422 | P20: 30.54 | Q20: 36.338 | R20: 31.77
A21: Total | B21: Limiting LI | C21: RowLowerCL | D21: 41.11 | E21: 24.732 | F21: 27.486 | G21: 28.91 | H21: 30.18 | I21: 24.6 | J21: 30.42 | K21: 28.59 | L21: 29.81 | M21: 25.05 | N21: 28.746 | O21: 25.158 | P21: 26.58 | Q21: 31.957 | R21: 30.82
A22: Total | B22: Limiting LI | C22: RowUpperCL | D22: 47.71 | E22: 37.351 | F22: 39.063 | G22: 34.28 | H22: 38.12 | I22: 28.52 | J22: 34.92 | K22: 36.05 | L22: 35.42 | M22: 29.66 | N22: 37.189 | O22: 33.686 | P22: 34.5 | Q22: 40.72 | R22: 32.72
A23: Total | B23: Non limiting LI | C23: RowPercent | D23: 9.92 | E23: 19.92 | F23: 8.897 | G23: 14.9 | H23: 13.36 | I23: 14.36 | J23: 12.65 | K23: 14.57 | L23: 14.16 | M23: 17.06 | N23: 20.462 | O23: 17.109 | P23: 13.59 | Q23: 11.65 | R23: 14.03
A24: Total | B24: Non limiting LI | C24: RowLowerCL | D24: 8.57 | E24: 15.395 | F24: 5.751 | G24: 12.99 | H24: 10.66 | I24: 12.84 | J24: 11.36 | K24: 12.11 | L24: 11.97 | M24: 15.15 | N24: 16.816 | O24: 13.097 | P24: 11.37 | Q24: 8.986 | R24: 13.37
A25: Total | B25: Non limiting LI | C25: RowUpperCL | D25: 11.27 | E25: 24.445 | F25: 12.043 | G25: 16.81 | H25: 16.06 | I25: 15.89 | J25: 13.95 | K25: 17.04 | L25: 16.36 | M25: 18.97 | N25: 24.108 | O25: 21.12 | P25: 15.82 | Q25: 14.314 | R25: 14.68
A26: Total | B26: No LI | C26: RowPercent | D26: 45.67 | E26: 49.038 | F26: 57.829 | G26: 53.5 | H26: 52.49 | I26: 59.07 | J26: 54.68 | K26: 53.11 | L26: 53.22 | M26: 55.58 | N26: 46.571 | O26: 53.469 | P26: 55.87 | Q26: 52.011 | R26: 54.2
A27: Total | B27: No LI | C27: RowLowerCL | D27: 42.71 | E27: 43.9 | F27: 50.892 | G27: 50.53 | H27: 47.62 | I27: 56.71 | J27: 52.52 | K27: 48.6 | L27: 50.01 | M27: 52.62 | N27: 40.135 | O27: 47.332 | P27: 51.73 | Q27: 47.429 | R27: 53.19
A28: Total | B28: No LI | C28: RowUpperCL | D28: 48.63 | E28: 54.177 | F28: 64.765 | G28: 56.48 | H28: 57.35 | I28: 61.44 | J28: 56.83 | K28: 57.62 | L28: 56.44 | M28: 58.54 | N28: 53.007 | O28: 59.607 | P28: 60.01 | Q28: 56.594 | R28: 55.21
A29: Male | B29: . | C29: WgtFreq | D29: 606.12 | E29: 183.856 | F29: 262.106 | G29: 620.29 | H29: 497.09 | I29: 978.48 | J29: 1880.15 | K29: 541.45 | L29: 1146.23 | M29: 1535.71 | N29: 38.805 | O29: 41.939 | P29: 681.92 | Q29: 48.446 | R29: 9062.6
A30: Female | B30: . | C30: WgtFreq | D30: 709.46 | E30: 221.497 | F30: 275.466 | G30: 663.33 | H30: 553.76 | I30: 1079.33 | J30: 2050.58 | K30: 586.85 | L30: 1261.38 | M30: 1495.36 | N30: 39.048 | O30: 39.383 | P30: 771.2 | Q30: 48.518 | R30: 9795.16
A31: Total | B31: . | C31: WgtFreq | D31: 1315.58 | E31: 405.353 | F31: 537.572 | G31: 1283.62 | H31: 1050.85 | I31: 2057.81 | J31: 3930.73 | K31: 1128.31 | L31: 2407.61 | M31: 3031.07 | N31: 77.853 | O31: 81.322 | P31: 1453.11 | Q31: 96.964 | R31: 18857.76
A32: Male | B32: . | C32: Frequency | D32: 948 | E32: 199 | F32: 221 | G32: 903 | H32: 307 | I32: 1134 | J32: 1341 | K32: 355 | L32: 659 | M32: 938 | N32: 234 | O32: 247 | P32: 472 | Q32: 387 | R32: 8345
A33: Female | B33: . | C33: Frequency | D33: 1207 | E33: 277 | F33: 258 | G33: 1142 | H33: 412 | I33: 1429 | J33: 1747 | K33: 463 | L33: 876 | M33: 1104 | N33: 271 | O33: 277 | P33: 590 | Q33: 461 | R33: 10514
A34: Total | B34: . | C34: Frequency | D34: 2155 | E34: 476 | F34: 479 | G34: 2045 | H34: 719 | I34: 2563 | J34: 3088 | K34: 818 | L34: 1535 | M34: 2042 | N34: 505 | O34: 524 | P34: 1062 | Q34: 848 | R34: 18859

Sheet Long-term illness chart
R1: INDEX
C31: Source: Scottish Health Survey
C34: Ayrshire & Arran | D34: Borders | E34: Dumfries & Galloway | F34: Fife | G34: Forth Valley | H34: Grampian | I34: Greater Glasgow & Clyde | J34: Highland | K34: Lanarkshire | L34: Lothian | M34: Orkney | N34: Shetland | O34: Tayside | P34: Western Isles | R34: Scotland
B35: All Adults
B36: Limiting long-term illness | C36: ='Long-term illness'!B31 -> 44.41 | D36: ='Long-term illness'!C31 -> 31.042 | E36: ='Long-term illness'!D31 -> 33.275 | F36: ='Long-term illness'!E31 -> 31.6 | G36: ='Long-term illness'!F31 -> 34.15 | H36: ='Long-term illness'!G31 -> 26.56 | I36: ='Long-term illness'!H31 -> 32.67 | J36: ='Long-term illness'!I31 -> 32.32 | K36: ='Long-term illness'!J31 -> 32.62 | L36: ='Long-term illness'!K31 -> 27.35 | M36: ='Long-term illness'!L31 -> 32.967 | N36: ='Long-term illness'!M31 -> 29.422 | O36: ='Long-term illness'!N31 -> 30.54 | P36: ='Long-term illness'!O31 -> 36.338 | R36: ='Long-term illness'!P31 -> 31.77
B37: Lower CI | C37: ='Long-term illness'!B32 -> 41.11 | D37: ='Long-term illness'!C32 -> 24.732 | E37: ='Long-term illness'!D32 -> 27.486 | F37: ='Long-term illness'!E32 -> 28.91 | G37: ='Long-term illness'!F32 -> 30.18 | H37: ='Long-term illness'!G32 -> 24.6 | I37: ='Long-term illness'!H32 -> 30.42 | J37: ='Long-term illness'!I32 -> 28.59 | K37: ='Long-term illness'!J32 -> 29.81 | L37: ='Long-term illness'!K32 -> 25.05 | M37: ='Long-term illness'!L32 -> 28.746 | N37: ='Long-term illness'!M32 -> 25.158 | O37: ='Long-term illness'!N32 -> 26.58 | P37: ='Long-term illness'!O32 -> 31.957 | R37: ='Long-term illness'!P32 -> 30.82
B38: Upper CI | C38: ='Long-term illness'!B33 -> 47.71 | D38: ='Long-term illness'!C33 -> 37.351 | E38: ='Long-term illness'!D33 -> 39.063 | F38: ='Long-term illness'!E33 -> 34.28 | G38: ='Long-term illness'!F33 -> 38.12 | H38: ='Long-term illness'!G33 -> 28.52 | I38: ='Long-term illness'!H33 -> 34.92 | J38: ='Long-term illness'!I33 -> 36.05 | K38: ='Long-term illness'!J33 -> 35.42 | L38: ='Long-term illness'!K33 -> 29.66 | M38: ='Long-term illness'!L33 -> 37.189 | N38: ='Long-term illness'!M33 -> 33.686 | O38: ='Long-term illness'!N33 -> 34.5 | P38: ='Long-term illness'!O33 -> 40.72 | R38: ='Long-term illness'!P33 -> 32.72
B39: Non-limiting long-term illness | C39: ='Long-term illness'!B34 -> 9.92 | D39: ='Long-term illness'!C34 -> 19.92 | E39: ='Long-term illness'!D34 -> 8.897 | F39: ='Long-term illness'!E34 -> 14.9 | G39: ='Long-term illness'!F34 -> 13.36 | H39: ='Long-term illness'!G34 -> 14.36 | I39: ='Long-term illness'!H34 -> 12.65 | J39: ='Long-term illness'!I34 -> 14.57 | K39: ='Long-term illness'!J34 -> 14.16 | L39: ='Long-term illness'!K34 -> 17.06 | M39: ='Long-term illness'!L34 -> 20.462 | N39: ='Long-term illness'!M34 -> 17.109 | O39: ='Long-term illness'!N34 -> 13.59 | P39: ='Long-term illness'!O34 -> 11.65 | R39: ='Long-term illness'!P34 -> 14.03
B40: Lower CI | C40: ='Long-term illness'!B35 -> 8.57 | D40: ='Long-term illness'!C35 -> 15.395 | E40: ='Long-term illness'!D35 -> 5.751 | F40: ='Long-term illness'!E35 -> 12.99 | G40: ='Long-term illness'!F35 -> 10.66 | H40: ='Long-term illness'!G35 -> 12.84 | I40: ='Long-term illness'!H35 -> 11.36 | J40: ='Long-term illness'!I35 -> 12.11 | K40: ='Long-term illness'!J35 -> 11.97 | L40: ='Long-term illness'!K35 -> 15.15 | M40: ='Long-term illness'!L35 -> 16.816 | N40: ='Long-term illness'!M35 -> 13.097 | O40: ='Long-term illness'!N35 -> 11.37 | P40: ='Long-term illness'!O35 -> 8.986 | R40: ='Long-term illness'!P35 -> 13.37
B41: Upper CI | C41: ='Long-term illness'!B36 -> 11.27 | D41: ='Long-term illness'!C36 -> 24.445 | E41: ='Long-term illness'!D36 -> 12.043 | F41: ='Long-term illness'!E36 -> 16.81 | G41: ='Long-term illness'!F36 -> 16.06 | H41: ='Long-term illness'!G36 -> 15.89 | I41: ='Long-term illness'!H36 -> 13.95 | J41: ='Long-term illness'!I36 -> 17.04 | K41: ='Long-term illness'!J36 -> 16.36 | L41: ='Long-term illness'!K36 -> 18.97 | M41: ='Long-term illness'!L36 -> 24.108 | N41: ='Long-term illness'!M36 -> 21.12 | O41: ='Long-term illness'!N36 -> 15.82 | P41: ='Long-term illness'!O36 -> 14.314 | R41: ='Long-term illness'!P36 -> 14.68
B42: No long-term illness | C42: ='Long-term illness'!B37 -> 45.67 | D42: ='Long-term illness'!C37 -> 49.038 | E42: ='Long-term illness'!D37 -> 57.829 | F42: ='Long-term illness'!E37 -> 53.5 | G42: ='Long-term illness'!F37 -> 52.49 | H42: ='Long-term illness'!G37 -> 59.07 | I42: ='Long-term illness'!H37 -> 54.68 | J42: ='Long-term illness'!I37 -> 53.11 | K42: ='Long-term illness'!J37 -> 53.22 | L42: ='Long-term illness'!K37 -> 55.58 | M42: ='Long-term illness'!L37 -> 46.571 | N42: ='Long-term illness'!M37 -> 53.469 | O42: ='Long-term illness'!N37 -> 55.87 | P42: ='Long-term illness'!O37 -> 52.011 | R42: ='Long-term illness'!P37 -> 54.2
B43: Lower CI | C43: ='Long-term illness'!B38 -> 42.71 | D43: ='Long-term illness'!C38 -> 43.9 | E43: ='Long-term illness'!D38 -> 50.892 | F43: ='Long-term illness'!E38 -> 50.53 | G43: ='Long-term illness'!F38 -> 47.62 | H43: ='Long-term illness'!G38 -> 56.71 | I43: ='Long-term illness'!H38 -> 52.52 | J43: ='Long-term illness'!I38 -> 48.6 | K43: ='Long-term illness'!J38 -> 50.01 | L43: ='Long-term illness'!K38 -> 52.62 | M43: ='Long-term illness'!L38 -> 40.135 | N43: ='Long-term illness'!M38 -> 47.332 | O43: ='Long-term illness'!N38 -> 51.73 | P43: ='Long-term illness'!O38 -> 47.429 | R43: ='Long-term illness'!P38 -> 53.19
B44: Upper CI | C44: ='Long-term illness'!B39 -> 48.63 | D44: ='Long-term illness'!C39 -> 54.177 | E44: ='Long-term illness'!D39 -> 64.765 | F44: ='Long-term illness'!E39 -> 56.48 | G44: ='Long-term illness'!F39 -> 57.35 | H44: ='Long-term illness'!G39 -> 61.44 | I44: ='Long-term illness'!H39 -> 56.83 | J44: ='Long-term illness'!I39 -> 57.62 | K44: ='Long-term illness'!J39 -> 56.44 | L44: ='Long-term illness'!K39 -> 58.54 | M44: ='Long-term illness'!L39 -> 53.007 | N44: ='Long-term illness'!M39 -> 59.607 | O44: ='Long-term illness'!N39 -> 60.01 | P44: ='Long-term illness'!O39 -> 56.594 | R44: ='Long-term illness'!P39 -> 55.21
A46: CLs | B46: Limiting long-term illness | C46: =C36-C37 -> 3.3 | D46: =D36-D37 -> 6.31 | E46: 5.789 | F46: 2.69 | G46: 3.97 | H46: 1.96 | I46: 2.25 | J46: 3.73 | K46: 2.81 | L46: 2.3 | M46: 4.221 | N46: 4.264 | O46: 3.96 | P46: 4.381 | R46: =R36-R37 -> 0.95
B47: Non-limiting long-term illness | C47: =C39-C40 -> 1.35 | D47: =D39-D40 -> 4.525 | E47: 3.146 | F47: 1.91 | G47: 2.7 | H47: 1.52 | I47: 1.29 | J47: 2.46 | K47: 2.19 | L47: 1.91 | M47: 3.646 | N47: 4.012 | O47: 2.22 | P47: 2.664 | R47: =R39-R40 -> 0.66
B48: No long-term illness | C48: =C42-C43 -> 2.96 | D48: =D42-D43 -> 5.138 | E48: 6.937 | F48: 2.97 | G48: 4.87 | H48: 2.36 | I48: 2.16 | J48: 4.51 | K48: 3.21 | L48: 2.96 | M48: 6.436 | N48: 6.137 | O48: 4.14 | P48: 4.582 | R48: =R42-R43 -> 1.01

Sheet Alcohol guidelines
A1: Adherence to weekly drinking advicea by NHS Board and sex | N1: INDEX
A4: Aged 16 and over | P4: 2013/2014/2015/2016 combined
A5: Weekly drinking category | B5: NHS Board
B6: Ayrshire & Arran | C6: Borders | D6: Dumfries & Galloway | E6: Fife | F6: Forth Valley | G6: Grampian | H6: Greater Glasgow & Clyde | I6: Highland | J6: Lanarkshire | K6: Lothian | L6: Orkney | M6: Shetland | N6: Tayside | O6: Western Isles | P6: Scotland
B7: % | C7: % | D7: % | E7: % | F7: % | G7: % | H7: % | I7: % | J7: % | K7: % | L7: % | M7: % | N7: % | O7: % | P7: %
A8: Men
A9: Non drinker | B9: ='Alc guide data'!D2 -> 12.02 | C9: ='Alc guide data'!E2 -> 8.3 | D9: ='Alc guide data'!F2 -> 16.513 | E9: ='Alc guide data'!G2 -> 11.98 | F9: ='Alc guide data'!H2 -> 10.36 | G9: ='Alc guide data'!I2 -> 12.71 | H9: ='Alc guide data'!J2 -> 16.13 | I9: ='Alc guide data'!K2 -> 12.43 | J9: ='Alc guide data'!L2 -> 14.3 | K9: ='Alc guide data'!M2 -> 11.71 | L9: ='Alc guide data'!N2 -> 10.512 | M9: ='Alc guide data'!O2 -> 12.131 | N9: ='Alc guide data'!P2 -> 12.12 | O9: ='Alc guide data'!Q2 -> 19.295 | P9: ='Alc guide data'!R2 -> 13.2
A10: Lower CI | B10: ='Alc guide data'!D3 -> 9.73 | C10: ='Alc guide data'!E3 -> 4.422 | D10: ='Alc guide data'!F3 -> 11.529 | E10: ='Alc guide data'!G3 -> 9.7 | F10: ='Alc guide data'!H3 -> 7.27 | G10: ='Alc guide data'!I3 -> 10.35 | H10: ='Alc guide data'!J3 -> 13.85 | I10: ='Alc guide data'!K3 -> 9.02 | J10: ='Alc guide data'!L3 -> 10.83 | K10: ='Alc guide data'!M3 -> 9.34 | L10: ='Alc guide data'!N3 -> 6.932 | M10: ='Alc guide data'!O3 -> 8.208 | N10: ='Alc guide data'!P3 -> 9.04 | O10: ='Alc guide data'!Q3 -> 14.542 | P10: ='Alc guide data'!R3 -> 12.27
A11: Upper CI | B11: ='Alc guide data'!D4 -> 14.32 | C11: ='Alc guide data'!E4 -> 12.178 | D11: ='Alc guide data'!F4 -> 21.497 | E11: ='Alc guide data'!G4 -> 14.26 | F11: ='Alc guide data'!H4 -> 13.45 | G11: ='Alc guide data'!I4 -> 15.07 | H11: ='Alc guide data'!J4 -> 18.42 | I11: ='Alc guide data'!K4 -> 15.85 | J11: ='Alc guide data'!L4 -> 17.77 | K11: ='Alc guide data'!M4 -> 14.08 | L11: ='Alc guide data'!N4 -> 14.092 | M11: ='Alc guide data'!O4 -> 16.053 | N11: ='Alc guide data'!P4 -> 15.2 | O11: ='Alc guide data'!Q4 -> 24.049 | P11: ='Alc guide data'!R4 -> 14.14
A12: Moderateb | B12: ='Alc guide data'!D5 -> 50.67 | C12: ='Alc guide data'!E5 -> 57.474 | D12: ='Alc guide data'!F5 -> 52.948 | E12: ='Alc guide data'!G5 -> 55.85 | F12: ='Alc guide data'!H5 -> 46.25 | G12: ='Alc guide data'!I5 -> 53.98 | H12: ='Alc guide data'!J5 -> 51.35 | I12: ='Alc guide data'!K5 -> 52.12 | J12: ='Alc guide data'!L5 -> 51.74 | K12: ='Alc guide data'!M5 -> 47.97 | L12: ='Alc guide data'!N5 -> 53.991 | M12: ='Alc guide data'!O5 -> 55.031 | N12: ='Alc guide data'!P5 -> 58.48 | O12: ='Alc guide data'!Q5 -> 48.054 | P12: ='Alc guide data'!R5 -> 51.87
A13: Lower CI | B13: ='Alc guide data'!D6 -> 47.4 | C13: ='Alc guide data'!E6 -> 51.872 | D13: ='Alc guide data'!F6 -> 44.65 | E13: ='Alc guide data'!G6 -> 52.29 | F13: ='Alc guide data'!H6 -> 40.63 | G13: ='Alc guide data'!I6 -> 50.48 | H13: ='Alc guide data'!J6 -> 48.33 | I13: ='Alc guide data'!K6 -> 46.53 | J13: ='Alc guide data'!L6 -> 47.18 | K13: ='Alc guide data'!M6 -> 44.16 | L13: ='Alc guide data'!N6 -> 48.634 | M13: ='Alc guide data'!O6 -> 49.039 | N13: ='Alc guide data'!P6 -> 53.92 | O13: ='Alc guide data'!Q6 -> 42.259 | P13: ='Alc guide data'!R6 -> 50.51
A14: Upper CI | B14: ='Alc guide data'!D7 -> 53.93 | C14: ='Alc guide data'!E7 -> 63.076 | D14: ='Alc guide data'!F7 -> 61.247 | E14: ='Alc guide data'!G7 -> 59.41 | F14: ='Alc guide data'!H7 -> 51.87 | G14: ='Alc guide data'!I7 -> 57.48 | H14: ='Alc guide data'!J7 -> 54.37 | I14: ='Alc guide data'!K7 -> 57.72 | J14: ='Alc guide data'!L7 -> 56.31 | K14: ='Alc guide data'!M7 -> 51.77 | L14: ='Alc guide data'!N7 -> 59.347 | M14: ='Alc guide data'!O7 -> 61.023 | N14: ='Alc guide data'!P7 -> 63.04 | O14: ='Alc guide data'!Q7 -> 53.849 | P14: ='Alc guide data'!R7 -> 53.23
A15: Hazardous/Harmfulc | B15: ='Alc guide data'!D8 -> 37.31 | C15: ='Alc guide data'!E8 -> 34.226 | D15: ='Alc guide data'!F8 -> 30.539 | E15: ='Alc guide data'!G8 -> 32.17 | F15: ='Alc guide data'!H8 -> 43.39 | G15: ='Alc guide data'!I8 -> 33.31 | H15: ='Alc guide data'!J8 -> 32.51 | I15: ='Alc guide data'!K8 -> 35.44 | J15: ='Alc guide data'!L8 -> 33.96 | K15: ='Alc guide data'!M8 -> 40.32 | L15: ='Alc guide data'!N8 -> 35.498 | M15: ='Alc guide data'!O8 -> 32.838 | N15: ='Alc guide data'!P8 -> 29.4 | O15: ='Alc guide data'!Q8 -> 32.65 | P15: ='Alc guide data'!R8 -> 34.92
A16: Lower CI | B16: ='Alc guide data'!D9 -> 34.23 | C16: ='Alc guide data'!E9 -> 28.417 | D16: ='Alc guide data'!F9 -> 23.453 | E16: ='Alc guide data'!G9 -> 28.91 | F16: ='Alc guide data'!H9 -> 37.53 | G16: ='Alc guide data'!I9 -> 30.11 | H16: ='Alc guide data'!J9 -> 29.91 | I16: ='Alc guide data'!K9 -> 29.87 | J16: ='Alc guide data'!L9 -> 29.74 | K16: ='Alc guide data'!M9 -> 36.23 | L16: ='Alc guide data'!N9 -> 29.45 | M16: ='Alc guide data'!O9 -> 27.758 | N16: ='Alc guide data'!P9 -> 25.16 | O16: ='Alc guide data'!Q9 -> 27.507 | P16: ='Alc guide data'!R9 -> 33.6
A17: Upper CI | B17: ='Alc guide data'!D10 -> 40.39 | C17: ='Alc guide data'!E10 -> 40.036 | D17: ='Alc guide data'!F10 -> 37.624 | E17: ='Alc guide data'!G10 -> 35.43 | F17: ='Alc guide data'!H10 -> 49.26 | G17: ='Alc guide data'!I10 -> 36.5 | H17: ='Alc guide data'!J10 -> 35.12 | I17: ='Alc guide data'!K10 -> 41.01 | J17: ='Alc guide data'!L10 -> 38.17 | K17: ='Alc guide data'!M10 -> 44.41 | L17: ='Alc guide data'!N10 -> 41.546 | M17: ='Alc guide data'!O10 -> 37.918 | N17: ='Alc guide data'!P10 -> 33.64 | O17: ='Alc guide data'!Q10 -> 37.794 | P17: ='Alc guide data'!R10 -> 36.25
A19: Women
A20: Non drinker | B20: ='Alc guide data'!D11 -> 19.59 | C20: ='Alc guide data'!E11 -> 11.473 | D20: ='Alc guide data'!F11 -> 17.966 | E20: ='Alc guide data'!G11 -> 18.75 | F20: ='Alc guide data'!H11 -> 19.51 | G20: ='Alc guide data'!I11 -> 19.09 | H20: ='Alc guide data'!J11 -> 20.78 | I20: ='Alc guide data'!K11 -> 18.17 | J20: ='Alc guide data'!L11 -> 19.53 | K20: ='Alc guide data'!M11 -> 16.12 | L20: ='Alc guide data'!N11 -> 14.745 | M20: ='Alc guide data'!O11 -> 17.458 | N20: ='Alc guide data'!P11 -> 18.25 | O20: ='Alc guide data'!Q11 -> 27.289 | P20: ='Alc guide data'!R11 -> 18.77
A21: Lower CI | B21: ='Alc guide data'!D12 -> 16.86 | C21: ='Alc guide data'!E12 -> 7.906 | D21: ='Alc guide data'!F12 -> 12.901 | E21: ='Alc guide data'!G12 -> 16.26 | F21: ='Alc guide data'!H12 -> 15.81 | G21: ='Alc guide data'!I12 -> 16.7 | H21: ='Alc guide data'!J12 -> 18.42 | I21: ='Alc guide data'!K12 -> 14.67 | J21: ='Alc guide data'!L12 -> 16.06 | K21: ='Alc guide data'!M12 -> 13.66 | L21: ='Alc guide data'!N12 -> 10.292 | M21: ='Alc guide data'!O12 -> 12.7 | N21: ='Alc guide data'!P12 -> 14.87 | O21: ='Alc guide data'!Q12 -> 22.275 | P21: ='Alc guide data'!R12 -> 17.84
A22: Upper CI | B22: ='Alc guide data'!D13 -> 22.33 | C22: ='Alc guide data'!E13 -> 15.041 | D22: ='Alc guide data'!F13 -> 23.031 | E22: ='Alc guide data'!G13 -> 21.24 | F22: ='Alc guide data'!H13 -> 23.2 | G22: ='Alc guide data'!I13 -> 21.49 | H22: ='Alc guide data'!J13 -> 23.15 | I22: ='Alc guide data'!K13 -> 21.66 | J22: ='Alc guide data'!L13 -> 23.01 | K22: ='Alc guide data'!M13 -> 18.58 | L22: ='Alc guide data'!N13 -> 19.199 | M22: ='Alc guide data'!O13 -> 22.216 | N22: ='Alc guide data'!P13 -> 21.63 | O22: ='Alc guide data'!Q13 -> 32.303 | P22: ='Alc guide data'!R13 -> 19.7
A23: Moderateb | B23: ='Alc guide data'!D14 -> 64.07 | C23: ='Alc guide data'!E14 -> 72.502 | D23: ='Alc guide data'!F14 -> 67.006 | E23: ='Alc guide data'!G14 -> 66.51 | F23: ='Alc guide data'!H14 -> 62.34 | G23: ='Alc guide data'!I14 -> 64.85 | H23: ='Alc guide data'!J14 -> 63.79 | I23: ='Alc guide data'!K14 -> 64.07 | J23: ='Alc guide data'!L14 -> 64.06 | K23: ='Alc guide data'!M14 -> 63.97 | L23: ='Alc guide data'!N14 -> 67.276 | M23: ='Alc guide data'!O14 -> 65.889 | N23: ='Alc guide data'!P14 -> 67.58 | O23: ='Alc guide data'!Q14 -> 63.651 | P23: ='Alc guide data'!R14 -> 64.71
A24: Lower CI | B24: ='Alc guide data'!D15 -> 60.91 | C24: ='Alc guide data'!E15 -> 67.17 | D24: ='Alc guide data'!F15 -> 60.3 | E24: ='Alc guide data'!G15 -> 63.87 | F24: ='Alc guide data'!H15 -> 58.23 | G24: ='Alc guide data'!I15 -> 61.87 | H24: ='Alc guide data'!J15 -> 61.24 | I24: ='Alc guide data'!K15 -> 59.63 | J24: ='Alc guide data'!L15 -> 60.26 | K24: ='Alc guide data'!M15 -> 60.97 | L24: ='Alc guide data'!N15 -> 61.527 | M24: ='Alc guide data'!O15 -> 59.804 | N24: ='Alc guide data'!P15 -> 63.73 | O24: ='Alc guide data'!Q15 -> 58.102 | P24: ='Alc guide data'!R15 -> 63.63
A25: Upper CI | B25: ='Alc guide data'!D16 -> 67.24 | C25: ='Alc guide data'!E16 -> 77.834 | D25: ='Alc guide data'!F16 -> 73.712 | E25: ='Alc guide data'!G16 -> 69.16 | F25: ='Alc guide data'!H16 -> 66.44 | G25: ='Alc guide data'!I16 -> 67.83 | H25: ='Alc guide data'!J16 -> 66.34 | I25: ='Alc guide data'!K16 -> 68.5 | J25: ='Alc guide data'!L16 -> 67.85 | K25: ='Alc guide data'!M16 -> 66.96 | L25: ='Alc guide data'!N16 -> 73.025 | M25: ='Alc guide data'!O16 -> 71.975 | N25: ='Alc guide data'!P16 -> 71.42 | O25: ='Alc guide data'!Q16 -> 69.2 | P25: ='Alc guide data'!R16 -> 65.8
A26: Hazardous/Harmfulc | B26: ='Alc guide data'!D17 -> 16.34 | C26: ='Alc guide data'!E17 -> 16.025 | D26: ='Alc guide data'!F17 -> 15.028 | E26: ='Alc guide data'!G17 -> 14.74 | F26: ='Alc guide data'!H17 -> 18.16 | G26: ='Alc guide data'!I17 -> 16.06 | H26: ='Alc guide data'!J17 -> 15.43 | I26: ='Alc guide data'!K17 -> 17.77 | J26: ='Alc guide data'!L17 -> 16.41 | K26: ='Alc guide data'!M17 -> 19.91 | L26: ='Alc guide data'!N17 -> 17.979 | M26: ='Alc guide data'!O17 -> 16.653 | N26: ='Alc guide data'!P17 -> 14.18 | O26: ='Alc guide data'!Q17 -> 9.06 | P26: ='Alc guide data'!R17 -> 16.51
A27: Lower CI | B27: ='Alc guide data'!D18 -> 14.1 | C27: ='Alc guide data'!E18 -> 11.455 | D27: ='Alc guide data'!F18 -> 10.779 | E27: ='Alc guide data'!G18 -> 12.6 | F27: ='Alc guide data'!H18 -> 13.95 | G27: ='Alc guide data'!I18 -> 13.67 | H27: ='Alc guide data'!J18 -> 13.62 | I27: ='Alc guide data'!K18 -> 14.67 | J27: ='Alc guide data'!L18 -> 13.26 | K27: ='Alc guide data'!M18 -> 17.26 | L27: ='Alc guide data'!N18 -> 13.52 | M27: ='Alc guide data'!O18 -> 10.77 | N27: ='Alc guide data'!P18 -> 11.06 | O27: ='Alc guide data'!Q18 -> 5.874 | P27: ='Alc guide data'!R18 -> 15.63
A28: Upper CI | B28: ='Alc guide data'!D19 -> 18.57 | C28: ='Alc guide data'!E19 -> 20.594 | D28: ='Alc guide data'!F19 -> 19.277 | E28: ='Alc guide data'!G19 -> 16.87 | F28: ='Alc guide data'!H19 -> 22.36 | G28: ='Alc guide data'!I19 -> 18.44 | H28: ='Alc guide data'!J19 -> 17.24 | I28: ='Alc guide data'!K19 -> 20.86 | J28: ='Alc guide data'!L19 -> 19.57 | K28: ='Alc guide data'!M19 -> 22.56 | L28: ='Alc guide data'!N19 -> 22.438 | M28: ='Alc guide data'!O19 -> 22.536 | N28: ='Alc guide data'!P19 -> 17.29 | O28: ='Alc guide data'!Q19 -> 12.246 | P28: ='Alc guide data'!R19 -> 17.39
A30: All Adults
A31: Non drinker | B31: ='Alc guide data'!D20 -> 16.14 | C31: ='Alc guide data'!E20 -> 10.039 | D31: ='Alc guide data'!F20 -> 17.257 | E31: ='Alc guide data'!G20 -> 15.48 | F31: ='Alc guide data'!H20 -> 15.17 | G31: ='Alc guide data'!I20 -> 16.07 | H31: ='Alc guide data'!J20 -> 18.57 | I31: ='Alc guide data'!K20 -> 15.41 | J31: ='Alc guide data'!L20 -> 17.06 | K31: ='Alc guide data'!M20 -> 13.91 | L31: ='Alc guide data'!N20 -> 12.633 | M31: ='Alc guide data'!O20 -> 14.728 | N31: ='Alc guide data'!P20 -> 15.35 | O31: ='Alc guide data'!Q20 -> 23.278 | P31: ='Alc guide data'!R20 -> 16.11
A32: Lower CI | B32: ='Alc guide data'!D21 -> 14.12 | C32: ='Alc guide data'!E21 -> 7.42 | D32: ='Alc guide data'!F21 -> 12.908 | E32: ='Alc guide data'!G21 -> 13.51 | F32: ='Alc guide data'!H21 -> 12.49 | G32: ='Alc guide data'!I21 -> 14.19 | H32: ='Alc guide data'!J21 -> 16.64 | I32: ='Alc guide data'!K21 -> 12.63 | J32: ='Alc guide data'!L21 -> 14.3 | K32: ='Alc guide data'!M21 -> 11.96 | L32: ='Alc guide data'!N21 -> 9.594 | M32: ='Alc guide data'!O21 -> 11.291 | N32: ='Alc guide data'!P21 -> 12.94 | O32: ='Alc guide data'!Q21 -> 19.025 | P32: ='Alc guide data'!R21 -> 15.35
A33: Upper CI | B33: ='Alc guide data'!D22 -> 18.17 | C33: ='Alc guide data'!E22 -> 12.657 | D33: ='Alc guide data'!F22 -> 21.606 | E33: ='Alc guide data'!G22 -> 17.44 | F33: ='Alc guide data'!H22 -> 17.86 | G33: ='Alc guide data'!I22 -> 17.94 | H33: ='Alc guide data'!J22 -> 20.49 | I33: ='Alc guide data'!K22 -> 18.19 | J33: ='Alc guide data'!L22 -> 19.83 | K33: ='Alc guide data'!M22 -> 15.85 | L33: ='Alc guide data'!N22 -> 15.672 | M33: ='Alc guide data'!O22 -> 18.164 | N33: ='Alc guide data'!P22 -> 17.77 | O33: ='Alc guide data'!Q22 -> 27.53 | P33: ='Alc guide data'!R22 -> 16.86
A34: Moderateb | B34: ='Alc guide data'!D23 -> 57.96 | C34: ='Alc guide data'!E23 -> 65.709 | D34: ='Alc guide data'!F23 -> 60.146 | E34: ='Alc guide data'!G23 -> 61.36 | F34: ='Alc guide data'!H23 -> 54.72 | G34: ='Alc guide data'!I23 -> 59.69 | H34: ='Alc guide data'!J23 -> 57.86 | I34: ='Alc guide data'!K23 -> 58.32 | J34: ='Alc guide data'!L23 -> 58.24 | K34: ='Alc guide data'!M23 -> 55.93 | L34: ='Alc guide data'!N23 -> 60.647 | M34: ='Alc guide data'!O23 -> 60.324 | N34: ='Alc guide data'!P23 -> 63.28 | O34: ='Alc guide data'!Q23 -> 55.824 | P34: ='Alc guide data'!R23 -> 58.56
A35: Lower CI | B35: ='Alc guide data'!D24 -> 55.61 | C35: ='Alc guide data'!E24 -> 61.148 | D35: ='Alc guide data'!F24 -> 53.842 | E35: ='Alc guide data'!G24 -> 58.94 | F35: ='Alc guide data'!H24 -> 51.07 | G35: ='Alc guide data'!I24 -> 57 | H35: ='Alc guide data'!J24 -> 55.69 | I35: ='Alc guide data'!K24 -> 54.42 | J35: ='Alc guide data'!L24 -> 55.07 | K35: ='Alc guide data'!M24 -> 53.34 | L35: ='Alc guide data'!N24 -> 56.133 | M35: ='Alc guide data'!O24 -> 55.412 | N35: ='Alc guide data'!P24 -> 60.19 | O35: ='Alc guide data'!Q24 -> 51.134 | P35: ='Alc guide data'!R24 -> 57.62
A36: Upper CI | B36: ='Alc guide data'!D25 -> 60.32 | C36: ='Alc guide data'!E25 -> 70.271 | D36: ='Alc guide data'!F25 -> 66.45 | E36: ='Alc guide data'!G25 -> 63.79 | F36: ='Alc guide data'!H25 -> 58.37 | G36: ='Alc guide data'!I25 -> 62.38 | H36: ='Alc guide data'!J25 -> 60.03 | I36: ='Alc guide data'!K25 -> 62.21 | J36: ='Alc guide data'!L25 -> 61.42 | K36: ='Alc guide data'!M25 -> 58.52 | L36: ='Alc guide data'!N25 -> 65.162 | M36: ='Alc guide data'!O25 -> 65.236 | N36: ='Alc guide data'!P25 -> 66.37 | O36: ='Alc guide data'!Q25 -> 60.514 | P36: ='Alc guide data'!R25 -> 59.51
A37: Hazardous/Harmfulc | B37: ='Alc guide data'!D26 -> 25.89 | C37: ='Alc guide data'!E26 -> 24.252 | D37: ='Alc guide data'!F26 -> 22.597 | E37: ='Alc guide data'!G26 -> 23.16 | F37: ='Alc guide data'!H26 -> 30.11 | G37: ='Alc guide data'!I26 -> 24.24 | H37: ='Alc guide data'!J26 -> 23.57 | I37: ='Alc guide data'!K26 -> 26.28 | J37: ='Alc guide data'!L26 -> 24.69 | K37: ='Alc guide data'!M26 -> 30.16 | L37: ='Alc guide data'!N26 -> 26.72 | M37: ='Alc guide data'!O26 -> 24.948 | N37: ='Alc guide data'!P26 -> 21.37 | O37: ='Alc guide data'!Q26 -> 20.898 | P37: ='Alc guide data'!R26 -> 25.33
A38: Lower CI | B38: ='Alc guide data'!D27 -> 23.78 | C38: ='Alc guide data'!E27 -> 19.859 | D38: ='Alc guide data'!F27 -> 17.885 | E38: ='Alc guide data'!G27 -> 20.97 | F38: ='Alc guide data'!H27 -> 26.26 | G38: ='Alc guide data'!I27 -> 22.1 | H38: ='Alc guide data'!J27 -> 21.88 | I38: ='Alc guide data'!K27 -> 22.8 | J38: ='Alc guide data'!L27 -> 21.88 | K38: ='Alc guide data'!M27 -> 27.57 | L38: ='Alc guide data'!N27 -> 22.567 | M38: ='Alc guide data'!O27 -> 20.386 | N38: ='Alc guide data'!P27 -> 18.49 | O38: ='Alc guide data'!Q27 -> 17.511 | P38: ='Alc guide data'!R27 -> 24.47
A39: Upper CI | B39: ='Alc guide data'!D28 -> 28.01 | C39: ='Alc guide data'!E28 -> 28.645 | D39: ='Alc guide data'!F28 -> 27.31 | E39: ='Alc guide data'!G28 -> 25.35 | F39: ='Alc guide data'!H28 -> 33.96 | G39: ='Alc guide data'!I28 -> 26.39 | H39: ='Alc guide data'!J28 -> 25.26 | I39: ='Alc guide data'!K28 -> 29.75 | J39: ='Alc guide data'!L28 -> 27.51 | K39: ='Alc guide data'!M28 -> 32.75 | L39: ='Alc guide data'!N28 -> 30.872 | M39: ='Alc guide data'!O28 -> 29.51 | N39: ='Alc guide data'!P28 -> 24.25 | O39: ='Alc guide data'!Q28 -> 24.285 | P39: ='Alc guide data'!R28 -> 26.19
A41: Bases (weighted):
A42: Men | B42: ='Alc guide data'!D29 -> 590.43 | C42: ='Alc guide data'!E29 -> 181.534 | D42: ='Alc guide data'!F29 -> 257.088 | E42: ='Alc guide data'!G29 -> 608.18 | F42: ='Alc guide data'!H29 -> 491.28 | G42: ='Alc guide data'!I29 -> 961.69 | H42: ='Alc guide data'!J29 -> 1831.6 | I42: ='Alc guide data'!K29 -> 532.75 | J42: ='Alc guide data'!L29 -> 1114.15 | K42: ='Alc guide data'!M29 -> 1492.42 | L42: ='Alc guide data'!N29 -> 38.579 | M42: ='Alc guide data'!O29 -> 41.243 | N42: ='Alc guide data'!P29 -> 677.65 | O42: ='Alc guide data'!Q29 -> 47.421 | P42: ='Alc guide data'!R29 -> 8866.02
A43: Women | B43: ='Alc guide data'!D30 -> 705.05 | C43: ='Alc guide data'!E30 -> 220.077 | D43: ='Alc guide data'!F30 -> 269.708 | E43: ='Alc guide data'!G30 -> 650.88 | F43: ='Alc guide data'!H30 -> 546.02 | G43: ='Alc guide data'!I30 -> 1064.63 | H43: ='Alc guide data'!J30 -> 2011.86 | I43: ='Alc guide data'!K30 -> 573.84 | J43: ='Alc guide data'!L30 -> 1246.42 | K43: ='Alc guide data'!M30 -> 1480.07 | L43: ='Alc guide data'!N30 -> 38.744 | M43: ='Alc guide data'!O30 -> 39.228 | N43: ='Alc guide data'!P30 -> 756.46 | O43: ='Alc guide data'!Q30 -> 47.075 | P43: ='Alc guide data'!R30 -> 9650.08
A44: All Adults | B44: ='Alc guide data'!D31 -> 1295.49 | C44: ='Alc guide data'!E31 -> 401.611 | D44: ='Alc guide data'!F31 -> 526.796 | E44: ='Alc guide data'!G31 -> 1259.06 | F44: ='Alc guide data'!H31 -> 1037.3 | G44: ='Alc guide data'!I31 -> 2026.33 | H44: ='Alc guide data'!J31 -> 3843.46 | I44: ='Alc guide data'!K31 -> 1106.6 | J44: ='Alc guide data'!L31 -> 2360.57 | K44: ='Alc guide data'!M31 -> 2972.5 | L44: ='Alc guide data'!N31 -> 77.322 | M44: ='Alc guide data'!O31 -> 80.471 | N44: ='Alc guide data'!P31 -> 1434.11 | O44: ='Alc guide data'!Q31 -> 94.495 | P44: ='Alc guide data'!R31 -> 18516.1
A45: Bases (unweighted)
A46: Men | B46: ='Alc guide data'!D32 -> 927 | C46: ='Alc guide data'!E32 -> 196 | D46: ='Alc guide data'!F32 -> 218 | E46: ='Alc guide data'!G32 -> 891 | F46: ='Alc guide data'!H32 -> 304 | G46: ='Alc guide data'!I32 -> 1119 | H46: ='Alc guide data'!J32 -> 1318 | I46: ='Alc guide data'!K32 -> 351 | J46: ='Alc guide data'!L32 -> 646 | K46: ='Alc guide data'!M32 -> 919 | L46: ='Alc guide data'!N32 -> 233 | M46: ='Alc guide data'!O32 -> 243 | N46: ='Alc guide data'!P32 -> 470 | O46: ='Alc guide data'!Q32 -> 382 | P46: ='Alc guide data'!R32 -> 8217
A47: Women | B47: ='Alc guide data'!D33 -> 1201 | C47: ='Alc guide data'!E33 -> 275 | D47: ='Alc guide data'!F33 -> 254 | E47: ='Alc guide data'!G33 -> 1126 | F47: ='Alc guide data'!H33 -> 407 | G47: ='Alc guide data'!I33 -> 1416 | H47: ='Alc guide data'!J33 -> 1722 | I47: ='Alc guide data'!K33 -> 458 | J47: ='Alc guide data'!L33 -> 871 | K47: ='Alc guide data'!M33 -> 1095 | L47: ='Alc guide data'!N33 -> 269 | M47: ='Alc guide data'!O33 -> 276 | N47: ='Alc guide data'!P33 -> 582 | O47: ='Alc guide data'!Q33 -> 454 | P47: ='Alc guide data'!R33 -> 10406
A48: All Adults | B48: ='Alc guide data'!D34 -> 2128 | C48: ='Alc guide data'!E34 -> 471 | D48: ='Alc guide data'!F34 -> 472 | E48: ='Alc guide data'!G34 -> 2017 | F48: ='Alc guide data'!H34 -> 711 | G48: ='Alc guide data'!I34 -> 2535 | H48: ='Alc guide data'!J34 -> 3040 | I48: ='Alc guide data'!K34 -> 809 | J48: ='Alc guide data'!L34 -> 1517 | K48: ='Alc guide data'!M34 -> 2014 | L48: ='Alc guide data'!N34 -> 502 | M48: ='Alc guide data'!O34 -> 519 | N48: ='Alc guide data'!P34 -> 1052 | O48: ='Alc guide data'!Q34 -> 836 | P48: ='Alc guide data'!R34 -> 18623
A50: a 2016 CMO recommendations: https://www.gov.uk/government/uploads/system/uploads/attachment_data/file/545937/UK_CMOs__report.pdf
A51: b Up to and including 14 units per week
A52: c Over 14 units per week

Sheet Alc guide data (hidden)
A1: F_sex | B1: F_drkcat315 | C1: _NAME_ | D1: Ayrshire & Arran | E1: Borders | F1: Dumfries & Galloway | G1: Fife | H1: Forth Valley | I1: Grampian | J1: Greater Glasgow | K1: Highland | L1: Lanarkshire | M1: Lothian | N1: Orkney | O1: Shetland | P1: Tayside | Q1: Western Isles | R1: Scotland
A2: Male | B2: Non-drinker | C2: RowPercent | D2: 12.02 | E2: 8.3 | F2: 16.513 | G2: 11.98 | H2: 10.36 | I2: 12.71 | J2: 16.13 | K2: 12.43 | L2: 14.3 | M2: 11.71 | N2: 10.512 | O2: 12.131 | P2: 12.12 | Q2: 19.295 | R2: 13.2
A3: Male | B3: Non-drinker | C3: RowLowerCL | D3: 9.73 | E3: 4.422 | F3: 11.529 | G3: 9.7 | H3: 7.27 | I3: 10.35 | J3: 13.85 | K3: 9.02 | L3: 10.83 | M3: 9.34 | N3: 6.932 | O3: 8.208 | P3: 9.04 | Q3: 14.542 | R3: 12.27
A4: Male | B4: Non-drinker | C4: RowUpperCL | D4: 14.32 | E4: 12.178 | F4: 21.497 | G4: 14.26 | H4: 13.45 | I4: 15.07 | J4: 18.42 | K4: 15.85 | L4: 17.77 | M4: 14.08 | N4: 14.092 | O4: 16.053 | P4: 15.2 | Q4: 24.049 | R4: 14.14
A5: Male | B5: Moderate (up to and including 14) | C5: RowPercent | D5: 50.67 | E5: 57.474 | F5: 52.948 | G5: 55.85 | H5: 46.25 | I5: 53.98 | J5: 51.35 | K5: 52.12 | L5: 51.74 | M5: 47.97 | N5: 53.991 | O5: 55.031 | P5: 58.48 | Q5: 48.054 | R5: 51.87
A6: Male | B6: Moderate (up to and including 14) | C6: RowLowerCL | D6: 47.4 | E6: 51.872 | F6: 44.65 | G6: 52.29 | H6: 40.63 | I6: 50.48 | J6: 48.33 | K6: 46.53 | L6: 47.18 | M6: 44.16 | N6: 48.634 | O6: 49.039 | P6: 53.92 | Q6: 42.259 | R6: 50.51
A7: Male | B7: Moderate (up to and including 14) | C7: RowUpperCL | D7: 53.93 | E7: 63.076 | F7: 61.247 | G7: 59.41 | H7: 51.87 | I7: 57.48 | J7: 54.37 | K7: 57.72 | L7: 56.31 | M7: 51.77 | N7: 59.347 | O7: 61.023 | P7: 63.04 | Q7: 53.849 | R7: 53.23
A8: Male | B8: Hazardous/harmful (over 14) | C8: RowPercent | D8: 37.31 | E8: 34.226 | F8: 30.539 | G8: 32.17 | H8: 43.39 | I8: 33.31 | J8: 32.51 | K8: 35.44 | L8: 33.96 | M8: 40.32 | N8: 35.498 | O8: 32.838 | P8: 29.4 | Q8: 32.65 | R8: 34.92
A9: Male | B9: Hazardous/harmful (over 14) | C9: RowLowerCL | D9: 34.23 | E9: 28.417 | F9: 23.453 | G9: 28.91 | H9: 37.53 | I9: 30.11 | J9: 29.91 | K9: 29.87 | L9: 29.74 | M9: 36.23 | N9: 29.45 | O9: 27.758 | P9: 25.16 | Q9: 27.507 | R9: 33.6
A10: Male | B10: Hazardous/harmful (over 14) | C10: RowUpperCL | D10: 40.39 | E10: 40.036 | F10: 37.624 | G10: 35.43 | H10: 49.26 | I10: 36.5 | J10: 35.12 | K10: 41.01 | L10: 38.17 | M10: 44.41 | N10: 41.546 | O10: 37.918 | P10: 33.64 | Q10: 37.794 | R10: 36.25
A11: Female | B11: Non-drinker | C11: RowPercent | D11: 19.59 | E11: 11.473 | F11: 17.966 | G11: 18.75 | H11: 19.51 | I11: 19.09 | J11: 20.78 | K11: 18.17 | L11: 19.53 | M11: 16.12 | N11: 14.745 | O11: 17.458 | P11: 18.25 | Q11: 27.289 | R11: 18.77
A12: Female | B12: Non-drinker | C12: RowLowerCL | D12: 16.86 | E12: 7.906 | F12: 12.901 | G12: 16.26 | H12: 15.81 | I12: 16.7 | J12: 18.42 | K12: 14.67 | L12: 16.06 | M12: 13.66 | N12: 10.292 | O12: 12.7 | P12: 14.87 | Q12: 22.275 | R12: 17.84
A13: Female | B13: Non-drinker | C13: RowUpperCL | D13: 22.33 | E13: 15.041 | F13: 23.031 | G13: 21.24 | H13: 23.2 | I13: 21.49 | J13: 23.15 | K13: 21.66 | L13: 23.01 | M13: 18.58 | N13: 19.199 | O13: 22.216 | P13: 21.63 | Q13: 32.303 | R13: 19.7
A14: Female | B14: Moderate (up to and including 14) | C14: RowPercent | D14: 64.07 | E14: 72.502 | F14: 67.006 | G14: 66.51 | H14: 62.34 | I14: 64.85 | J14: 63.79 | K14: 64.07 | L14: 64.06 | M14: 63.97 | N14: 67.276 | O14: 65.889 | P14: 67.58 | Q14: 63.651 | R14: 64.71
A15: Female | B15: Moderate (up to and including 14) | C15: RowLowerCL | D15: 60.91 | E15: 67.17 | F15: 60.3 | G15: 63.87 | H15: 58.23 | I15: 61.87 | J15: 61.24 | K15: 59.63 | L15: 60.26 | M15: 60.97 | N15: 61.527 | O15: 59.804 | P15: 63.73 | Q15: 58.102 | R15: 63.63
A16: Female | B16: Moderate (up to and including 14) | C16: RowUpperCL | D16: 67.24 | E16: 77.834 | F16: 73.712 | G16: 69.16 | H16: 66.44 | I16: 67.83 | J16: 66.34 | K16: 68.5 | L16: 67.85 | M16: 66.96 | N16: 73.025 | O16: 71.975 | P16: 71.42 | Q16: 69.2 | R16: 65.8
A17: Female | B17: Hazardous/harmful (over 14) | C17: RowPercent | D17: 16.34 | E17: 16.025 | F17: 15.028 | G17: 14.74 | H17: 18.16 | I17: 16.06 | J17: 15.43 | K17: 17.77 | L17: 16.41 | M17: 19.91 | N17: 17.979 | O17: 16.653 | P17: 14.18 | Q17: 9.06 | R17: 16.51
A18: Female | B18: Hazardous/harmful (over 14) | C18: RowLowerCL | D18: 14.1 | E18: 11.455 | F18: 10.779 | G18: 12.6 | H18: 13.95 | I18: 13.67 | J18: 13.62 | K18: 14.67 | L18: 13.26 | M18: 17.26 | N18: 13.52 | O18: 10.77 | P18: 11.06 | Q18: 5.874 | R18: 15.63
A19: Female | B19: Hazardous/harmful (over 14) | C19: RowUpperCL | D19: 18.57 | E19: 20.594 | F19: 19.277 | G19: 16.87 | H19: 22.36 | I19: 18.44 | J19: 17.24 | K19: 20.86 | L19: 19.57 | M19: 22.56 | N19: 22.438 | O19: 22.536 | P19: 17.29 | Q19: 12.246 | R19: 17.39
A20: Total | B20: Non-drinker | C20: RowPercent | D20: 16.14 | E20: 10.039 | F20: 17.257 | G20: 15.48 | H20: 15.17 | I20: 16.07 | J20: 18.57 | K20: 15.41 | L20: 17.06 | M20: 13.91 | N20: 12.633 | O20: 14.728 | P20: 15.35 | Q20: 23.278 | R20: 16.11
A21: Total | B21: Non-drinker | C21: RowLowerCL | D21: 14.12 | E21: 7.42 | F21: 12.908 | G21: 13.51 | H21: 12.49 | I21: 14.19 | J21: 16.64 | K21: 12.63 | L21: 14.3 | M21: 11.96 | N21: 9.594 | O21: 11.291 | P21: 12.94 | Q21: 19.025 | R21: 15.35
A22: Total | B22: Non-drinker | C22: RowUpperCL | D22: 18.17 | E22: 12.657 | F22: 21.606 | G22: 17.44 | H22: 17.86 | I22: 17.94 | J22: 20.49 | K22: 18.19 | L22: 19.83 | M22: 15.85 | N22: 15.672 | O22: 18.164 | P22: 17.77 | Q22: 27.53 | R22: 16.86
A23: Total | B23: Moderate (up to and including 14) | C23: RowPercent | D23: 57.96 | E23: 65.709 | F23: 60.146 | G23: 61.36 | H23: 54.72 | I23: 59.69 | J23: 57.86 | K23: 58.32 | L23: 58.24 | M23: 55.93 | N23: 60.647 | O23: 60.324 | P23: 63.28 | Q23: 55.824 | R23: 58.56
A24: Total | B24: Moderate (up to and including 14) | C24: RowLowerCL | D24: 55.61 | E24: 61.148 | F24: 53.842 | G24: 58.94 | H24: 51.07 | I24: 57 | J24: 55.69 | K24: 54.42 | L24: 55.07 | M24: 53.34 | N24: 56.133 | O24: 55.412 | P24: 60.19 | Q24: 51.134 | R24: 57.62
A25: Total | B25: Moderate (up to and including 14) | C25: RowUpperCL | D25: 60.32 | E25: 70.271 | F25: 66.45 | G25: 63.79 | H25: 58.37 | I25: 62.38 | J25: 60.03 | K25: 62.21 | L25: 61.42 | M25: 58.52 | N25: 65.162 | O25: 65.236 | P25: 66.37 | Q25: 60.514 | R25: 59.51
A26: Total | B26: Hazardous/harmful (over 14) | C26: RowPercent | D26: 25.89 | E26: 24.252 | F26: 22.597 | G26: 23.16 | H26: 30.11 | I26: 24.24 | J26: 23.57 | K26: 26.28 | L26: 24.69 | M26: 30.16 | N26: 26.72 | O26: 24.948 | P26: 21.37 | Q26: 20.898 | R26: 25.33
A27: Total | B27: Hazardous/harmful (over 14) | C27: RowLowerCL | D27: 23.78 | E27: 19.859 | F27: 17.885 | G27: 20.97 | H27: 26.26 | I27: 22.1 | J27: 21.88 | K27: 22.8 | L27: 21.88 | M27: 27.57 | N27: 22.567 | O27: 20.386 | P27: 18.49 | Q27: 17.511 | R27: 24.47
A28: Total | B28: Hazardous/harmful (over 14) | C28: RowUpperCL | D28: 28.01 | E28: 28.645 | F28: 27.31 | G28: 25.35 | H28: 33.96 | I28: 26.39 | J28: 25.26 | K28: 29.75 | L28: 27.51 | M28: 32.75 | N28: 30.872 | O28: 29.51 | P28: 24.25 | Q28: 24.285 | R28: 26.19
A29: Male | B29: . | C29: WgtFreq | D29: 590.43 | E29: 181.534 | F29: 257.088 | G29: 608.18 | H29: 491.28 | I29: 961.69 | J29: 1831.6 | K29: 532.75 | L29: 1114.15 | M29: 1492.42 | N29: 38.579 | O29: 41.243 | P29: 677.65 | Q29: 47.421 | R29: 8866.02
A30: Female | B30: . | C30: WgtFreq | D30: 705.05 | E30: 220.077 | F30: 269.708 | G30: 650.88 | H30: 546.02 | I30: 1064.63 | J30: 2011.86 | K30: 573.84 | L30: 1246.42 | M30: 1480.07 | N30: 38.744 | O30: 39.228 | P30: 756.46 | Q30: 47.075 | R30: 9650.08
A31: Total | B31: . | C31: WgtFreq | D31: 1295.49 | E31: 401.611 | F31: 526.796 | G31: 1259.06 | H31: 1037.3 | I31: 2026.33 | J31: 3843.46 | K31: 1106.6 | L31: 2360.57 | M31: 2972.5 | N31: 77.322 | O31: 80.471 | P31: 1434.11 | Q31: 94.495 | R31: 18516.1
A32: Male | B32: . | C32: Frequency | D32: 927 | E32: 196 | F32: 218 | G32: 891 | H32: 304 | I32: 1119 | J32: 1318 | K32: 351 | L32: 646 | M32: 919 | N32: 233 | O32: 243 | P32: 470 | Q32: 382 | R32: 8217
A33: Female | B33: . | C33: Frequency | D33: 1201 | E33: 275 | F33: 254 | G33: 1126 | H33: 407 | I33: 1416 | J33: 1722 | K33: 458 | L33: 871 | M33: 1095 | N33: 269 | O33: 276 | P33: 582 | Q33: 454 | R33: 10406
A34: Total | B34: . | C34: Frequency | D34: 2128 | E34: 471 | F34: 472 | G34: 2017 | H34: 711 | I34: 2535 | J34: 3040 | K34: 809 | L34: 1517 | M34: 2014 | N34: 502 | O34: 519 | P34: 1052 | Q34: 836 | R34: 18623

Sheet Alcohol guidelines chart
R1: INDEX
C31: Source: Scottish Health Survey
C32: Ayrshire & Arran | D32: Borders | E32: Dumfries & Galloway | F32: Fife | G32: Forth Valley | H32: Grampian | I32: Greater Glasgow & Clyde | J32: Highland | K32: Lanarkshire | L32: Lothian | M32: Orkney | N32: Shetland | O32: Tayside | P32: Western Isles | R32: Scotland
B33: All Adults
B34: Non drinker | C34: ='Alcohol guidelines'!B31 -> 16.14 | D34: ='Alcohol guidelines'!C31 -> 10.039 | E34: ='Alcohol guidelines'!D31 -> 17.257 | F34: ='Alcohol guidelines'!E31 -> 15.48 | G34: ='Alcohol guidelines'!F31 -> 15.17 | H34: ='Alcohol guidelines'!G31 -> 16.07 | I34: ='Alcohol guidelines'!H31 -> 18.57 | J34: ='Alcohol guidelines'!I31 -> 15.41 | K34: ='Alcohol guidelines'!J31 -> 17.06 | L34: ='Alcohol guidelines'!K31 -> 13.91 | M34: ='Alcohol guidelines'!L31 -> 12.633 | N34: ='Alcohol guidelines'!M31 -> 14.728 | O34: ='Alcohol guidelines'!N31 -> 15.35 | P34: ='Alcohol guidelines'!O31 -> 23.278 | R34: ='Alcohol guidelines'!P31 -> 16.11
B35: Lower CI | C35: ='Alcohol guidelines'!B32 -> 14.12 | D35: ='Alcohol guidelines'!C32 -> 7.42 | E35: ='Alcohol guidelines'!D32 -> 12.908 | F35: ='Alcohol guidelines'!E32 -> 13.51 | G35: ='Alcohol guidelines'!F32 -> 12.49 | H35: ='Alcohol guidelines'!G32 -> 14.19 | I35: ='Alcohol guidelines'!H32 -> 16.64 | J35: ='Alcohol guidelines'!I32 -> 12.63 | K35: ='Alcohol guidelines'!J32 -> 14.3 | L35: ='Alcohol guidelines'!K32 -> 11.96 | M35: ='Alcohol guidelines'!L32 -> 9.594 | N35: ='Alcohol guidelines'!M32 -> 11.291 | O35: ='Alcohol guidelines'!N32 -> 12.94 | P35: ='Alcohol guidelines'!O32 -> 19.025 | R35: ='Alcohol guidelines'!P32 -> 15.35
B36: Upper CI | C36: ='Alcohol guidelines'!B33 -> 18.17 | D36: ='Alcohol guidelines'!C33 -> 12.657 | E36: ='Alcohol guidelines'!D33 -> 21.606 | F36: ='Alcohol guidelines'!E33 -> 17.44 | G36: ='Alcohol guidelines'!F33 -> 17.86 | H36: ='Alcohol guidelines'!G33 -> 17.94 | I36: ='Alcohol guidelines'!H33 -> 20.49 | J36: ='Alcohol guidelines'!I33 -> 18.19 | K36: ='Alcohol guidelines'!J33 -> 19.83 | L36: ='Alcohol guidelines'!K33 -> 15.85 | M36: ='Alcohol guidelines'!L33 -> 15.672 | N36: ='Alcohol guidelines'!M33 -> 18.164 | O36: ='Alcohol guidelines'!N33 -> 17.77 | P36: ='Alcohol guidelines'!O33 -> 27.53 | R36: ='Alcohol guidelines'!P33 -> 16.86
B37: Moderate | C37: ='Alcohol guidelines'!B34 -> 57.96 | D37: ='Alcohol guidelines'!C34 -> 65.709 | E37: ='Alcohol guidelines'!D34 -> 60.146 | F37: ='Alcohol guidelines'!E34 -> 61.36 | G37: ='Alcohol guidelines'!F34 -> 54.72 | H37: ='Alcohol guidelines'!G34 -> 59.69 | I37: ='Alcohol guidelines'!H34 -> 57.86 | J37: ='Alcohol guidelines'!I34 -> 58.32 | K37: ='Alcohol guidelines'!J34 -> 58.24 | L37: ='Alcohol guidelines'!K34 -> 55.93 | M37: ='Alcohol guidelines'!L34 -> 60.647 | N37: ='Alcohol guidelines'!M34 -> 60.324 | O37: ='Alcohol guidelines'!N34 -> 63.28 | P37: ='Alcohol guidelines'!O34 -> 55.824 | R37: ='Alcohol guidelines'!P34 -> 58.56
B38: Lower CI | C38: ='Alcohol guidelines'!B35 -> 55.61 | D38: ='Alcohol guidelines'!C35 -> 61.148 | E38: ='Alcohol guidelines'!D35 -> 53.842 | F38: ='Alcohol guidelines'!E35 -> 58.94 | G38: ='Alcohol guidelines'!F35 -> 51.07 | H38: ='Alcohol guidelines'!G35 -> 57 | I38: ='Alcohol guidelines'!H35 -> 55.69 | J38: ='Alcohol guidelines'!I35 -> 54.42 | K38: ='Alcohol guidelines'!J35 -> 55.07 | L38: ='Alcohol guidelines'!K35 -> 53.34 | M38: ='Alcohol guidelines'!L35 -> 56.133 | N38: ='Alcohol guidelines'!M35 -> 55.412 | O38: ='Alcohol guidelines'!N35 -> 60.19 | P38: ='Alcohol guidelines'!O35 -> 51.134 | R38: ='Alcohol guidelines'!P35 -> 57.62
B39: Upper CI | C39: ='Alcohol guidelines'!B36 -> 60.32 | D39: ='Alcohol guidelines'!C36 -> 70.271 | E39: ='Alcohol guidelines'!D36 -> 66.45 | F39: ='Alcohol guidelines'!E36 -> 63.79 | G39: ='Alcohol guidelines'!F36 -> 58.37 | H39: ='Alcohol guidelines'!G36 -> 62.38 | I39: ='Alcohol guidelines'!H36 -> 60.03 | J39: ='Alcohol guidelines'!I36 -> 62.21 | K39: ='Alcohol guidelines'!J36 -> 61.42 | L39: ='Alcohol guidelines'!K36 -> 58.52 | M39: ='Alcohol guidelines'!L36 -> 65.162 | N39: ='Alcohol guidelines'!M36 -> 65.236 | O39: ='Alcohol guidelines'!N36 -> 66.37 | P39: ='Alcohol guidelines'!O36 -> 60.514 | R39: ='Alcohol guidelines'!P36 -> 59.51
B40: Hazardous/harmful | C40: ='Alcohol guidelines'!B37 -> 25.89 | D40: ='Alcohol guidelines'!C37 -> 24.252 | E40: ='Alcohol guidelines'!D37 -> 22.597 | F40: ='Alcohol guidelines'!E37 -> 23.16 | G40: ='Alcohol guidelines'!F37 -> 30.11 | H40: ='Alcohol guidelines'!G37 -> 24.24 | I40: ='Alcohol guidelines'!H37 -> 23.57 | J40: ='Alcohol guidelines'!I37 -> 26.28 | K40: ='Alcohol guidelines'!J37 -> 24.69 | L40: ='Alcohol guidelines'!K37 -> 30.16 | M40: ='Alcohol guidelines'!L37 -> 26.72 | N40: ='Alcohol guidelines'!M37 -> 24.948 | O40: ='Alcohol guidelines'!N37 -> 21.37 | P40: ='Alcohol guidelines'!O37 -> 20.898 | R40: ='Alcohol guidelines'!P37 -> 25.33
B41: Lower CI | C41: ='Alcohol guidelines'!B38 -> 23.78 | D41: ='Alcohol guidelines'!C38 -> 19.859 | E41: ='Alcohol guidelines'!D38 -> 17.885 | F41: ='Alcohol guidelines'!E38 -> 20.97 | G41: ='Alcohol guidelines'!F38 -> 26.26 | H41: ='Alcohol guidelines'!G38 -> 22.1 | I41: ='Alcohol guidelines'!H38 -> 21.88 | J41: ='Alcohol guidelines'!I38 -> 22.8 | K41: ='Alcohol guidelines'!J38 -> 21.88 | L41: ='Alcohol guidelines'!K38 -> 27.57 | M41: ='Alcohol guidelines'!L38 -> 22.567 | N41: ='Alcohol guidelines'!M38 -> 20.386 | O41: ='Alcohol guidelines'!N38 -> 18.49 | P41: ='Alcohol guidelines'!O38 -> 17.511 | R41: ='Alcohol guidelines'!P38 -> 24.47
B42: Upper CI | C42: ='Alcohol guidelines'!B39 -> 28.01 | D42: ='Alcohol guidelines'!C39 -> 28.645 | E42: ='Alcohol guidelines'!D39 -> 27.31 | F42: ='Alcohol guidelines'!E39 -> 25.35 | G42: ='Alcohol guidelines'!F39 -> 33.96 | H42: ='Alcohol guidelines'!G39 -> 26.39 | I42: ='Alcohol guidelines'!H39 -> 25.26 | J42: ='Alcohol guidelines'!I39 -> 29.75 | K42: ='Alcohol guidelines'!J39 -> 27.51 | L42: ='Alcohol guidelines'!K39 -> 32.75 | M42: ='Alcohol guidelines'!L39 -> 30.872 | N42: ='Alcohol guidelines'!M39 -> 29.51 | O42: ='Alcohol guidelines'!N39 -> 24.25 | P42: ='Alcohol guidelines'!O39 -> 24.285 | R42: ='Alcohol guidelines'!P39 -> 26.19
A44: CLs | B44: Non drinker | C44: =C34-C35 -> 2.02 | D44: =D34-D35 -> 2.619 | E44: 4.349 | F44: 1.97 | G44: 2.68 | H44: 1.88 | I44: 1.93 | J44: 2.78 | K44: 2.76 | L44: 1.95 | M44: 3.039 | N44: 3.437 | O44: 2.41 | P44: 4.253 | R44: 0.76
B45: Moderate | C45: =C37-C38 -> 2.35 | D45: =D37-D38 -> 4.561 | E45: 6.304 | F45: 2.42 | G45: 3.65 | H45: 2.69 | I45: 2.17 | J45: 3.9 | K45: 3.17 | L45: 2.59 | M45: 4.514 | N45: 4.912 | O45: 3.09 | P45: 4.69 | R45: 0.94
B46: Hazardous/harmful | C46: =C40-C41 -> 2.11 | D46: =D40-D41 -> 4.393 | E46: 4.712 | F46: 2.19 | G46: 3.85 | H46: 2.14 | I46: 1.69 | J46: 3.48 | K46: 2.81 | L46: 2.59 | M46: 4.153 | N46: 4.562 | O46: 2.88 | P46: 3.387 | R46: 0.86
C47: Based on 2016 CMO recommendations (https://www.gov.uk/government/uploads/system/uploads/attachment_data/file/545937/UK_CMOs__report.pdf) Moderate- Up to and including 14 units per week Hazardous/harmful- Over 14 units per week

Sheet Mean alcohol units
A1: Mean number of alcohol units consumed weekly, by NHS Board and sex | M1: INDEX
A4: Aged 16 and over | P4: 2013/2014/2015/2016 combined
A5: Mean alcohol drinking | B5: NHS Board
B6: Ayrshire & Arran | C6: Borders | D6: Dumfries & Galloway | E6: Fife | F6: Forth Valley | G6: Grampian | H6: Greater Glasgow & Clyde | I6: Highland | J6: Lanarkshire | K6: Lothian | L6: Orkney | M6: Shetland | N6: Tayside | O6: Western Isles | P6: Scotland
A7: Men
A8: Weekly mean unitsa | B8: ='meanunit data'!C2 -> 18.86 | C8: ='meanunit data'!D2 -> 14.372 | D8: ='meanunit data'!E2 -> 16.24 | E8: ='meanunit data'!F2 -> 15.68 | F8: ='meanunit data'!G2 -> 20.646 | G8: ='meanunit data'!H2 -> 15.55 | H8: ='meanunit data'!I2 -> 15.89 | I8: ='meanunit data'!J2 -> 15.158 | J8: ='meanunit data'!K2 -> 16.37 | K8: ='meanunit data'!L2 -> 17.5 | L8: ='meanunit data'!M2 -> 17.503 | M8: ='meanunit data'!N2 -> 16.489 | N8: ='meanunit data'!O2 -> 13.48 | O8: ='meanunit data'!P2 -> 17.208 | P8: ='meanunit data'!Q2 -> 16.41
A9: Lower CI | B9: ='meanunit data'!C3 -> 16.9 | C9: ='meanunit data'!D3 -> 11.772 | D9: ='meanunit data'!E3 -> 12.765 | E9: ='meanunit data'!F3 -> 13.89 | F9: ='meanunit data'!G3 -> 16.729 | G9: ='meanunit data'!H3 -> 13.85 | H9: ='meanunit data'!I3 -> 14.69 | I9: ='meanunit data'!J3 -> 13.042 | J9: ='meanunit data'!K3 -> 14.27 | K9: ='meanunit data'!L3 -> 15.82 | L9: ='meanunit data'!M3 -> 14.672 | M9: ='meanunit data'!N3 -> 13.272 | N9: ='meanunit data'!O3 -> 11.96 | O9: ='meanunit data'!P3 -> 14.608 | P9: ='meanunit data'!Q3 -> 15.8
A10: Upper CI | B10: ='meanunit data'!C4 -> 20.82 | C10: ='meanunit data'!D4 -> 16.971 | D10: ='meanunit data'!E4 -> 19.715 | E10: ='meanunit data'!F4 -> 17.46 | F10: ='meanunit data'!G4 -> 24.563 | G10: ='meanunit data'!H4 -> 17.26 | H10: ='meanunit data'!I4 -> 17.09 | I10: ='meanunit data'!J4 -> 17.275 | J10: ='meanunit data'!K4 -> 18.47 | K10: ='meanunit data'!L4 -> 19.19 | L10: ='meanunit data'!M4 -> 20.334 | M10: ='meanunit data'!N4 -> 19.705 | N10: ='meanunit data'!O4 -> 15.01 | O10: ='meanunit data'!P4 -> 19.808 | P10: ='meanunit data'!Q4 -> 17.03
A12: Women
A13: Weekly mean unitsa | B13: ='meanunit data'!C5 -> 8.75 | C13: ='meanunit data'!D5 -> 7.943 | D13: ='meanunit data'!E5 -> 7.448 | E13: ='meanunit data'!F5 -> 8.24 | F13: ='meanunit data'!G5 -> 9.007 | G13: ='meanunit data'!H5 -> 9.08 | H13: ='meanunit data'!I5 -> 8.58 | I13: ='meanunit data'!J5 -> 9.124 | J13: ='meanunit data'!K5 -> 8.78 | K13: ='meanunit data'!L5 -> 9.66 | L13: ='meanunit data'!M5 -> 8.62 | M13: ='meanunit data'!N5 -> 8.317 | N13: ='meanunit data'!O5 -> 8.12 | O13: ='meanunit data'!P5 -> 6.089 | P13: ='meanunit data'!Q5 -> 8.78
A14: Lower CI | B14: ='meanunit data'!C6 -> 7.88 | C14: ='meanunit data'!D6 -> 6.419 | D14: ='meanunit data'!E6 -> 6.037 | E14: ='meanunit data'!F6 -> 7.18 | F14: ='meanunit data'!G6 -> 7.768 | G14: ='meanunit data'!H6 -> 8.14 | H14: ='meanunit data'!I6 -> 7.9 | I14: ='meanunit data'!J6 -> 7.822 | J14: ='meanunit data'!K6 -> 7.5 | K14: ='meanunit data'!L6 -> 8.76 | L14: ='meanunit data'!M6 -> 7.156 | M14: ='meanunit data'!N6 -> 6.563 | N14: ='meanunit data'!O6 -> 7.06 | O14: ='meanunit data'!P6 -> 4.927 | P14: ='meanunit data'!Q6 -> 8.46
A15: Upper CI | B15: ='meanunit data'!C7 -> 9.62 | C15: ='meanunit data'!D7 -> 9.467 | D15: ='meanunit data'!E7 -> 8.859 | E15: ='meanunit data'!F7 -> 9.29 | F15: ='meanunit data'!G7 -> 10.246 | G15: ='meanunit data'!H7 -> 10.02 | H15: ='meanunit data'!I7 -> 9.25 | I15: ='meanunit data'!J7 -> 10.425 | J15: ='meanunit data'!K7 -> 10.05 | K15: ='meanunit data'!L7 -> 10.55 | L15: ='meanunit data'!M7 -> 10.084 | M15: ='meanunit data'!N7 -> 10.071 | N15: ='meanunit data'!O7 -> 9.18 | O15: ='meanunit data'!P7 -> 7.251 | P15: ='meanunit data'!Q7 -> 9.1
A17: All adults
A18: Weekly mean unitsa | B18: ='meanunit data'!C8 -> 13.58 | C18: ='meanunit data'!D8 -> 10.931 | D18: ='meanunit data'!E8 -> 11.793 | E18: ='meanunit data'!F8 -> 11.98 | F18: ='meanunit data'!G8 -> 14.865 | G18: ='meanunit data'!H8 -> 12.28 | H18: ='meanunit data'!I8 -> 12.17 | I18: ='meanunit data'!J8 -> 12.126 | J18: ='meanunit data'!K8 -> 12.5 | K18: ='meanunit data'!L8 -> 13.7 | L18: ='meanunit data'!M8 -> 13.158 | M18: ='meanunit data'!N8 -> 12.609 | N18: ='meanunit data'!O8 -> 10.76 | O18: ='meanunit data'!P8 -> 11.976 | P18: ='meanunit data'!Q8 -> 12.57
A19: Lower CI | B19: ='meanunit data'!C9 -> 12.45 | C19: ='meanunit data'!D9 -> 9.182 | D19: ='meanunit data'!E9 -> 9.597 | E19: ='meanunit data'!F9 -> 10.93 | F19: ='meanunit data'!G9 -> 12.726 | G19: ='meanunit data'!H9 -> 11.21 | H19: ='meanunit data'!I9 -> 11.4 | I19: ='meanunit data'!J9 -> 10.8 | J19: ='meanunit data'!K9 -> 11.19 | K19: ='meanunit data'!L9 -> 12.66 | L19: ='meanunit data'!M9 -> 11.319 | M19: ='meanunit data'!N9 -> 10.489 | N19: ='meanunit data'!O9 -> 9.84 | O19: ='meanunit data'!P9 -> 10.24 | P19: ='meanunit data'!Q9 -> 12.2
A20: Upper CI | B20: ='meanunit data'!C10 -> 14.71 | C20: ='meanunit data'!D10 -> 12.68 | D20: ='meanunit data'!E10 -> 13.989 | E20: ='meanunit data'!F10 -> 13.03 | F20: ='meanunit data'!G10 -> 17.005 | G20: ='meanunit data'!H10 -> 13.34 | H20: ='meanunit data'!I10 -> 12.93 | I20: ='meanunit data'!J10 -> 13.452 | J20: ='meanunit data'!K10 -> 13.81 | K20: ='meanunit data'!L10 -> 14.73 | L20: ='meanunit data'!M10 -> 14.998 | M20: ='meanunit data'!N10 -> 14.728 | N20: ='meanunit data'!O10 -> 11.69 | O20: ='meanunit data'!P10 -> 13.713 | P20: ='meanunit data'!Q10 -> 12.94
A22: Bases (weighted):
A23: Men | B23: ='meanunit data'!C11 -> 513.35 | C23: ='meanunit data'!D11 -> 165.628 | D23: ='meanunit data'!E11 -> 213.33 | E23: ='meanunit data'!F11 -> 529.32 | F23: ='meanunit data'!G11 -> 437.501 | G23: ='meanunit data'!H11 -> 823.55 | H23: ='meanunit data'!I11 -> 1508.27 | I23: ='meanunit data'!J11 -> 460.981 | J23: ='meanunit data'!K11 -> 942.72 | K23: ='meanunit data'!L11 -> 1305.98 | L23: ='meanunit data'!M11 -> 34.295 | M23: ='meanunit data'!N11 -> 35.633 | N23: ='meanunit data'!O11 -> 590.1 | O23: ='meanunit data'!P11 -> 38.271 | P23: ='meanunit data'!Q11 -> 7598.92
A24: Women | B24: ='meanunit data'!C12 -> 560.79 | C24: ='meanunit data'!D12 -> 190.708 | D24: ='meanunit data'!E12 -> 218.344 | E24: ='meanunit data'!F12 -> 522.01 | F24: ='meanunit data'!G12 -> 431.676 | G24: ='meanunit data'!H12 -> 844.8 | H24: ='meanunit data'!I12 -> 1563.99 | I24: ='meanunit data'!J12 -> 465.561 | J24: ='meanunit data'!K12 -> 980.78 | K24: ='meanunit data'!L12 -> 1229.35 | L24: ='meanunit data'!M12 -> 32.829 | M24: ='meanunit data'!N12 -> 32.215 | N24: ='meanunit data'!O12 -> 607.06 | O24: ='meanunit data'!P12 -> 34.01 | P24: ='meanunit data'!Q12 -> 7714.12
A25: All Adults | B25: ='meanunit data'!C13 -> 1074.15 | C25: ='meanunit data'!D13 -> 356.336 | D25: ='meanunit data'!E13 -> 431.674 | E25: ='meanunit data'!F13 -> 1051.33 | F25: ='meanunit data'!G13 -> 869.177 | G25: ='meanunit data'!H13 -> 1668.35 | H25: ='meanunit data'!I13 -> 3072.26 | I25: ='meanunit data'!J13 -> 926.541 | J25: ='meanunit data'!K13 -> 1923.5 | K25: ='meanunit data'!L13 -> 2535.33 | L25: ='meanunit data'!M13 -> 67.124 | M25: ='meanunit data'!N13 -> 67.848 | N25: ='meanunit data'!O13 -> 1197.15 | O25: ='meanunit data'!P13 -> 72.28 | P25: ='meanunit data'!Q13 -> 15313.04
A26: Bases (unweighted)
A27: Men | B27: ='meanunit data'!C14 -> 805 | C27: ='meanunit data'!D14 -> 177 | D27: ='meanunit data'!E14 -> 180 | E27: ='meanunit data'!F14 -> 768 | F27: ='meanunit data'!G14 -> 269 | G27: ='meanunit data'!H14 -> 954 | H27: ='meanunit data'!I14 -> 1075 | I27: ='meanunit data'!J14 -> 301 | J27: ='meanunit data'!K14 -> 545 | K27: ='meanunit data'!L14 -> 799 | L27: ='meanunit data'!M14 -> 207 | M27: ='meanunit data'!N14 -> 206 | N27: ='meanunit data'!O14 -> 409 | O27: ='meanunit data'!P14 -> 300 | P27: ='meanunit data'!Q14 -> 6995
A28: Women | B28: ='meanunit data'!C15 -> 957 | C28: ='meanunit data'!D15 -> 236 | D28: ='meanunit data'!E15 -> 205 | E28: ='meanunit data'!F15 -> 904 | F28: ='meanunit data'!G15 -> 318 | G28: ='meanunit data'!H15 -> 1108 | H28: ='meanunit data'!I15 -> 1331 | I28: ='meanunit data'!J15 -> 365 | J28: ='meanunit data'!K15 -> 678 | K28: ='meanunit data'!L15 -> 902 | L28: ='meanunit data'!M15 -> 225 | M28: ='meanunit data'!N15 -> 225 | N28: ='meanunit data'!O15 -> 465 | O28: ='meanunit data'!P15 -> 333 | P28: ='meanunit data'!Q15 -> 8252
A29: All Adults | B29: ='meanunit data'!C16 -> 1762 | C29: ='meanunit data'!D16 -> 413 | D29: ='meanunit data'!E16 -> 385 | E29: ='meanunit data'!F16 -> 1672 | F29: ='meanunit data'!G16 -> 587 | G29: ='meanunit data'!H16 -> 2062 | H29: ='meanunit data'!I16 -> 2406 | I29: ='meanunit data'!J16 -> 666 | J29: ='meanunit data'!K16 -> 1223 | K29: ='meanunit data'!L16 -> 1701 | L29: ='meanunit data'!M16 -> 432 | M29: ='meanunit data'!N16 -> 431 | N29: ='meanunit data'!O16 -> 874 | O29: ='meanunit data'!P16 -> 633 | P29: ='meanunit data'!Q16 -> 15247
A31: a Among those who drank in the last year

Sheet meanunit data (hidden)
A1: F_sex | B1: _NAME_ | C1: Ayrshire & Arran | D1: Borders | E1: Dumfries & Galloway | F1: Fife | G1: Forth Valley | H1: Grampian | I1: Greater Glasgow | J1: Highland | K1: Lanarkshire | L1: Lothian | M1: Orkney | N1: Shetland | O1: Tayside | P1: Western Isles | Q1: Scotland
A2: Male | B2: Mean | C2: 18.86 | D2: 14.372 | E2: 16.24 | F2: 15.68 | G2: 20.646 | H2: 15.55 | I2: 15.89 | J2: 15.158 | K2: 16.37 | L2: 17.5 | M2: 17.503 | N2: 16.489 | O2: 13.48 | P2: 17.208 | Q2: 16.41
A3: Male | B3: LowerCLMean | C3: 16.9 | D3: 11.772 | E3: 12.765 | F3: 13.89 | G3: 16.729 | H3: 13.85 | I3: 14.69 | J3: 13.042 | K3: 14.27 | L3: 15.82 | M3: 14.672 | N3: 13.272 | O3: 11.96 | P3: 14.608 | Q3: 15.8
A4: Male | B4: UpperCLMean | C4: 20.82 | D4: 16.971 | E4: 19.715 | F4: 17.46 | G4: 24.563 | H4: 17.26 | I4: 17.09 | J4: 17.275 | K4: 18.47 | L4: 19.19 | M4: 20.334 | N4: 19.705 | O4: 15.01 | P4: 19.808 | Q4: 17.03
A5: Female | B5: Mean | C5: 8.75 | D5: 7.943 | E5: 7.448 | F5: 8.24 | G5: 9.007 | H5: 9.08 | I5: 8.58 | J5: 9.124 | K5: 8.78 | L5: 9.66 | M5: 8.62 | N5: 8.317 | O5: 8.12 | P5: 6.089 | Q5: 8.78
A6: Female | B6: LowerCLMean | C6: 7.88 | D6: 6.419 | E6: 6.037 | F6: 7.18 | G6: 7.768 | H6: 8.14 | I6: 7.9 | J6: 7.822 | K6: 7.5 | L6: 8.76 | M6: 7.156 | N6: 6.563 | O6: 7.06 | P6: 4.927 | Q6: 8.46
A7: Female | B7: UpperCLMean | C7: 9.62 | D7: 9.467 | E7: 8.859 | F7: 9.29 | G7: 10.246 | H7: 10.02 | I7: 9.25 | J7: 10.425 | K7: 10.05 | L7: 10.55 | M7: 10.084 | N7: 10.071 | O7: 9.18 | P7: 7.251 | Q7: 9.1
A8: Total | B8: Mean | C8: 13.58 | D8: 10.931 | E8: 11.793 | F8: 11.98 | G8: 14.865 | H8: 12.28 | I8: 12.17 | J8: 12.126 | K8: 12.5 | L8: 13.7 | M8: 13.158 | N8: 12.609 | O8: 10.76 | P8: 11.976 | Q8: 12.57
A9: Total | B9: LowerCLMean | C9: 12.45 | D9: 9.182 | E9: 9.597 | F9: 10.93 | G9: 12.726 | H9: 11.21 | I9: 11.4 | J9: 10.8 | K9: 11.19 | L9: 12.66 | M9: 11.319 | N9: 10.489 | O9: 9.84 | P9: 10.24 | Q9: 12.2
A10: Total | B10: UpperCLMean | C10: 14.71 | D10: 12.68 | E10: 13.989 | F10: 13.03 | G10: 17.005 | H10: 13.34 | I10: 12.93 | J10: 13.452 | K10: 13.81 | L10: 14.73 | M10: 14.998 | N10: 14.728 | O10: 11.69 | P10: 13.713 | Q10: 12.94
A11: Male | B11: SumWgt | C11: 513.35 | D11: 165.628 | E11: 213.33 | F11: 529.32 | G11: 437.501 | H11: 823.55 | I11: 1508.27 | J11: 460.981 | K11: 942.72 | L11: 1305.98 | M11: 34.295 | N11: 35.633 | O11: 590.1 | P11: 38.271 | Q11: 7598.92
A12: Female | B12: SumWgt | C12: 560.79 | D12: 190.708 | E12: 218.344 | F12: 522.01 | G12: 431.676 | H12: 844.8 | I12: 1563.99 | J12: 465.561 | K12: 980.78 | L12: 1229.35 | M12: 32.829 | N12: 32.215 | O12: 607.06 | P12: 34.01 | Q12: 7714.12
A13: Total | B13: SumWgt | C13: 1074.15 | D13: 356.336 | E13: 431.674 | F13: 1051.33 | G13: 869.177 | H13: 1668.35 | I13: 3072.26 | J13: 926.541 | K13: 1923.5 | L13: 2535.33 | M13: 67.124 | N13: 67.848 | O13: 1197.15 | P13: 72.28 | Q13: 15313.04
A14: Male | B14: N | C14: 805 | D14: 177 | E14: 180 | F14: 768 | G14: 269 | H14: 954 | I14: 1075 | J14: 301 | K14: 545 | L14: 799 | M14: 207 | N14: 206 | O14: 409 | P14: 300 | Q14: 6995
A15: Female | B15: N | C15: 957 | D15: 236 | E15: 205 | F15: 904 | G15: 318 | H15: 1108 | I15: 1331 | J15: 365 | K15: 678 | L15: 902 | M15: 225 | N15: 225 | O15: 465 | P15: 333 | Q15: 8252
A16: Total | B16: N | C16: 1762 | D16: 413 | E16: 385 | F16: 1672 | G16: 587 | H16: 2062 | I16: 2406 | J16: 666 | K16: 1223 | L16: 1701 | M16: 432 | N16: 431 | O16: 874 | P16: 633 | Q16: 15247

Sheet Mean units chart
R1: INDEX
C31: Source: Scottish Health Survey
C33: Weekly mean units among those who drank in the last year
C34: Ayrshire & Arran | D34: Borders | E34: Dumfries & Galloway | F34: Fife | G34: Forth Valley | H34: Grampian | I34: Greater Glasgow & Clyde | J34: Highland | K34: Lanarkshire | L34: Lothian | M34: Orkney | N34: Shetland | O34: Tayside | P34: Western Isles | R34: Scotland
B35: All Adults
B36: Weekly mean units | C36: ='Mean alcohol units'!B18 -> 13.58 | D36: ='Mean alcohol units'!C18 -> 10.931 | E36: ='Mean alcohol units'!D18 -> 11.793 | F36: ='Mean alcohol units'!E18 -> 11.98 | G36: ='Mean alcohol units'!F18 -> 14.865 | H36: ='Mean alcohol units'!G18 -> 12.28 | I36: ='Mean alcohol units'!H18 -> 12.17 | J36: ='Mean alcohol units'!I18 -> 12.126 | K36: ='Mean alcohol units'!J18 -> 12.5 | L36: ='Mean alcohol units'!K18 -> 13.7 | M36: ='Mean alcohol units'!L18 -> 13.158 | N36: ='Mean alcohol units'!M18 -> 12.609 | O36: ='Mean alcohol units'!N18 -> 10.76 | P36: ='Mean alcohol units'!O18 -> 11.976 | R36: ='Mean alcohol units'!P18 -> 12.57
B37: Lower CI | C37: ='Mean alcohol units'!B19 -> 12.45 | D37: ='Mean alcohol units'!C19 -> 9.182 | E37: ='Mean alcohol units'!D19 -> 9.597 | F37: ='Mean alcohol units'!E19 -> 10.93 | G37: ='Mean alcohol units'!F19 -> 12.726 | H37: ='Mean alcohol units'!G19 -> 11.21 | I37: ='Mean alcohol units'!H19 -> 11.4 | J37: ='Mean alcohol units'!I19 -> 10.8 | K37: ='Mean alcohol units'!J19 -> 11.19 | L37: ='Mean alcohol units'!K19 -> 12.66 | M37: ='Mean alcohol units'!L19 -> 11.319 | N37: ='Mean alcohol units'!M19 -> 10.489 | O37: ='Mean alcohol units'!N19 -> 9.84 | P37: ='Mean alcohol units'!O19 -> 10.24 | R37: ='Mean alcohol units'!P19 -> 12.2
B38: Upper CI | C38: ='Mean alcohol units'!B20 -> 14.71 | D38: ='Mean alcohol units'!C20 -> 12.68 | E38: ='Mean alcohol units'!D20 -> 13.989 | F38: ='Mean alcohol units'!E20 -> 13.03 | G38: ='Mean alcohol units'!F20 -> 17.005 | H38: ='Mean alcohol units'!G20 -> 13.34 | I38: ='Mean alcohol units'!H20 -> 12.93 | J38: ='Mean alcohol units'!I20 -> 13.452 | K38: ='Mean alcohol units'!J20 -> 13.81 | L38: ='Mean alcohol units'!K20 -> 14.73 | M38: ='Mean alcohol units'!L20 -> 14.998 | N38: ='Mean alcohol units'!M20 -> 14.728 | O38: ='Mean alcohol units'!N20 -> 11.69 | P38: ='Mean alcohol units'!O20 -> 13.713 | R38: ='Mean alcohol units'!P20 -> 12.94
A40: CLs | C40: =C36-C37 -> 1.13 | D40: =D36-D37 -> 1.749 | E40: 2.196 | F40: 1.05 | G40: 2.139 | H40: 1.07 | I40: 0.77 | J40: 1.326 | K40: 1.31 | L40: 1.04 | M40: 1.839 | N40: 2.12 | O40: 0.92 | P40: 1.736 | R40: 0.37

Sheet Smoking behaviour
A1: Smoking behaviour, three categories, by NHS Board and sex | M1: INDEX
A4: Aged 16 and over | P4: 2013/2014/2015/2016 combined
A5: Smoking behaviour, three categories | B5: NHS Board
B6: Ayrshire & Arran | C6: Borders | D6: Dumfries & Galloway | E6: Fife | F6: Forth Valley | G6: Grampian | H6: Greater Glasgow & Clyde | I6: Highland | J6: Lanarkshire | K6: Lothian | L6: Orkney | M6: Shetland | N6: Tayside | O6: Western Isles | P6: Scotland
B7: % | C7: % | D7: % | E7: % | F7: % | G7: % | H7: % | I7: % | J7: % | K7: % | L7: % | M7: % | N7: % | O7: % | P7: %
A8: Men
A9: Never smoked, or ex-occasional | B9: ='smk data'!D2 -> 50.07 | C9: ='smk data'!E2 -> 53.306 | D9: ='smk data'!F2 -> 51.747 | E9: ='smk data'!G2 -> 48.86 | F9: ='smk data'!H2 -> 50.93 | G9: ='smk data'!I2 -> 50.95 | H9: ='smk data'!J2 -> 52.02 | I9: ='smk data'!K2 -> 49.83 | J9: ='smk data'!L2 -> 51.03 | K9: ='smk data'!M2 -> 56.61 | L9: ='smk data'!N2 -> 50.903 | M9: ='smk data'!O2 -> 53.363 | N9: ='smk data'!P2 -> 52.51 | O9: ='smk data'!Q2 -> 50.551 | P9: ='smk data'!R2 -> 52.06
A10: Lower CI | B10: ='smk data'!D3 -> 46.68 | C10: ='smk data'!E3 -> 45.976 | D10: ='smk data'!F3 -> 43.813 | E10: ='smk data'!G3 -> 45.15 | F10: ='smk data'!H3 -> 44.4 | G10: ='smk data'!I3 -> 47.54 | H10: ='smk data'!J3 -> 48.97 | I10: ='smk data'!K3 -> 43.41 | J10: ='smk data'!L3 -> 46.76 | K10: ='smk data'!M3 -> 52.82 | L10: ='smk data'!N3 -> 43.018 | M10: ='smk data'!O3 -> 48.777 | N10: ='smk data'!P3 -> 47.18 | O10: ='smk data'!Q3 -> 45.543 | P10: ='smk data'!R3 -> 50.71
A11: Upper CI | B11: ='smk data'!D4 -> 53.47 | C11: ='smk data'!E4 -> 60.636 | D11: ='smk data'!F4 -> 59.681 | E11: ='smk data'!G4 -> 52.57 | F11: ='smk data'!H4 -> 57.47 | G11: ='smk data'!I4 -> 54.37 | H11: ='smk data'!J4 -> 55.08 | I11: ='smk data'!K4 -> 56.25 | J11: ='smk data'!L4 -> 55.3 | K11: ='smk data'!M4 -> 60.41 | L11: ='smk data'!N4 -> 58.788 | M11: ='smk data'!O4 -> 57.948 | N11: ='smk data'!P4 -> 57.85 | O11: ='smk data'!Q4 -> 55.559 | P11: ='smk data'!R4 -> 53.41
A12: Ex-regular smoker, or occasional | B12: ='smk data'!D5 -> 26.02 | C12: ='smk data'!E5 -> 26.754 | D12: ='smk data'!F5 -> 25.083 | E12: ='smk data'!G5 -> 27.43 | F12: ='smk data'!H5 -> 25.66 | G12: ='smk data'!I5 -> 26.86 | H12: ='smk data'!J5 -> 22.85 | I12: ='smk data'!K5 -> 27.86 | J12: ='smk data'!L5 -> 26.52 | K12: ='smk data'!M5 -> 24.83 | L12: ='smk data'!N5 -> 28.464 | M12: ='smk data'!O5 -> 23.378 | N12: ='smk data'!P5 -> 24.68 | O12: ='smk data'!Q5 -> 29.126 | P12: ='smk data'!R5 -> 25.41
A13: Lower CI | B13: ='smk data'!D6 -> 23.33 | C13: ='smk data'!E6 -> 19.553 | D13: ='smk data'!F6 -> 19.16 | E13: ='smk data'!G6 -> 24.24 | F13: ='smk data'!H6 -> 20.42 | G13: ='smk data'!I6 -> 24.32 | H13: ='smk data'!J6 -> 20.54 | I13: ='smk data'!K6 -> 22.65 | J13: ='smk data'!L6 -> 22.81 | K13: ='smk data'!M6 -> 21.79 | L13: ='smk data'!N6 -> 22.046 | M13: ='smk data'!O6 -> 17.664 | N13: ='smk data'!P6 -> 20.68 | O13: ='smk data'!Q6 -> 24.403 | P13: ='smk data'!R6 -> 24.32
A14: Upper CI | B14: ='smk data'!D7 -> 28.71 | C14: ='smk data'!E7 -> 33.954 | D14: ='smk data'!F7 -> 31.006 | E14: ='smk data'!G7 -> 30.62 | F14: ='smk data'!H7 -> 30.9 | G14: ='smk data'!I7 -> 29.41 | H14: ='smk data'!J7 -> 25.17 | I14: ='smk data'!K7 -> 33.07 | J14: ='smk data'!L7 -> 30.23 | K14: ='smk data'!M7 -> 27.86 | L14: ='smk data'!N7 -> 34.883 | M14: ='smk data'!O7 -> 29.093 | N14: ='smk data'!P7 -> 28.69 | O14: ='smk data'!Q7 -> 33.848 | P14: ='smk data'!R7 -> 26.49
A15: Regular smoker | B15: ='smk data'!D8 -> 23.91 | C15: ='smk data'!E8 -> 19.94 | D15: ='smk data'!F8 -> 23.17 | E15: ='smk data'!G8 -> 23.71 | F15: ='smk data'!H8 -> 23.4 | G15: ='smk data'!I8 -> 22.18 | H15: ='smk data'!J8 -> 25.13 | I15: ='smk data'!K8 -> 22.31 | J15: ='smk data'!L8 -> 22.45 | K15: ='smk data'!M8 -> 18.56 | L15: ='smk data'!N8 -> 20.633 | M15: ='smk data'!O8 -> 23.259 | N15: ='smk data'!P8 -> 22.8 | O15: ='smk data'!Q8 -> 20.324 | P15: ='smk data'!R8 -> 22.53
A16: Lower CI | B16: ='smk data'!D9 -> 21.09 | C16: ='smk data'!E9 -> 14.64 | D16: ='smk data'!F9 -> 17.551 | E16: ='smk data'!G9 -> 20.43 | F16: ='smk data'!H9 -> 17.63 | G16: ='smk data'!I9 -> 19.03 | H16: ='smk data'!J9 -> 22.44 | I16: ='smk data'!K9 -> 16.86 | J16: ='smk data'!L9 -> 18.87 | K16: ='smk data'!M9 -> 15.86 | L16: ='smk data'!N9 -> 14.279 | M16: ='smk data'!O9 -> 17.72 | N16: ='smk data'!P9 -> 18.55 | O16: ='smk data'!Q9 -> 15.882 | P16: ='smk data'!R9 -> 21.39
A17: Upper CI | B17: ='smk data'!D10 -> 26.72 | C17: ='smk data'!E10 -> 25.241 | D17: ='smk data'!F10 -> 28.789 | E17: ='smk data'!G10 -> 27 | F17: ='smk data'!H10 -> 29.18 | G17: ='smk data'!I10 -> 25.33 | H17: ='smk data'!J10 -> 27.81 | I17: ='smk data'!K10 -> 27.76 | J17: ='smk data'!L10 -> 26.03 | K17: ='smk data'!M10 -> 21.26 | L17: ='smk data'!N10 -> 26.987 | M17: ='smk data'!O10 -> 28.798 | N17: ='smk data'!P10 -> 27.05 | O17: ='smk data'!Q10 -> 24.765 | P17: ='smk data'!R10 -> 23.67
A19: Women
A20: Never smoked, or ex-occasional | B20: ='smk data'!D11 -> 55.44 | C20: ='smk data'!E11 -> 57.154 | D20: ='smk data'!F11 -> 53.929 | E20: ='smk data'!G11 -> 56.95 | F20: ='smk data'!H11 -> 57.52 | G20: ='smk data'!I11 -> 60.88 | H20: ='smk data'!J11 -> 56.89 | I20: ='smk data'!K11 -> 53.03 | J20: ='smk data'!L11 -> 54.93 | K20: ='smk data'!M11 -> 57.49 | L20: ='smk data'!N11 -> 64.193 | M20: ='smk data'!O11 -> 53.701 | N20: ='smk data'!P11 -> 56.86 | O20: ='smk data'!Q11 -> 61.27 | P20: ='smk data'!R11 -> 56.83
A21: Lower CI | B21: ='smk data'!D12 -> 52.17 | C21: ='smk data'!E12 -> 51.318 | D21: ='smk data'!F12 -> 48.543 | E21: ='smk data'!G12 -> 53.74 | F21: ='smk data'!H12 -> 52.78 | G21: ='smk data'!I12 -> 58.08 | H21: ='smk data'!J12 -> 54.1 | I21: ='smk data'!K12 -> 47.73 | J21: ='smk data'!L12 -> 51.12 | K21: ='smk data'!M12 -> 53.76 | L21: ='smk data'!N12 -> 58.425 | M21: ='smk data'!O12 -> 48.381 | N21: ='smk data'!P12 -> 52.13 | O21: ='smk data'!Q12 -> 56.114 | P21: ='smk data'!R12 -> 55.58
A22: Upper CI | B22: ='smk data'!D13 -> 58.7 | C22: ='smk data'!E13 -> 62.99 | D22: ='smk data'!F13 -> 59.315 | E22: ='smk data'!G13 -> 60.16 | F22: ='smk data'!H13 -> 62.27 | G22: ='smk data'!I13 -> 63.68 | H22: ='smk data'!J13 -> 59.69 | I22: ='smk data'!K13 -> 58.33 | J22: ='smk data'!L13 -> 58.73 | K22: ='smk data'!M13 -> 61.22 | L22: ='smk data'!N13 -> 69.961 | M22: ='smk data'!O13 -> 59.021 | N22: ='smk data'!P13 -> 61.59 | O22: ='smk data'!Q13 -> 66.426 | P22: ='smk data'!R13 -> 58.09
A23: Ex-regular smoker, or occasional | B23: ='smk data'!D14 -> 25.19 | C23: ='smk data'!E14 -> 25.841 | D23: ='smk data'!F14 -> 25.989 | E23: ='smk data'!G14 -> 21.63 | F23: ='smk data'!H14 -> 24.35 | G23: ='smk data'!I14 -> 20.43 | H23: ='smk data'!J14 -> 20.56 | I23: ='smk data'!K14 -> 27.8 | J23: ='smk data'!L14 -> 24.46 | K23: ='smk data'!M14 -> 23.45 | L23: ='smk data'!N14 -> 22.484 | M23: ='smk data'!O14 -> 27.384 | N23: ='smk data'!P14 -> 23.59 | O23: ='smk data'!Q14 -> 22.844 | P23: ='smk data'!R14 -> 23.1
A24: Lower CI | B24: ='smk data'!D15 -> 22.53 | C24: ='smk data'!E15 -> 20.485 | D24: ='smk data'!F15 -> 20.297 | E24: ='smk data'!G15 -> 18.99 | F24: ='smk data'!H15 -> 20.15 | G24: ='smk data'!I15 -> 18.36 | H24: ='smk data'!J15 -> 18.73 | I24: ='smk data'!K15 -> 23.29 | J24: ='smk data'!L15 -> 21.57 | K24: ='smk data'!M15 -> 20.35 | L24: ='smk data'!N15 -> 17.651 | M24: ='smk data'!O15 -> 21.732 | N24: ='smk data'!P15 -> 19.97 | O24: ='smk data'!Q15 -> 18.942 | P24: ='smk data'!R15 -> 22.1
A25: Upper CI | B25: ='smk data'!D16 -> 27.86 | C25: ='smk data'!E16 -> 31.197 | D25: ='smk data'!F16 -> 31.681 | E25: ='smk data'!G16 -> 24.28 | F25: ='smk data'!H16 -> 28.54 | G25: ='smk data'!I16 -> 22.51 | H25: ='smk data'!J16 -> 22.39 | I25: ='smk data'!K16 -> 32.32 | J25: ='smk data'!L16 -> 27.34 | K25: ='smk data'!M16 -> 26.55 | L25: ='smk data'!N16 -> 27.316 | M25: ='smk data'!O16 -> 33.036 | N25: ='smk data'!P16 -> 27.22 | O25: ='smk data'!Q16 -> 26.747 | P25: ='smk data'!R16 -> 24.1
A26: Regular smoker | B26: ='smk data'!D17 -> 19.37 | C26: ='smk data'!E17 -> 17.005 | D26: ='smk data'!F17 -> 20.082 | E26: ='smk data'!G17 -> 21.41 | F26: ='smk data'!H17 -> 18.13 | G26: ='smk data'!I17 -> 18.68 | H26: ='smk data'!J17 -> 22.54 | I26: ='smk data'!K17 -> 19.16 | J26: ='smk data'!L17 -> 20.62 | K26: ='smk data'!M17 -> 19.07 | L26: ='smk data'!N17 -> 13.324 | M26: ='smk data'!O17 -> 18.915 | N26: ='smk data'!P17 -> 19.55 | O26: ='smk data'!Q17 -> 15.886 | P26: ='smk data'!R17 -> 20.07
A27: Lower CI | B27: ='smk data'!D18 -> 17.01 | C27: ='smk data'!E18 -> 11.775 | D27: ='smk data'!F18 -> 14.719 | E27: ='smk data'!G18 -> 18.53 | F27: ='smk data'!H18 -> 14.57 | G27: ='smk data'!I18 -> 16.36 | H27: ='smk data'!J18 -> 20.17 | I27: ='smk data'!K18 -> 14.79 | J27: ='smk data'!L18 -> 17.78 | K27: ='smk data'!M18 -> 15.99 | L27: ='smk data'!N18 -> 9.371 | M27: ='smk data'!O18 -> 13.858 | N27: ='smk data'!P18 -> 16.21 | O27: ='smk data'!Q18 -> 12.144 | P27: ='smk data'!R18 -> 19.08
A28: Upper CI | B28: ='smk data'!D19 -> 21.74 | C28: ='smk data'!E19 -> 22.234 | D28: ='smk data'!F19 -> 25.444 | E28: ='smk data'!G19 -> 24.3 | F28: ='smk data'!H19 -> 21.69 | G28: ='smk data'!I19 -> 21 | H28: ='smk data'!J19 -> 24.92 | I28: ='smk data'!K19 -> 23.54 | J28: ='smk data'!L19 -> 23.46 | K28: ='smk data'!M19 -> 22.15 | L28: ='smk data'!N19 -> 17.277 | M28: ='smk data'!O19 -> 23.972 | N28: ='smk data'!P19 -> 22.89 | O28: ='smk data'!Q19 -> 19.628 | P28: ='smk data'!R19 -> 21.05
A30: All Adults
A31: Never smoked, or ex-occasional | B31: ='smk data'!D20 -> 52.98 | C31: ='smk data'!E20 -> 55.409 | D31: ='smk data'!F20 -> 52.856 | E31: ='smk data'!G20 -> 53.05 | F31: ='smk data'!H20 -> 54.41 | G31: ='smk data'!I20 -> 56.17 | H31: ='smk data'!J20 -> 54.57 | I31: ='smk data'!K20 -> 51.49 | J31: ='smk data'!L20 -> 53.08 | K31: ='smk data'!M20 -> 57.05 | L31: ='smk data'!N20 -> 57.554 | M31: ='smk data'!O20 -> 53.526 | N31: ='smk data'!P20 -> 54.81 | O31: ='smk data'!Q20 -> 55.93 | P31: ='smk data'!R20 -> 54.55
A32: Lower CI | B32: ='smk data'!D21 -> 50.42 | C32: ='smk data'!E21 -> 50.987 | D32: ='smk data'!F21 -> 47.105 | E32: ='smk data'!G21 -> 50.52 | F32: ='smk data'!H21 -> 49.89 | G32: ='smk data'!I21 -> 53.63 | H32: ='smk data'!J21 -> 52.3 | I32: ='smk data'!K21 -> 46.59 | J32: ='smk data'!L21 -> 49.82 | K32: ='smk data'!M21 -> 54.09 | L32: ='smk data'!N21 -> 51.843 | M32: ='smk data'!O21 -> 49.642 | N32: ='smk data'!P21 -> 51.12 | O32: ='smk data'!Q21 -> 52.388 | P32: ='smk data'!R21 -> 53.5
A33: Upper CI | B33: ='smk data'!D22 -> 55.54 | C33: ='smk data'!E22 -> 59.83 | D33: ='smk data'!F22 -> 58.607 | E33: ='smk data'!G22 -> 55.58 | F33: ='smk data'!H22 -> 58.93 | G33: ='smk data'!I22 -> 58.71 | H33: ='smk data'!J22 -> 56.84 | I33: ='smk data'!K22 -> 56.4 | J33: ='smk data'!L22 -> 56.34 | K33: ='smk data'!M22 -> 60.01 | L33: ='smk data'!N22 -> 63.265 | M33: ='smk data'!O22 -> 57.411 | N33: ='smk data'!P22 -> 58.49 | O33: ='smk data'!Q22 -> 59.472 | P33: ='smk data'!R22 -> 55.59
A34: Ex-regular smoker, or occasional | B34: ='smk data'!D23 -> 25.57 | C34: ='smk data'!E23 -> 26.255 | D34: ='smk data'!F23 -> 25.544 | E34: ='smk data'!G23 -> 24.43 | F34: ='smk data'!H23 -> 24.97 | G34: ='smk data'!I23 -> 23.49 | H34: ='smk data'!J23 -> 21.65 | I34: ='smk data'!K23 -> 27.83 | J34: ='smk data'!L23 -> 25.43 | K34: ='smk data'!M23 -> 24.14 | L34: ='smk data'!N23 -> 25.471 | M34: ='smk data'!O23 -> 25.318 | N34: ='smk data'!P23 -> 24.11 | O34: ='smk data'!Q23 -> 25.973 | P34: ='smk data'!R23 -> 24.21
A35: Lower CI | B35: ='smk data'!D24 -> 23.56 | C35: ='smk data'!E24 -> 22.139 | D35: ='smk data'!F24 -> 20.815 | E35: ='smk data'!G24 -> 22.36 | F35: ='smk data'!H24 -> 21.53 | G35: ='smk data'!I24 -> 21.75 | H35: ='smk data'!J24 -> 20.15 | I35: ='smk data'!K24 -> 24.05 | J35: ='smk data'!L24 -> 22.82 | K35: ='smk data'!M24 -> 21.79 | L35: ='smk data'!N24 -> 21.945 | M35: ='smk data'!O24 -> 20.36 | N35: ='smk data'!P24 -> 21.24 | O35: ='smk data'!Q24 -> 22.568 | P35: ='smk data'!R24 -> 23.43
A36: Upper CI | B36: ='smk data'!D25 -> 27.58 | C36: ='smk data'!E25 -> 30.371 | D36: ='smk data'!F25 -> 30.273 | E36: ='smk data'!G25 -> 26.5 | F36: ='smk data'!H25 -> 28.4 | G36: ='smk data'!I25 -> 25.22 | H36: ='smk data'!J25 -> 23.16 | I36: ='smk data'!K25 -> 31.61 | J36: ='smk data'!L25 -> 28.05 | K36: ='smk data'!M25 -> 26.49 | L36: ='smk data'!N25 -> 28.998 | M36: ='smk data'!O25 -> 30.275 | N36: ='smk data'!P25 -> 26.98 | O36: ='smk data'!Q25 -> 29.378 | P36: ='smk data'!R25 -> 24.98
A37: Regular smoker | B37: ='smk data'!D26 -> 21.45 | C37: ='smk data'!E26 -> 18.336 | D37: ='smk data'!F26 -> 21.6 | E37: ='smk data'!G26 -> 22.52 | F37: ='smk data'!H26 -> 20.62 | G37: ='smk data'!I26 -> 20.35 | H37: ='smk data'!J26 -> 23.78 | I37: ='smk data'!K26 -> 20.68 | J37: ='smk data'!L26 -> 21.48 | K37: ='smk data'!M26 -> 18.81 | L37: ='smk data'!N26 -> 16.975 | M37: ='smk data'!O26 -> 21.156 | N37: ='smk data'!P26 -> 21.08 | O37: ='smk data'!Q26 -> 18.096 | P37: ='smk data'!R26 -> 21.25
A38: Lower CI | B38: ='smk data'!D27 -> 19.46 | C38: ='smk data'!E27 -> 14.105 | D38: ='smk data'!F27 -> 17.166 | E38: ='smk data'!G27 -> 20.08 | F38: ='smk data'!H27 -> 16.81 | G38: ='smk data'!I27 -> 18.17 | H38: ='smk data'!J27 -> 21.82 | I38: ='smk data'!K27 -> 16.93 | J38: ='smk data'!L27 -> 18.85 | K38: ='smk data'!M27 -> 16.47 | L38: ='smk data'!N27 -> 12.516 | M38: ='smk data'!O27 -> 16.963 | N38: ='smk data'!P27 -> 18.05 | O38: ='smk data'!Q27 -> 14.988 | P38: ='smk data'!R27 -> 20.4
A39: Upper CI | B39: ='smk data'!D28 -> 23.44 | C39: ='smk data'!E28 -> 22.568 | D39: ='smk data'!F28 -> 26.035 | E39: ='smk data'!G28 -> 24.97 | F39: ='smk data'!H28 -> 24.43 | G39: ='smk data'!I28 -> 22.52 | H39: ='smk data'!J28 -> 25.73 | I39: ='smk data'!K28 -> 24.42 | J39: ='smk data'!L28 -> 24.12 | K39: ='smk data'!M28 -> 21.15 | L39: ='smk data'!N28 -> 21.434 | M39: ='smk data'!O28 -> 25.348 | N39: ='smk data'!P28 -> 24.11 | O39: ='smk data'!Q28 -> 21.204 | P39: ='smk data'!R28 -> 22.1
A42: Bases (weighted):
A43: Men | B43: ='smk data'!D29 -> 601.02 | C43: ='smk data'!E29 -> 183.856 | D43: ='smk data'!F29 -> 258.508 | E43: ='smk data'!G29 -> 616.07 | F43: ='smk data'!H29 -> 493.15 | G43: ='smk data'!I29 -> 972.59 | H43: ='smk data'!J29 -> 1861.36 | I43: ='smk data'!K29 -> 539.17 | J43: ='smk data'!L29 -> 1129.05 | K43: ='smk data'!M29 -> 1508.77 | L43: ='smk data'!N29 -> 38.805 | M43: ='smk data'!O29 -> 41.798 | N43: ='smk data'!P29 -> 681.92 | O43: ='smk data'!Q29 -> 48.038 | P43: ='smk data'!R29 -> 8974.11
A44: Women | B44: ='smk data'!D30 -> 709.47 | C44: ='smk data'!E30 -> 221.46 | D44: ='smk data'!F30 -> 267.191 | E44: ='smk data'!G30 -> 660.75 | F44: ='smk data'!H30 -> 550.89 | G44: ='smk data'!I30 -> 1076.03 | H44: ='smk data'!J30 -> 2041.5 | I44: ='smk data'!K30 -> 583.34 | J44: ='smk data'!L30 -> 1257.25 | K44: ='smk data'!M30 -> 1493.47 | L44: ='smk data'!N30 -> 38.875 | M44: ='smk data'!O30 -> 39.228 | N44: ='smk data'!P30 -> 763.38 | O44: ='smk data'!Q30 -> 48.391 | P44: ='smk data'!R30 -> 9751.22
A45: All Adults | B45: ='smk data'!D31 -> 1310.5 | C45: ='smk data'!E31 -> 405.316 | D45: ='smk data'!F31 -> 525.699 | E45: ='smk data'!G31 -> 1276.81 | F45: ='smk data'!H31 -> 1044.04 | G45: ='smk data'!I31 -> 2048.63 | H45: ='smk data'!J31 -> 3902.86 | I45: ='smk data'!K31 -> 1122.51 | J45: ='smk data'!L31 -> 2386.3 | K45: ='smk data'!M31 -> 3002.24 | L45: ='smk data'!N31 -> 77.679 | M45: ='smk data'!O31 -> 81.026 | N45: ='smk data'!P31 -> 1445.3 | O45: ='smk data'!Q31 -> 96.429 | P45: ='smk data'!R31 -> 18725.33
A46: Bases (unweighted)
A47: Men | B47: ='smk data'!D32 -> 941 | C47: ='smk data'!E32 -> 199 | D47: ='smk data'!F32 -> 219 | E47: ='smk data'!G32 -> 899 | F47: ='smk data'!H32 -> 305 | G47: ='smk data'!I32 -> 1129 | H47: ='smk data'!J32 -> 1332 | I47: ='smk data'!K32 -> 354 | J47: ='smk data'!L32 -> 655 | K47: ='smk data'!M32 -> 927 | L47: ='smk data'!N32 -> 234 | M47: ='smk data'!O32 -> 246 | N47: ='smk data'!P32 -> 472 | O47: ='smk data'!Q32 -> 386 | P47: ='smk data'!R32 -> 8298
A48: Women | B48: ='smk data'!D33 -> 1207 | C48: ='smk data'!E33 -> 277 | D48: ='smk data'!F33 -> 253 | E48: ='smk data'!G33 -> 1139 | F48: ='smk data'!H33 -> 410 | G48: ='smk data'!I33 -> 1427 | H48: ='smk data'!J33 -> 1742 | I48: ='smk data'!K33 -> 462 | J48: ='smk data'!L33 -> 875 | K48: ='smk data'!M33 -> 1103 | L48: ='smk data'!N33 -> 270 | M48: ='smk data'!O33 -> 276 | N48: ='smk data'!P33 -> 586 | O48: ='smk data'!Q33 -> 460 | P48: ='smk data'!R33 -> 10487
A49: All Adults | B49: ='smk data'!D34 -> 2148 | C49: ='smk data'!E34 -> 476 | D49: ='smk data'!F34 -> 472 | E49: ='smk data'!G34 -> 2038 | F49: ='smk data'!H34 -> 715 | G49: ='smk data'!I34 -> 2556 | H49: ='smk data'!J34 -> 3074 | I49: ='smk data'!K34 -> 816 | J49: ='smk data'!L34 -> 1530 | K49: ='smk data'!M34 -> 2030 | L49: ='smk data'!N34 -> 504 | M49: ='smk data'!O34 -> 522 | N49: ='smk data'!P34 -> 1058 | O49: ='smk data'!Q34 -> 846 | P49: ='smk data'!R34 -> 18785

Sheet smk data (hidden)
A1: F_sex | B1: F_rcigst1 | C1: _NAME_ | D1: Ayrshire & Arran | E1: Borders | F1: Dumfries & Galloway | G1: Fife | H1: Forth Valley | I1: Grampian | J1: Greater Glasgow | K1: Highland | L1: Lanarkshire | M1: Lothian | N1: Orkney | O1: Shetland | P1: Tayside | Q1: Western Isles | R1: Scotland
A2: Male | B2: Never smoked or used to smoke cigarettes occasionally | C2: RowPercent | D2: 50.07 | E2: 53.306 | F2: 51.747 | G2: 48.86 | H2: 50.93 | I2: 50.95 | J2: 52.02 | K2: 49.83 | L2: 51.03 | M2: 56.61 | N2: 50.903 | O2: 53.363 | P2: 52.51 | Q2: 50.551 | R2: 52.06
A3: Male | B3: Never smoked or used to smoke cigarettes occasionally | C3: RowLowerCL | D3: 46.68 | E3: 45.976 | F3: 43.813 | G3: 45.15 | H3: 44.4 | I3: 47.54 | J3: 48.97 | K3: 43.41 | L3: 46.76 | M3: 52.82 | N3: 43.018 | O3: 48.777 | P3: 47.18 | Q3: 45.543 | R3: 50.71
A4: Male | B4: Never smoked or used to smoke cigarettes occasionally | C4: RowUpperCL | D4: 53.47 | E4: 60.636 | F4: 59.681 | G4: 52.57 | H4: 57.47 | I4: 54.37 | J4: 55.08 | K4: 56.25 | L4: 55.3 | M4: 60.41 | N4: 58.788 | O4: 57.948 | P4: 57.85 | Q4: 55.559 | R4: 53.41
A5: Male | B5: Used to smoke cigarettes regularly | C5: RowPercent | D5: 26.02 | E5: 26.754 | F5: 25.083 | G5: 27.43 | H5: 25.66 | I5: 26.86 | J5: 22.85 | K5: 27.86 | L5: 26.52 | M5: 24.83 | N5: 28.464 | O5: 23.378 | P5: 24.68 | Q5: 29.126 | R5: 25.41
A6: Male | B6: Used to smoke cigarettes regularly | C6: RowLowerCL | D6: 23.33 | E6: 19.553 | F6: 19.16 | G6: 24.24 | H6: 20.42 | I6: 24.32 | J6: 20.54 | K6: 22.65 | L6: 22.81 | M6: 21.79 | N6: 22.046 | O6: 17.664 | P6: 20.68 | Q6: 24.403 | R6: 24.32
A7: Male | B7: Used to smoke cigarettes regularly | C7: RowUpperCL | D7: 28.71 | E7: 33.954 | F7: 31.006 | G7: 30.62 | H7: 30.9 | I7: 29.41 | J7: 25.17 | K7: 33.07 | L7: 30.23 | M7: 27.86 | N7: 34.883 | O7: 29.093 | P7: 28.69 | Q7: 33.848 | R7: 26.49
A8: Male | B8: Current cigarette smoker | C8: RowPercent | D8: 23.91 | E8: 19.94 | F8: 23.17 | G8: 23.71 | H8: 23.4 | I8: 22.18 | J8: 25.13 | K8: 22.31 | L8: 22.45 | M8: 18.56 | N8: 20.633 | O8: 23.259 | P8: 22.8 | Q8: 20.324 | R8: 22.53
A9: Male | B9: Current cigarette smoker | C9: RowLowerCL | D9: 21.09 | E9: 14.64 | F9: 17.551 | G9: 20.43 | H9: 17.63 | I9: 19.03 | J9: 22.44 | K9: 16.86 | L9: 18.87 | M9: 15.86 | N9: 14.279 | O9: 17.72 | P9: 18.55 | Q9: 15.882 | R9: 21.39
A10: Male | B10: Current cigarette smoker | C10: RowUpperCL | D10: 26.72 | E10: 25.241 | F10: 28.789 | G10: 27 | H10: 29.18 | I10: 25.33 | J10: 27.81 | K10: 27.76 | L10: 26.03 | M10: 21.26 | N10: 26.987 | O10: 28.798 | P10: 27.05 | Q10: 24.765 | R10: 23.67
A11: Female | B11: Never smoked or used to smoke cigarettes occasionally | C11: RowPercent | D11: 55.44 | E11: 57.154 | F11: 53.929 | G11: 56.95 | H11: 57.52 | I11: 60.88 | J11: 56.89 | K11: 53.03 | L11: 54.93 | M11: 57.49 | N11: 64.193 | O11: 53.701 | P11: 56.86 | Q11: 61.27 | R11: 56.83
A12: Female | B12: Never smoked or used to smoke cigarettes occasionally | C12: RowLowerCL | D12: 52.17 | E12: 51.318 | F12: 48.543 | G12: 53.74 | H12: 52.78 | I12: 58.08 | J12: 54.1 | K12: 47.73 | L12: 51.12 | M12: 53.76 | N12: 58.425 | O12: 48.381 | P12: 52.13 | Q12: 56.114 | R12: 55.58
A13: Female | B13: Never smoked or used to smoke cigarettes occasionally | C13: RowUpperCL | D13: 58.7 | E13: 62.99 | F13: 59.315 | G13: 60.16 | H13: 62.27 | I13: 63.68 | J13: 59.69 | K13: 58.33 | L13: 58.73 | M13: 61.22 | N13: 69.961 | O13: 59.021 | P13: 61.59 | Q13: 66.426 | R13: 58.09
A14: Female | B14: Used to smoke cigarettes regularly | C14: RowPercent | D14: 25.19 | E14: 25.841 | F14: 25.989 | G14: 21.63 | H14: 24.35 | I14: 20.43 | J14: 20.56 | K14: 27.8 | L14: 24.46 | M14: 23.45 | N14: 22.484 | O14: 27.384 | P14: 23.59 | Q14: 22.844 | R14: 23.1
A15: Female | B15: Used to smoke cigarettes regularly | C15: RowLowerCL | D15: 22.53 | E15: 20.485 | F15: 20.297 | G15: 18.99 | H15: 20.15 | I15: 18.36 | J15: 18.73 | K15: 23.29 | L15: 21.57 | M15: 20.35 | N15: 17.651 | O15: 21.732 | P15: 19.97 | Q15: 18.942 | R15: 22.1
A16: Female | B16: Used to smoke cigarettes regularly | C16: RowUpperCL | D16: 27.86 | E16: 31.197 | F16: 31.681 | G16: 24.28 | H16: 28.54 | I16: 22.51 | J16: 22.39 | K16: 32.32 | L16: 27.34 | M16: 26.55 | N16: 27.316 | O16: 33.036 | P16: 27.22 | Q16: 26.747 | R16: 24.1
A17: Female | B17: Current cigarette smoker | C17: RowPercent | D17: 19.37 | E17: 17.005 | F17: 20.082 | G17: 21.41 | H17: 18.13 | I17: 18.68 | J17: 22.54 | K17: 19.16 | L17: 20.62 | M17: 19.07 | N17: 13.324 | O17: 18.915 | P17: 19.55 | Q17: 15.886 | R17: 20.07
A18: Female | B18: Current cigarette smoker | C18: RowLowerCL | D18: 17.01 | E18: 11.775 | F18: 14.719 | G18: 18.53 | H18: 14.57 | I18: 16.36 | J18: 20.17 | K18: 14.79 | L18: 17.78 | M18: 15.99 | N18: 9.371 | O18: 13.858 | P18: 16.21 | Q18: 12.144 | R18: 19.08
A19: Female | B19: Current cigarette smoker | C19: RowUpperCL | D19: 21.74 | E19: 22.234 | F19: 25.444 | G19: 24.3 | H19: 21.69 | I19: 21 | J19: 24.92 | K19: 23.54 | L19: 23.46 | M19: 22.15 | N19: 17.277 | O19: 23.972 | P19: 22.89 | Q19: 19.628 | R19: 21.05
A20: Total | B20: Never smoked or used to smoke cigarettes occasionally | C20: RowPercent | D20: 52.98 | E20: 55.409 | F20: 52.856 | G20: 53.05 | H20: 54.41 | I20: 56.17 | J20: 54.57 | K20: 51.49 | L20: 53.08 | M20: 57.05 | N20: 57.554 | O20: 53.526 | P20: 54.81 | Q20: 55.93 | R20: 54.55
A21: Total | B21: Never smoked or used to smoke cigarettes occasionally | C21: RowLowerCL | D21: 50.42 | E21: 50.987 | F21: 47.105 | G21: 50.52 | H21: 49.89 | I21: 53.63 | J21: 52.3 | K21: 46.59 | L21: 49.82 | M21: 54.09 | N21: 51.843 | O21: 49.642 | P21: 51.12 | Q21: 52.388 | R21: 53.5
A22: Total | B22: Never smoked or used to smoke cigarettes occasionally | C22: RowUpperCL | D22: 55.54 | E22: 59.83 | F22: 58.607 | G22: 55.58 | H22: 58.93 | I22: 58.71 | J22: 56.84 | K22: 56.4 | L22: 56.34 | M22: 60.01 | N22: 63.265 | O22: 57.411 | P22: 58.49 | Q22: 59.472 | R22: 55.59
A23: Total | B23: Used to smoke cigarettes regularly | C23: RowPercent | D23: 25.57 | E23: 26.255 | F23: 25.544 | G23: 24.43 | H23: 24.97 | I23: 23.49 | J23: 21.65 | K23: 27.83 | L23: 25.43 | M23: 24.14 | N23: 25.471 | O23: 25.318 | P23: 24.11 | Q23: 25.973 | R23: 24.21
A24: Total | B24: Used to smoke cigarettes regularly | C24: RowLowerCL | D24: 23.56 | E24: 22.139 | F24: 20.815 | G24: 22.36 | H24: 21.53 | I24: 21.75 | J24: 20.15 | K24: 24.05 | L24: 22.82 | M24: 21.79 | N24: 21.945 | O24: 20.36 | P24: 21.24 | Q24: 22.568 | R24: 23.43
A25: Total | B25: Used to smoke cigarettes regularly | C25: RowUpperCL | D25: 27.58 | E25: 30.371 | F25: 30.273 | G25: 26.5 | H25: 28.4 | I25: 25.22 | J25: 23.16 | K25: 31.61 | L25: 28.05 | M25: 26.49 | N25: 28.998 | O25: 30.275 | P25: 26.98 | Q25: 29.378 | R25: 24.98
A26: Total | B26: Current cigarette smoker | C26: RowPercent | D26: 21.45 | E26: 18.336 | F26: 21.6 | G26: 22.52 | H26: 20.62 | I26: 20.35 | J26: 23.78 | K26: 20.68 | L26: 21.48 | M26: 18.81 | N26: 16.975 | O26: 21.156 | P26: 21.08 | Q26: 18.096 | R26: 21.25
A27: Total | B27: Current cigarette smoker | C27: RowLowerCL | D27: 19.46 | E27: 14.105 | F27: 17.166 | G27: 20.08 | H27: 16.81 | I27: 18.17 | J27: 21.82 | K27: 16.93 | L27: 18.85 | M27: 16.47 | N27: 12.516 | O27: 16.963 | P27: 18.05 | Q27: 14.988 | R27: 20.4
A28: Total | B28: Current cigarette smoker | C28: RowUpperCL | D28: 23.44 | E28: 22.568 | F28: 26.035 | G28: 24.97 | H28: 24.43 | I28: 22.52 | J28: 25.73 | K28: 24.42 | L28: 24.12 | M28: 21.15 | N28: 21.434 | O28: 25.348 | P28: 24.11 | Q28: 21.204 | R28: 22.1
A29: Male | B29: . | C29: WgtFreq | D29: 601.02 | E29: 183.856 | F29: 258.508 | G29: 616.07 | H29: 493.15 | I29: 972.59 | J29: 1861.36 | K29: 539.17 | L29: 1129.05 | M29: 1508.77 | N29: 38.805 | O29: 41.798 | P29: 681.92 | Q29: 48.038 | R29: 8974.11
A30: Female | B30: . | C30: WgtFreq | D30: 709.47 | E30: 221.46 | F30: 267.191 | G30: 660.75 | H30: 550.89 | I30: 1076.03 | J30: 2041.5 | K30: 583.34 | L30: 1257.25 | M30: 1493.47 | N30: 38.875 | O30: 39.228 | P30: 763.38 | Q30: 48.391 | R30: 9751.22
A31: Total | B31: . | C31: WgtFreq | D31: 1310.5 | E31: 405.316 | F31: 525.699 | G31: 1276.81 | H31: 1044.04 | I31: 2048.63 | J31: 3902.86 | K31: 1122.51 | L31: 2386.3 | M31: 3002.24 | N31: 77.679 | O31: 81.026 | P31: 1445.3 | Q31: 96.429 | R31: 18725.33
A32: Male | B32: . | C32: Frequency | D32: 941 | E32: 199 | F32: 219 | G32: 899 | H32: 305 | I32: 1129 | J32: 1332 | K32: 354 | L32: 655 | M32: 927 | N32: 234 | O32: 246 | P32: 472 | Q32: 386 | R32: 8298
A33: Female | B33: . | C33: Frequency | D33: 1207 | E33: 277 | F33: 253 | G33: 1139 | H33: 410 | I33: 1427 | J33: 1742 | K33: 462 | L33: 875 | M33: 1103 | N33: 270 | O33: 276 | P33: 586 | Q33: 460 | R33: 10487
A34: Total | B34: . | C34: Frequency | D34: 2148 | E34: 476 | F34: 472 | G34: 2038 | H34: 715 | I34: 2556 | J34: 3074 | K34: 816 | L34: 1530 | M34: 2030 | N34: 504 | O34: 522 | P34: 1058 | Q34: 846 | R34: 18785

Sheet Smoking chart
R1: INDEX
C31: Source: Scottish Health Survey
C34: Ayrshire & Arran | D34: Borders | E34: Dumfries & Galloway | F34: Fife | G34: Forth Valley | H34: Grampian | I34: Greater Glasgow & Clyde | J34: Highland | K34: Lanarkshire | L34: Lothian | M34: Orkney | N34: Shetland | O34: Tayside | P34: Western Isles | R34: Scotland
B35: All Adults
B36: Never smoked, or ex-occasional | C36: ='Smoking behaviour'!B31 -> 52.98 | D36: ='Smoking behaviour'!C31 -> 55.409 | E36: ='Smoking behaviour'!D31 -> 52.856 | F36: ='Smoking behaviour'!E31 -> 53.05 | G36: ='Smoking behaviour'!F31 -> 54.41 | H36: ='Smoking behaviour'!G31 -> 56.17 | I36: ='Smoking behaviour'!H31 -> 54.57 | J36: ='Smoking behaviour'!I31 -> 51.49 | K36: ='Smoking behaviour'!J31 -> 53.08 | L36: ='Smoking behaviour'!K31 -> 57.05 | M36: ='Smoking behaviour'!L31 -> 57.554 | N36: ='Smoking behaviour'!M31 -> 53.526 | O36: ='Smoking behaviour'!N31 -> 54.81 | P36: ='Smoking behaviour'!O31 -> 55.93 | R36: ='Smoking behaviour'!P31 -> 54.55
B37: Lower CI | C37: ='Smoking behaviour'!B32 -> 50.42 | D37: ='Smoking behaviour'!C32 -> 50.987 | E37: ='Smoking behaviour'!D32 -> 47.105 | F37: ='Smoking behaviour'!E32 -> 50.52 | G37: ='Smoking behaviour'!F32 -> 49.89 | H37: ='Smoking behaviour'!G32 -> 53.63 | I37: ='Smoking behaviour'!H32 -> 52.3 | J37: ='Smoking behaviour'!I32 -> 46.59 | K37: ='Smoking behaviour'!J32 -> 49.82 | L37: ='Smoking behaviour'!K32 -> 54.09 | M37: ='Smoking behaviour'!L32 -> 51.843 | N37: ='Smoking behaviour'!M32 -> 49.642 | O37: ='Smoking behaviour'!N32 -> 51.12 | P37: ='Smoking behaviour'!O32 -> 52.388 | R37: ='Smoking behaviour'!P32 -> 53.5
B38: Upper CI | C38: ='Smoking behaviour'!B33 -> 55.54 | D38: ='Smoking behaviour'!C33 -> 59.83 | E38: ='Smoking behaviour'!D33 -> 58.607 | F38: ='Smoking behaviour'!E33 -> 55.58 | G38: ='Smoking behaviour'!F33 -> 58.93 | H38: ='Smoking behaviour'!G33 -> 58.71 | I38: ='Smoking behaviour'!H33 -> 56.84 | J38: ='Smoking behaviour'!I33 -> 56.4 | K38: ='Smoking behaviour'!J33 -> 56.34 | L38: ='Smoking behaviour'!K33 -> 60.01 | M38: ='Smoking behaviour'!L33 -> 63.265 | N38: ='Smoking behaviour'!M33 -> 57.411 | O38: ='Smoking behaviour'!N33 -> 58.49 | P38: ='Smoking behaviour'!O33 -> 59.472 | R38: ='Smoking behaviour'!P33 -> 55.59
B39: Ex-regular smoker, or occasional | C39: ='Smoking behaviour'!B34 -> 25.57 | D39: ='Smoking behaviour'!C34 -> 26.255 | E39: ='Smoking behaviour'!D34 -> 25.544 | F39: ='Smoking behaviour'!E34 -> 24.43 | G39: ='Smoking behaviour'!F34 -> 24.97 | H39: ='Smoking behaviour'!G34 -> 23.49 | I39: ='Smoking behaviour'!H34 -> 21.65 | J39: ='Smoking behaviour'!I34 -> 27.83 | K39: ='Smoking behaviour'!J34 -> 25.43 | L39: ='Smoking behaviour'!K34 -> 24.14 | M39: ='Smoking behaviour'!L34 -> 25.471 | N39: ='Smoking behaviour'!M34 -> 25.318 | O39: ='Smoking behaviour'!N34 -> 24.11 | P39: ='Smoking behaviour'!O34 -> 25.973 | R39: ='Smoking behaviour'!P34 -> 24.21
B40: Lower CI | C40: ='Smoking behaviour'!B35 -> 23.56 | D40: ='Smoking behaviour'!C35 -> 22.139 | E40: ='Smoking behaviour'!D35 -> 20.815 | F40: ='Smoking behaviour'!E35 -> 22.36 | G40: ='Smoking behaviour'!F35 -> 21.53 | H40: ='Smoking behaviour'!G35 -> 21.75 | I40: ='Smoking behaviour'!H35 -> 20.15 | J40: ='Smoking behaviour'!I35 -> 24.05 | K40: ='Smoking behaviour'!J35 -> 22.82 | L40: ='Smoking behaviour'!K35 -> 21.79 | M40: ='Smoking behaviour'!L35 -> 21.945 | N40: ='Smoking behaviour'!M35 -> 20.36 | O40: ='Smoking behaviour'!N35 -> 21.24 | P40: ='Smoking behaviour'!O35 -> 22.568 | R40: ='Smoking behaviour'!P35 -> 23.43
B41: Upper CI | C41: ='Smoking behaviour'!B36 -> 27.58 | D41: ='Smoking behaviour'!C36 -> 30.371 | E41: ='Smoking behaviour'!D36 -> 30.273 | F41: ='Smoking behaviour'!E36 -> 26.5 | G41: ='Smoking behaviour'!F36 -> 28.4 | H41: ='Smoking behaviour'!G36 -> 25.22 | I41: ='Smoking behaviour'!H36 -> 23.16 | J41: ='Smoking behaviour'!I36 -> 31.61 | K41: ='Smoking behaviour'!J36 -> 28.05 | L41: ='Smoking behaviour'!K36 -> 26.49 | M41: ='Smoking behaviour'!L36 -> 28.998 | N41: ='Smoking behaviour'!M36 -> 30.275 | O41: ='Smoking behaviour'!N36 -> 26.98 | P41: ='Smoking behaviour'!O36 -> 29.378 | R41: ='Smoking behaviour'!P36 -> 24.98
B42: Regular smoker | C42: ='Smoking behaviour'!B37 -> 21.45 | D42: ='Smoking behaviour'!C37 -> 18.336 | E42: ='Smoking behaviour'!D37 -> 21.6 | F42: ='Smoking behaviour'!E37 -> 22.52 | G42: ='Smoking behaviour'!F37 -> 20.62 | H42: ='Smoking behaviour'!G37 -> 20.35 | I42: ='Smoking behaviour'!H37 -> 23.78 | J42: ='Smoking behaviour'!I37 -> 20.68 | K42: ='Smoking behaviour'!J37 -> 21.48 | L42: ='Smoking behaviour'!K37 -> 18.81 | M42: ='Smoking behaviour'!L37 -> 16.975 | N42: ='Smoking behaviour'!M37 -> 21.156 | O42: ='Smoking behaviour'!N37 -> 21.08 | P42: ='Smoking behaviour'!O37 -> 18.096 | R42: ='Smoking behaviour'!P37 -> 21.25
B43: Lower CI | C43: ='Smoking behaviour'!B38 -> 19.46 | D43: ='Smoking behaviour'!C38 -> 14.105 | E43: ='Smoking behaviour'!D38 -> 17.166 | F43: ='Smoking behaviour'!E38 -> 20.08 | G43: ='Smoking behaviour'!F38 -> 16.81 | H43: ='Smoking behaviour'!G38 -> 18.17 | I43: ='Smoking behaviour'!H38 -> 21.82 | J43: ='Smoking behaviour'!I38 -> 16.93 | K43: ='Smoking behaviour'!J38 -> 18.85 | L43: ='Smoking behaviour'!K38 -> 16.47 | M43: ='Smoking behaviour'!L38 -> 12.516 | N43: ='Smoking behaviour'!M38 -> 16.963 | O43: ='Smoking behaviour'!N38 -> 18.05 | P43: ='Smoking behaviour'!O38 -> 14.988 | R43: ='Smoking behaviour'!P38 -> 20.4
B44: Upper CI | C44: ='Smoking behaviour'!B39 -> 23.44 | D44: ='Smoking behaviour'!C39 -> 22.568 | E44: ='Smoking behaviour'!D39 -> 26.035 | F44: ='Smoking behaviour'!E39 -> 24.97 | G44: ='Smoking behaviour'!F39 -> 24.43 | H44: ='Smoking behaviour'!G39 -> 22.52 | I44: ='Smoking behaviour'!H39 -> 25.73 | J44: ='Smoking behaviour'!I39 -> 24.42 | K44: ='Smoking behaviour'!J39 -> 24.12 | L44: ='Smoking behaviour'!K39 -> 21.15 | M44: ='Smoking behaviour'!L39 -> 21.434 | N44: ='Smoking behaviour'!M39 -> 25.348 | O44: ='Smoking behaviour'!N39 -> 24.11 | P44: ='Smoking behaviour'!O39 -> 21.204 | R44: ='Smoking behaviour'!P39 -> 22.1
A46: CLs | B46: Never smoked, or ex-occasional | C46: =C36-C37 -> 2.56 | D46: =D36-D37 -> 4.422 | E46: 5.751 | F46: 2.53 | G46: 4.52 | H46: 2.54 | I46: 2.27 | J46: 4.9 | K46: 3.26 | L46: 2.96 | M46: 5.711 | N46: 3.884 | O46: 3.69 | P46: 3.542 | R46: =R36-R37 -> 1.05
B47: Ex-regular smoker, or occasional | C47: =C39-C40 -> 2.01 | D47: =D39-D40 -> 4.116 | E47: 4.729 | F47: 2.07 | G47: 3.44 | H47: 1.74 | I47: 1.5 | J47: 3.78 | K47: 2.61 | L47: 2.35 | M47: 3.526 | N47: 4.958 | O47: 2.87 | P47: 3.405 | R47: =R39-R40 -> 0.78
B48: Regular smoker | C48: =C42-C43 -> 1.99 | D48: =D42-D43 -> 4.231 | E48: 4.434 | F48: 2.44 | G48: 3.81 | H48: 2.18 | I48: 1.96 | J48: 3.75 | K48: 2.63 | L48: 2.34 | M48: 4.459 | N48: 4.193 | O48: 3.03 | P48: 3.108 | R48: =R42-R43 -> 0.85

Sheet Overweight
A1: Prevalence of overweight (including obesity), by NHS Board and sex | M1: INDEX
A4: Aged 16 and over | P4: 2013/2014/2015/2016 combined
A5: Overweight (including obese)a | B5: NHS Board
B6: Ayrshire & Arran | C6: Borders | D6: Dumfries & Galloway | E6: Fife | F6: Forth Valley | G6: Grampian | H6: Greater Glasgow & Clyde | I6: Highland | J6: Lanarkshire | K6: Lothian | L6: Orkney | M6: Shetland | N6: Tayside | O6: Western Isles | P6: Scotland
B7: % | C7: % | D7: % | E7: % | F7: % | G7: % | H7: % | I7: % | J7: % | K7: % | L7: % | M7: % | N7: % | O7: % | P7: %
A8: Men
A9: Overweight (including obese)a | B9: ='ovwt data'!D5 -> 72.84 | C9: ='ovwt data'!E5 -> 72.36 | D9: ='ovwt data'!F5 -> 68.353 | E9: ='ovwt data'!G5 -> 71.08 | F9: ='ovwt data'!H5 -> 68.255 | G9: ='ovwt data'!I5 -> 70.37 | H9: ='ovwt data'!J5 -> 65.23 | I9: ='ovwt data'!K5 -> 67.408 | J9: ='ovwt data'!L5 -> 74.42 | K9: ='ovwt data'!M5 -> 63.91 | L9: ='ovwt data'!N5 -> 71.555 | M9: ='ovwt data'!O5 -> 77.055 | N9: ='ovwt data'!P5 -> 69.34 | O9: ='ovwt data'!Q5 -> 73.215 | P9: ='ovwt data'!R5 -> 68.55
A10: Lower CI | B10: ='ovwt data'!D6 -> 69.96 | C10: ='ovwt data'!E6 -> 64.487 | D10: ='ovwt data'!F6 -> 62.663 | E10: ='ovwt data'!G6 -> 66.74 | F10: ='ovwt data'!H6 -> 62.442 | G10: ='ovwt data'!I6 -> 67.12 | H10: ='ovwt data'!J6 -> 61.76 | I10: ='ovwt data'!K6 -> 61.422 | J10: ='ovwt data'!L6 -> 70.24 | K10: ='ovwt data'!M6 -> 60 | L10: ='ovwt data'!N6 -> 64.846 | M10: ='ovwt data'!O6 -> 68.801 | N10: ='ovwt data'!P6 -> 63.64 | O10: ='ovwt data'!Q6 -> 66.917 | P10: ='ovwt data'!R6 -> 67.1
A11: Upper CI | B11: ='ovwt data'!D7 -> 75.71 | C11: ='ovwt data'!E7 -> 80.233 | D11: ='ovwt data'!F7 -> 74.042 | E11: ='ovwt data'!G7 -> 75.42 | F11: ='ovwt data'!H7 -> 74.068 | G11: ='ovwt data'!I7 -> 73.61 | H11: ='ovwt data'!J7 -> 68.71 | I11: ='ovwt data'!K7 -> 73.394 | J11: ='ovwt data'!L7 -> 78.6 | K11: ='ovwt data'!M7 -> 67.82 | L11: ='ovwt data'!N7 -> 78.263 | M11: ='ovwt data'!O7 -> 85.309 | N11: ='ovwt data'!P7 -> 75.05 | O11: ='ovwt data'!Q7 -> 79.514 | P11: ='ovwt data'!R7 -> 70.01
A13: Women
A14: Overweight (including obese)a | B14: ='ovwt data'!D11 -> 67.72 | C14: ='ovwt data'!E11 -> 64.483 | D14: ='ovwt data'!F11 -> 67.838 | E14: ='ovwt data'!G11 -> 62.58 | F14: ='ovwt data'!H11 -> 62.187 | G14: ='ovwt data'!I11 -> 59.48 | H14: ='ovwt data'!J11 -> 58.82 | I14: ='ovwt data'!K11 -> 61.687 | J14: ='ovwt data'!L11 -> 66.55 | K14: ='ovwt data'!M11 -> 54.82 | L14: ='ovwt data'!N11 -> 72.661 | M14: ='ovwt data'!O11 -> 67.287 | N14: ='ovwt data'!P11 -> 62.18 | O14: ='ovwt data'!Q11 -> 69.605 | P14: ='ovwt data'!R11 -> 61.3
A15: Lower CI | B15: ='ovwt data'!D12 -> 64.65 | C15: ='ovwt data'!E12 -> 58.345 | D15: ='ovwt data'!F12 -> 60.928 | E15: ='ovwt data'!G12 -> 59.49 | F15: ='ovwt data'!H12 -> 56.826 | G15: ='ovwt data'!I12 -> 56.26 | H15: ='ovwt data'!J12 -> 55.98 | I15: ='ovwt data'!K12 -> 56.01 | J15: ='ovwt data'!L12 -> 62.75 | K15: ='ovwt data'!M12 -> 50.91 | L15: ='ovwt data'!N12 -> 66.355 | M15: ='ovwt data'!O12 -> 59.763 | N15: ='ovwt data'!P12 -> 57.16 | O15: ='ovwt data'!Q12 -> 63.031 | P15: ='ovwt data'!R12 -> 59.97
A16: Upper CI | B16: ='ovwt data'!D13 -> 70.79 | C16: ='ovwt data'!E13 -> 70.62 | D16: ='ovwt data'!F13 -> 74.748 | E16: ='ovwt data'!G13 -> 65.67 | F16: ='ovwt data'!H13 -> 67.548 | G16: ='ovwt data'!I13 -> 62.7 | H16: ='ovwt data'!J13 -> 61.67 | I16: ='ovwt data'!K13 -> 67.364 | J16: ='ovwt data'!L13 -> 70.35 | K16: ='ovwt data'!M13 -> 58.73 | L16: ='ovwt data'!N13 -> 78.967 | M16: ='ovwt data'!O13 -> 74.811 | N16: ='ovwt data'!P13 -> 67.2 | O16: ='ovwt data'!Q13 -> 76.179 | P16: ='ovwt data'!R13 -> 62.63
A18: All Adults
A19: Overweight (including obese)a | B19: ='ovwt data'!D17 -> 70.01 | C19: ='ovwt data'!E17 -> 68.167 | D19: ='ovwt data'!F17 -> 68.089 | E19: ='ovwt data'!G17 -> 66.77 | F19: ='ovwt data'!H17 -> 65.24 | G19: ='ovwt data'!I17 -> 64.73 | H19: ='ovwt data'!J17 -> 62.01 | I19: ='ovwt data'!K17 -> 64.573 | J19: ='ovwt data'!L17 -> 70.41 | K19: ='ovwt data'!M17 -> 59.52 | L19: ='ovwt data'!N17 -> 72.085 | M19: ='ovwt data'!O17 -> 72.447 | N19: ='ovwt data'!P17 -> 65.54 | O19: ='ovwt data'!Q17 -> 71.465 | P19: ='ovwt data'!R17 -> 64.87
A20: Lower CI | B20: ='ovwt data'!D18 -> 67.85 | C20: ='ovwt data'!E18 -> 63.136 | D20: ='ovwt data'!F18 -> 63.293 | E20: ='ovwt data'!G18 -> 63.99 | F20: ='ovwt data'!H18 -> 61.003 | G20: ='ovwt data'!I18 -> 62.32 | H20: ='ovwt data'!J18 -> 59.51 | I20: ='ovwt data'!K18 -> 60.001 | J20: ='ovwt data'!L18 -> 67.52 | K20: ='ovwt data'!M18 -> 56.69 | L20: ='ovwt data'!N18 -> 66.641 | M20: ='ovwt data'!O18 -> 66.072 | N20: ='ovwt data'!P18 -> 61.71 | O20: ='ovwt data'!Q18 -> 66.376 | P20: ='ovwt data'!R18 -> 63.8
A21: Upper CI | B21: ='ovwt data'!D19 -> 72.17 | C21: ='ovwt data'!E19 -> 73.197 | D21: ='ovwt data'!F19 -> 72.885 | E21: ='ovwt data'!G19 -> 69.55 | F21: ='ovwt data'!H19 -> 69.477 | G21: ='ovwt data'!I19 -> 67.14 | H21: ='ovwt data'!J19 -> 64.51 | I21: ='ovwt data'!K19 -> 69.144 | J21: ='ovwt data'!L19 -> 73.29 | K21: ='ovwt data'!M19 -> 62.35 | L21: ='ovwt data'!N19 -> 77.529 | M21: ='ovwt data'!O19 -> 78.822 | N21: ='ovwt data'!P19 -> 69.38 | O21: ='ovwt data'!Q19 -> 76.555 | P21: ='ovwt data'!R19 -> 65.93
A23: Bases (weighted):
A24: Men | B24: ='ovwt data'!D20 -> 498.91 | C24: ='ovwt data'!E20 -> 166.21 | D24: ='ovwt data'!F20 -> 215.131 | E24: ='ovwt data'!G20 -> 519.45 | F24: ='ovwt data'!H20 -> 413.535 | G24: ='ovwt data'!I20 -> 890.97 | H24: ='ovwt data'!J20 -> 1648.74 | I24: ='ovwt data'!K20 -> 451.26 | J24: ='ovwt data'!L20 -> 934.57 | K24: ='ovwt data'!M20 -> 1305.49 | L24: ='ovwt data'!N20 -> 36.196 | M24: ='ovwt data'!O20 -> 34.382 | N24: ='ovwt data'!P20 -> 582.51 | O24: ='ovwt data'!Q20 -> 36.587 | P24: ='ovwt data'!R20 -> 7733.94
A25: Women | B25: ='ovwt data'!D21 -> 612.93 | C25: ='ovwt data'!E21 -> 189.218 | D25: ='ovwt data'!F21 -> 225.44 | E25: ='ovwt data'!G21 -> 535.52 | F25: ='ovwt data'!H21 -> 408.39 | G25: ='ovwt data'!I21 -> 958.37 | H25: ='ovwt data'!J21 -> 1669.76 | I25: ='ovwt data'!K21 -> 443.495 | J25: ='ovwt data'!L21 -> 973.06 | K25: ='ovwt data'!M21 -> 1220.02 | L25: ='ovwt data'!N21 -> 33.32 | M25: ='ovwt data'!O21 -> 30.702 | N25: ='ovwt data'!P21 -> 658.3 | O25: ='ovwt data'!Q21 -> 34.421 | P25: ='ovwt data'!R21 -> 7992.93
A26: All Adults | B26: ='ovwt data'!D22 -> 1111.84 | C26: ='ovwt data'!E22 -> 355.428 | D26: ='ovwt data'!F22 -> 440.572 | E26: ='ovwt data'!G22 -> 1054.96 | F26: ='ovwt data'!H22 -> 821.925 | G26: ='ovwt data'!I22 -> 1849.33 | H26: ='ovwt data'!J22 -> 3318.5 | I26: ='ovwt data'!K22 -> 894.755 | J26: ='ovwt data'!L22 -> 1907.62 | K26: ='ovwt data'!M22 -> 2525.51 | L26: ='ovwt data'!N22 -> 69.516 | M26: ='ovwt data'!O22 -> 65.083 | N26: ='ovwt data'!P22 -> 1240.81 | O26: ='ovwt data'!Q22 -> 71.008 | P26: ='ovwt data'!R22 -> 15726.87
A27: Bases (unweighted)
A28: Men | B28: ='ovwt data'!D23 -> 777 | C28: ='ovwt data'!E23 -> 178 | D28: ='ovwt data'!F23 -> 182 | E28: ='ovwt data'!G23 -> 747 | F28: ='ovwt data'!H23 -> 251 | G28: ='ovwt data'!I23 -> 1025 | H28: ='ovwt data'!J23 -> 1161 | I28: ='ovwt data'!K23 -> 290 | J28: ='ovwt data'!L23 -> 541 | K28: ='ovwt data'!M23 -> 800 | L28: ='ovwt data'!N23 -> 219 | M28: ='ovwt data'!O23 -> 200 | N28: ='ovwt data'!P23 -> 404 | O28: ='ovwt data'!Q23 -> 306 | P28: ='ovwt data'!R23 -> 7081
A29: Women | B29: ='ovwt data'!D24 -> 1043 | C29: ='ovwt data'!E24 -> 240 | D29: ='ovwt data'!F24 -> 208 | E29: ='ovwt data'!G24 -> 926 | F29: ='ovwt data'!H24 -> 307 | G29: ='ovwt data'!I24 -> 1266 | H29: ='ovwt data'!J24 -> 1419 | I29: ='ovwt data'!K24 -> 351 | J29: ='ovwt data'!L24 -> 685 | K29: ='ovwt data'!M24 -> 909 | L29: ='ovwt data'!N24 -> 235 | M29: ='ovwt data'!O24 -> 215 | N29: ='ovwt data'!P24 -> 511 | O29: ='ovwt data'!Q24 -> 338 | P29: ='ovwt data'!R24 -> 8653
A30: All Adults | B30: ='ovwt data'!D25 -> 1820 | C30: ='ovwt data'!E25 -> 418 | D30: ='ovwt data'!F25 -> 390 | E30: ='ovwt data'!G25 -> 1673 | F30: ='ovwt data'!H25 -> 558 | G30: ='ovwt data'!I25 -> 2291 | H30: ='ovwt data'!J25 -> 2580 | I30: ='ovwt data'!K25 -> 641 | J30: ='ovwt data'!L25 -> 1226 | K30: ='ovwt data'!M25 -> 1709 | L30: ='ovwt data'!N25 -> 454 | M30: ='ovwt data'!O25 -> 415 | N30: ='ovwt data'!P25 -> 915 | O30: ='ovwt data'!Q25 -> 644 | P30: ='ovwt data'!R25 -> 15734
A32: a BMI 25 or higher

Sheet ovwt data (hidden)
A1: F_sex | B1: F_bmi25 | C1: _NAME_ | D1: Ayrshire & Arran | E1: Borders | F1: Dumfries & Galloway | G1: Fife | H1: Forth Valley | I1: Grampian | J1: Greater Glasgow | K1: Highland | L1: Lanarkshire | M1: Lothian | N1: Orkney | O1: Shetland | P1: Tayside | Q1: Western Isles | R1: Scotland
A2: Male | B2: Under 25 | C2: RowPercent | D2: 27.16 | E2: 27.64 | F2: 31.647 | G2: 28.92 | H2: 31.745 | I2: 29.63 | J2: 34.77 | K2: 32.592 | L2: 25.58 | M2: 36.09 | N2: 28.445 | O2: 22.945 | P2: 30.66 | Q2: 26.785 | R2: 31.45
A3: Male | B3: Under 25 | C3: RowLowerCL | D3: 24.29 | E3: 19.767 | F3: 25.958 | G3: 24.58 | H3: 25.932 | I3: 26.39 | J3: 31.29 | K3: 26.606 | L3: 21.4 | M3: 32.18 | N3: 21.737 | O3: 14.691 | P3: 24.95 | Q3: 20.486 | R3: 29.99
A4: Male | B4: Under 25 | C4: RowUpperCL | D4: 30.04 | E4: 35.513 | F4: 37.337 | G4: 33.26 | H4: 37.558 | I4: 32.88 | J4: 38.24 | K4: 38.578 | L4: 29.76 | M4: 40 | N4: 35.154 | O4: 31.199 | P4: 36.36 | Q4: 33.083 | R4: 32.9
A5: Male | B5: 25 and over | C5: RowPercent | D5: 72.84 | E5: 72.36 | F5: 68.353 | G5: 71.08 | H5: 68.255 | I5: 70.37 | J5: 65.23 | K5: 67.408 | L5: 74.42 | M5: 63.91 | N5: 71.555 | O5: 77.055 | P5: 69.34 | Q5: 73.215 | R5: 68.55
A6: Male | B6: 25 and over | C6: RowLowerCL | D6: 69.96 | E6: 64.487 | F6: 62.663 | G6: 66.74 | H6: 62.442 | I6: 67.12 | J6: 61.76 | K6: 61.422 | L6: 70.24 | M6: 60 | N6: 64.846 | O6: 68.801 | P6: 63.64 | Q6: 66.917 | R6: 67.1
A7: Male | B7: 25 and over | C7: RowUpperCL | D7: 75.71 | E7: 80.233 | F7: 74.042 | G7: 75.42 | H7: 74.068 | I7: 73.61 | J7: 68.71 | K7: 73.394 | L7: 78.6 | M7: 67.82 | N7: 78.263 | O7: 85.309 | P7: 75.05 | Q7: 79.514 | R7: 70.01
A8: Female | B8: Under 25 | C8: RowPercent | D8: 32.28 | E8: 35.517 | F8: 32.162 | G8: 37.42 | H8: 37.813 | I8: 40.52 | J8: 41.18 | K8: 38.313 | L8: 33.45 | M8: 45.18 | N8: 27.339 | O8: 32.713 | P8: 37.82 | Q8: 30.395 | R8: 38.7
A9: Female | B9: Under 25 | C9: RowLowerCL | D9: 29.21 | E9: 29.38 | F9: 25.252 | G9: 34.33 | H9: 32.452 | I9: 37.3 | J9: 38.33 | K9: 32.636 | L9: 29.65 | M9: 41.27 | N9: 21.033 | O9: 25.189 | P9: 32.8 | Q9: 23.821 | R9: 37.37
A10: Female | B10: Under 25 | C10: RowUpperCL | D10: 35.35 | E10: 41.655 | F10: 39.072 | G10: 40.51 | H10: 43.174 | I10: 43.74 | J10: 44.02 | K10: 43.99 | L10: 37.25 | M10: 49.09 | N10: 33.645 | O10: 40.237 | P10: 42.84 | Q10: 36.969 | R10: 40.03
A11: Female | B11: 25 and over | C11: RowPercent | D11: 67.72 | E11: 64.483 | F11: 67.838 | G11: 62.58 | H11: 62.187 | I11: 59.48 | J11: 58.82 | K11: 61.687 | L11: 66.55 | M11: 54.82 | N11: 72.661 | O11: 67.287 | P11: 62.18 | Q11: 69.605 | R11: 61.3
A12: Female | B12: 25 and over | C12: RowLowerCL | D12: 64.65 | E12: 58.345 | F12: 60.928 | G12: 59.49 | H12: 56.826 | I12: 56.26 | J12: 55.98 | K12: 56.01 | L12: 62.75 | M12: 50.91 | N12: 66.355 | O12: 59.763 | P12: 57.16 | Q12: 63.031 | R12: 59.97
A13: Female | B13: 25 and over | C13: RowUpperCL | D13: 70.79 | E13: 70.62 | F13: 74.748 | G13: 65.67 | H13: 67.548 | I13: 62.7 | J13: 61.67 | K13: 67.364 | L13: 70.35 | M13: 58.73 | N13: 78.967 | O13: 74.811 | P13: 67.2 | Q13: 76.179 | R13: 62.63
A14: Total | B14: Under 25 | C14: RowPercent | D14: 29.99 | E14: 31.833 | F14: 31.911 | G14: 33.23 | H14: 34.76 | I14: 35.27 | J14: 37.99 | K14: 35.427 | L14: 29.59 | M14: 40.48 | N14: 27.915 | O14: 27.553 | P14: 34.46 | Q14: 28.535 | R14: 35.13
A15: Total | B15: Under 25 | C15: RowLowerCL | D15: 27.83 | E15: 26.803 | F15: 27.115 | G15: 30.45 | H15: 30.523 | I15: 32.86 | J15: 35.49 | K15: 30.856 | L15: 26.71 | M15: 37.65 | N15: 22.471 | O15: 21.178 | P15: 30.62 | Q15: 23.445 | R15: 34.07
A16: Total | B16: Under 25 | C16: RowUpperCL | D16: 32.15 | E16: 36.864 | F16: 36.707 | G16: 36.01 | H16: 38.997 | I16: 37.68 | J16: 40.49 | K16: 39.999 | L16: 32.48 | M16: 43.31 | N16: 33.359 | O16: 33.928 | P16: 38.29 | Q16: 33.624 | R16: 36.2
A17: Total | B17: 25 and over | C17: RowPercent | D17: 70.01 | E17: 68.167 | F17: 68.089 | G17: 66.77 | H17: 65.24 | I17: 64.73 | J17: 62.01 | K17: 64.573 | L17: 70.41 | M17: 59.52 | N17: 72.085 | O17: 72.447 | P17: 65.54 | Q17: 71.465 | R17: 64.87
A18: Total | B18: 25 and over | C18: RowLowerCL | D18: 67.85 | E18: 63.136 | F18: 63.293 | G18: 63.99 | H18: 61.003 | I18: 62.32 | J18: 59.51 | K18: 60.001 | L18: 67.52 | M18: 56.69 | N18: 66.641 | O18: 66.072 | P18: 61.71 | Q18: 66.376 | R18: 63.8
A19: Total | B19: 25 and over | C19: RowUpperCL | D19: 72.17 | E19: 73.197 | F19: 72.885 | G19: 69.55 | H19: 69.477 | I19: 67.14 | J19: 64.51 | K19: 69.144 | L19: 73.29 | M19: 62.35 | N19: 77.529 | O19: 78.822 | P19: 69.38 | Q19: 76.555 | R19: 65.93
A20: Male | B20: . | C20: WgtFreq | D20: 498.91 | E20: 166.21 | F20: 215.131 | G20: 519.45 | H20: 413.535 | I20: 890.97 | J20: 1648.74 | K20: 451.26 | L20: 934.57 | M20: 1305.49 | N20: 36.196 | O20: 34.382 | P20: 582.51 | Q20: 36.587 | R20: 7733.94
A21: Female | B21: . | C21: WgtFreq | D21: 612.93 | E21: 189.218 | F21: 225.44 | G21: 535.52 | H21: 408.39 | I21: 958.37 | J21: 1669.76 | K21: 443.495 | L21: 973.06 | M21: 1220.02 | N21: 33.32 | O21: 30.702 | P21: 658.3 | Q21: 34.421 | R21: 7992.93
A22: Total | B22: . | C22: WgtFreq | D22: 1111.84 | E22: 355.428 | F22: 440.572 | G22: 1054.96 | H22: 821.925 | I22: 1849.33 | J22: 3318.5 | K22: 894.755 | L22: 1907.62 | M22: 2525.51 | N22: 69.516 | O22: 65.083 | P22: 1240.81 | Q22: 71.008 | R22: 15726.87
A23: Male | B23: . | C23: Frequency | D23: 777 | E23: 178 | F23: 182 | G23: 747 | H23: 251 | I23: 1025 | J23: 1161 | K23: 290 | L23: 541 | M23: 800 | N23: 219 | O23: 200 | P23: 404 | Q23: 306 | R23: 7081
A24: Female | B24: . | C24: Frequency | D24: 1043 | E24: 240 | F24: 208 | G24: 926 | H24: 307 | I24: 1266 | J24: 1419 | K24: 351 | L24: 685 | M24: 909 | N24: 235 | O24: 215 | P24: 511 | Q24: 338 | R24: 8653
A25: Total | B25: . | C25: Frequency | D25: 1820 | E25: 418 | F25: 390 | G25: 1673 | H25: 558 | I25: 2291 | J25: 2580 | K25: 641 | L25: 1226 | M25: 1709 | N25: 454 | O25: 415 | P25: 915 | Q25: 644 | R25: 15734

Sheet Overweight chart
R1: INDEX
C31: Source: Scottish Health Survey
C32: Overweight: BMI 25+
C34: Ayrshire & Arran | D34: Borders | E34: Dumfries & Galloway | F34: Fife | G34: Forth Valley | H34: Grampian | I34: Greater Glasgow & Clyde | J34: Highland | K34: Lanarkshire | L34: Lothian | M34: Orkney | N34: Shetland | O34: Tayside | P34: Western Isles | R34: Scotland
B35: All Adults
B36: Overweight (including obese)a | C36: =Overweight!B19 -> 70.01 | D36: =Overweight!C19 -> 68.167 | E36: =Overweight!D19 -> 68.089 | F36: =Overweight!E19 -> 66.77 | G36: =Overweight!F19 -> 65.24 | H36: =Overweight!G19 -> 64.73 | I36: =Overweight!H19 -> 62.01 | J36: =Overweight!I19 -> 64.573 | K36: =Overweight!J19 -> 70.41 | L36: =Overweight!K19 -> 59.52 | M36: =Overweight!L19 -> 72.085 | N36: =Overweight!M19 -> 72.447 | O36: =Overweight!N19 -> 65.54 | P36: =Overweight!O19 -> 71.465 | R36: =Overweight!P19 -> 64.87
B37: Lower CI | C37: =Overweight!B20 -> 67.85 | D37: =Overweight!C20 -> 63.136 | E37: =Overweight!D20 -> 63.293 | F37: =Overweight!E20 -> 63.99 | G37: =Overweight!F20 -> 61.003 | H37: =Overweight!G20 -> 62.32 | I37: =Overweight!H20 -> 59.51 | J37: =Overweight!I20 -> 60.001 | K37: =Overweight!J20 -> 67.52 | L37: =Overweight!K20 -> 56.69 | M37: =Overweight!L20 -> 66.641 | N37: =Overweight!M20 -> 66.072 | O37: =Overweight!N20 -> 61.71 | P37: =Overweight!O20 -> 66.376 | R37: =Overweight!P20 -> 63.8
B38: Upper CI | C38: =Overweight!B21 -> 72.17 | D38: =Overweight!C21 -> 73.197 | E38: =Overweight!D21 -> 72.885 | F38: =Overweight!E21 -> 69.55 | G38: =Overweight!F21 -> 69.477 | H38: =Overweight!G21 -> 67.14 | I38: =Overweight!H21 -> 64.51 | J38: =Overweight!I21 -> 69.144 | K38: =Overweight!J21 -> 73.29 | L38: =Overweight!K21 -> 62.35 | M38: =Overweight!L21 -> 77.529 | N38: =Overweight!M21 -> 78.822 | O38: =Overweight!N21 -> 69.38 | P38: =Overweight!O21 -> 76.555 | R38: =Overweight!P21 -> 65.93
A40: CLs | C40: =C36-C37 -> 2.16 | D40: =D36-D37 -> 5.031 | E40: 4.796 | F40: 2.78 | G40: 4.237 | H40: 2.41 | I40: 2.5 | J40: 4.572 | K40: 2.89 | L40: 2.83 | M40: 5.444 | N40: 6.375 | O40: 3.83 | P40: 5.089 | R40: 1.07

Sheet Obesity
A1: Prevalence of obesity by NHS Board and sex | N1: INDEX
A4: Aged 16 and over | P4: 2013/2014/2015/2016 combined
A5: Obesitya | B5: NHS Board
B6: Ayrshire & Arran | C6: Borders | D6: Dumfries & Galloway | E6: Fife | F6: Forth Valley | G6: Grampian | H6: Greater Glasgow & Clyde | I6: Highland | J6: Lanarkshire | K6: Lothian | L6: Orkney | M6: Shetland | N6: Tayside | O6: Western Isles | P6: Scotland
B7: % | C7: % | D7: % | E7: % | F7: % | G7: % | H7: % | I7: % | J7: % | K7: % | L7: % | M7: % | N7: % | O7: % | P7: %
A8: Men
A9: Obesea | B9: ='obesity data'!D5 -> 31.77 | C9: ='obesity data'!E5 -> 26.343 | D9: ='obesity data'!F5 -> 30.971 | E9: ='obesity data'!G5 -> 30.7 | F9: ='obesity data'!H5 -> 29.13 | G9: ='obesity data'!I5 -> 28.19 | H9: ='obesity data'!J5 -> 24.48 | I9: ='obesity data'!K5 -> 23.404 | J9: ='obesity data'!L5 -> 32.85 | K9: ='obesity data'!M5 -> 22.5 | L9: ='obesity data'!N5 -> 31.109 | M9: ='obesity data'!O5 -> 38.741 | N9: ='obesity data'!P5 -> 26.57 | O9: ='obesity data'!Q5 -> 28.954 | P9: ='obesity data'!R5 -> 27.15
A10: Lower CI | B10: ='obesity data'!D6 -> 28.12 | C10: ='obesity data'!E6 -> 19.281 | D10: ='obesity data'!F6 -> 23.849 | E10: ='obesity data'!G6 -> 26.83 | F10: ='obesity data'!H6 -> 22.86 | G10: ='obesity data'!I6 -> 25.11 | H10: ='obesity data'!J6 -> 21.82 | I10: ='obesity data'!K6 -> 17.571 | J10: ='obesity data'!L6 -> 28.37 | K10: ='obesity data'!M6 -> 19.14 | L10: ='obesity data'!N6 -> 24.461 | M10: ='obesity data'!O6 -> 29.239 | N10: ='obesity data'!P6 -> 22.51 | O10: ='obesity data'!Q6 -> 22.76 | P10: ='obesity data'!R6 -> 25.91
A11: Upper CI | B11: ='obesity data'!D7 -> 35.41 | C11: ='obesity data'!E7 -> 33.405 | D11: ='obesity data'!F7 -> 38.094 | E11: ='obesity data'!G7 -> 34.57 | F11: ='obesity data'!H7 -> 35.399 | G11: ='obesity data'!I7 -> 31.26 | H11: ='obesity data'!J7 -> 27.15 | I11: ='obesity data'!K7 -> 29.236 | J11: ='obesity data'!L7 -> 37.33 | K11: ='obesity data'!M7 -> 25.87 | L11: ='obesity data'!N7 -> 37.757 | M11: ='obesity data'!O7 -> 48.242 | N11: ='obesity data'!P7 -> 30.63 | O11: ='obesity data'!Q7 -> 35.148 | P11: ='obesity data'!R7 -> 28.4
A13: Women
A14: Obesea | B14: ='obesity data'!D11 -> 34.97 | C14: ='obesity data'!E11 -> 27.712 | D14: ='obesity data'!F11 -> 31.122 | E14: ='obesity data'!G11 -> 33.15 | F14: ='obesity data'!H11 -> 33.329 | G14: ='obesity data'!I11 -> 27.9 | H14: ='obesity data'!J11 -> 26.82 | I14: ='obesity data'!K11 -> 30.788 | J14: ='obesity data'!L11 -> 31.76 | K14: ='obesity data'!M11 -> 24.78 | L14: ='obesity data'!N11 -> 36.448 | M14: ='obesity data'!O11 -> 36.965 | N14: ='obesity data'!P11 -> 30.74 | O14: ='obesity data'!Q11 -> 39.119 | P14: ='obesity data'!R11 -> 29.44
A15: Lower CI | B15: ='obesity data'!D12 -> 31.97 | C15: ='obesity data'!E12 -> 21.532 | D15: ='obesity data'!F12 -> 24.415 | E15: ='obesity data'!G12 -> 30.21 | F15: ='obesity data'!H12 -> 28.746 | G15: ='obesity data'!I12 -> 25.1 | H15: ='obesity data'!J12 -> 24.27 | I15: ='obesity data'!K12 -> 25.966 | J15: ='obesity data'!L12 -> 27.58 | K15: ='obesity data'!M12 -> 21.63 | L15: ='obesity data'!N12 -> 28.717 | M15: ='obesity data'!O12 -> 29.897 | N15: ='obesity data'!P12 -> 25.54 | O15: ='obesity data'!Q12 -> 33.138 | P15: ='obesity data'!R12 -> 28.31
A16: Upper CI | B16: ='obesity data'!D13 -> 37.98 | C16: ='obesity data'!E13 -> 33.891 | D16: ='obesity data'!F13 -> 37.829 | E16: ='obesity data'!G13 -> 36.1 | F16: ='obesity data'!H13 -> 37.913 | G16: ='obesity data'!I13 -> 30.7 | H16: ='obesity data'!J13 -> 29.36 | I16: ='obesity data'!K13 -> 35.611 | J16: ='obesity data'!L13 -> 35.95 | K16: ='obesity data'!M13 -> 27.94 | L16: ='obesity data'!N13 -> 44.18 | M16: ='obesity data'!O13 -> 44.034 | N16: ='obesity data'!P13 -> 35.95 | O16: ='obesity data'!Q13 -> 45.099 | P16: ='obesity data'!R13 -> 30.57
A18: All Adults
A19: Obesea | B19: ='obesity data'!D17 -> 33.53 | C19: ='obesity data'!E17 -> 27.072 | D19: ='obesity data'!F17 -> 31.048 | E19: ='obesity data'!G17 -> 31.95 | F19: ='obesity data'!H17 -> 31.216 | G19: ='obesity data'!I17 -> 28.04 | H19: ='obesity data'!J17 -> 25.66 | I19: ='obesity data'!K17 -> 27.064 | J19: ='obesity data'!L17 -> 32.29 | K19: ='obesity data'!M17 -> 23.61 | L19: ='obesity data'!N17 -> 33.668 | M19: ='obesity data'!O17 -> 37.903 | N19: ='obesity data'!P17 -> 28.78 | O19: ='obesity data'!Q17 -> 33.881 | P19: ='obesity data'!R17 -> 28.32
A20: Lower CI | B20: ='obesity data'!D18 -> 31.26 | C20: ='obesity data'!E18 -> 21.863 | D20: ='obesity data'!F18 -> 26.154 | E20: ='obesity data'!G18 -> 29.22 | F20: ='obesity data'!H18 -> 27.039 | G20: ='obesity data'!I18 -> 25.71 | H20: ='obesity data'!J18 -> 23.68 | I20: ='obesity data'!K18 -> 23.1 | J20: ='obesity data'!L18 -> 29.21 | K20: ='obesity data'!M18 -> 21.15 | L20: ='obesity data'!N18 -> 28.244 | M20: ='obesity data'!O18 -> 31.173 | N20: ='obesity data'!P18 -> 25.06 | O20: ='obesity data'!Q18 -> 29.402 | P20: ='obesity data'!R18 -> 27.43
A21: Upper CI | B21: ='obesity data'!D19 -> 35.81 | C21: ='obesity data'!E19 -> 32.28 | D21: ='obesity data'!F19 -> 35.943 | E21: ='obesity data'!G19 -> 34.67 | F21: ='obesity data'!H19 -> 35.394 | G21: ='obesity data'!I19 -> 30.36 | H21: ='obesity data'!J19 -> 27.64 | I21: ='obesity data'!K19 -> 31.028 | J21: ='obesity data'!L19 -> 35.38 | K21: ='obesity data'!M19 -> 26.06 | L21: ='obesity data'!N19 -> 39.093 | M21: ='obesity data'!O19 -> 44.634 | N21: ='obesity data'!P19 -> 32.51 | O21: ='obesity data'!Q19 -> 38.36 | P21: ='obesity data'!R19 -> 29.2
A23: Bases (weighted):
A24: Men | B24: ='obesity data'!D20 -> 498.91 | C24: ='obesity data'!E20 -> 166.21 | D24: ='obesity data'!F20 -> 215.131 | E24: ='obesity data'!G20 -> 519.45 | F24: ='obesity data'!H20 -> 413.535 | G24: ='obesity data'!I20 -> 890.97 | H24: ='obesity data'!J20 -> 1648.74 | I24: ='obesity data'!K20 -> 451.26 | J24: ='obesity data'!L20 -> 934.57 | K24: ='obesity data'!M20 -> 1305.49 | L24: ='obesity data'!N20 -> 36.196 | M24: ='obesity data'!O20 -> 34.382 | N24: ='obesity data'!P20 -> 582.51 | O24: ='obesity data'!Q20 -> 36.587 | P24: ='obesity data'!R20 -> 7733.94
A25: Women | B25: ='obesity data'!D21 -> 612.93 | C25: ='obesity data'!E21 -> 189.218 | D25: ='obesity data'!F21 -> 225.44 | E25: ='obesity data'!G21 -> 535.52 | F25: ='obesity data'!H21 -> 408.39 | G25: ='obesity data'!I21 -> 958.37 | H25: ='obesity data'!J21 -> 1669.76 | I25: ='obesity data'!K21 -> 443.495 | J25: ='obesity data'!L21 -> 973.06 | K25: ='obesity data'!M21 -> 1220.02 | L25: ='obesity data'!N21 -> 33.32 | M25: ='obesity data'!O21 -> 30.702 | N25: ='obesity data'!P21 -> 658.3 | O25: ='obesity data'!Q21 -> 34.421 | P25: ='obesity data'!R21 -> 7992.93
A26: All Adults | B26: ='obesity data'!D22 -> 1111.84 | C26: ='obesity data'!E22 -> 355.428 | D26: ='obesity data'!F22 -> 440.572 | E26: ='obesity data'!G22 -> 1054.96 | F26: ='obesity data'!H22 -> 821.925 | G26: ='obesity data'!I22 -> 1849.33 | H26: ='obesity data'!J22 -> 3318.5 | I26: ='obesity data'!K22 -> 894.755 | J26: ='obesity data'!L22 -> 1907.62 | K26: ='obesity data'!M22 -> 2525.51 | L26: ='obesity data'!N22 -> 69.516 | M26: ='obesity data'!O22 -> 65.083 | N26: ='obesity data'!P22 -> 1240.81 | O26: ='obesity data'!Q22 -> 71.008 | P26: ='obesity data'!R22 -> 15726.87
A27: Bases (unweighted)
A28: Men | B28: ='obesity data'!D23 -> 777 | C28: ='obesity data'!E23 -> 178 | D28: ='obesity data'!F23 -> 182 | E28: ='obesity data'!G23 -> 747 | F28: ='obesity data'!H23 -> 251 | G28: ='obesity data'!I23 -> 1025 | H28: ='obesity data'!J23 -> 1161 | I28: ='obesity data'!K23 -> 290 | J28: ='obesity data'!L23 -> 541 | K28: ='obesity data'!M23 -> 800 | L28: ='obesity data'!N23 -> 219 | M28: ='obesity data'!O23 -> 200 | N28: ='obesity data'!P23 -> 404 | O28: ='obesity data'!Q23 -> 306 | P28: ='obesity data'!R23 -> 7081
A29: Women | B29: ='obesity data'!D24 -> 1043 | C29: ='obesity data'!E24 -> 240 | D29: ='obesity data'!F24 -> 208 | E29: ='obesity data'!G24 -> 926 | F29: ='obesity data'!H24 -> 307 | G29: ='obesity data'!I24 -> 1266 | H29: ='obesity data'!J24 -> 1419 | I29: ='obesity data'!K24 -> 351 | J29: ='obesity data'!L24 -> 685 | K29: ='obesity data'!M24 -> 909 | L29: ='obesity data'!N24 -> 235 | M29: ='obesity data'!O24 -> 215 | N29: ='obesity data'!P24 -> 511 | O29: ='obesity data'!Q24 -> 338 | P29: ='obesity data'!R24 -> 8653
A30: All Adults | B30: ='obesity data'!D25 -> 1820 | C30: ='obesity data'!E25 -> 418 | D30: ='obesity data'!F25 -> 390 | E30: ='obesity data'!G25 -> 1673 | F30: ='obesity data'!H25 -> 558 | G30: ='obesity data'!I25 -> 2291 | H30: ='obesity data'!J25 -> 2580 | I30: ='obesity data'!K25 -> 641 | J30: ='obesity data'!L25 -> 1226 | K30: ='obesity data'!M25 -> 1709 | L30: ='obesity data'!N25 -> 454 | M30: ='obesity data'!O25 -> 415 | N30: ='obesity data'!P25 -> 915 | O30: ='obesity data'!Q25 -> 644 | P30: ='obesity data'!R25 -> 15734
A32: a BMI 30 or higher

Sheet obesity data (hidden)
A1: F_sex | B1: F_bmi30 | C1: _NAME_ | D1: Ayrshire & Arran | E1: Borders | F1: Dumfries & Galloway | G1: Fife | H1: Forth Valley | I1: Grampian | J1: Greater Glasgow | K1: Highland | L1: Lanarkshire | M1: Lothian | N1: Orkney | O1: Shetland | P1: Tayside | Q1: Western Isles | R1: Scotland
A2: Male | B2: Under 30 | C2: RowPercent | D2: 68.23 | E2: 73.657 | F2: 69.029 | G2: 69.3 | H2: 70.87 | I2: 71.81 | J2: 75.52 | K2: 76.596 | L2: 67.15 | M2: 77.5 | N2: 68.891 | O2: 61.259 | P2: 73.43 | Q2: 71.046 | R2: 72.85
A3: Male | B3: Under 30 | C3: RowLowerCL | D3: 64.59 | E3: 66.595 | F3: 61.906 | G3: 65.43 | H3: 64.601 | I3: 68.74 | J3: 72.85 | K3: 70.764 | L3: 62.67 | M3: 74.13 | N3: 62.243 | O3: 51.758 | P3: 69.37 | Q3: 64.852 | R3: 71.6
A4: Male | B4: Under 30 | C4: RowUpperCL | D4: 71.88 | E4: 80.719 | F4: 76.151 | G4: 73.17 | H4: 77.14 | I4: 74.89 | J4: 78.18 | K4: 82.429 | L4: 71.63 | M4: 80.86 | N4: 75.539 | O4: 70.761 | P4: 77.49 | Q4: 77.24 | R4: 74.09
A5: Male | B5: 30 and over | C5: RowPercent | D5: 31.77 | E5: 26.343 | F5: 30.971 | G5: 30.7 | H5: 29.13 | I5: 28.19 | J5: 24.48 | K5: 23.404 | L5: 32.85 | M5: 22.5 | N5: 31.109 | O5: 38.741 | P5: 26.57 | Q5: 28.954 | R5: 27.15
A6: Male | B6: 30 and over | C6: RowLowerCL | D6: 28.12 | E6: 19.281 | F6: 23.849 | G6: 26.83 | H6: 22.86 | I6: 25.11 | J6: 21.82 | K6: 17.571 | L6: 28.37 | M6: 19.14 | N6: 24.461 | O6: 29.239 | P6: 22.51 | Q6: 22.76 | R6: 25.91
A7: Male | B7: 30 and over | C7: RowUpperCL | D7: 35.41 | E7: 33.405 | F7: 38.094 | G7: 34.57 | H7: 35.399 | I7: 31.26 | J7: 27.15 | K7: 29.236 | L7: 37.33 | M7: 25.87 | N7: 37.757 | O7: 48.242 | P7: 30.63 | Q7: 35.148 | R7: 28.4
A8: Female | B8: Under 30 | C8: RowPercent | D8: 65.03 | E8: 72.288 | F8: 68.878 | G8: 66.85 | H8: 66.671 | I8: 72.1 | J8: 73.18 | K8: 69.212 | L8: 68.24 | M8: 75.22 | N8: 63.552 | O8: 63.035 | P8: 69.26 | Q8: 60.881 | R8: 70.56
A9: Female | B9: Under 30 | C9: RowLowerCL | D9: 62.02 | E9: 66.109 | F9: 62.171 | G9: 63.9 | H9: 62.087 | I9: 69.3 | J9: 70.64 | K9: 64.389 | L9: 64.05 | M9: 72.06 | N9: 55.82 | O9: 55.966 | P9: 64.05 | Q9: 54.901 | R9: 69.43
A10: Female | B10: Under 30 | C10: RowUpperCL | D10: 68.03 | E10: 78.468 | F10: 75.585 | G10: 69.79 | H10: 71.254 | I10: 74.9 | J10: 75.73 | K10: 74.034 | L10: 72.42 | M10: 78.37 | N10: 71.283 | O10: 70.103 | P10: 74.46 | Q10: 66.862 | R10: 71.69
A11: Female | B11: 30 and over | C11: RowPercent | D11: 34.97 | E11: 27.712 | F11: 31.122 | G11: 33.15 | H11: 33.329 | I11: 27.9 | J11: 26.82 | K11: 30.788 | L11: 31.76 | M11: 24.78 | N11: 36.448 | O11: 36.965 | P11: 30.74 | Q11: 39.119 | R11: 29.44
A12: Female | B12: 30 and over | C12: RowLowerCL | D12: 31.97 | E12: 21.532 | F12: 24.415 | G12: 30.21 | H12: 28.746 | I12: 25.1 | J12: 24.27 | K12: 25.966 | L12: 27.58 | M12: 21.63 | N12: 28.717 | O12: 29.897 | P12: 25.54 | Q12: 33.138 | R12: 28.31
A13: Female | B13: 30 and over | C13: RowUpperCL | D13: 37.98 | E13: 33.891 | F13: 37.829 | G13: 36.1 | H13: 37.913 | I13: 30.7 | J13: 29.36 | K13: 35.611 | L13: 35.95 | M13: 27.94 | N13: 44.18 | O13: 44.034 | P13: 35.95 | Q13: 45.099 | R13: 30.57
A14: Total | B14: Under 30 | C14: RowPercent | D14: 66.47 | E14: 72.928 | F14: 68.952 | G14: 68.05 | H14: 68.784 | I14: 71.96 | J14: 74.34 | K14: 72.936 | L14: 67.71 | M14: 76.39 | N14: 66.332 | O14: 62.097 | P14: 71.22 | Q14: 66.119 | R14: 71.68
A15: Total | B15: Under 30 | C15: RowLowerCL | D15: 64.19 | E15: 67.72 | F15: 64.057 | G15: 65.33 | H15: 64.606 | I15: 69.64 | J15: 72.36 | K15: 68.972 | L15: 64.62 | M15: 73.94 | N15: 60.907 | O15: 55.366 | P15: 67.49 | Q15: 61.64 | R15: 70.8
A16: Total | B16: Under 30 | C16: RowUpperCL | D16: 68.74 | E16: 78.137 | F16: 73.846 | G16: 70.78 | H16: 72.961 | I16: 74.29 | J16: 76.32 | K16: 76.9 | L16: 70.79 | M16: 78.85 | N16: 71.756 | O16: 68.827 | P16: 74.94 | Q16: 70.598 | R16: 72.57
A17: Total | B17: 30 and over | C17: RowPercent | D17: 33.53 | E17: 27.072 | F17: 31.048 | G17: 31.95 | H17: 31.216 | I17: 28.04 | J17: 25.66 | K17: 27.064 | L17: 32.29 | M17: 23.61 | N17: 33.668 | O17: 37.903 | P17: 28.78 | Q17: 33.881 | R17: 28.32
A18: Total | B18: 30 and over | C18: RowLowerCL | D18: 31.26 | E18: 21.863 | F18: 26.154 | G18: 29.22 | H18: 27.039 | I18: 25.71 | J18: 23.68 | K18: 23.1 | L18: 29.21 | M18: 21.15 | N18: 28.244 | O18: 31.173 | P18: 25.06 | Q18: 29.402 | R18: 27.43
A19: Total | B19: 30 and over | C19: RowUpperCL | D19: 35.81 | E19: 32.28 | F19: 35.943 | G19: 34.67 | H19: 35.394 | I19: 30.36 | J19: 27.64 | K19: 31.028 | L19: 35.38 | M19: 26.06 | N19: 39.093 | O19: 44.634 | P19: 32.51 | Q19: 38.36 | R19: 29.2
A20: Male | B20: . | C20: WgtFreq | D20: 498.91 | E20: 166.21 | F20: 215.131 | G20: 519.45 | H20: 413.535 | I20: 890.97 | J20: 1648.74 | K20: 451.26 | L20: 934.57 | M20: 1305.49 | N20: 36.196 | O20: 34.382 | P20: 582.51 | Q20: 36.587 | R20: 7733.94
A21: Female | B21: . | C21: WgtFreq | D21: 612.93 | E21: 189.218 | F21: 225.44 | G21: 535.52 | H21: 408.39 | I21: 958.37 | J21: 1669.76 | K21: 443.495 | L21: 973.06 | M21: 1220.02 | N21: 33.32 | O21: 30.702 | P21: 658.3 | Q21: 34.421 | R21: 7992.93
A22: Total | B22: . | C22: WgtFreq | D22: 1111.84 | E22: 355.428 | F22: 440.572 | G22: 1054.96 | H22: 821.925 | I22: 1849.33 | J22: 3318.5 | K22: 894.755 | L22: 1907.62 | M22: 2525.51 | N22: 69.516 | O22: 65.083 | P22: 1240.81 | Q22: 71.008 | R22: 15726.87
A23: Male | B23: . | C23: Frequency | D23: 777 | E23: 178 | F23: 182 | G23: 747 | H23: 251 | I23: 1025 | J23: 1161 | K23: 290 | L23: 541 | M23: 800 | N23: 219 | O23: 200 | P23: 404 | Q23: 306 | R23: 7081
A24: Female | B24: . | C24: Frequency | D24: 1043 | E24: 240 | F24: 208 | G24: 926 | H24: 307 | I24: 1266 | J24: 1419 | K24: 351 | L24: 685 | M24: 909 | N24: 235 | O24: 215 | P24: 511 | Q24: 338 | R24: 8653
A25: Total | B25: . | C25: Frequency | D25: 1820 | E25: 418 | F25: 390 | G25: 1673 | H25: 558 | I25: 2291 | J25: 2580 | K25: 641 | L25: 1226 | M25: 1709 | N25: 454 | O25: 415 | P25: 915 | Q25: 644 | R25: 15734

Sheet Obesity chart
R1: INDEX
C31: Source: Scottish Health Survey
C32: Obese: BMI 30+
C34: Ayrshire & Arran | D34: Borders | E34: Dumfries & Galloway | F34: Fife | G34: Forth Valley | H34: Grampian | I34: Greater Glasgow & Clyde | J34: Highland | K34: Lanarkshire | L34: Lothian | M34: Orkney | N34: Shetland | O34: Tayside | P34: Western Isles | R34: Scotland
B35: All Adults
B36: Obesea | C36: =Obesity!B19 -> 33.53 | D36: =Obesity!C19 -> 27.072 | E36: =Obesity!D19 -> 31.048 | F36: =Obesity!E19 -> 31.95 | G36: =Obesity!F19 -> 31.216 | H36: =Obesity!G19 -> 28.04 | I36: =Obesity!H19 -> 25.66 | J36: =Obesity!I19 -> 27.064 | K36: =Obesity!J19 -> 32.29 | L36: =Obesity!K19 -> 23.61 | M36: =Obesity!L19 -> 33.668 | N36: =Obesity!M19 -> 37.903 | O36: =Obesity!N19 -> 28.78 | P36: =Obesity!O19 -> 33.881 | R36: =Obesity!P19 -> 28.32
B37: Lower CI | C37: =Obesity!B20 -> 31.26 | D37: =Obesity!C20 -> 21.863 | E37: =Obesity!D20 -> 26.154 | F37: =Obesity!E20 -> 29.22 | G37: =Obesity!F20 -> 27.039 | H37: =Obesity!G20 -> 25.71 | I37: =Obesity!H20 -> 23.68 | J37: =Obesity!I20 -> 23.1 | K37: =Obesity!J20 -> 29.21 | L37: =Obesity!K20 -> 21.15 | M37: =Obesity!L20 -> 28.244 | N37: =Obesity!M20 -> 31.173 | O37: =Obesity!N20 -> 25.06 | P37: =Obesity!O20 -> 29.402 | R37: =Obesity!P20 -> 27.43
B38: Upper CI | C38: =Obesity!B21 -> 35.81 | D38: =Obesity!C21 -> 32.28 | E38: =Obesity!D21 -> 35.943 | F38: =Obesity!E21 -> 34.67 | G38: =Obesity!F21 -> 35.394 | H38: =Obesity!G21 -> 30.36 | I38: =Obesity!H21 -> 27.64 | J38: =Obesity!I21 -> 31.028 | K38: =Obesity!J21 -> 35.38 | L38: =Obesity!K21 -> 26.06 | M38: =Obesity!L21 -> 39.093 | N38: =Obesity!M21 -> 44.634 | O38: =Obesity!N21 -> 32.51 | P38: =Obesity!O21 -> 38.36 | R38: =Obesity!P21 -> 29.2
A40: CLs | C40: =C36-C37 -> 2.27 | D40: =D36-D37 -> 5.209 | E40: 4.894 | F40: 2.73 | G40: 4.177 | H40: 2.33 | I40: 1.98 | J40: 3.964 | K40: 3.08 | L40: 2.46 | M40: 5.424 | N40: 6.73 | O40: 3.72 | P40: 4.479 | R40: 0.89

Sheet Fruit and vegetables
A1: Daily fruit and vegetable consumption, three categories, by NHS Board and sex | M1: INDEX
A4: Aged 16 and over | P4: 2013/2014/2015/2016 combined
A5: Daily fruit and vegatable consumption, three categories | B5: NHS Board
B6: Ayrshire & Arran | C6: Borders | D6: Dumfries & Galloway | E6: Fife | F6: Forth Valley | G6: Grampian | H6: Greater Glasgow & Clyde | I6: Highland | J6: Lanarkshire | K6: Lothian | L6: Orkney | M6: Shetland | N6: Tayside | O6: Western Isles | P6: Scotland
B7: % | C7: % | D7: % | E7: % | F7: % | G7: % | H7: % | I7: % | J7: % | K7: % | L7: % | M7: % | N7: % | O7: % | P7: %
A8: Men
A9: None | B9: ='frtveg data'!D2 -> 15.31 | C9: ='frtveg data'!E2 -> 12.933 | D9: ='frtveg data'!F2 -> 11.871 | E9: ='frtveg data'!G2 -> 11.42 | F9: ='frtveg data'!H2 -> 13.55 | G9: ='frtveg data'!I2 -> 9.96 | H9: ='frtveg data'!J2 -> 14.87 | I9: ='frtveg data'!K2 -> 11.68 | J9: ='frtveg data'!L2 -> 13.86 | K9: ='frtveg data'!M2 -> 10.11 | L9: ='frtveg data'!N2 -> 10.47 | M9: ='frtveg data'!O2 -> 11.811 | N9: ='frtveg data'!P2 -> 11.07 | O9: ='frtveg data'!Q2 -> 9.942 | P9: ='frtveg data'!R2 -> 12.47
A10: Lower CI | B10: ='frtveg data'!D3 -> 12.94 | C10: ='frtveg data'!E3 -> 8.427 | D10: ='frtveg data'!F3 -> 7.052 | E10: ='frtveg data'!G3 -> 9.13 | F10: ='frtveg data'!H3 -> 9.25 | G10: ='frtveg data'!I3 -> 8 | H10: ='frtveg data'!J3 -> 12.52 | I10: ='frtveg data'!K3 -> 8.08 | J10: ='frtveg data'!L3 -> 10.41 | K10: ='frtveg data'!M3 -> 7.72 | L10: ='frtveg data'!N3 -> 5.79 | M10: ='frtveg data'!O3 -> 7.133 | N10: ='frtveg data'!P3 -> 8.12 | O10: ='frtveg data'!Q3 -> 6.275 | P10: ='frtveg data'!R3 -> 11.52
A11: Upper CI | B11: ='frtveg data'!D4 -> 17.69 | C11: ='frtveg data'!E4 -> 17.439 | D11: ='frtveg data'!F4 -> 16.69 | E11: ='frtveg data'!G4 -> 13.72 | F11: ='frtveg data'!H4 -> 17.85 | G11: ='frtveg data'!I4 -> 11.92 | H11: ='frtveg data'!J4 -> 17.22 | I11: ='frtveg data'!K4 -> 15.27 | J11: ='frtveg data'!L4 -> 17.32 | K11: ='frtveg data'!M4 -> 12.49 | L11: ='frtveg data'!N4 -> 15.15 | M11: ='frtveg data'!O4 -> 16.488 | N11: ='frtveg data'!P4 -> 14.03 | O11: ='frtveg data'!Q4 -> 13.608 | P11: ='frtveg data'!R4 -> 13.41
A12: Less than 5 portions | B12: ='frtveg data'!D5 -> 69.44 | C12: ='frtveg data'!E5 -> 66.661 | D12: ='frtveg data'!F5 -> 66.036 | E12: ='frtveg data'!G5 -> 68.84 | F12: ='frtveg data'!H5 -> 65.43 | G12: ='frtveg data'!I5 -> 71.08 | H12: ='frtveg data'!J5 -> 66.01 | I12: ='frtveg data'!K5 -> 72.24 | J12: ='frtveg data'!L5 -> 67.07 | K12: ='frtveg data'!M5 -> 65.72 | L12: ='frtveg data'!N5 -> 72.122 | M12: ='frtveg data'!O5 -> 69.452 | N12: ='frtveg data'!P5 -> 69.56 | O12: ='frtveg data'!Q5 -> 67.815 | P12: ='frtveg data'!R5 -> 67.74
A13: Lower CI | B13: ='frtveg data'!D6 -> 66.56 | C13: ='frtveg data'!E6 -> 58.857 | D13: ='frtveg data'!F6 -> 59.196 | E13: ='frtveg data'!G6 -> 65.6 | F13: ='frtveg data'!H6 -> 58.79 | G13: ='frtveg data'!I6 -> 68.25 | H13: ='frtveg data'!J6 -> 63.31 | I13: ='frtveg data'!K6 -> 67.18 | J13: ='frtveg data'!L6 -> 62.39 | K13: ='frtveg data'!M6 -> 62.11 | L13: ='frtveg data'!N6 -> 65.79 | M13: ='frtveg data'!O6 -> 63.054 | N13: ='frtveg data'!P6 -> 64.82 | O13: ='frtveg data'!Q6 -> 62.383 | P13: ='frtveg data'!R6 -> 66.46
A14: Upper CI | B14: ='frtveg data'!D7 -> 72.31 | C14: ='frtveg data'!E7 -> 74.465 | D14: ='frtveg data'!F7 -> 72.875 | E14: ='frtveg data'!G7 -> 72.08 | F14: ='frtveg data'!H7 -> 72.07 | G14: ='frtveg data'!I7 -> 73.92 | H14: ='frtveg data'!J7 -> 68.71 | I14: ='frtveg data'!K7 -> 77.3 | J14: ='frtveg data'!L7 -> 71.74 | K14: ='frtveg data'!M7 -> 69.33 | L14: ='frtveg data'!N7 -> 78.454 | M14: ='frtveg data'!O7 -> 75.849 | N14: ='frtveg data'!P7 -> 74.3 | O14: ='frtveg data'!Q7 -> 73.248 | P14: ='frtveg data'!R7 -> 69.02
A15: 5 portions or more | B15: ='frtveg data'!D8 -> 15.25 | C15: ='frtveg data'!E8 -> 20.406 | D15: ='frtveg data'!F8 -> 22.093 | E15: ='frtveg data'!G8 -> 19.74 | F15: ='frtveg data'!H8 -> 21.02 | G15: ='frtveg data'!I8 -> 18.96 | H15: ='frtveg data'!J8 -> 19.12 | I15: ='frtveg data'!K8 -> 16.08 | J15: ='frtveg data'!L8 -> 19.07 | K15: ='frtveg data'!M8 -> 24.17 | L15: ='frtveg data'!N8 -> 17.408 | M15: ='frtveg data'!O8 -> 18.738 | N15: ='frtveg data'!P8 -> 19.37 | O15: ='frtveg data'!Q8 -> 22.243 | P15: ='frtveg data'!R8 -> 19.79
A16: Lower CI | B16: ='frtveg data'!D9 -> 12.72 | C16: ='frtveg data'!E9 -> 14.918 | D16: ='frtveg data'!F9 -> 16.719 | E16: ='frtveg data'!G9 -> 16.79 | F16: ='frtveg data'!H9 -> 15.47 | G16: ='frtveg data'!I9 -> 16.48 | H16: ='frtveg data'!J9 -> 16.71 | I16: ='frtveg data'!K9 -> 11.97 | J16: ='frtveg data'!L9 -> 15.39 | K16: ='frtveg data'!M9 -> 20.98 | L16: ='frtveg data'!N9 -> 11.849 | M16: ='frtveg data'!O9 -> 11.821 | N16: ='frtveg data'!P9 -> 15.09 | O16: ='frtveg data'!Q9 -> 17.337 | P16: ='frtveg data'!R9 -> 18.7
A17: Upper CI | B17: ='frtveg data'!D10 -> 17.79 | C17: ='frtveg data'!E10 -> 25.894 | D17: ='frtveg data'!F10 -> 27.467 | E17: ='frtveg data'!G10 -> 22.68 | F17: ='frtveg data'!H10 -> 26.57 | G17: ='frtveg data'!I10 -> 21.44 | H17: ='frtveg data'!J10 -> 21.54 | I17: ='frtveg data'!K10 -> 20.2 | J17: ='frtveg data'!L10 -> 22.75 | K17: ='frtveg data'!M10 -> 27.36 | L17: ='frtveg data'!N10 -> 22.968 | M17: ='frtveg data'!O10 -> 25.655 | N17: ='frtveg data'!P10 -> 23.64 | O17: ='frtveg data'!Q10 -> 27.149 | P17: ='frtveg data'!R10 -> 20.89
A19: Women
A20: None | B20: ='frtveg data'!D11 -> 10.88 | C20: ='frtveg data'!E11 -> 6.232 | D20: ='frtveg data'!F11 -> 7.756 | E20: ='frtveg data'!G11 -> 7.82 | F20: ='frtveg data'!H11 -> 7.8 | G20: ='frtveg data'!I11 -> 7.19 | H20: ='frtveg data'!J11 -> 9.64 | I20: ='frtveg data'!K11 -> 7.16 | J20: ='frtveg data'!L11 -> 11.28 | K20: ='frtveg data'!M11 -> 7.22 | L20: ='frtveg data'!N11 -> 7.175 | M20: ='frtveg data'!O11 -> 6.736 | N20: ='frtveg data'!P11 -> 9.24 | O20: ='frtveg data'!Q11 -> 6.386 | P20: ='frtveg data'!R11 -> 8.73
A21: Lower CI | B21: ='frtveg data'!D12 -> 9.01 | C21: ='frtveg data'!E12 -> 3.005 | D21: ='frtveg data'!F12 -> 4.257 | E21: ='frtveg data'!G12 -> 6.12 | F21: ='frtveg data'!H12 -> 4.87 | G21: ='frtveg data'!I12 -> 5.58 | H21: ='frtveg data'!J12 -> 8 | I21: ='frtveg data'!K12 -> 4.72 | J21: ='frtveg data'!L12 -> 8.63 | K21: ='frtveg data'!M12 -> 5.15 | L21: ='frtveg data'!N12 -> 5.139 | M21: ='frtveg data'!O12 -> 3.746 | N21: ='frtveg data'!P12 -> 6.28 | O21: ='frtveg data'!Q12 -> 4 | P21: ='frtveg data'!R12 -> 7.99
A22: Upper CI | B22: ='frtveg data'!D13 -> 12.76 | C22: ='frtveg data'!E13 -> 9.46 | D22: ='frtveg data'!F13 -> 11.255 | E22: ='frtveg data'!G13 -> 9.52 | F22: ='frtveg data'!H13 -> 10.73 | G22: ='frtveg data'!I13 -> 8.81 | H22: ='frtveg data'!J13 -> 11.28 | I22: ='frtveg data'!K13 -> 9.61 | J22: ='frtveg data'!L13 -> 13.93 | K22: ='frtveg data'!M13 -> 9.29 | L22: ='frtveg data'!N13 -> 9.211 | M22: ='frtveg data'!O13 -> 9.727 | N22: ='frtveg data'!P13 -> 12.2 | O22: ='frtveg data'!Q13 -> 8.771 | P22: ='frtveg data'!R13 -> 9.46
A23: Less than 5 portions | B23: ='frtveg data'!D14 -> 74.03 | C23: ='frtveg data'!E14 -> 71.154 | D23: ='frtveg data'!F14 -> 77.389 | E23: ='frtveg data'!G14 -> 67.35 | F23: ='frtveg data'!H14 -> 68.4 | G23: ='frtveg data'!I14 -> 71.11 | H23: ='frtveg data'!J14 -> 68.59 | I23: ='frtveg data'!K14 -> 71.34 | J23: ='frtveg data'!L14 -> 72.66 | K23: ='frtveg data'!M14 -> 65.95 | L23: ='frtveg data'!N14 -> 70.603 | M23: ='frtveg data'!O14 -> 70.951 | N23: ='frtveg data'!P14 -> 66.79 | O23: ='frtveg data'!Q14 -> 71.892 | P23: ='frtveg data'!R14 -> 69.65
A24: Lower CI | B24: ='frtveg data'!D15 -> 71.44 | C24: ='frtveg data'!E15 -> 65.745 | D24: ='frtveg data'!F15 -> 72.558 | E24: ='frtveg data'!G15 -> 64.31 | F24: ='frtveg data'!H15 -> 62.95 | G24: ='frtveg data'!I15 -> 68.32 | H24: ='frtveg data'!J15 -> 66.2 | I24: ='frtveg data'!K15 -> 66.34 | J24: ='frtveg data'!L15 -> 69.36 | K24: ='frtveg data'!M15 -> 62.62 | L24: ='frtveg data'!N15 -> 64.752 | M24: ='frtveg data'!O15 -> 65.88 | N24: ='frtveg data'!P15 -> 62.59 | O24: ='frtveg data'!Q15 -> 66.061 | P24: ='frtveg data'!R15 -> 68.59
A25: Upper CI | B25: ='frtveg data'!D16 -> 76.61 | C25: ='frtveg data'!E16 -> 76.563 | D25: ='frtveg data'!F16 -> 82.219 | E25: ='frtveg data'!G16 -> 70.4 | F25: ='frtveg data'!H16 -> 73.85 | G25: ='frtveg data'!I16 -> 73.9 | H25: ='frtveg data'!J16 -> 70.99 | I25: ='frtveg data'!K16 -> 76.34 | J25: ='frtveg data'!L16 -> 75.95 | K25: ='frtveg data'!M16 -> 69.28 | L25: ='frtveg data'!N16 -> 76.454 | M25: ='frtveg data'!O16 -> 76.022 | N25: ='frtveg data'!P16 -> 70.99 | O25: ='frtveg data'!Q16 -> 77.724 | P25: ='frtveg data'!R16 -> 70.72
A26: 5 portions or more | B26: ='frtveg data'!D17 -> 15.09 | C26: ='frtveg data'!E17 -> 22.614 | D26: ='frtveg data'!F17 -> 14.856 | E26: ='frtveg data'!G17 -> 24.82 | F26: ='frtveg data'!H17 -> 23.8 | G26: ='frtveg data'!I17 -> 21.7 | H26: ='frtveg data'!J17 -> 21.77 | I26: ='frtveg data'!K17 -> 21.5 | J26: ='frtveg data'!L17 -> 16.06 | K26: ='frtveg data'!M17 -> 26.82 | L26: ='frtveg data'!N17 -> 22.222 | M26: ='frtveg data'!O17 -> 22.313 | N26: ='frtveg data'!P17 -> 23.96 | O26: ='frtveg data'!Q17 -> 21.722 | P26: ='frtveg data'!R17 -> 21.62
A27: Lower CI | B27: ='frtveg data'!D18 -> 12.9 | C27: ='frtveg data'!E18 -> 16.688 | D27: ='frtveg data'!F18 -> 10.083 | E27: ='frtveg data'!G18 -> 21.95 | F27: ='frtveg data'!H18 -> 18.52 | G27: ='frtveg data'!I18 -> 18.96 | H27: ='frtveg data'!J18 -> 19.56 | I27: ='frtveg data'!K18 -> 16.88 | J27: ='frtveg data'!L18 -> 13.33 | K27: ='frtveg data'!M18 -> 23.81 | L27: ='frtveg data'!N18 -> 17.082 | M27: ='frtveg data'!O18 -> 17.26 | N27: ='frtveg data'!P18 -> 19.42 | O27: ='frtveg data'!Q18 -> 15.844 | P27: ='frtveg data'!R18 -> 20.6
A28: Upper CI | B28: ='frtveg data'!D19 -> 17.29 | C28: ='frtveg data'!E19 -> 28.539 | D28: ='frtveg data'!F19 -> 19.629 | E28: ='frtveg data'!G19 -> 27.7 | F28: ='frtveg data'!H19 -> 29.08 | G28: ='frtveg data'!I19 -> 24.44 | H28: ='frtveg data'!J19 -> 23.97 | I28: ='frtveg data'!K19 -> 26.11 | J28: ='frtveg data'!L19 -> 18.79 | K28: ='frtveg data'!M19 -> 29.84 | L28: ='frtveg data'!N19 -> 27.362 | M28: ='frtveg data'!O19 -> 27.365 | N28: ='frtveg data'!P19 -> 28.51 | O28: ='frtveg data'!Q19 -> 27.601 | P28: ='frtveg data'!R19 -> 22.64
A30: All Adults
A31: None | B31: ='frtveg data'!D20 -> 12.92 | C31: ='frtveg data'!E20 -> 9.266 | D31: ='frtveg data'!F20 -> 9.762 | E31: ='frtveg data'!G20 -> 9.56 | F31: ='frtveg data'!H20 -> 10.52 | G31: ='frtveg data'!I20 -> 8.51 | H31: ='frtveg data'!J20 -> 12.14 | I31: ='frtveg data'!K20 -> 9.33 | J31: ='frtveg data'!L20 -> 12.51 | K31: ='frtveg data'!M20 -> 8.68 | L31: ='frtveg data'!N20 -> 8.817 | M31: ='frtveg data'!O20 -> 9.353 | N31: ='frtveg data'!P20 -> 10.1 | O31: ='frtveg data'!Q20 -> 8.162 | P31: ='frtveg data'!R20 -> 10.52
A32: Lower CI | B32: ='frtveg data'!D21 -> 11.23 | C32: ='frtveg data'!E21 -> 6.249 | D32: ='frtveg data'!F21 -> 6.687 | E32: ='frtveg data'!G21 -> 7.96 | F32: ='frtveg data'!H21 -> 7.88 | G32: ='frtveg data'!I21 -> 7.07 | H32: ='frtveg data'!J21 -> 10.51 | I32: ='frtveg data'!K21 -> 7.25 | J32: ='frtveg data'!L21 -> 10.03 | K32: ='frtveg data'!M21 -> 6.94 | L32: ='frtveg data'!N21 -> 6.237 | M32: ='frtveg data'!O21 -> 6.257 | N32: ='frtveg data'!P21 -> 7.76 | O32: ='frtveg data'!Q21 -> 5.913 | P32: ='frtveg data'!R21 -> 9.86
A33: Upper CI | B33: ='frtveg data'!D22 -> 14.62 | C33: ='frtveg data'!E22 -> 12.282 | D33: ='frtveg data'!F22 -> 12.838 | E33: ='frtveg data'!G22 -> 11.16 | F33: ='frtveg data'!H22 -> 13.15 | G33: ='frtveg data'!I22 -> 9.94 | H33: ='frtveg data'!J22 -> 13.77 | I33: ='frtveg data'!K22 -> 11.41 | J33: ='frtveg data'!L22 -> 14.98 | K33: ='frtveg data'!M22 -> 10.42 | L33: ='frtveg data'!N22 -> 11.398 | M33: ='frtveg data'!O22 -> 12.45 | N33: ='frtveg data'!P22 -> 12.45 | O33: ='frtveg data'!Q22 -> 10.412 | P33: ='frtveg data'!R22 -> 11.19
A34: Less than 5 portions | B34: ='frtveg data'!D23 -> 71.91 | C34: ='frtveg data'!E23 -> 69.12 | D34: ='frtveg data'!F23 -> 71.853 | E34: ='frtveg data'!G23 -> 68.07 | F34: ='frtveg data'!H23 -> 67 | G34: ='frtveg data'!I23 -> 71.1 | H34: ='frtveg data'!J23 -> 67.36 | I34: ='frtveg data'!K23 -> 71.77 | J34: ='frtveg data'!L23 -> 70 | K34: ='frtveg data'!M23 -> 65.84 | L34: ='frtveg data'!N23 -> 71.36 | M34: ='frtveg data'!O23 -> 70.178 | N34: ='frtveg data'!P23 -> 68.09 | O34: ='frtveg data'!Q23 -> 69.855 | P34: ='frtveg data'!R23 -> 68.73
A35: Lower CI | B35: ='frtveg data'!D24 -> 69.59 | C35: ='frtveg data'!E24 -> 63.784 | D35: ='frtveg data'!F24 -> 67.388 | E35: ='frtveg data'!G24 -> 65.68 | F35: ='frtveg data'!H24 -> 62.51 | G35: ='frtveg data'!I24 -> 68.94 | H35: ='frtveg data'!J24 -> 65.38 | I35: ='frtveg data'!K24 -> 68.08 | J35: ='frtveg data'!L24 -> 66.93 | K35: ='frtveg data'!M24 -> 63.15 | L35: ='frtveg data'!N24 -> 67.344 | M35: ='frtveg data'!O24 -> 66.169 | N35: ='frtveg data'!P24 -> 64.43 | O35: ='frtveg data'!Q24 -> 65.605 | P35: ='frtveg data'!R24 -> 67.84
A36: Upper CI | B36: ='frtveg data'!D25 -> 74.24 | C36: ='frtveg data'!E25 -> 74.457 | D36: ='frtveg data'!F25 -> 76.318 | E36: ='frtveg data'!G25 -> 70.46 | F36: ='frtveg data'!H25 -> 71.48 | G36: ='frtveg data'!I25 -> 73.25 | H36: ='frtveg data'!J25 -> 69.34 | I36: ='frtveg data'!K25 -> 75.47 | J36: ='frtveg data'!L25 -> 73.06 | K36: ='frtveg data'!M25 -> 68.52 | L36: ='frtveg data'!N25 -> 75.376 | M36: ='frtveg data'!O25 -> 74.187 | N36: ='frtveg data'!P25 -> 71.75 | O36: ='frtveg data'!Q25 -> 74.105 | P36: ='frtveg data'!R25 -> 69.63
A37: 5 portions or more | B37: ='frtveg data'!D26 -> 15.16 | C37: ='frtveg data'!E26 -> 21.614 | D37: ='frtveg data'!F26 -> 18.384 | E37: ='frtveg data'!G26 -> 22.37 | F37: ='frtveg data'!H26 -> 22.49 | G37: ='frtveg data'!I26 -> 20.4 | H37: ='frtveg data'!J26 -> 20.5 | I37: ='frtveg data'!K26 -> 18.9 | J37: ='frtveg data'!L26 -> 17.49 | K37: ='frtveg data'!M26 -> 25.48 | L37: ='frtveg data'!N26 -> 19.823 | M37: ='frtveg data'!O26 -> 20.469 | N37: ='frtveg data'!P26 -> 21.81 | O37: ='frtveg data'!Q26 -> 21.982 | P37: ='frtveg data'!R26 -> 20.74
A38: Lower CI | B38: ='frtveg data'!D27 -> 13.21 | C38: ='frtveg data'!E27 -> 17.066 | D38: ='frtveg data'!F27 -> 14.177 | E38: ='frtveg data'!G27 -> 20.21 | F38: ='frtveg data'!H27 -> 18.31 | G38: ='frtveg data'!I27 -> 18.37 | H38: ='frtveg data'!J27 -> 18.67 | I38: ='frtveg data'!K27 -> 15.54 | J38: ='frtveg data'!L27 -> 15.09 | K38: ='frtveg data'!M27 -> 22.98 | L38: ='frtveg data'!N27 -> 15.762 | M38: ='frtveg data'!O27 -> 15.715 | N38: ='frtveg data'!P27 -> 18.07 | O38: ='frtveg data'!Q27 -> 17.516 | P38: ='frtveg data'!R27 -> 19.92
A39: Upper CI | B39: ='frtveg data'!D28 -> 17.12 | C39: ='frtveg data'!E28 -> 26.163 | D39: ='frtveg data'!F28 -> 22.592 | E39: ='frtveg data'!G28 -> 24.53 | F39: ='frtveg data'!H28 -> 26.67 | G39: ='frtveg data'!I28 -> 22.42 | H39: ='frtveg data'!J28 -> 22.33 | I39: ='frtveg data'!K28 -> 22.25 | J39: ='frtveg data'!L28 -> 19.9 | K39: ='frtveg data'!M28 -> 27.99 | L39: ='frtveg data'!N28 -> 23.884 | M39: ='frtveg data'!O28 -> 25.223 | N39: ='frtveg data'!P28 -> 25.54 | O39: ='frtveg data'!Q28 -> 26.449 | P39: ='frtveg data'!R28 -> 21.57
A42: Bases (weighted):
A43: Men | B43: ='frtveg data'!D29 -> 606.12 | C43: ='frtveg data'!E29 -> 183.856 | D43: ='frtveg data'!F29 -> 262.106 | E43: ='frtveg data'!G29 -> 618.84 | F43: ='frtveg data'!H29 -> 494.73 | G43: ='frtveg data'!I29 -> 977.8 | H43: ='frtveg data'!J29 -> 1880.15 | I43: ='frtveg data'!K29 -> 541.45 | J43: ='frtveg data'!L29 -> 1147.4 | K43: ='frtveg data'!M29 -> 1530.31 | L43: ='frtveg data'!N29 -> 38.805 | M43: ='frtveg data'!O29 -> 41.939 | N43: ='frtveg data'!P29 -> 681.92 | O43: ='frtveg data'!Q29 -> 48.446 | P43: ='frtveg data'!R29 -> 9053.88
A44: Women | B44: ='frtveg data'!D30 -> 710.87 | C44: ='frtveg data'!E30 -> 222.276 | D44: ='frtveg data'!F30 -> 275.466 | E44: ='frtveg data'!G30 -> 663.33 | F44: ='frtveg data'!H30 -> 552.52 | G44: ='frtveg data'!I30 -> 1079.33 | H44: ='frtveg data'!J30 -> 2051.62 | I44: ='frtveg data'!K30 -> 586.85 | J44: ='frtveg data'!L30 -> 1263.93 | K44: ='frtveg data'!M30 -> 1496.34 | L44: ='frtveg data'!N30 -> 39.048 | M44: ='frtveg data'!O30 -> 39.383 | N44: ='frtveg data'!P30 -> 771.2 | O44: ='frtveg data'!Q30 -> 48.518 | P44: ='frtveg data'!R30 -> 9800.67
A45: All Adults | B45: ='frtveg data'!D31 -> 1316.99 | C45: ='frtveg data'!E31 -> 406.133 | D45: ='frtveg data'!F31 -> 537.572 | E45: ='frtveg data'!G31 -> 1282.17 | F45: ='frtveg data'!H31 -> 1047.25 | G45: ='frtveg data'!I31 -> 2057.13 | H45: ='frtveg data'!J31 -> 3931.77 | I45: ='frtveg data'!K31 -> 1128.31 | J45: ='frtveg data'!L31 -> 2411.33 | K45: ='frtveg data'!M31 -> 3026.64 | L45: ='frtveg data'!N31 -> 77.853 | M45: ='frtveg data'!O31 -> 81.322 | N45: ='frtveg data'!P31 -> 1453.11 | O45: ='frtveg data'!Q31 -> 96.964 | P45: ='frtveg data'!R31 -> 18854.55
A46: Bases (unweighted)
A47: Men | B47: ='frtveg data'!D32 -> 948 | C47: ='frtveg data'!E32 -> 199 | D47: ='frtveg data'!F32 -> 221 | E47: ='frtveg data'!G32 -> 902 | F47: ='frtveg data'!H32 -> 306 | G47: ='frtveg data'!I32 -> 1133 | H47: ='frtveg data'!J32 -> 1341 | I47: ='frtveg data'!K32 -> 355 | J47: ='frtveg data'!L32 -> 660 | K47: ='frtveg data'!M32 -> 935 | L47: ='frtveg data'!N32 -> 234 | M47: ='frtveg data'!O32 -> 247 | N47: ='frtveg data'!P32 -> 472 | O47: ='frtveg data'!Q32 -> 387 | P47: ='frtveg data'!R32 -> 8340
A48: Women | B48: ='frtveg data'!D33 -> 1209 | C48: ='frtveg data'!E33 -> 278 | D48: ='frtveg data'!F33 -> 258 | E48: ='frtveg data'!G33 -> 1142 | F48: ='frtveg data'!H33 -> 411 | G48: ='frtveg data'!I33 -> 1429 | H48: ='frtveg data'!J33 -> 1748 | I48: ='frtveg data'!K33 -> 463 | J48: ='frtveg data'!L33 -> 878 | K48: ='frtveg data'!M33 -> 1105 | L48: ='frtveg data'!N33 -> 271 | M48: ='frtveg data'!O33 -> 277 | N48: ='frtveg data'!P33 -> 590 | O48: ='frtveg data'!Q33 -> 461 | P48: ='frtveg data'!R33 -> 10520
A49: All Adults | B49: ='frtveg data'!D34 -> 2157 | C49: ='frtveg data'!E34 -> 477 | D49: ='frtveg data'!F34 -> 479 | E49: ='frtveg data'!G34 -> 2044 | F49: ='frtveg data'!H34 -> 717 | G49: ='frtveg data'!I34 -> 2562 | H49: ='frtveg data'!J34 -> 3089 | I49: ='frtveg data'!K34 -> 818 | J49: ='frtveg data'!L34 -> 1538 | K49: ='frtveg data'!M34 -> 2040 | L49: ='frtveg data'!N34 -> 505 | M49: ='frtveg data'!O34 -> 524 | N49: ='frtveg data'!P34 -> 1062 | O49: ='frtveg data'!Q34 -> 848 | P49: ='frtveg data'!R34 -> 18860

Sheet frtveg data (hidden)
A1: F_sex | B1: F_porftvg3 | C1: _NAME_ | D1: Ayrshire & Arran | E1: Borders | F1: Dumfries & Galloway | G1: Fife | H1: Forth Valley | I1: Grampian | J1: Greater Glasgow | K1: Highland | L1: Lanarkshire | M1: Lothian | N1: Orkney | O1: Shetland | P1: Tayside | Q1: Western Isles | R1: Scotland
A2: Male | B2: None | C2: RowPercent | D2: 15.31 | E2: 12.933 | F2: 11.871 | G2: 11.42 | H2: 13.55 | I2: 9.96 | J2: 14.87 | K2: 11.68 | L2: 13.86 | M2: 10.11 | N2: 10.47 | O2: 11.811 | P2: 11.07 | Q2: 9.942 | R2: 12.47
A3: Male | B3: None | C3: RowLowerCL | D3: 12.94 | E3: 8.427 | F3: 7.052 | G3: 9.13 | H3: 9.25 | I3: 8 | J3: 12.52 | K3: 8.08 | L3: 10.41 | M3: 7.72 | N3: 5.79 | O3: 7.133 | P3: 8.12 | Q3: 6.275 | R3: 11.52
A4: Male | B4: None | C4: RowUpperCL | D4: 17.69 | E4: 17.439 | F4: 16.69 | G4: 13.72 | H4: 17.85 | I4: 11.92 | J4: 17.22 | K4: 15.27 | L4: 17.32 | M4: 12.49 | N4: 15.15 | O4: 16.488 | P4: 14.03 | Q4: 13.608 | R4: 13.41
A5: Male | B5: Less than 5 portions | C5: RowPercent | D5: 69.44 | E5: 66.661 | F5: 66.036 | G5: 68.84 | H5: 65.43 | I5: 71.08 | J5: 66.01 | K5: 72.24 | L5: 67.07 | M5: 65.72 | N5: 72.122 | O5: 69.452 | P5: 69.56 | Q5: 67.815 | R5: 67.74
A6: Male | B6: Less than 5 portions | C6: RowLowerCL | D6: 66.56 | E6: 58.857 | F6: 59.196 | G6: 65.6 | H6: 58.79 | I6: 68.25 | J6: 63.31 | K6: 67.18 | L6: 62.39 | M6: 62.11 | N6: 65.79 | O6: 63.054 | P6: 64.82 | Q6: 62.383 | R6: 66.46
A7: Male | B7: Less than 5 portions | C7: RowUpperCL | D7: 72.31 | E7: 74.465 | F7: 72.875 | G7: 72.08 | H7: 72.07 | I7: 73.92 | J7: 68.71 | K7: 77.3 | L7: 71.74 | M7: 69.33 | N7: 78.454 | O7: 75.849 | P7: 74.3 | Q7: 73.248 | R7: 69.02
A8: Male | B8: 5 portions or more | C8: RowPercent | D8: 15.25 | E8: 20.406 | F8: 22.093 | G8: 19.74 | H8: 21.02 | I8: 18.96 | J8: 19.12 | K8: 16.08 | L8: 19.07 | M8: 24.17 | N8: 17.408 | O8: 18.738 | P8: 19.37 | Q8: 22.243 | R8: 19.79
A9: Male | B9: 5 portions or more | C9: RowLowerCL | D9: 12.72 | E9: 14.918 | F9: 16.719 | G9: 16.79 | H9: 15.47 | I9: 16.48 | J9: 16.71 | K9: 11.97 | L9: 15.39 | M9: 20.98 | N9: 11.849 | O9: 11.821 | P9: 15.09 | Q9: 17.337 | R9: 18.7
A10: Male | B10: 5 portions or more | C10: RowUpperCL | D10: 17.79 | E10: 25.894 | F10: 27.467 | G10: 22.68 | H10: 26.57 | I10: 21.44 | J10: 21.54 | K10: 20.2 | L10: 22.75 | M10: 27.36 | N10: 22.968 | O10: 25.655 | P10: 23.64 | Q10: 27.149 | R10: 20.89
A11: Female | B11: None | C11: RowPercent | D11: 10.88 | E11: 6.232 | F11: 7.756 | G11: 7.82 | H11: 7.8 | I11: 7.19 | J11: 9.64 | K11: 7.16 | L11: 11.28 | M11: 7.22 | N11: 7.175 | O11: 6.736 | P11: 9.24 | Q11: 6.386 | R11: 8.73
A12: Female | B12: None | C12: RowLowerCL | D12: 9.01 | E12: 3.005 | F12: 4.257 | G12: 6.12 | H12: 4.87 | I12: 5.58 | J12: 8 | K12: 4.72 | L12: 8.63 | M12: 5.15 | N12: 5.139 | O12: 3.746 | P12: 6.28 | Q12: 4 | R12: 7.99
A13: Female | B13: None | C13: RowUpperCL | D13: 12.76 | E13: 9.46 | F13: 11.255 | G13: 9.52 | H13: 10.73 | I13: 8.81 | J13: 11.28 | K13: 9.61 | L13: 13.93 | M13: 9.29 | N13: 9.211 | O13: 9.727 | P13: 12.2 | Q13: 8.771 | R13: 9.46
A14: Female | B14: Less than 5 portions | C14: RowPercent | D14: 74.03 | E14: 71.154 | F14: 77.389 | G14: 67.35 | H14: 68.4 | I14: 71.11 | J14: 68.59 | K14: 71.34 | L14: 72.66 | M14: 65.95 | N14: 70.603 | O14: 70.951 | P14: 66.79 | Q14: 71.892 | R14: 69.65
A15: Female | B15: Less than 5 portions | C15: RowLowerCL | D15: 71.44 | E15: 65.745 | F15: 72.558 | G15: 64.31 | H15: 62.95 | I15: 68.32 | J15: 66.2 | K15: 66.34 | L15: 69.36 | M15: 62.62 | N15: 64.752 | O15: 65.88 | P15: 62.59 | Q15: 66.061 | R15: 68.59
A16: Female | B16: Less than 5 portions | C16: RowUpperCL | D16: 76.61 | E16: 76.563 | F16: 82.219 | G16: 70.4 | H16: 73.85 | I16: 73.9 | J16: 70.99 | K16: 76.34 | L16: 75.95 | M16: 69.28 | N16: 76.454 | O16: 76.022 | P16: 70.99 | Q16: 77.724 | R16: 70.72
A17: Female | B17: 5 portions or more | C17: RowPercent | D17: 15.09 | E17: 22.614 | F17: 14.856 | G17: 24.82 | H17: 23.8 | I17: 21.7 | J17: 21.77 | K17: 21.5 | L17: 16.06 | M17: 26.82 | N17: 22.222 | O17: 22.313 | P17: 23.96 | Q17: 21.722 | R17: 21.62
A18: Female | B18: 5 portions or more | C18: RowLowerCL | D18: 12.9 | E18: 16.688 | F18: 10.083 | G18: 21.95 | H18: 18.52 | I18: 18.96 | J18: 19.56 | K18: 16.88 | L18: 13.33 | M18: 23.81 | N18: 17.082 | O18: 17.26 | P18: 19.42 | Q18: 15.844 | R18: 20.6
A19: Female | B19: 5 portions or more | C19: RowUpperCL | D19: 17.29 | E19: 28.539 | F19: 19.629 | G19: 27.7 | H19: 29.08 | I19: 24.44 | J19: 23.97 | K19: 26.11 | L19: 18.79 | M19: 29.84 | N19: 27.362 | O19: 27.365 | P19: 28.51 | Q19: 27.601 | R19: 22.64
A20: Total | B20: None | C20: RowPercent | D20: 12.92 | E20: 9.266 | F20: 9.762 | G20: 9.56 | H20: 10.52 | I20: 8.51 | J20: 12.14 | K20: 9.33 | L20: 12.51 | M20: 8.68 | N20: 8.817 | O20: 9.353 | P20: 10.1 | Q20: 8.162 | R20: 10.52
A21: Total | B21: None | C21: RowLowerCL | D21: 11.23 | E21: 6.249 | F21: 6.687 | G21: 7.96 | H21: 7.88 | I21: 7.07 | J21: 10.51 | K21: 7.25 | L21: 10.03 | M21: 6.94 | N21: 6.237 | O21: 6.257 | P21: 7.76 | Q21: 5.913 | R21: 9.86
A22: Total | B22: None | C22: RowUpperCL | D22: 14.62 | E22: 12.282 | F22: 12.838 | G22: 11.16 | H22: 13.15 | I22: 9.94 | J22: 13.77 | K22: 11.41 | L22: 14.98 | M22: 10.42 | N22: 11.398 | O22: 12.45 | P22: 12.45 | Q22: 10.412 | R22: 11.19
A23: Total | B23: Less than 5 portions | C23: RowPercent | D23: 71.91 | E23: 69.12 | F23: 71.853 | G23: 68.07 | H23: 67 | I23: 71.1 | J23: 67.36 | K23: 71.77 | L23: 70 | M23: 65.84 | N23: 71.36 | O23: 70.178 | P23: 68.09 | Q23: 69.855 | R23: 68.73
A24: Total | B24: Less than 5 portions | C24: RowLowerCL | D24: 69.59 | E24: 63.784 | F24: 67.388 | G24: 65.68 | H24: 62.51 | I24: 68.94 | J24: 65.38 | K24: 68.08 | L24: 66.93 | M24: 63.15 | N24: 67.344 | O24: 66.169 | P24: 64.43 | Q24: 65.605 | R24: 67.84
A25: Total | B25: Less than 5 portions | C25: RowUpperCL | D25: 74.24 | E25: 74.457 | F25: 76.318 | G25: 70.46 | H25: 71.48 | I25: 73.25 | J25: 69.34 | K25: 75.47 | L25: 73.06 | M25: 68.52 | N25: 75.376 | O25: 74.187 | P25: 71.75 | Q25: 74.105 | R25: 69.63
A26: Total | B26: 5 portions or more | C26: RowPercent | D26: 15.16 | E26: 21.614 | F26: 18.384 | G26: 22.37 | H26: 22.49 | I26: 20.4 | J26: 20.5 | K26: 18.9 | L26: 17.49 | M26: 25.48 | N26: 19.823 | O26: 20.469 | P26: 21.81 | Q26: 21.982 | R26: 20.74
A27: Total | B27: 5 portions or more | C27: RowLowerCL | D27: 13.21 | E27: 17.066 | F27: 14.177 | G27: 20.21 | H27: 18.31 | I27: 18.37 | J27: 18.67 | K27: 15.54 | L27: 15.09 | M27: 22.98 | N27: 15.762 | O27: 15.715 | P27: 18.07 | Q27: 17.516 | R27: 19.92
A28: Total | B28: 5 portions or more | C28: RowUpperCL | D28: 17.12 | E28: 26.163 | F28: 22.592 | G28: 24.53 | H28: 26.67 | I28: 22.42 | J28: 22.33 | K28: 22.25 | L28: 19.9 | M28: 27.99 | N28: 23.884 | O28: 25.223 | P28: 25.54 | Q28: 26.449 | R28: 21.57
A29: Male | B29: . | C29: WgtFreq | D29: 606.12 | E29: 183.856 | F29: 262.106 | G29: 618.84 | H29: 494.73 | I29: 977.8 | J29: 1880.15 | K29: 541.45 | L29: 1147.4 | M29: 1530.31 | N29: 38.805 | O29: 41.939 | P29: 681.92 | Q29: 48.446 | R29: 9053.88
A30: Female | B30: . | C30: WgtFreq | D30: 710.87 | E30: 222.276 | F30: 275.466 | G30: 663.33 | H30: 552.52 | I30: 1079.33 | J30: 2051.62 | K30: 586.85 | L30: 1263.93 | M30: 1496.34 | N30: 39.048 | O30: 39.383 | P30: 771.2 | Q30: 48.518 | R30: 9800.67
A31: Total | B31: . | C31: WgtFreq | D31: 1316.99 | E31: 406.133 | F31: 537.572 | G31: 1282.17 | H31: 1047.25 | I31: 2057.13 | J31: 3931.77 | K31: 1128.31 | L31: 2411.33 | M31: 3026.64 | N31: 77.853 | O31: 81.322 | P31: 1453.11 | Q31: 96.964 | R31: 18854.55
A32: Male | B32: . | C32: Frequency | D32: 948 | E32: 199 | F32: 221 | G32: 902 | H32: 306 | I32: 1133 | J32: 1341 | K32: 355 | L32: 660 | M32: 935 | N32: 234 | O32: 247 | P32: 472 | Q32: 387 | R32: 8340
A33: Female | B33: . | C33: Frequency | D33: 1209 | E33: 278 | F33: 258 | G33: 1142 | H33: 411 | I33: 1429 | J33: 1748 | K33: 463 | L33: 878 | M33: 1105 | N33: 271 | O33: 277 | P33: 590 | Q33: 461 | R33: 10520
A34: Total | B34: . | C34: Frequency | D34: 2157 | E34: 477 | F34: 479 | G34: 2044 | H34: 717 | I34: 2562 | J34: 3089 | K34: 818 | L34: 1538 | M34: 2040 | N34: 505 | O34: 524 | P34: 1062 | Q34: 848 | R34: 18860

Sheet Fruit and veg chart
R1: INDEX
C31: Source: Scottish Health Survey
C34: Ayrshire & Arran | D34: Borders | E34: Dumfries & Galloway | F34: Fife | G34: Forth Valley | H34: Grampian | I34: Greater Glasgow & Clyde | J34: Highland | K34: Lanarkshire | L34: Lothian | M34: Orkney | N34: Shetland | O34: Tayside | P34: Western Isles | R34: Scotland
B35: All Adults
B36: None | C36: ='Fruit and vegetables'!B31 -> 12.92 | D36: ='Fruit and vegetables'!C31 -> 9.266 | E36: ='Fruit and vegetables'!D31 -> 9.762 | F36: ='Fruit and vegetables'!E31 -> 9.56 | G36: ='Fruit and vegetables'!F31 -> 10.52 | H36: ='Fruit and vegetables'!G31 -> 8.51 | I36: ='Fruit and vegetables'!H31 -> 12.14 | J36: ='Fruit and vegetables'!I31 -> 9.33 | K36: ='Fruit and vegetables'!J31 -> 12.51 | L36: ='Fruit and vegetables'!K31 -> 8.68 | M36: ='Fruit and vegetables'!L31 -> 8.817 | N36: ='Fruit and vegetables'!M31 -> 9.353 | O36: ='Fruit and vegetables'!N31 -> 10.1 | P36: ='Fruit and vegetables'!O31 -> 8.162 | R36: ='Fruit and vegetables'!P31 -> 10.52
B37: Lower CI | C37: ='Fruit and vegetables'!B32 -> 11.23 | D37: ='Fruit and vegetables'!C32 -> 6.249 | E37: ='Fruit and vegetables'!D32 -> 6.687 | F37: ='Fruit and vegetables'!E32 -> 7.96 | G37: ='Fruit and vegetables'!F32 -> 7.88 | H37: ='Fruit and vegetables'!G32 -> 7.07 | I37: ='Fruit and vegetables'!H32 -> 10.51 | J37: ='Fruit and vegetables'!I32 -> 7.25 | K37: ='Fruit and vegetables'!J32 -> 10.03 | L37: ='Fruit and vegetables'!K32 -> 6.94 | M37: ='Fruit and vegetables'!L32 -> 6.237 | N37: ='Fruit and vegetables'!M32 -> 6.257 | O37: ='Fruit and vegetables'!N32 -> 7.76 | P37: ='Fruit and vegetables'!O32 -> 5.913 | R37: ='Fruit and vegetables'!P32 -> 9.86
B38: Upper CI | C38: ='Fruit and vegetables'!B33 -> 14.62 | D38: ='Fruit and vegetables'!C33 -> 12.282 | E38: ='Fruit and vegetables'!D33 -> 12.838 | F38: ='Fruit and vegetables'!E33 -> 11.16 | G38: ='Fruit and vegetables'!F33 -> 13.15 | H38: ='Fruit and vegetables'!G33 -> 9.94 | I38: ='Fruit and vegetables'!H33 -> 13.77 | J38: ='Fruit and vegetables'!I33 -> 11.41 | K38: ='Fruit and vegetables'!J33 -> 14.98 | L38: ='Fruit and vegetables'!K33 -> 10.42 | M38: ='Fruit and vegetables'!L33 -> 11.398 | N38: ='Fruit and vegetables'!M33 -> 12.45 | O38: ='Fruit and vegetables'!N33 -> 12.45 | P38: ='Fruit and vegetables'!O33 -> 10.412 | R38: ='Fruit and vegetables'!P33 -> 11.19
B39: Less than 5 portions | C39: ='Fruit and vegetables'!B34 -> 71.91 | D39: ='Fruit and vegetables'!C34 -> 69.12 | E39: ='Fruit and vegetables'!D34 -> 71.853 | F39: ='Fruit and vegetables'!E34 -> 68.07 | G39: ='Fruit and vegetables'!F34 -> 67 | H39: ='Fruit and vegetables'!G34 -> 71.1 | I39: ='Fruit and vegetables'!H34 -> 67.36 | J39: ='Fruit and vegetables'!I34 -> 71.77 | K39: ='Fruit and vegetables'!J34 -> 70 | L39: ='Fruit and vegetables'!K34 -> 65.84 | M39: ='Fruit and vegetables'!L34 -> 71.36 | N39: ='Fruit and vegetables'!M34 -> 70.178 | O39: ='Fruit and vegetables'!N34 -> 68.09 | P39: ='Fruit and vegetables'!O34 -> 69.855 | R39: ='Fruit and vegetables'!P34 -> 68.73
B40: Lower CI | C40: ='Fruit and vegetables'!B35 -> 69.59 | D40: ='Fruit and vegetables'!C35 -> 63.784 | E40: ='Fruit and vegetables'!D35 -> 67.388 | F40: ='Fruit and vegetables'!E35 -> 65.68 | G40: ='Fruit and vegetables'!F35 -> 62.51 | H40: ='Fruit and vegetables'!G35 -> 68.94 | I40: ='Fruit and vegetables'!H35 -> 65.38 | J40: ='Fruit and vegetables'!I35 -> 68.08 | K40: ='Fruit and vegetables'!J35 -> 66.93 | L40: ='Fruit and vegetables'!K35 -> 63.15 | M40: ='Fruit and vegetables'!L35 -> 67.344 | N40: ='Fruit and vegetables'!M35 -> 66.169 | O40: ='Fruit and vegetables'!N35 -> 64.43 | P40: ='Fruit and vegetables'!O35 -> 65.605 | R40: ='Fruit and vegetables'!P35 -> 67.84
B41: Upper CI | C41: ='Fruit and vegetables'!B36 -> 74.24 | D41: ='Fruit and vegetables'!C36 -> 74.457 | E41: ='Fruit and vegetables'!D36 -> 76.318 | F41: ='Fruit and vegetables'!E36 -> 70.46 | G41: ='Fruit and vegetables'!F36 -> 71.48 | H41: ='Fruit and vegetables'!G36 -> 73.25 | I41: ='Fruit and vegetables'!H36 -> 69.34 | J41: ='Fruit and vegetables'!I36 -> 75.47 | K41: ='Fruit and vegetables'!J36 -> 73.06 | L41: ='Fruit and vegetables'!K36 -> 68.52 | M41: ='Fruit and vegetables'!L36 -> 75.376 | N41: ='Fruit and vegetables'!M36 -> 74.187 | O41: ='Fruit and vegetables'!N36 -> 71.75 | P41: ='Fruit and vegetables'!O36 -> 74.105 | R41: ='Fruit and vegetables'!P36 -> 69.63
B42: 5 portions or more | C42: ='Fruit and vegetables'!B37 -> 15.16 | D42: ='Fruit and vegetables'!C37 -> 21.614 | E42: ='Fruit and vegetables'!D37 -> 18.384 | F42: ='Fruit and vegetables'!E37 -> 22.37 | G42: ='Fruit and vegetables'!F37 -> 22.49 | H42: ='Fruit and vegetables'!G37 -> 20.4 | I42: ='Fruit and vegetables'!H37 -> 20.5 | J42: ='Fruit and vegetables'!I37 -> 18.9 | K42: ='Fruit and vegetables'!J37 -> 17.49 | L42: ='Fruit and vegetables'!K37 -> 25.48 | M42: ='Fruit and vegetables'!L37 -> 19.823 | N42: ='Fruit and vegetables'!M37 -> 20.469 | O42: ='Fruit and vegetables'!N37 -> 21.81 | P42: ='Fruit and vegetables'!O37 -> 21.982 | R42: ='Fruit and vegetables'!P37 -> 20.74
B43: Lower CI | C43: ='Fruit and vegetables'!B38 -> 13.21 | D43: ='Fruit and vegetables'!C38 -> 17.066 | E43: ='Fruit and vegetables'!D38 -> 14.177 | F43: ='Fruit and vegetables'!E38 -> 20.21 | G43: ='Fruit and vegetables'!F38 -> 18.31 | H43: ='Fruit and vegetables'!G38 -> 18.37 | I43: ='Fruit and vegetables'!H38 -> 18.67 | J43: ='Fruit and vegetables'!I38 -> 15.54 | K43: ='Fruit and vegetables'!J38 -> 15.09 | L43: ='Fruit and vegetables'!K38 -> 22.98 | M43: ='Fruit and vegetables'!L38 -> 15.762 | N43: ='Fruit and vegetables'!M38 -> 15.715 | O43: ='Fruit and vegetables'!N38 -> 18.07 | P43: ='Fruit and vegetables'!O38 -> 17.516 | R43: ='Fruit and vegetables'!P38 -> 19.92
B44: Upper CI | C44: ='Fruit and vegetables'!B39 -> 17.12 | D44: ='Fruit and vegetables'!C39 -> 26.163 | E44: ='Fruit and vegetables'!D39 -> 22.592 | F44: ='Fruit and vegetables'!E39 -> 24.53 | G44: ='Fruit and vegetables'!F39 -> 26.67 | H44: ='Fruit and vegetables'!G39 -> 22.42 | I44: ='Fruit and vegetables'!H39 -> 22.33 | J44: ='Fruit and vegetables'!I39 -> 22.25 | K44: ='Fruit and vegetables'!J39 -> 19.9 | L44: ='Fruit and vegetables'!K39 -> 27.99 | M44: ='Fruit and vegetables'!L39 -> 23.884 | N44: ='Fruit and vegetables'!M39 -> 25.223 | O44: ='Fruit and vegetables'!N39 -> 25.54 | P44: ='Fruit and vegetables'!O39 -> 26.449 | R44: ='Fruit and vegetables'!P39 -> 21.57
A46: CLs | B46: None | C46: =C36-C37 -> 1.69 | D46: =D36-D37 -> 3.017 | E46: 3.075 | F46: 1.6 | G46: 2.64 | H46: 1.44 | I46: 1.63 | J46: 2.08 | K46: 2.48 | L46: 1.74 | M46: 2.58 | N46: 3.096 | O46: 2.34 | P46: 2.249 | R46: =R36-R37 -> 0.66
B47: Less than 5 portions | C47: =C39-C40 -> 2.32 | D47: =D39-D40 -> 5.336 | E47: 4.465 | F47: 2.39 | G47: 4.49 | H47: 2.16 | I47: 1.98 | J47: 3.69 | K47: 3.07 | L47: 2.69 | M47: 4.016 | N47: 4.009 | O47: 3.66 | P47: 4.25 | R47: =R39-R40 -> 0.89
B48: 5 portions or more | C48: =C42-C43 -> 1.95 | D48: =D42-D43 -> 4.548 | E48: 4.207 | F48: 2.16 | G48: 4.18 | H48: 2.03 | I48: 1.83 | J48: 3.36 | K48: 2.4 | L48: 2.5 | M48: 4.061 | N48: 4.754 | O48: 3.74 | P48: 4.466 | R48: =R42-R43 -> 0.82

Sheet Mean fruit and vegetables
A1: Mean daily portions of fruit and vegetables, by NHS Board and sex | M1: INDEX
A4: Aged 16 and over | P4: 2013/2014/2015/2016 combined
A5: Mean daily portions of fruit and vegetables | B5: NHS Board
B6: Ayrshire & Arran | C6: Borders | D6: Dumfries & Galloway | E6: Fife | F6: Forth Valley | G6: Grampian | H6: Greater Glasgow & Clyde | I6: Highland | J6: Lanarkshire | K6: Lothian | L6: Orkney | M6: Shetland | N6: Tayside | O6: Western Isles | P6: Scotland
A7: Men
A8: Mean | B8: ='meanfrtveg data'!C2 -> 2.67 | C8: ='meanfrtveg data'!D2 -> 3.117 | D8: ='meanfrtveg data'!E2 -> 3.219 | E8: ='meanfrtveg data'!F2 -> 3.05 | F8: ='meanfrtveg data'!G2 -> 3.12 | G8: ='meanfrtveg data'!H2 -> 3.12 | H8: ='meanfrtveg data'!I2 -> 2.87 | I8: ='meanfrtveg data'!J2 -> 2.98 | J8: ='meanfrtveg data'!K2 -> 2.84 | K8: ='meanfrtveg data'!L2 -> 3.33 | L8: ='meanfrtveg data'!M2 -> 2.965 | M8: ='meanfrtveg data'!N2 -> 2.886 | N8: ='meanfrtveg data'!O2 -> 2.91 | O8: ='meanfrtveg data'!P2 -> 3.22 | P8: ='meanfrtveg data'!Q2 -> 3.01
A9: Lower CI | B9: ='meanfrtveg data'!C3 -> 2.5 | C9: ='meanfrtveg data'!D3 -> 2.847 | D9: ='meanfrtveg data'!E3 -> 2.9 | E9: ='meanfrtveg data'!F3 -> 2.86 | F9: ='meanfrtveg data'!G3 -> 2.76 | G9: ='meanfrtveg data'!H3 -> 2.95 | H9: ='meanfrtveg data'!I3 -> 2.72 | I9: ='meanfrtveg data'!J3 -> 2.69 | J9: ='meanfrtveg data'!K3 -> 2.61 | K9: ='meanfrtveg data'!L3 -> 3.12 | L9: ='meanfrtveg data'!M3 -> 2.618 | M9: ='meanfrtveg data'!N3 -> 2.549 | N9: ='meanfrtveg data'!O3 -> 2.64 | O9: ='meanfrtveg data'!P3 -> 2.94 | P9: ='meanfrtveg data'!Q3 -> 2.94
A10: Upper CI | B10: ='meanfrtveg data'!C4 -> 2.83 | C10: ='meanfrtveg data'!D4 -> 3.387 | D10: ='meanfrtveg data'!E4 -> 3.538 | E10: ='meanfrtveg data'!F4 -> 3.25 | F10: ='meanfrtveg data'!G4 -> 3.48 | G10: ='meanfrtveg data'!H4 -> 3.3 | H10: ='meanfrtveg data'!I4 -> 3.03 | I10: ='meanfrtveg data'!J4 -> 3.26 | J10: ='meanfrtveg data'!K4 -> 3.06 | K10: ='meanfrtveg data'!L4 -> 3.55 | L10: ='meanfrtveg data'!M4 -> 3.312 | M10: ='meanfrtveg data'!N4 -> 3.223 | N10: ='meanfrtveg data'!O4 -> 3.18 | O10: ='meanfrtveg data'!P4 -> 3.499 | P10: ='meanfrtveg data'!Q4 -> 3.08
A12: Women
A13: Mean | B13: ='meanfrtveg data'!C5 -> 2.79 | C13: ='meanfrtveg data'!D5 -> 3.41 | D13: ='meanfrtveg data'!E5 -> 2.969 | E13: ='meanfrtveg data'!F5 -> 3.48 | F13: ='meanfrtveg data'!G5 -> 3.49 | G13: ='meanfrtveg data'!H5 -> 3.29 | H13: ='meanfrtveg data'!I5 -> 3.17 | I13: ='meanfrtveg data'!J5 -> 3.37 | J13: ='meanfrtveg data'!K5 -> 2.96 | K13: ='meanfrtveg data'!L5 -> 3.58 | L13: ='meanfrtveg data'!M5 -> 3.4 | M13: ='meanfrtveg data'!N5 -> 3.47 | N13: ='meanfrtveg data'!O5 -> 3.39 | O13: ='meanfrtveg data'!P5 -> 3.486 | P13: ='meanfrtveg data'!Q5 -> 3.26
A14: Lower CI | B14: ='meanfrtveg data'!C6 -> 2.63 | C14: ='meanfrtveg data'!D6 -> 3.011 | D14: ='meanfrtveg data'!E6 -> 2.627 | E14: ='meanfrtveg data'!F6 -> 3.3 | F14: ='meanfrtveg data'!G6 -> 3.15 | G14: ='meanfrtveg data'!H6 -> 3.13 | H14: ='meanfrtveg data'!I6 -> 3.02 | I14: ='meanfrtveg data'!J6 -> 3.14 | J14: ='meanfrtveg data'!K6 -> 2.75 | K14: ='meanfrtveg data'!L6 -> 3.39 | L14: ='meanfrtveg data'!M6 -> 3.131 | M14: ='meanfrtveg data'!N6 -> 3.092 | N14: ='meanfrtveg data'!O6 -> 3.12 | O14: ='meanfrtveg data'!P6 -> 3.119 | P14: ='meanfrtveg data'!Q6 -> 3.2
A15: Upper CI | B15: ='meanfrtveg data'!C7 -> 2.95 | C15: ='meanfrtveg data'!D7 -> 3.808 | D15: ='meanfrtveg data'!E7 -> 3.31 | E15: ='meanfrtveg data'!F7 -> 3.66 | F15: ='meanfrtveg data'!G7 -> 3.83 | G15: ='meanfrtveg data'!H7 -> 3.45 | H15: ='meanfrtveg data'!I7 -> 3.32 | I15: ='meanfrtveg data'!J7 -> 3.61 | J15: ='meanfrtveg data'!K7 -> 3.18 | K15: ='meanfrtveg data'!L7 -> 3.78 | L15: ='meanfrtveg data'!M7 -> 3.669 | M15: ='meanfrtveg data'!N7 -> 3.849 | N15: ='meanfrtveg data'!O7 -> 3.66 | O15: ='meanfrtveg data'!P7 -> 3.852 | P15: ='meanfrtveg data'!Q7 -> 3.33
A17: All adults
A18: Mean | B18: ='meanfrtveg data'!C8 -> 2.73 | C18: ='meanfrtveg data'!D8 -> 3.277 | D18: ='meanfrtveg data'!E8 -> 3.091 | E18: ='meanfrtveg data'!F8 -> 3.27 | F18: ='meanfrtveg data'!G8 -> 3.32 | G18: ='meanfrtveg data'!H8 -> 3.21 | H18: ='meanfrtveg data'!I8 -> 3.03 | I18: ='meanfrtveg data'!J8 -> 3.18 | J18: ='meanfrtveg data'!K8 -> 2.9 | K18: ='meanfrtveg data'!L8 -> 3.45 | L18: ='meanfrtveg data'!M8 -> 3.183 | M18: ='meanfrtveg data'!N8 -> 3.169 | N18: ='meanfrtveg data'!O8 -> 3.16 | O18: ='meanfrtveg data'!P8 -> 3.353 | P18: ='meanfrtveg data'!Q8 -> 3.14
A19: Lower CI | B19: ='meanfrtveg data'!C9 -> 2.59 | C19: ='meanfrtveg data'!D9 -> 3.012 | D19: ='meanfrtveg data'!E9 -> 2.813 | E19: ='meanfrtveg data'!F9 -> 3.12 | F19: ='meanfrtveg data'!G9 -> 3.05 | G19: ='meanfrtveg data'!H9 -> 3.08 | H19: ='meanfrtveg data'!I9 -> 2.9 | I19: ='meanfrtveg data'!J9 -> 2.98 | J19: ='meanfrtveg data'!K9 -> 2.73 | K19: ='meanfrtveg data'!L9 -> 3.28 | L19: ='meanfrtveg data'!M9 -> 2.942 | M19: ='meanfrtveg data'!N9 -> 2.871 | N19: ='meanfrtveg data'!O9 -> 2.93 | O19: ='meanfrtveg data'!P9 -> 3.077 | P19: ='meanfrtveg data'!Q9 -> 3.09
A20: Upper CI | B20: ='meanfrtveg data'!C10 -> 2.88 | C20: ='meanfrtveg data'!D10 -> 3.543 | D20: ='meanfrtveg data'!E10 -> 3.368 | E20: ='meanfrtveg data'!F10 -> 3.43 | F20: ='meanfrtveg data'!G10 -> 3.58 | G20: ='meanfrtveg data'!H10 -> 3.34 | H20: ='meanfrtveg data'!I10 -> 3.15 | I20: ='meanfrtveg data'!J10 -> 3.38 | J20: ='meanfrtveg data'!K10 -> 3.08 | K20: ='meanfrtveg data'!L10 -> 3.63 | L20: ='meanfrtveg data'!M10 -> 3.425 | M20: ='meanfrtveg data'!N10 -> 3.467 | N20: ='meanfrtveg data'!O10 -> 3.4 | O20: ='meanfrtveg data'!P10 -> 3.629 | P20: ='meanfrtveg data'!Q10 -> 3.2
A22: Bases (weighted):
A23: Men | B23: ='meanfrtveg data'!C11 -> 606.12 | C23: ='meanfrtveg data'!D11 -> 183.856 | D23: ='meanfrtveg data'!E11 -> 262.106 | E23: ='meanfrtveg data'!F11 -> 618.84 | F23: ='meanfrtveg data'!G11 -> 494.73 | G23: ='meanfrtveg data'!H11 -> 977.8 | H23: ='meanfrtveg data'!I11 -> 1880.15 | I23: ='meanfrtveg data'!J11 -> 541.45 | J23: ='meanfrtveg data'!K11 -> 1147.4 | K23: ='meanfrtveg data'!L11 -> 1530.31 | L23: ='meanfrtveg data'!M11 -> 38.805 | M23: ='meanfrtveg data'!N11 -> 41.939 | N23: ='meanfrtveg data'!O11 -> 681.92 | O23: ='meanfrtveg data'!P11 -> 48.446 | P23: ='meanfrtveg data'!Q11 -> 9053.88
A24: Women | B24: ='meanfrtveg data'!C12 -> 710.87 | C24: ='meanfrtveg data'!D12 -> 222.276 | D24: ='meanfrtveg data'!E12 -> 275.466 | E24: ='meanfrtveg data'!F12 -> 663.33 | F24: ='meanfrtveg data'!G12 -> 552.52 | G24: ='meanfrtveg data'!H12 -> 1079.33 | H24: ='meanfrtveg data'!I12 -> 2051.62 | I24: ='meanfrtveg data'!J12 -> 586.85 | J24: ='meanfrtveg data'!K12 -> 1263.93 | K24: ='meanfrtveg data'!L12 -> 1496.34 | L24: ='meanfrtveg data'!M12 -> 39.048 | M24: ='meanfrtveg data'!N12 -> 39.383 | N24: ='meanfrtveg data'!O12 -> 771.2 | O24: ='meanfrtveg data'!P12 -> 48.518 | P24: ='meanfrtveg data'!Q12 -> 9800.67
